Workbook

Sheet Controllo_UPLOAD (hidden)
A1: ID_ATO | B1: ID_Aeeg_Gestore | D1: SONO PRESENTI ATO E GESTORE ? | E1: il file può essere caricato ?
A2: =idato -> 0 | B2: =Codice_Aeeg -> 0 | D2: =IF(A2*B2>0,"SI","NO") -> NO | E2: SI
D3: PRECOMPILATO
D4: 0
D5: 1 = precompilato; 0 = deve fornire tutti i dati
D7: Tipo_file
D8: Tool
D10: SI

Sheet Menu
B1: RACCOLTA DATI TARIFFARI | F1: Per la compilazione seguire l'ordine dei fogli | N1: RACCOLTA DATI "Qualità Tecnica e Programma degli interventi"
B2: ATO | E2: GESTORE
B3: ID_ATO | C3: ATO | D3: campo_vuoto | E3: ID_Aeeg_Gestore | F3: Gestore | H3: DATA CALCOLO
H4: RDT2018
F6: Dichiarazione relativa alla natura dei dati forniti per l'anno 2017
F7: dati preconsutivi
B8: Sono presenti Errori | C8: elenco schede: | G8: foglio | I8: nomi delle tabelle | N8: Sono presenti Errori | O8: elenco schede: | S8: foglio | U8: nomi delle tabelle
C9: Dati tecnici | G9: Dati_tecnici | H9: scrittura | O9: Qualità Tecnica: Acquedotto | S9: QT-Acquedotto | T9: lettura/scrittura
C10: Dati di conto economico | G10: Dati_conto_econ | H10: scrittura | O10: Qualità Tecnica: Fognatura | S10: QT-Fognatura | T10: lettura/scrittura
C11: Altri dati economico finanziari | G11: Altri dati economico_finanziari | H11: scrittura | O11: Qualità Tecnica: Depurazione | S11: QT-Depurazione | T11: lettura/scrittura
C12: Elenco soggetti proprietari (infrastrutture di terzi e/o corrispettivi) | G12: Soggetti_proprietari_infrastrut | H12: lettura/scrittura | I12: Elenco_Proprietari | O12: Qualità Tecnica: Istanze | S12: QT-Istanze | T12: lettura
C13: Corrispettivi su infrastrutture di terzi | G13: Corrispettivi Infrast Terzi | H13: lettura/scrittura | I13: Corrispettivi_Proprietari | O13: Programma degli Interventi: legenda | S13: PdI-legenda | T13: lettura
C14: Servizi all'ingrosso: soggetti | G14: Soggetti_Scambio | H14: scrittura | I14: Soggetti_Elenco | O14: Programma degli Interventi: cronoprogramma_investimenti | S14: PdI-cronoprogramma_investimenti | T14: lettura/scrittura | U14: crono_investimenti
C15: Servizi all'ingrosso: vendita | G15: Vendita_Servizi_ingrosso | H15: scrittura | I15: Vendita_Servizi | O15: Programma degli Interventi: cronoprogramma_gestionale | S15: PdI-cronoprogramma_gestionale | T15: lettura/scrittura | U15: crono_gestionale
C16: Servizi all'ingrosso: acquisto | G16: Acquisto_Servizi_ingrosso | H16: scrittura | I16: Acquisto_Servizi | O16: Programma degli Interventi: riepilogo | S16: PdI-riepilogo | T16: lettura
C17: Nuovi investimenti | G17: Nuovi_Investimenti | H17: scrittura | I17: Nuovi_Investimenti | O17: Riepilogo interventi per obiettivi di Qualità Tecnica | S17: Riepilogo | T17: lettura
C18: Dismissioni | G18: Dismissioni | H18: scrittura | I18: Dismissioni
C19: Ammortamento finanziario | G19: Ammortamento_Finanziario | H19: lettura/scrittura
C20: Informazioni su aggregazioni | G20: Info_eventuali_aggregazioni | H20: scrittura | I20: Info_Soggetti_Aggregati
C21: Dati_exGestioni_integrate | G21: Dati_exGestioni_integrate | H21: scrittura | I21: Gestioni_Aggregate_Ricavi
C22: Informazioni per completamento proposta tariffaria | G22: Input_per_calcoli_finali | H22: lettura/scrittura
C23: Ulteriori specificazioni del VRG | G23: VRG_ulteriori_specificazioni | H23: lettura/scrittura
C24: TICSI: Elenco Ambiti Tariffari | G24: Elenco_Ambiti_Tariffari | H24: scrittura | I24: AmbitiTariffariElenco
C25: TICSI: Ambiti Tariffari e Comuni per Ambito Tariffario | G25: Ambiti_Tariffari_Comuni | H25: scrittura | I25: Ambiti_Tariffari_Comuni
C26: TICSI: Articolazione Tariffaria - Quota Variabile | G26: Articolaz tariff QV | H26: scrittura
C27: TICSI: Articolazione Tariffaria - Quota Fissa | G27: Articolaz tariff QF | H27: scrittura
C28: TICSI: Ricavi tariffari totali per Ambito Tariffario | G28: Ricavi_ambiti_tariffari | H28: lettura/scrittura | I28: Ambiti_Tariffari_Ricavi
C29: Dati anni precedenti | G29: Dati_Anni_precedenti | H29: lettura
C30: Immobilizzazioni ante 2015 | G30: RAB_cespiti_ante2015 | H30: lettura | I30: RAB_ante2015
C31: Conferma investimenti 2015 | G31: Conferma_investimenti_2015 | H31: lettura/scrittura | I31: Investimenti_2015
C32: Immobilizzazioni dei proprietari | G32: rab_proprietari | H32: lettura | I32: RAB_PROPRIETARI
C33: Elenco Ambiti Tariffari (dati anni precedenti) | G33: Storico_Elenco_Ambiti_Tariffari | H33: lettura/scrittura | I33: Storico_AmbitiTariffariElenco
C34: Ambiti Tariffari e Comuni per Ambito Tariffario (dati anni precedenti) | G34: Storico_Ambiti_Tariffari_Comuni | H34: lettura/scrittura | I34: Storico_Ambiti_Tariffari_Comuni
C35: Articolazione Tariffaria - Quota Variabile (dati anni precedenti) | G35: Storico_Articolaz tariff QV | H35: lettura/scrittura
C36: Articolazione Tariffaria - Quota Fissa (dati anni precedenti) | G36: Storico_Articolaz tariff QF | H36: lettura/scrittura
C37: Ricavi tariffari totali per Ambito Tariffario (dati anni precedenti) | G37: Storico_Ricavi_ambiti_tariffari | H37: lettura/scrittura | I37: Storico_Ambiti_Tariffari_Ricavi
C38: Dati anni precedenti: Piano tariffario | G38: Storico_Piano_Tariffario | H38: lettura
C39: Ricostruzione immobilizzazioni del gestore | G39: consolidamento_RAB_mti2 | H39: lettura
C40: Calcolo IMN gestore MTI-2 | G40: RAB_gestore_MTI-2 | H40: lettura
C41: Riepilogo valore delle immobilizzazioni del gestore | G41: riepilogo RAB MTI -2 | H41: lettura
C42: FRAMEWORK SCHEMI | G42: framework_schemi | H42: calcolo
C43: VRG TETA | G43: vrg_teta | H43: calcolo
C44: DCUIT | G44: dcuit | H44: calcolo
C45: CAPEX | G45: capex | H45: calcolo
C46: FoNI | G46: FoNI | H46: calcolo
C47: OPEX | G47: opex | H47: calcolo
C48: ERC | G48: erc | H48: calcolo
C49: RC | G49: rc | H49: calcolo
C50: Riepilogo gestioni integrate | G50: Riepilogo_gest_integrate | H50: calcolo
C51: PEF - Piano tariffario | G51: piano_tariffario | H51: lettura/scrittura
C52: PEF - Conto economico | G52: conto_economico | H52: scrittura
C53: PEF - Rendiconto finanziario | G53: rendiconto_finanziario | H53: scrittura
C54: Elenco Gestori | G54: TT_Gestori | H54: fogli di supporto
C55: Tabelle di supporto anagrafica territorio | G55: TT_Comuni_ATO | H55: fogli di supporto
C56: Tabelle di riferimento (per i menu) | G56: TT_Tabelle_Riferimento | H56: fogli di supporto
C57: Parametri | G57: TT_parametri | H57: sola lettura
C58: =+O9 -> Qualità Tecnica: Acquedotto | G58: =+S9 -> QT-Acquedotto | H58: =+T9 -> lettura/scrittura
C59: =+#REF! ->  | G59: =+#REF! ->  | H59: =+#REF! -> 
C60: =+O10 -> Qualità Tecnica: Fognatura | G60: =+S10 -> QT-Fognatura | H60: lettura/scrittura
C61: Qualità Tecnica: Depurazione | G61: QT-Depurazione | H61: lettura/scrittura
C62: Qualità Tecnica: Istanze | G62: QT-Istanze | H62: lettura
C63: Programma degli Interventi: legenda | G63: PdI-legenda | H63: lettura
C64: Programma degli Interventi: cronoprogramma_investimenti | G64: PdI-cronoprogramma_investimenti | H64: lettura/scrittura | I64: =+U14 -> crono_investimenti
C65: Programma degli Interventi: cronoprogramma_gestionale | G65: PdI-cronoprogramma_gestionale | H65: lettura/scrittura | I65: =+U15 -> crono_gestionale
C66: Programma degli Interventi: riepilogo | G66: PdI-riepilogo | H66: lettura
C67: Riepilogo interventi per obiettivi di Qualità Tecnica | G67: Riepilogo | H67: lettura

Sheet Dati_tecnici
B1: DATI TECNICI
B2: FORNITURA ELETTRICA | E2: ANNO 2016 | F2: ANNO 2017 | G2: ANNO 2015 | M2: coerenza consumo eel | N2: controllo compilazione | O2: integrità dati per EE | P2: integrità dati pop | Q2: non sono presenti errori
C3: Consumo di energia elettrica | D3: kwh | J3: =+IF(M3=TRUE,"","Il totale dei consumi non è coerente con i dati forniti nella sezione Qualità Tecnica") ->  | M3: =+AND('QT-Depurazione'!G135:H135) -> TRUE | N3: =+COUNTA(F5:F6,E5:E6,E3:F3,E29,E30,E31,E32,E33,E34,E35)=13 -> FALSE | O3: =+E3*F3*E5*F5>0 -> FALSE | P3: =+PRODUCT(E9,E17,E23,F9,F17,F23)>0 -> FALSE | Q3: =+AND(N3:P3) -> FALSE
C4: Costo energia elettrica a bilancio | D4: Euro
C5: Costo medio della fornitura elettrica | D5: Euro/kwh
C6: Si esclude di avere acquistato energia elettrica in regime di salvaguardia per almeno 4 mesi | D6: SI/NO
B7: SERVIZIO ACQUEDOTTO
C8: Numero di comuni serviti (ComA) | D8: N
C9: Popolazione residente servita (PRA) | D9: N
C10: Volume di acqua fatturato (A20) | D10: m3
C11: Utenze totali (UtT) | D11: N
C12: Popolazione fluttuante (PFA) | D12: N
C13: Superficie (SUA) | D13: km2
C14: Lunghezza rete (L) | D14: km
B15: SERVIZIO FOGNATURA
C16: Numero di comuni serviti (ComF) | D16: N
C17: Popolazione residente servita (PRF) | D17: N
C18: Lunghezza rete fognaria (LL) | D18: km
C19: Popolazione fluttuante (PFF) | D19: N
C20: Superficie (SUF) | D20: km2
B21: SERVIZIO DEPURAZIONE
C22: Numero di comuni serviti (ComD) | D22: N
C23: Popolazione residente servita (PRD) | D23: N
C24: Popolazione fluttuante (PFD) | D24: N
C25: Superficie (SUD) | D25: km2
C26: Abitanti Equivalenti serviti da depurazione | D26: A.E. | E26: =+'QT-Depurazione'!F101 -> 0 | F26: =+'QT-Depurazione'!H101 -> 0
B28: TERRITORIO GESTITO E AFFIDAMENTO
C29: Tipo affidamento | D29: -
C30: Data inizio affidamento | D30: gg/mm/aaaa
C31: Data fine affidamento | D31: gg/mm/aaaa
C32: Presenza Carta dei servizi | D32: SI/NO
C33: Presenza di un consumo minimo impegnato per la fatturazione delle utenze domestiche | D33: SI/NO
C34: Adempimento obblighi di verifica qualità dell'acqua | D34: conforme/non conforme
C35: Versamento delle componenti perequative a CSEA | D35: SI/NO

Sheet Dati_conto_econ
B1: DATI DI CONTO ECONOMICO | P1: NON SONO PRESENTI ERRORI | R1: non sono presenti errori nelle voci "di cui" | S1: non sono presenti errori nelle voci "di cui ERC" 2014 | T1: non sono presenti errori nelle voci "di cui ERC" 2015 | U1: non sono presenti errori
C2: ANNO 2016 | I2: ANNO 2017 | P2: =AND(R2:U2) -> FALSE | R2: =IF(COUNTIF(P4:P85,TRUE)>=1,FALSE,TRUE) -> TRUE | S2: =+IF(MIN(E42:E85,E4,E13)<0,FALSE,TRUE) -> TRUE | T2: =+IF(MIN(K42:K85,K4,K13)<0,FALSE,TRUE) -> TRUE | U2: =+AND(C4>0,I4>0,C42>0,I42>0) -> FALSE
C3: Totale SII | D3: di cui ERC | E3: SII escluso ERC | F3: Altre attività idriche (c.d. Attività b) | G3: Attività diverse | I3: Totale SII | J3: di cui ERC | K3: SII escluso ERC | L3: Altre attività idriche (c.d. Attività b) | M3: Attività diverse | O3: n_riga
A4: VALORE DELLA PRODUZIONE (Euro) | C4: =C5+C7+C8+C9+C11 -> 0 | E4: =+C4-D4 -> 0 | F4: =F5+F7+F8+F9+F11 -> 0 | G4: =G5+G7+G8+G9+G11 -> 0 | I4: =I5+I7+I8+I9+I11 -> 0 | K4: =+I4-J4 -> 0 | L4: =L5+L7+L8+L9+L11 -> 0 | M4: =M5+M7+M8+M9+M11 -> 0 | O4: 0 | P4: =OR(C13>C4,F13>F4,G13>G4,I13>I4,L13>L4,M13>M4) -> FALSE
B5: A1) Ricavi delle vendite e delle prestazioni | E5: =+C5-D5 -> 0 | K5: =+I5-J5 -> 0 | O5: 1
B6: di cui da altre imprese del gruppo | E6: =+C6-D6 -> 0 | K6: =+I6-J6 -> 0 | O6: 2 | P6: =OR(C6>C5,F6>F5,G6>G5,I6>I5,L6>L5,M6>M5) -> FALSE
B7: A2) Variazioni rimanenze di prodotti in corso di lavorazione, semilavorati e finiti | E7: 0 | K7: 0 | O7: 3
B8: A3) Variazioni dei lavori in corso su ordinazione | E8: 0 | K8: 0 | O8: 4
B9: A4) Incrementi di immobilizzazioni per lavori interni (inclusi costi del personale) | E9: 0 | K9: 0 | O9: 5
B10: di cui per realizzazione allacciamenti idrici e fognari | E10: 0 | K10: 0 | O10: 6 | P10: =OR(C10>C9,F10>F9,G10>G9,I10>I9,L10>L9,M10>M9) -> FALSE
B11: A5) Altri ricavi e proventi | E11: 0 | K11: 0 | O11: 7
B12: di cui da altre imprese del gruppo | E12: 0 | K12: 0 | O12: 8 | P12: =OR(C12>C11,F12>F11,G12>G11,I12>I11,L12>L11,M12>M11) -> FALSE
A13: ULTERIORI SPECIFICAZIONI DEI RICAVI (Euro) | C13: =SUM(C14:C40) -> 0 | E13: =+C13-D13 -> 0 | F13: =SUM(F14:F40) -> 0 | G13: =SUM(G14:G40) -> 0 | I13: =SUM(I14:I40) -> 0 | K13: =+I13-J13 -> 0 | L13: =SUM(L14:L40) -> 0 | M13: =SUM(M14:M40) -> 0 | O13: 9
B14: Ricavi da articolazione tariffaria | E14: =+C14-D14 -> 0 | K14: =+I14-J14 -> 0 | O14: 10
B15: Vendita di acqua all’ingrosso | E15: 0 | K15: 0 | O15: 11
B16: Acquedotto (utenti non allacciati alla pubblica fognatura) | E16: 0 | K16: 0 | O16: 12
B17: Vendita di acqua non potabile o ad uso industriale | E17: 0 | K17: 0 | O17: 13
B18: Vendita di acqua forfetaria | E18: 0 | K18: 0 | O18: 14
B19: Fornitura bocche antincendio | E19: 0 | K19: 0 | O19: 15
B20: Fognatura e depurazione civile (approvvigionamento autonomo) | E20: 0 | K20: 0 | O20: 16
B21: Fognatura e depurazione di acque reflue industriali | E21: 0 | K21: 0 | O21: 17
B22: Contributi di allacciamento | E22: 0 | K22: 0 | O22: 18
B23: Prestazioni e servizi accessori (v. comma 1.1 All.A del 664/2015/R/idr) | E23: 0 | K23: =+I23-J23 -> 0 | O23: 19
B24: Vendita di acqua con autobotte (v. comma 1.1 All.A del 664/2015/R/idr) | E24: 0 | K24: =+I24-J24 -> 0 | O24: 20
B25: Trattamento percolati | O25: 21
B26: Trattamento bottini | O26: 22
B27: Gestione fognature bianche (v. comma 1.1 All.A del 664/2015/R/idr) | E27: 0 | K27: 0 | O27: 23
B28: Pulizia e manutenzione caditoie stradali (v. comma 1.1 All.A del 664/2015/R/idr) | E28: 0 | K28: 0 | O28: 24
B29: Installazione/gestione bocche antincendio | O29: 25
B30: Vendita di servizi a terzi | O30: 26
B31: Lavori conto terzi | E31: 0 | K31: 0 | O31: 27
B32: Spurgo pozzi neri | O32: 28
B33: Rilascio autorizzazioni allo scarico | O33: 29
B34: Lottizzazioni | O34: 30
B35: Riuso delle acque di depurazione | O35: 31
B36: Case dell’acqua | O36: 32
B37: Proventi straordinari | E37: 0 | K37: 0 | O37: 33
B38: Contributi in conto esercizio | E38: 0 | K38: 0 | O38: 34
B39: Rimborsi e indennizzi | E39: 0 | K39: 0 | O39: 35
B40: Ricavi da altre attività (non inclusi nelle suddette voci) | O40: 36
O41: 37
A42: COSTI DELLA PRODUZIONE (Euro) | C42: =C43+C44+C49+C52+SUM(C54:C57) -> 0 | D42: =D43+D44+D49+D52+SUM(D54:D57) -> 0 | E42: =+C42-D42 -> 0 | F42: =F43+F44+F49+F52+SUM(F54:F57) -> 0 | G42: 0 | I42: =I43+I44+I49+I52+SUM(I54:I57) -> 0 | J42: 0 | K42: =+I42-J42 -> 0 | L42: =L43+L44+L49+L52+SUM(L54:L57) -> 0 | M42: 0 | O42: 38 | P42: =OR(C58>C42,D58>D42,F58>F42,G58>G42,I58>I42,J58>J42,L58>L42,M58>M42) -> FALSE
B43: B6) Per materie prime, sussidiarie, di consumo e merci | E43: =+C43-D43 -> 0 | K43: =+I43-J43 -> 0 | O43: 39
B44: B7) Per servizi | C44: =+SUM(C45:C48) -> 0 | D44: =+SUM(D45:D48) -> 0 | E44: =+C44-D44 -> 0 | F44: =+SUM(F45:F48) -> 0 | G44: 0 | I44: =+SUM(I45:I48) -> 0 | J44: 0 | K44: =+I44-J44 -> 0 | L44: =+SUM(L45:L48) -> 0 | M44: 0 | O44: 40
B45: energia elettrica da altre imprese del gruppo | E45: =+C45-D45 -> 0 | K45: =+I45-J45 -> 0 | O45: 41
B46: energia elettrica da altre imprese | E46: 0 | K46: 0 | O46: 42
B47: altri servizi da altre imprese del gruppo | E47: 0 | K47: 0 | O47: 43
B48: altri servizi da altre imprese | E48: 0 | K48: 0 | O48: 44
B49: B8) Per godimento beni di terzi | E49: 0 | K49: 0 | O49: 45 | P49: =OR(C49<SUM(C50:C51),D49<SUM(D50:D51),F49<SUM(F50:F51),G49<SUM(G50:G51),I49<SUM(I50:I51),J49<SUM(J50:J51),L49<SUM(L50:L51),M49<SUM(M50:M51)) -> FALSE
B50: di cui per uso impianti di altre imprese del gruppo | E50: 0 | K50: 0 | O50: 46
B51: di cui altre spese verso altre imprese del gruppo | E51: 0 | K51: 0 | O51: 47
B52: B9) Per il personale | E52: 0 | K52: 0 | O52: 48
B53: di cui per trattamento di fine rapporto (inclusa rivalutazione) | E53: 0 | K53: 0 | O53: 49 | P53: =OR(C53>C52,D53>D52,F53>F52,G53>G52,I53>I52,J53>J52,L53>L52,M53>M52) -> FALSE
B54: B11) Variazione delle rimanenze | E54: 0 | K54: 0 | O54: 50
B55: B12) Accantonamenti per rischi | E55: 0 | K55: 0 | O55: 51
B56: B13) Altri accantonamenti | E56: 0 | K56: 0 | O56: 52
B57: B14) Oneri diversi di gestione | E57: 0 | K57: 0 | O57: 53
A58: ULTERIORI SPECIFICAZIONI DEI COSTI (Euro) | C58: =SUM(C59:C74)+C75+C79 -> 0 | D58: =SUM(D59:D74)+D75+D79 -> 0 | E58: 0 | F58: =SUM(F59:F74)+F75+F79 -> 0 | G58: 0 | I58: =SUM(I59:I74)+I75+I79 -> 0 | J58: 0 | K58: 0 | L58: =SUM(L59:L74)+L75+L79 -> 0 | M58: 0 | O58: 54
B59: Accantonamenti e rettifiche in eccesso rispetto all'applicazione di norme tributarie | E59: 0 | K59: 0 | O59: 55
B60: Rettifiche di valori di attività finanziarie | E60: 0 | K60: 0 | O60: 56
B61: Costi connessi all'erogazione di liberalità | E61: 0 | K61: 0 | O61: 57
B62: Costi pubblicitari e di marketing (incluse le imposte connesse) | E62: 0 | K62: 0 | O62: 58
B63: Oneri per sanzioni, penalità, risarcimenti automatici e simili | E63: 0 | K63: 0 | O63: 59
B64: Oneri straordinari | E64: 0 | K64: 0 | O64: 60
B65: Spese processuali in cui la parte è risultata soccombente | E65: 0 | K65: 0 | O65: 61
B66: Contributi associativi | E66: 0 | K66: 0 | O66: 62
B67: Spese di viaggio e di rappresentanza | E67: 0 | K67: 0 | O67: 63
B68: Spese di funzionamento Ente d'Ambito | E68: 0 | K68: 0 | O68: 64
B69: Canoni di affitto immobili non industriali | E69: 0 | K69: 0 | O69: 65
B70: Costi di realizzazione degli allacciamenti idrici e fognari | E70: 0 | K70: 0 | O70: 66
B71: Gestione fognature bianche (* solo se già incluse nel SII; v. comma 1.1 All.A del 664/2015/R/idr) | E71: 0 | K71: 0 | O71: 67
B72: Pulizia e manutenzione caditoie stradali (* solo se già incluse nel SII; v. comma 1.1 All.A del 664/2015/R/idr) | E72: 0 | K72: 0 | O72: 68
B73: Perdite su crediti per la sola quota parte eccedente l'utilizzo del fondo | E73: 0 | K73: 0 | O73: 69
B74: Costi di strutturazione dei progetti di finanziamento (non capitalizzati) | E74: 0 | K74: 0 | O74: 70
B75: Uso infrastrutture di terzi | C75: =+SUM(C76:C78) -> 0 | D75: =+SUM(D76:D78) -> 0 | E75: 0 | F75: =+SUM(F76:F78) -> 0 | G75: 0 | I75: =+SUM(I76:I78) -> 0 | J75: 0 | K75: 0 | L75: =+SUM(L76:L78) -> 0 | M75: 0 | O75: 71
B76: rimborso mutui di comuni, aziende speciali, società patrimoniali | E76: 0 | K76: =+I76-J76 -> 0 | O76: 72
B77: altri corrispettivi a comuni, aziende speciali, società patrimoniali | E77: 0 | K77: =+I77-J77 -> 0 | O77: 73
B78: corrispettivi a gestori preesistenti, altri proprietari | E78: 0 | K78: =+I78-J78 -> 0 | O78: 74
B79: Oneri locali | C79: =+SUM(C80:C85) -> 0 | D79: =+SUM(D80:D85) -> 0 | E79: 0 | F79: =+SUM(F80:F85) -> 0 | G79: 0 | I79: =+SUM(I80:I85) -> 0 | J79: 0 | K79: =+I79-J79 -> 0 | L79: =+SUM(L80:L85) -> 0 | M79: 0 | O79: 75
B80: canoni di derivazione/sottensione idrica | E80: 0 | K80: =+I80-J80 -> 0 | O80: 76
B81: contributi per consorzi di bonifica | E81: 0 | K81: 0 | O81: 77
B82: contributi a comunità montane | E82: 0 | K82: 0 | O82: 78
B83: canoni per restituzione acque | E83: 0 | K83: 0 | O83: 79
B84: oneri per la gestione di aree di salvaguardia | E84: 0 | K84: 0 | O84: 80
B85: altri oneri locali (TOSAP, COSAP, TARSU) | E85: 0 | K85: 0 | O85: 81

Sheet Altri dati economico_finanziari
B1: FONTI DI FINANZIAMENTO
E2: ANNO 2016 | F2: ANNO 2017 | P2: integrità dati per morosità | Q2: integrità dati in valore assoluto | R2: controllo coerenza voci "di cui" | S2: non sono presenti errori
C3: Mezzi Propri | D3: Euro | P3: =+AND(E30*F30>=0,E30<>"",F30<>"") -> FALSE | Q3: =+AND(E17>=0,F17>=0,E18>=0,F18>=0,E19>=0,F19>=0,E24>=0,F24>=0,E25>=0,F25>=0,E26>=0,F26>=0,E31>=0,F31>=0,E39>=0,F39>=0,E45>=0,F45>=0,E48>=0,F48>=0,E49>=0,F49>=0,G51>=0,H51>=0,E54>=0,F54>=0) -> TRUE | R3: =+IF(OR(E6>E5,F6>F5,E12>E11,F12>F11,ABS(E47)>ABS(E46),ABS(F47)>ABS(F46)),FALSE,TRUE) -> TRUE | S3: =+AND(P3:R3) -> FALSE
B4: MEZZI DI TERZI
C5: Finanziamenti a medio-lungo termine | D5: Euro
C6: di cui verso società controllate e collegate e verso controllanti | D6: Euro
C7: Tasso medio finanziamenti a medio-lungo termine | D7: %
C8: Prestiti obbligazionari | D8: Euro
C9: Tasso medio Prestiti obbligazionari | D9: %
C10: Altre passitivtà consolidate | D10: Euro
C11: Finanziamenti a breve termine | D11: Euro
C12: di cui verso società controllate e collegate e verso controllanti | D12: Euro
C13: Tasso medio Finanziamenti a breve termine | D13: %
C14: Altre passività correnti | D14: Euro
C15: Debiti tributari | D15: Euro
B16: TFR, FONDO RISCHI E ALTRI
C17: TFR | D17: Euro
C18: Fondo di quiescenza | D18: Euro
C19: Fondo rischi e oneri | D19: Euro
C20: Fondo rischi su crediti | D20: Euro
C21: Fondo svalutazione crediti | D21: Euro
C22: Valore Deposito cauzionale | D22: Euro
C23: Fondo imposte e tasse (anche differite) | D23: Euro
C24: Fondo sentenza Corte Costituzionale 335/2008 | D24: Euro
C25: Fondo per il ripristino di beni di terzi | D25: Euro
C26: Fondo per il finanziamento di tariffe sociali o di solidarietà | D26: Euro
B28: ALTRI DATI ECONOMICO FINANZIARI
B29: MOROSITA' | E29: ANNO 2016 | F29: ANNO 2017 | G29: ANNO 2018 | H29: ANNO 2019
C30: Unpaid Ratio (UR) a 24 mesi effettivamente rilevato | D30: %
C31: Rimborsi dagli utenti finali relativi alla gestione della morosità | D31: Euro
B32: IMPOSTE
C33: IRES | D33: Euro
C34: IRAP | D34: Euro
C35: Imposte differite | D35: Euro
C36: Imposte anticipate | D36: Euro
C37: Aliquota media di tassazione, IRAP inclusa | D37: %
B38: FoNI spesa
C39: FoNI speso per agevolazioni tariffarie | D39: Euro
B40: AGEVOLAZIONI TARIFFARIE E ALTRI IMPORTI IN BOLLETTA
C41: Agevolazioni tariffarie da regolamento erogate (Euro) A partire dal 2018 indicare le eventuali agevolazioni migliorative da attribuire alla componente OPsocial | D41: Euro
C42: Ui1 (importo fatturato componente Ui1) | D42: Euro
C43: Altre componenti perequative | D43: Euro
B44: ALTRI DATI PER CALCOLO RC
C45: Contributo versato all'AEEG | D45: Euro
C46: Costi per variazioni sistemiche o per eventi eccezionali | D46: Euro
C47: di cui: per eventi eccezionali | D47: Euro
C48: Costo delle forniture all’ingrosso transfrontaliere | D48: Euro
C49: Rimborsi effettuati ai sensi sentenza CC 335/2008 ed eccedenti la quota riconosciuta in tariffa | D49: Euro
B50: ALTRI DATI PER IL CALCOLO DELLA COMPONENTE CAPEX
C51: DCUIT capex (dettagliare nella relazione le motivazioni della collocazione tra i capex) | D51: Euro
C52: Ammortamento finanziario ammissibile ai sensi del comma 16.5 lettera a) | D52: SI/NO
B53: AGGIORNAMENTO DATI RELATIVI ALLA COMPONENTE OPEX
C54: OpexQC effettivamente sostenuti dal gestore (comma 29.1 del 664/2015/R/idr) | D54: Euro

Sheet Soggetti_proprietari_infrastrut
B1: ELENCO SOGGETTI PROPRIETARI
C3: Elenco proprietari infrastrutture per calcolo Mutui/Altri corrispettivi ed eventuale Stratificazione di terzi | O3: Non sono presenti Errori
O4: =+AND(O5:Q5) -> TRUE
O5: =AND(INDEX(Elenco_Proprietari,0,15)) -> TRUE | P5: =AND(INDEX(Elenco_Proprietari,0,16)) -> TRUE | Q5: =AND(INDEX(Elenco_Proprietari,0,17)) -> TRUE
A7: N_riga | B7: Key_Prop | C7: Soggetto Proprietario | D7: Tipologia di proprietario | E7: P. IVA Proprietario | F7: Codice Istat Comune proprietario | G7: Proprietario ai fini dei corrispettivi AC/MT | H7: Proprietario non più presente ai fini della RAB di terzi | I7: Fusione | J7: Numero Cespiti | K7: Key_Prop_bis | L7: New_Key_prop | M7: Proprietario risultante dalla fusione | N7: per costruzione | O7: Proprietario non duplicato | P7: presenza PIVA o CodiceISTAT | Q7: Presenza tipologia
A8: =+ROW(A8)-7 -> 1 | B8: =idato & "_" & idgestore & "-" & IF($D8="Comune",$F8,"") & "-" &IF($D8="Comune","",$E8) -> _-- | K8: =B8 -> _-- | L8: =IF(I8="SI",VLOOKUP(M8,$C$8:$K$7815,9,0),K8) -> _-- | N8: =+IF(H8="SI",L8,0) -> 0 | O8: =IF(COUNTIF(B:B,B8)>1,IF(COUNTA(C8:H8)=0,TRUE,FALSE),TRUE) -> TRUE | P8: =IF(COUNTA(E8:F8)<1,IF(COUNTA(C8:H8)=0,TRUE,FALSE),TRUE) -> TRUE | Q8: =IF(COUNTA(D8)<1,IF(COUNTA(C8:H8)=0,TRUE,FALSE),TRUE) -> TRUE
A9: =+ROW(A9)-7 -> 2 | B9: =idato & "_" & idgestore & "-" & IF($D9="Comune",$F9,"") & "-" &IF($D9="Comune","",$E9) -> _-- | K9: =B9 -> _-- | L9: =IF(I9="SI",VLOOKUP(M9,$C$8:$K$7815,9,0),K9) -> _-- | N9: =+IF(H9="SI",L9,0) -> 0 | O9: =IF(COUNTIF(B:B,B9)>1,IF(COUNTA(C9:H9)=0,TRUE,FALSE),TRUE) -> TRUE | P9: =IF(COUNTA(E9:F9)<1,IF(COUNTA(C9:H9)=0,TRUE,FALSE),TRUE) -> TRUE | Q9: =IF(COUNTA(D9)<1,IF(COUNTA(C9:H9)=0,TRUE,FALSE),TRUE) -> TRUE

Sheet Corrispettivi Infrast Terzi
B1: COSTI ASSOCIATI AI SOGGETTI PROPRIETARI
C3: Imputare per ciascun soggetto proprietario il valore dei Mutui MT e altri corrispettivi AC
V4: Non sono presenti errori
V5: =AND(INDEX(Corrispettivi_Proprietari,0,COLUMN($V$8)-COLUMN($A$8)+1)) -> TRUE
H6: Rimborso della rata dei mutui (MT) | K6: Altri corrispettivi (AC) | N6: AC - controllo Anno deliberazione | Q6: AC - controllo Anno deliberazione e Tipologia Proprietario | T6: MT - controllo Tipologia Proprietario
A7: N_riga | B7: Key_Prop | C7: Soggetto Proprietario | D7: Tipologia di proprietario | E7: P. IVA Proprietario | F7: Codice Istat Comune proprietario | G7: Anno di deliberazione | H7: previsto 2018 (€) | I7: previsto 2019 (€) | J7: Anno di deliberazione | K7: previsto 2018 (€) | L7: previsto 2019 (€) | N7: AC 2018 | O7: AC 2019 | Q7: AC 2018 | R7: AC 2019 | T7: MT 2018 | U7: MT 2019 | V7: Key_prop non duplicato
A8: =+ROW(A8)-7 -> 1 | B8: =IF(ISNA(VLOOKUP(C8,Soggetti_proprietari_infrastrut!C:K,9,0)),"",VLOOKUP(C8,Soggetti_proprietari_infrastrut!C:K,9,0)) ->  | D8: =IF(ISNA(VLOOKUP(C8,Soggetti_proprietari_infrastrut!C:K,2,0)),"",VLOOKUP(C8,Soggetti_proprietari_infrastrut!C:K,2,0)) ->  | E8: =IF(ISNA(VLOOKUP(C8,Soggetti_proprietari_infrastrut!C:K,3,0)),"",VLOOKUP(C8,Soggetti_proprietari_infrastrut!C:K,3,0)) ->  | F8: =IF(ISNA(VLOOKUP(C8,Soggetti_proprietari_infrastrut!C:K,4,0)),"",VLOOKUP(C8,Soggetti_proprietari_infrastrut!C:K,4,0)) ->  | N8: =+IF(AND($J8<=2006,$J8<>"",$B8<>""),K8,0) -> 0 | O8: =+IF(AND($J8<=2006,$J8<>"",$B8<>""),L8,0) -> 0 | Q8: =+IF(AND($J8<=2006,$J8<>"",$D8<>"Altra società privata",$B8<>""),K8,0) -> 0 | R8: =+IF(AND($J8<=2006,$J8<>"",$D8<>"Altra società privata",$B8<>""),L8,0) -> 0 | T8: =+IF(AND($D8<>"Altra società privata",$B8<>""),H8,0) -> 0 | U8: =+IF(AND($D8<>"Altra società privata",$B8<>""),I8,0) -> 0 | V8: =IF(COUNTIF(B:B,B8)>1,IF(AND(G8="",H8="",I8="",J8="",K8="",L8="",C8=""),TRUE,FALSE),TRUE) -> TRUE

Sheet Elenco_Ambiti_Tariffari
B1: TICSI: RICAVI TARIFFARI
F2: Non sono presenti errori
F3: =+IF(COUNTIF(F8:G958,FALSE)>=1,FALSE,TRUE) -> FALSE | H3: ---> se errori indicazione FALSO
B5: 1 - Ambiti Tariffari
B7: N_Riga | C7: Ambito Tariffario | D7: N_Riga bis | F7: Ambiti non duplicati | G7: Presenza nome Ambito
B8: =+ROW(A8)-7 -> 1 | D8: =+B8 -> 1 | F8: =+IF(COUNTIF($C$8:C955,C8)>1,FALSE,TRUE) -> TRUE | G8: =+IF(C8="",FALSE,TRUE) -> FALSE

Sheet Ambiti_Tariffari_Comuni
B1: TICSI: RICAVI TARIFFARI
B5: 2 - Comuni per ciascun Ambito Tariffario
A7: N_Riga | B7: Ambito tariffario | C7: Comune | D7: Codice ISTAT
A8: =+ROW(A8)-7 -> 1 | D8: =IF(ISNA(VLOOKUP(C8,TT_Comuni_ATO!X:Y,2,0)),"",VLOOKUP(C8,TT_Comuni_ATO!X:Y,2,0)) -> 

Sheet Articolaz tariff QV
B1: TICSI: RICAVI TARIFFARI
B5: 3 - Articolazione Tariffaria - quota variabile
H8: vigente al 31/12/2015
B9: Ambito tariffario | C9: Servizio idrico | D9: Tipologia d'uso | E9: Sottotipologia | F9: 1° scaglione a tariffa agevolata | H9: Min di scaglione (m3/anno) | I9: Max di scaglione (m3/anno) | K9: QV (Euro/m3) new, a | N9: Volumi (m3/anno) new, a-2 | P9: Ambito_Tariffario | S9: tarnew,a*vscalnew,a-2
H10: Min_Scaglione | I10: Max_Scaglione | P10: Ambito_Tariffario
H11: 0 | P11: =B11 -> 0 | S11: =+K11*N11 -> 0
H12: =+IF(I11=0,"",I11+1) ->  | P12: =P11 -> 0 | S12: 0
P13: 0 | S13: 0
P14: 0 | S14: 0
P15: 0 | S15: 0
P16: 0 | S16: 0
P17: 0 | S17: 0
P18: 0 | S18: 0
P19: 0 | S19: 0
P20: 0 | S20: 0

Sheet Articolaz tariff QF
B1: TICSI: RICAVI TARIFFARI
B5: 4- Articolazione Tariffaria - quota fissa
H8: vigente al 31/12/2015
B9: Ambito tariffario | C9: Servizio idrico | D9: Tipologia d'uso | E9: Sottotipologia | F9: campo vuoto1 | G9: campo vuoto2 | H9: Min di scaglione (m3/anno) | I9: Max di scaglione (m3/anno) | K9: QF (Euro/utente) new, a | N9: Utenze (numero) new, a-2 | P9: Ambito_Tariffario | S9: tarnew,a*vscalnew,a-2
H10: Min_Scaglione | I10: Max_Scaglione | P10: Ambito_Tariffario
H11: 0 | P11: =B11 -> 0 | S11: =+K11*N11 -> 0
H12: =+IF(I11=0,"",I11+1) ->  | P12: =B11 -> 0 | S12: 0
H13: =+IF(I12=0,"",I12+1) ->  | P13: =B11 -> 0 | S13: 0
H14: =+IF(I13=0,"",I13+1) ->  | P14: =B11 -> 0 | S14: 0
H15: =+IF(I14=0,"",I14+1) ->  | P15: =B11 -> 0 | S15: 0
H16: =+IF(I15=0,"",I15+1) ->  | P16: =B11 -> 0 | S16: 0

Sheet Ricavi_ambiti_tariffari
B1: TICSI: RICAVI TARIFFARI
B5: 5 - Totale ricavi per ciascun ambito
B9: N_riga | C9: Ambito_Tariffario
B11: =+ROW(A11)-10 -> 1 | D11: =+SUMIF('Articolaz tariff QV'!$P:$P,Ricavi_ambiti_tariffari!$C11,'Articolaz tariff QV'!S:S)+SUMIF('Articolaz tariff QF'!$P:$P,Ricavi_ambiti_tariffari!$C11,'Articolaz tariff QF'!S:S) -> 0

Sheet Soggetti_Scambio
B1: SCAMBI ALL'INGROSSO
Q2: non sono presenti errori
B3: per ciascun soggetto indicare almeno l'ID gestore oppure la Partita IVA | Q3: =+AND(INDEX(Soggetti_Elenco,0,13)) -> TRUE
B5: 1. Soggetti con cui si hanno scambi di Servizi all'ingrosso (Vendita e/o Acquisto)
B7: ID_AEEG | C7: Nome soggetto | D7: Partita Iva | H7: nome_soggetto | I7: id_gestore | J7: P.IVA | K7: controllo idgestore | L7: controllo P.IVA | M7: presenza di ID o Partita Iva
A8: =+ROW(A8)-7 -> 1 | H8: =+IFERROR(VLOOKUP(I8,TT_Gestori!A:C,3,FALSE),IFERROR(VLOOKUP(D8,TT_Gestori!B:C,2,FALSE),+C8)) -> 0 | I8: =IFERROR(VLOOKUP(B8,TT_Gestori!A:C,1,FALSE),IFERROR(VLOOKUP(D8,TT_Gestori!B:D,3,FALSE),B8)) -> 0 | J8: =IFERROR(VLOOKUP(D8,TT_Gestori!C:C,1,FALSE),IFERROR(VLOOKUP(I8,TT_Gestori!A:C,2,FALSE),D8)) -> 0 | K8: =+I8<>0 -> FALSE | L8: =+J8<>0 -> FALSE | M8: =+IF(AND(B8="",C8="",D8="",ROW(B8)=8),TRUE,OR(AND(K8=TRUE,H8<>0),AND(L8=TRUE,H8<>0))) -> TRUE

Sheet Vendita_Servizi_ingrosso
B1: SCAMBI ALL'INGROSSO
B3: 2. Ricavi da tariffe applicate nella Vendita all'ingrosso
H4: ANNO 2015 | N4: ANNO 2016 | T4: ANNO 2017 | Z4: J ANNO 2016 | AE4: J ANNO 2017
A5: N_riga | B5: ID_AEEG | C5: Soggetto a cui si vende | D5: ATO | E5: Servizio | F5: Volumi erogati / trattati (m3/anno) | G5: QV (Euro/m3) | H5: Minimo impegnato (m3/anno) | I5: Utenze (numero) | J5: QF (Euro/utente/anno) | K5: Importo (Euro/anno) | L5: Volumi erogati / trattati (m3/anno) | M5: QV (Euro/m3) | N5: Minimo impegnato (m3/anno) | O5: Utenze (numero) | P5: QF (Euro/utente/anno) | Q5: Importo (Euro/anno) | R5: Volumi erogati / trattati (m3/anno) | S5: QV (Euro/m3) | T5: Minimo impegnato (m3/anno) | U5: Utenze (numero) | V5: QF (Euro/utente/anno) | W5: Importo (Euro/anno) | X5: Le tariffe riportane per il 2016 includono l'applicazione del Teta? | Y5: Teta medio applicato nella fatturazione dell'anno 2016 | Z5: Teta approvato dal soggetto competente per l'anno 2016 | AA5: Teta approvato da AEEGSI per l'anno 2016 | AB5: delibera AEEGSI | AC5: Le tariffe riportane per il 2017 includono l'applicazione del Teta? | AD5: Teta medio applicato nella fatturazione dell'anno 2017 | AE5: Teta approvato dal soggetto competente per l'anno 2017 | AF5: Teta approvato da AEEGSI per l'anno 2017 | AG5: delibera AEEGSI | AI5: tar2015*vol2015 | AJ5: tar2015*vol2016 | AK5: tar2016*vol2016 | AL5: tar2015*vol2017 | AM5: tar2017*vol2017
A6: =+ROW(A6)-5 -> 1 | B6: =+IF(ISNA(VLOOKUP(C6,soggetto_j,2,FALSE)),0,VLOOKUP(C6,soggetto_j,2,FALSE)) -> 0 | K6: =+I6*J6+IF(H6>F6,H6*G6,F6*G6) -> 0 | Q6: =+O6*P6+IF(N6>L6,N6*M6,L6*M6) -> 0 | W6: =+U6*V6+IF(T6>R6,T6*S6,R6*S6) -> 0 | AA6: =+Dati_Anni_precedenti!$C$5 -> 0 | AB6: =Dati_Anni_precedenti!$E$4 -> 0 | AF6: =+Dati_Anni_precedenti!$D$5 -> 0 | AG6: =Dati_Anni_precedenti!$E$4 -> 0 | AI6: =+K6 -> 0 | AJ6: =+O6*$J6+IF(N6>L6,N6*$G6,L6*$G6) -> 0 | AK6: =+Q6 -> 0 | AL6: =+U6*$J6+IF(T6>R6,T6*$G6,R6*$G6) -> 0 | AM6: =+W6 -> 0

Sheet Acquisto_Servizi_ingrosso
B1: SCAMBI ALL'INGROSSO
B3: 3. Costi per acquisto all'ingrosso | F3: costi sostenuti di fornitura all'ingrosso, criterio di competenza | Q3: costi a seguito dell'applicazione del J al grossista | W3: costi sostenuti di fornitura all'ingrosso, criterio di competenza | AH3: costi a seguito dell'applicazione del J al grossista
F4: ANNO 2016 - COeffettivo,2016 ai fini del COws art.26 del. 664/2015/R/idr | L4: informazione sui J ANNO 2016 | Q4: ANNO 2016 - COeffettivo,2016 ai fini del RCws art.29 del. 664/2015/R/idr | W4: ANNO 2017 - COeffettivo,2017 ai fini del COws art.26 del. 664/2015/R/idr | AC4: informazione sui J ANNO 2017 | AH4: ANNO 2017 - COeffettivo,2017 ai fini del RCws art.29 del. 664/2015/R/idr
A5: N_riga | B5: ID_AEEG | C5: Soggetto da cui si acquista | D5: ATO | E5: Servizio | F5: Volumi erogati / trattati (m3/anno) | G5: QV (Euro/m3) | H5: Minimo impegnato (m3/anno) | I5: Utenze (numero) | J5: QF (Euro/utente/anno) | K5: Importo (Euro/anno) | L5: Le tariffe applicate per la fatturazione 2016 includono l'applicazione del Teta? | M5: Teta medio applicato dal grossista nella fatturazione dell'anno 2016 | N5: Teta approvato dal soggetto competente per l'anno 2016 | O5: Teta approvato da AEEGSI per l'anno 2016 | P5: delibera AEEGSI | Q5: Volumi erogati / trattati (m3/anno) | R5: QV (Euro/m3) | S5: Minimo impegnato (m3/anno) | T5: Utenze (numero) | U5: QF (Euro/utente/anno) | V5: Importo (Euro/anno) | W5: Volumi erogati / trattati (m3/anno) | X5: QV (Euro/m3) | Y5: Minimo impegnato (m3/anno) | Z5: Utenze (numero) | AA5: QF (Euro/utente/anno) | AB5: Importo (Euro/anno) | AC5: Le tariffe applicate per la fatturazione 2017 includono l'applicazione del Teta? | AD5: Teta medio applicato dal grossista nella fatturazione dell'anno 2017 | AE5: Teta approvato dal soggetto competente per l'anno 2017 | AF5: Teta approvato da AEEGSI per l'anno 2017 | AG5: delibera AEEGSI | AH5: Volumi erogati / trattati (m3/anno) | AI5: QV (Euro/m3) | AJ5: Minimo impegnato (m3/anno) | AK5: Utenze (numero) | AL5: QF (Euro/utente/anno) | AM5: Importo (Euro/anno) | AO5: water/other | AP5: check per RCws 2018 | AQ5: check per RCws 2019
A6: =+ROW(A6)-5 -> 1 | B6: =+IF(ISNA(VLOOKUP(C6,soggetto_j,2,FALSE)),0,VLOOKUP(C6,soggetto_j,2,FALSE)) -> 0 | K6: =+I6*J6+IF(H6>F6,H6*G6,F6*G6) -> 0 | V6: =+T6*U6+IF(S6>Q6,S6*R6,Q6*R6) -> 0 | AB6: =+Z6*AA6+IF(Y6>W6,Y6*X6,W6*X6) -> 0 | AM6: =+AK6*AL6+IF(AJ6>AH6,AJ6*AI6,AH6*AI6) -> 0 | AO6: =+IFERROR(VLOOKUP(E6,TT_Tabelle_Riferimento!$B$3:$C$10,2,FALSE),0) -> 0 | AP6: =IF(OR(K6=0,V6=0),0,1) -> 0 | AQ6: =IF(OR(AB6=0,AM6=0),0,1) -> 0

Sheet Nuovi_Investimenti
B1: IMMOBILIZZAZIONI DEL GESTORE | G1: Tutti i valori si intendono a moneta dell'anno del cespite
A2: 1. LAVORI IN CORSO | Y2: non sono presenti errori
F3: 2016 | G3: 2017 | Y3: =+PRODUCT(OFFSET(N14,0,0,COUNTA(M:M)-2,1))*PRODUCT(OFFSET(P14,0,0,COUNTA(M:M)-2,1))>0 -> FALSE
C4: Saldo LIC (al netto dei saldi che risultino invariati da più di 5 anni)
A6: 2. NUOVI INVESTIMENTI
D7: 2014 | E7: 2015 | F7: 2016 | G7: 2017
C8: FoNI speso in Investimenti | D8: =FoNI!C34+Dati_Anni_precedenti!C77 -> 0 | E8: =FoNI!D34+Dati_Anni_precedenti!D77 -> 0 | F8: =FoNI!E34 -> 0 | G8: =FoNI!F34 -> 0
C9: Totale nuovi investimenti | D9: =+SUMIF(RAB_cespiti_ante2015!J:J,D7,RAB_cespiti_ante2015!K:K) -> 0 | E9: =+SUMIF(Conferma_investimenti_2015!H:H,2015,Conferma_investimenti_2015!K:K) -> 0 | F9: =+SUMIF($D$13:$D$414,F7,$E$13:$E$414) -> 0 | G9: =+SUMIF($D$13:$D$414,G7,$E$13:$E$414) -> 0
C10: % | D10: =IFERROR(D8/D9,0) -> 0 | E10: =IFERROR(E8/E9,0) -> 0 | F10: 0 | G10: 0
A12: N_riga | B12: Categoria del cespite | C12: Categoria di Immobilizzazione | D12: Anno cespite | E12: IP (Euro) | F12: CFP (Euro) | G12: CFP da FoNI | H12: CFP Totale | I12: IDATO | J12: IDAEEG | K12: Gestore_Proprietario | L12: N_prop | M12: Fonte | N12: ID_Categoria_Cespite | O12: CategoriaCespite | P12: ID_Immobilizzazione | Q12: IMMOBILIZZAZIONE | R12: AnnoCespite | S12: IP | T12: FAIP | U12: CFP | V12: FACP | W12: foglio di origine
A13: =+ROW(A13)-12 -> 1 | G13: =+IFERROR(HLOOKUP(D13,$D$7:$G$10,4,FALSE)*E13,0) -> 0 | H13: =+G13+F13 -> 0 | I13: =idato -> 0 | J13: =idgestore -> 0 | K13: Gestore | L13: 0 | M13: IP | N13: =IFERROR(VLOOKUP(O13,TT_Tabelle_Riferimento!$G$32:$H$48,2,0),0) -> 0 | O13: =IFERROR(VLOOKUP(B13,TT_Tabelle_Riferimento!$G$32:$H$48,1,0),0) -> 0 | P13: =+IFERROR(VLOOKUP(Q13,TT_Tabelle_Riferimento!$G$2:$H$6,2,0),0) -> 0 | Q13: =+IFERROR(VLOOKUP(C13,TT_Tabelle_Riferimento!$G$2:$H$6,1,0),0) -> 0 | R13: =D13 -> 0 | S13: =E13 -> 0 | T13: 0 | U13: =H13 -> 0 | V13: 0 | W13: Nuovi_Investimenti
A14: =+ROW(A14)-12 -> 2 | G14: =+IFERROR(HLOOKUP(D14,$D$7:$G$10,4,FALSE)*E14,0) -> 0 | H14: =+G14+F14 -> 0 | I14: =idato -> 0 | J14: =idgestore -> 0 | K14: Gestore | L14: 0 | M14: IP | N14: =IFERROR(VLOOKUP(O14,TT_Tabelle_Riferimento!$G$32:$H$48,2,0),0) -> 0 | O14: =IFERROR(VLOOKUP(B14,TT_Tabelle_Riferimento!$G$32:$H$48,1,0),0) -> 0 | P14: =+IFERROR(VLOOKUP(Q14,TT_Tabelle_Riferimento!$G$2:$H$6,2,0),0) -> 0 | Q14: =+IFERROR(VLOOKUP(C14,TT_Tabelle_Riferimento!$G$2:$H$6,1,0),0) -> 0 | R14: =D14 -> 0 | S14: =E14 -> 0 | T14: 0 | U14: =H14 -> 0 | V14: 0 | W14: Nuovi_Investimenti

Sheet Dismissioni
B1: IMMOBILIZZAZIONI DEL GESTORE | G1: Tutti i valori si intendono a moneta dell'anno del cespite
A2: 3. DISMISSIONI | AF2: non sono presenti errori
AF3: =+IF(AND(COUNTA(Y:Y)=3,COUNTA(B9:I9)=0),TRUE,PRODUCT(OFFSET(O9,0,0,COUNTA(N:N)-2,1))*PRODUCT(OFFSET(Q9,0,0,COUNTA(N:N)-2,1))>0) -> TRUE
A7: N_riga | B7: Categoria del cespite | C7: Categoria di Immobilizzazione | D7: Anno dismissione | E7: Anno cespite | F7: IP (Euro) | G7: FA (Euro) | H7: CFP (Euro) | I7: FA cfp (Euro) | J7: IDATO | K7: IDAEEG | L7: Gestore_Proprietario | M7: N_prop | N7: Fonte | O7: ID_Categoria_Cespite | P7: CategoriaCespite | Q7: ID_Immobilizzazione | R7: IMMOBILIZZAZIONE | S7: AnnoDismissione | T7: IP | U7: FAIP | V7: CFP | W7: FACFP | X7: foglio di origine | Y7: AnnoCespite
A8: =+ROW(A8)-8 -> 0 | J8: =idato -> 0 | K8: =idgestore -> 0 | L8: Gestore | M8: 0 | N8: IP | O8: =+IFERROR(VLOOKUP(P8,TT_Tabelle_Riferimento!$G$32:$H$48,2,0),0) -> 0 | P8: =+IFERROR(VLOOKUP(B8,TT_Tabelle_Riferimento!$G$32:$H$48,1,0),0) -> 0 | Q8: =+IFERROR(VLOOKUP(R8,TT_Tabelle_Riferimento!$G$2:$H$6,2,0),0) -> 0 | R8: =+IFERROR(VLOOKUP(C8,TT_Tabelle_Riferimento!$G$2:$H$6,1,0),0) -> 0 | S8: =+D8 -> 0 | T8: =+IFERROR(IP(ABS($F8),$O8,$Q8,$E8,S8+2),0)*-1 -> 0 | U8: =+IFERROR(FondoAmm(ABS($F8),ABS($G8),$E8,$O8,$Q8,S8+2,vite_regolatorie),0)*-1 -> 0 | V8: =+IFERROR(CFP_A(ABS($H8),$O8,$Q8,$E8,S8+2),0)*-1 -> 0 | W8: =+IFERROR(FACFP(ABS($H8),ABS($I8),$E8,$O8,$Q8,S8+2,vite_regolatorie),0)*-1 -> 0 | X8: Dismissioni | Y8: =+E8 -> 0
A9: =+ROW(A9)-8 -> 1 | J9: 0 | K9: 0 | L9: Gestore | M9: 0 | N9: IP | O9: =+IFERROR(VLOOKUP(P9,TT_Tabelle_Riferimento!$G$32:$H$48,2,0),0) -> 0 | P9: =+IFERROR(VLOOKUP(B9,TT_Tabelle_Riferimento!$G$32:$H$48,1,0),0) -> 0 | Q9: =+IFERROR(VLOOKUP(R9,TT_Tabelle_Riferimento!$G$2:$H$6,2,0),0) -> 0 | R9: =+IFERROR(VLOOKUP(C9,TT_Tabelle_Riferimento!$G$2:$H$6,1,0),0) -> 0 | S9: =+D9 -> 0 | T9: =+IFERROR(IP(ABS($F9),$O9,$Q9,$E9,S9+2),0)*-1 -> 0 | U9: =+IFERROR(FondoAmm(ABS($F9),ABS($G9),$E9,$O9,$Q9,S9+2,vite_regolatorie),0)*-1 -> 0 | V9: =+IFERROR(CFP_A(ABS($H9),$O9,$Q9,$E9,S9+2),0)*-1 -> 0 | W9: =+IFERROR(FACFP(ABS($H9),ABS($I9),$E9,$O9,$Q9,S9+2,vite_regolatorie),0)*-1 -> 0 | X9: Dismissioni | Y9: =+E9 -> 0

Sheet Ammortamento_Finanziario
B1: IMMOBILIZZAZIONI DEL GESTORE | E1: Vite utili per il calcolo degli ammortamenti MTI-2 sulle immobilizzazioni al 2013 | AA1: Vite utili per il calcolo degli ammortamenti MTI-2 sui nuovi investimenti
A2: 4. VITE UTILI PER LO SVILUPPO DELLA RAB | E2: area dati storici | AA2: area disponibile per la compilazione
D3: Anno del Cespite | E3: ANNI 1963 - 2011 | N3: ANNO 2012 | U3: ANNO 2013 | AA3: ANNO 2014 | AF3: ANNO 2015 | AJ3: ANNO 2016 | AM3: ANNO 2017 | AT3: ANNI 1963 - 2011 | BC3: ANNO 2012 | BJ3: ANNO 2013 | BP3: ANNO 2014 | BU3: ANNO 2015 | BY3: ANNO 2016 | CB3: ANNO 2017
E4: =+IF(iAF="SI","SI","NO") -> NO | N4: =+IF(OR(iAF="SI",Dati_Anni_precedenti!C84="SI"),"SI","NO") -> NO | U4: =+IF(OR(iAF="SI",Dati_Anni_precedenti!C84="SI"),"SI","NO") -> NO | AA4: =+IF(OR(iAF="SI",Dati_Anni_precedenti!E62="SI"),"SI","NO") -> NO | AF4: =+IF(OR(iAF="SI",Dati_Anni_precedenti!E62="SI"),"SI","NO") -> NO | AJ4: =+IF(OR(iAF="SI",schema="IV",schema="V",schema="VI"),"SI","NO") -> NO | AM4: =+IF(OR(iAF="SI",schema="IV",schema="V",schema="VI"),"SI","NO") -> NO | AT4: =+IF(iAF="SI","SI","NO") -> NO | BC4: =+IF(OR(iAF="SI",Dati_Anni_precedenti!C84="SI"),"SI","NO") -> NO | BJ4: =+IF(OR(iAF="SI",Dati_Anni_precedenti!C84="SI"),"SI","NO") -> NO | BP4: =+IF(OR(iAF="SI",Dati_Anni_precedenti!E62="SI"),"SI","NO") -> NO | BU4: =+IF(OR(iAF="SI",Dati_Anni_precedenti!E62="SI"),"SI","NO") -> NO | BY4: =+IF(OR(iAF="SI",schema="IV",schema="V",schema="VI"),"SI","NO") -> NO | CB4: =+IF(OR(iAF="SI",schema="IV",schema="V",schema="VI"),"SI","NO") -> NO
D5: Anno di calcolo | F5: 2012 | G5: 2013 | H5: 2014 | I5: 2015 | J5: 2016 | K5: 2017 | L5: 2018 | M5: 2019 | O5: 2014 | P5: 2015 | Q5: 2016 | R5: 2017 | S5: 2018 | T5: 2019 | V5: 2015 | W5: 2016 | X5: 2017 | Y5: 2018 | Z5: 2019 | AB5: 2016 | AC5: 2017 | AD5: 2018 | AE5: 2019 | AG5: 2017 | AH5: 2018 | AI5: 2019 | AK5: 2018 | AL5: 2019 | AN5: 2019 | AU5: 2012 | AV5: 2013 | AW5: 2014 | AX5: 2015 | AY5: 2016 | AZ5: 2017 | BA5: 2018 | BB5: 2019 | BD5: 2014 | BE5: 2015 | BF5: 2016 | BG5: 2017 | BH5: 2018 | BI5: 2019 | BK5: 2015 | BL5: 2016 | BM5: 2017 | BN5: 2018 | BO5: 2019 | BQ5: 2016 | BR5: 2017 | BS5: 2018 | BT5: 2019 | BV5: 2017 | BW5: 2018 | BX5: 2019 | BZ5: 2018 | CA5: 2019 | CC5: 2019
E6: Periodo di ammortamento: | N6: Periodo di ammortamento: | U6: Periodo di ammortamento: | AA6: Periodo di ammortamento: | AF6: Periodo di ammortamento: | AJ6: Periodo di ammortamento: | AM6: Periodo di ammortamento: | AT6: Periodo di ammortamento: | BC6: Periodo di ammortamento: | BJ6: Periodo di ammortamento: | BP6: Periodo di ammortamento: | BU6: Periodo di ammortamento: | BY6: Periodo di ammortamento: | CB6: Periodo di ammortamento:
B7: ID | C7: Categoria Cespite | E7: vite utili regolatorie (MTT) | F7: durata ammortamento finanziario | G7: durata ammortamento finanziario | H7: durata ammortamento finanziario | I7: durata ammortamento finanziario | J7: durata ammortamento finanziario | K7: durata ammortamento finanziario | L7: durata ammortamento finanziario | M7: durata ammortamento finanziario | N7: vite utili regolatorie (MTI) | O7: durata ammortamento finanziario | P7: durata ammortamento finanziario | Q7: durata ammortamento finanziario | R7: durata ammortamento finanziario | S7: durata ammortamento finanziario | T7: durata ammortamento finanziario | U7: vite utili regolatorie (MTI) | V7: durata ammortamento finanziario | W7: durata ammortamento finanziario | X7: durata ammortamento finanziario | Y7: durata ammortamento finanziario | Z7: durata ammortamento finanziario | AA7: vite utili regolatorie (MTI-2) | AB7: durata ammortamento finanziario | AC7: durata ammortamento finanziario | AD7: durata ammortamento finanziario | AE7: durata ammortamento finanziario | AF7: vite utili regolatorie (MTI-2) | AG7: durata ammortamento finanziario | AH7: durata ammortamento finanziario | AI7: durata ammortamento finanziario | AJ7: vite utili regolatorie (MTI-2) | AK7: durata ammortamento finanziario | AL7: durata ammortamento finanziario | AM7: vite utili regolatorie (MTI-2) | AN7: durata ammortamento finanziario | AR7: ID | AS7: Categoria Cespite | AT7: vite utili regolatorie (MTT) | AU7: durata ammortamento finanziario | AV7: durata ammortamento finanziario | AW7: durata ammortamento finanziario | AX7: durata ammortamento finanziario | AY7: durata ammortamento finanziario | AZ7: durata ammortamento finanziario | BA7: durata ammortamento finanziario | BB7: durata ammortamento finanziario | BC7: vite utili regolatorie (MTI) | BD7: durata ammortamento finanziario | BE7: durata ammortamento finanziario | BF7: durata ammortamento finanziario | BG7: durata ammortamento finanziario | BH7: durata ammortamento finanziario | BI7: durata ammortamento finanziario | BJ7: vite utili regolatorie (MTI) | BK7: durata ammortamento finanziario | BL7: durata ammortamento finanziario | BM7: durata ammortamento finanziario | BN7: durata ammortamento finanziario | BO7: durata ammortamento finanziario | BP7: vite utili regolatorie (MTI-2) | BQ7: durata ammortamento finanziario | BR7: durata ammortamento finanziario | BS7: durata ammortamento finanziario | BT7: durata ammortamento finanziario | BU7: vite utili regolatorie (MTI-2) | BV7: durata ammortamento finanziario | BW7: durata ammortamento finanziario | BX7: durata ammortamento finanziario | BY7: vite utili regolatorie (MTI-2) | BZ7: durata ammortamento finanziario | CA7: durata ammortamento finanziario | CB7: vite utili regolatorie (MTI-2) | CC7: durata ammortamento finanziario
B8: 1 | C8: Terreni | AR8: 1 | AS8: Terreni
B9: 2 | C9: Fabbricati non industriali | E9: 40 | F9: 40 | G9: 40 | H9: 40 | I9: 40 | J9: 40 | K9: 40 | L9: 40 | M9: 40 | N9: 40 | O9: 40 | P9: 40 | Q9: 40 | R9: 40 | S9: 40 | T9: 40 | U9: 40 | V9: 40 | W9: 40 | X9: 40 | Y9: 40 | Z9: 40 | AA9: 40 | AB9: 40 | AC9: 40 | AD9: 40 | AE9: 40 | AF9: 40 | AG9: 40 | AH9: 40 | AI9: 40 | AJ9: 40 | AK9: 40 | AL9: 40 | AM9: 40 | AN9: 40 | AR9: 2 | AS9: Fabbricati non industriali | AT9: 40 | AU9: =+IF(af_2011="NO",$E9,IF(F9="",$E9,F9)) -> 40 | AV9: =+IF(af_2011="NO",$E9,G9) -> 40 | AW9: =+IF(af_2011="NO",$E9,H9) -> 40 | AX9: =+IF(af_2011="NO",$E9,I9) -> 40 | AY9: =+IF(af_2011="NO",$E9,J9) -> 40 | AZ9: =+IF(af_2011="NO",$E9,K9) -> 40 | BA9: =+IF(af_2011="NO",$E9,L9) -> 40 | BB9: =+IF(af_2011="NO",$E9,M9) -> 40 | BC9: 40 | BD9: =+IF(af_2012="NO",$N9,IF(O9="",$N9,O9)) -> 40 | BE9: =+IF(af_2012="NO",$N9,IF(P9="",$N9,P9)) -> 40 | BF9: =+IF(af_2012="NO",$N9,IF(Q9="",$N9,Q9)) -> 40 | BG9: =+IF(af_2012="NO",$N9,IF(R9="",$N9,R9)) -> 40 | BH9: =+IF(af_2012="NO",$N9,IF(S9="",$N9,S9)) -> 40 | BI9: =+IF(af_2012="NO",$N9,IF(T9="",$N9,T9)) -> 40 | BJ9: 40 | BK9: =+IF(af_2013="NO",$U9,IF(V9="",$U9,V9)) -> 40 | BL9: =+IF(af_2013="NO",$U9,IF(W9="",$U9,W9)) -> 40 | BM9: =+IF(af_2013="NO",$U9,IF(X9="",$U9,X9)) -> 40 | BN9: =+IF(af_2013="NO",$U9,IF(Y9="",$U9,Y9)) -> 40 | BO9: =+IF(af_2013="NO",$U9,IF(Z9="",$U9,Z9)) -> 40 | BP9: 40 | BQ9: =+IF(af_2014="NO",$AA9,IF(AB9="",$AA9,AB9)) -> 40 | BR9: =+IF(af_2014="NO",$AA9,IF(AC9="",$AA9,AC9)) -> 40 | BS9: =+IF(af_2014="NO",$AA9,IF(AD9="",$AA9,AD9)) -> 40 | BT9: =+IF(af_2014="NO",$AA9,IF(AE9="",$AA9,AE9)) -> 40 | BU9: 40 | BV9: =+IF(af_2015="NO",$AF9,IF(AG9="",$AF9,AG9)) -> 40 | BW9: =+IF(af_2015="NO",$AF9,IF(AH9="",$AF9,AH9)) -> 40 | BX9: =+IF(af_2015="NO",$AF9,IF(AI9="",$AF9,AI9)) -> 40 | BY9: 40 | BZ9: =+IF(af_2016="NO",$AJ9,IF(AK9="",$AJ9,AK9)) -> 40 | CA9: =+IF(af_2016="NO",$AJ9,IF(AL9="",$AJ9,AL9)) -> 40 | CB9: 40 | CC9: =+IF(af_2017="NO",AM9,IF(AN9="",AM9,AN9)) -> 40
B10: 3 | C10: Fabbricati industriali | E10: 40 | F10: 40 | G10: 40 | H10: 40 | I10: 40 | J10: 40 | K10: 40 | L10: 40 | M10: 40 | N10: 40 | O10: 40 | P10: 40 | Q10: 40 | R10: 40 | S10: 40 | T10: 40 | U10: 40 | V10: 40 | W10: 40 | X10: 40 | Y10: 40 | Z10: 40 | AA10: 40 | AB10: 40 | AC10: 40 | AD10: 40 | AE10: 40 | AF10: 40 | AG10: 40 | AH10: 40 | AI10: 40 | AJ10: 40 | AK10: 40 | AL10: 40 | AM10: 40 | AN10: 40 | AR10: 3 | AS10: Fabbricati industriali | AT10: 40 | AU10: =+IF(af_2011="NO",$E10,F10) -> 40 | AV10: 40 | AW10: 40 | AX10: 40 | AY10: 40 | AZ10: 40 | BA10: 40 | BB10: 40 | BC10: 40 | BD10: 40 | BE10: 40 | BF10: 40 | BG10: 40 | BH10: 40 | BI10: 40 | BJ10: 40 | BK10: 40 | BL10: 40 | BM10: 40 | BN10: 40 | BO10: 40 | BP10: 40 | BQ10: 40 | BR10: 40 | BS10: 40 | BT10: 40 | BU10: 40 | BV10: 40 | BW10: 40 | BX10: 40 | BY10: 40 | BZ10: 40 | CA10: 40 | CB10: 40 | CC10: 40
B11: 4 | C11: Costruzioni leggere | E11: 40 | F11: 40 | G11: 40 | H11: 40 | I11: 40 | J11: 40 | K11: 40 | L11: 40 | M11: 40 | N11: 40 | O11: 40 | P11: 40 | Q11: 40 | R11: 40 | S11: 40 | T11: 40 | U11: 40 | V11: 40 | W11: 40 | X11: 40 | Y11: 40 | Z11: 40 | AA11: 40 | AB11: 40 | AC11: 40 | AD11: 40 | AE11: 40 | AF11: 40 | AG11: 40 | AH11: 40 | AI11: 40 | AJ11: 40 | AK11: 40 | AL11: 40 | AM11: 40 | AN11: 40 | AR11: 4 | AS11: Costruzioni leggere | AT11: 40 | AU11: =+IF(af_2011="NO",$E11,F11) -> 40 | AV11: 40 | AW11: 40 | AX11: 40 | AY11: 40 | AZ11: 40 | BA11: 40 | BB11: 40 | BC11: 40 | BD11: 40 | BE11: 40 | BF11: 40 | BG11: 40 | BH11: 40 | BI11: 40 | BJ11: 40 | BK11: 40 | BL11: 40 | BM11: 40 | BN11: 40 | BO11: 40 | BP11: 40 | BQ11: 40 | BR11: 40 | BS11: 40 | BT11: 40 | BU11: 40 | BV11: 40 | BW11: 40 | BX11: 40 | BY11: 40 | BZ11: 40 | CA11: 40 | CB11: 40 | CC11: 40
B12: 5 | C12: Condutture e opere idrauliche fisse | E12: 40 | F12: 40 | G12: 40 | H12: 40 | I12: 40 | J12: 40 | K12: 40 | L12: 40 | M12: 40 | N12: 40 | O12: 40 | P12: 40 | Q12: 40 | R12: 40 | S12: 40 | T12: 40 | U12: 40 | V12: 40 | W12: 40 | X12: 40 | Y12: 40 | Z12: 40 | AA12: 40 | AB12: 40 | AC12: 40 | AD12: 40 | AE12: 40 | AF12: 40 | AG12: 40 | AH12: 40 | AI12: 40 | AJ12: 40 | AK12: 40 | AL12: 40 | AM12: 40 | AN12: 40 | AR12: 5 | AS12: Condutture e opere idrauliche fisse | AT12: 40 | AU12: 40 | AV12: 40 | AW12: 40 | AX12: 40 | AY12: 40 | AZ12: 40 | BA12: 40 | BB12: 40 | BC12: 40 | BD12: 40 | BE12: 40 | BF12: 40 | BG12: 40 | BH12: 40 | BI12: 40 | BJ12: 40 | BK12: 40 | BL12: 40 | BM12: 40 | BN12: 40 | BO12: 40 | BP12: 40 | BQ12: 40 | BR12: 40 | BS12: 40 | BT12: 40 | BU12: 40 | BV12: 40 | BW12: 40 | BX12: 40 | BY12: 40 | BZ12: 40 | CA12: 40 | CB12: 40 | CC12: 40
B13: 6 | C13: Serbatoi | E13: 50 | F13: 50 | G13: 50 | H13: 50 | I13: 50 | J13: 50 | K13: 50 | L13: 50 | M13: 50 | N13: 50 | O13: 50 | P13: 50 | Q13: 50 | R13: 50 | S13: 50 | T13: 50 | U13: 50 | V13: 50 | W13: 50 | X13: 50 | Y13: 50 | Z13: 50 | AA13: 50 | AB13: 50 | AC13: 50 | AD13: 50 | AE13: 50 | AF13: 50 | AG13: 50 | AH13: 50 | AI13: 50 | AJ13: 50 | AK13: 50 | AL13: 50 | AM13: 50 | AN13: 50 | AR13: 6 | AS13: Serbatoi | AT13: 50 | AU13: 50 | AV13: 50 | AW13: 50 | AX13: 50 | AY13: 50 | AZ13: 50 | BA13: 50 | BB13: 50 | BC13: 50 | BD13: 50 | BE13: 50 | BF13: 50 | BG13: 50 | BH13: 50 | BI13: 50 | BJ13: 50 | BK13: 50 | BL13: 50 | BM13: 50 | BN13: 50 | BO13: 50 | BP13: 50 | BQ13: 50 | BR13: 50 | BS13: 50 | BT13: 50 | BU13: 50 | BV13: 50 | BW13: 50 | BX13: 50 | BY13: 50 | BZ13: 50 | CA13: 50 | CB13: 50 | CC13: 50
B14: 7 | C14: Impianti di trattamento | E14: 12 | F14: 12 | G14: 12 | H14: 12 | I14: 12 | J14: 12 | K14: 12 | L14: 12 | M14: 12 | N14: 12 | O14: 12 | P14: 12 | Q14: 12 | R14: 12 | S14: 12 | T14: 12 | U14: 12 | V14: 12 | W14: 12 | X14: 12 | Y14: 12 | Z14: 12 | AA14: 12 | AB14: 12 | AC14: 12 | AD14: 12 | AE14: 12 | AF14: 12 | AG14: 12 | AH14: 12 | AI14: 12 | AJ14: 12 | AK14: 12 | AL14: 12 | AM14: 12 | AN14: 12 | AR14: 7 | AS14: Impianti di trattamento | AT14: 12 | AU14: 12 | AV14: 12 | AW14: 12 | AX14: 12 | AY14: 12 | AZ14: 12 | BA14: 12 | BB14: 12 | BC14: 12 | BD14: 12 | BE14: 12 | BF14: 12 | BG14: 12 | BH14: 12 | BI14: 12 | BJ14: 12 | BK14: 12 | BL14: 12 | BM14: 12 | BN14: 12 | BO14: 12 | BP14: 12 | BQ14: 12 | BR14: 12 | BS14: 12 | BT14: 12 | BU14: 12 | BV14: 12 | BW14: 12 | BX14: 12 | BY14: 12 | BZ14: 12 | CA14: 12 | CB14: 12 | CC14: 12
B15: 8 | C15: Impianti di sollevamento e pompaggio | E15: 8 | F15: 8 | G15: 8 | H15: 8 | I15: 8 | J15: 8 | K15: 8 | L15: 8 | M15: 8 | N15: 8 | O15: 8 | P15: 8 | Q15: 8 | R15: 8 | S15: 8 | T15: 8 | U15: 8 | V15: 8 | W15: 8 | X15: 8 | Y15: 8 | Z15: 8 | AA15: 8 | AB15: 8 | AC15: 8 | AD15: 8 | AE15: 8 | AF15: 8 | AG15: 8 | AH15: 8 | AI15: 8 | AJ15: 8 | AK15: 8 | AL15: 8 | AM15: 8 | AN15: 8 | AR15: 8 | AS15: Impianti di sollevamento e pompaggio | AT15: 8 | AU15: 8 | AV15: 8 | AW15: 8 | AX15: 8 | AY15: 8 | AZ15: 8 | BA15: 8 | BB15: 8 | BC15: 8 | BD15: 8 | BE15: 8 | BF15: 8 | BG15: 8 | BH15: 8 | BI15: 8 | BJ15: 8 | BK15: 8 | BL15: 8 | BM15: 8 | BN15: 8 | BO15: 8 | BP15: 8 | BQ15: 8 | BR15: 8 | BS15: 8 | BT15: 8 | BU15: 8 | BV15: 8 | BW15: 8 | BX15: 8 | BY15: 8 | BZ15: 8 | CA15: 8 | CB15: 8 | CC15: 8
B16: 9 | C16: Gruppi di misura meccanici | E16: 15 | F16: 15 | G16: 15 | H16: 15 | I16: 15 | J16: 15 | K16: 15 | L16: 15 | M16: 15 | N16: 15 | O16: 15 | P16: 15 | Q16: 15 | R16: 15 | S16: 15 | T16: 15 | U16: 15 | V16: 15 | W16: 15 | X16: 15 | Y16: 15 | Z16: 15 | AA16: 15 | AB16: 15 | AC16: 15 | AD16: 15 | AE16: 15 | AF16: 15 | AG16: 15 | AH16: 15 | AI16: 15 | AJ16: 15 | AK16: 15 | AL16: 15 | AM16: 15 | AN16: 15 | AR16: 9 | AS16: Gruppi di misura meccanici | AT16: 15 | AU16: 15 | AV16: 15 | AW16: 15 | AX16: 15 | AY16: 15 | AZ16: 15 | BA16: 15 | BB16: 15 | BC16: 15 | BD16: 15 | BE16: 15 | BF16: 15 | BG16: 15 | BH16: 15 | BI16: 15 | BJ16: 15 | BK16: 15 | BL16: 15 | BM16: 15 | BN16: 15 | BO16: 15 | BP16: 15 | BQ16: 15 | BR16: 15 | BS16: 15 | BT16: 15 | BU16: 15 | BV16: 15 | BW16: 15 | BX16: 15 | BY16: 15 | BZ16: 15 | CA16: 15 | CB16: 15 | CC16: 15
B17: 10 | C17: Gruppi di misura elettronici | E17: 15 | F17: 15 | G17: 15 | H17: 15 | I17: 15 | J17: 15 | K17: 15 | L17: 15 | M17: 15 | N17: 15 | O17: 15 | P17: 15 | Q17: 15 | R17: 15 | S17: 15 | T17: 15 | U17: 15 | V17: 15 | W17: 15 | X17: 15 | Y17: 15 | Z17: 15 | AA17: 15 | AB17: 15 | AC17: 15 | AD17: 15 | AE17: 15 | AF17: 15 | AG17: 15 | AH17: 15 | AI17: 15 | AJ17: 15 | AK17: 15 | AL17: 15 | AM17: 15 | AN17: 15 | AR17: 10 | AS17: Gruppi di misura elettronici | AT17: 15 | AU17: 15 | AV17: 15 | AW17: 15 | AX17: 15 | AY17: 15 | AZ17: 15 | BA17: 15 | BB17: 15 | BC17: 15 | BD17: 15 | BE17: 15 | BF17: 15 | BG17: 15 | BH17: 15 | BI17: 15 | BJ17: 15 | BK17: 15 | BL17: 15 | BM17: 15 | BN17: 15 | BO17: 15 | BP17: 15 | BQ17: 15 | BR17: 15 | BS17: 15 | BT17: 15 | BU17: 15 | BV17: 15 | BW17: 15 | BX17: 15 | BY17: 15 | BZ17: 15 | CA17: 15 | CB17: 15 | CC17: 15
B18: 11 | C18: Altri impianti | E18: 20 | F18: 20 | G18: 20 | H18: 20 | I18: 20 | J18: 20 | K18: 20 | L18: 20 | M18: 20 | N18: 20 | O18: 20 | P18: 20 | Q18: 20 | R18: 20 | S18: 20 | T18: 20 | U18: 20 | V18: 20 | W18: 20 | X18: 20 | Y18: 20 | Z18: 20 | AA18: 20 | AB18: 20 | AC18: 20 | AD18: 20 | AE18: 20 | AF18: 20 | AG18: 20 | AH18: 20 | AI18: 20 | AJ18: 20 | AK18: 20 | AL18: 20 | AM18: 20 | AN18: 20 | AR18: 11 | AS18: Altri impianti | AT18: 20 | AU18: 20 | AV18: 20 | AW18: 20 | AX18: 20 | AY18: 20 | AZ18: 20 | BA18: 20 | BB18: 20 | BC18: 20 | BD18: 20 | BE18: 20 | BF18: 20 | BG18: 20 | BH18: 20 | BI18: 20 | BJ18: 20 | BK18: 20 | BL18: 20 | BM18: 20 | BN18: 20 | BO18: 20 | BP18: 20 | BQ18: 20 | BR18: 20 | BS18: 20 | BT18: 20 | BU18: 20 | BV18: 20 | BW18: 20 | BX18: 20 | BY18: 20 | BZ18: 20 | CA18: 20 | CB18: 20 | CC18: 20
B19: 12 | C19: Laboratori | E19: 10 | F19: 10 | G19: 10 | H19: 10 | I19: 10 | J19: 10 | K19: 10 | L19: 10 | M19: 10 | N19: 10 | O19: 10 | P19: 10 | Q19: 10 | R19: 10 | S19: 10 | T19: 10 | U19: 10 | V19: 10 | W19: 10 | X19: 10 | Y19: 10 | Z19: 10 | AA19: 10 | AB19: 10 | AC19: 10 | AD19: 10 | AE19: 10 | AF19: 10 | AG19: 10 | AH19: 10 | AI19: 10 | AJ19: 10 | AK19: 10 | AL19: 10 | AM19: 10 | AN19: 10 | AR19: 12 | AS19: Laboratori | AT19: 10 | AU19: 10 | AV19: 10 | AW19: 10 | AX19: 10 | AY19: 10 | AZ19: 10 | BA19: 10 | BB19: 10 | BC19: 10 | BD19: 10 | BE19: 10 | BF19: 10 | BG19: 10 | BH19: 10 | BI19: 10 | BJ19: 10 | BK19: 10 | BL19: 10 | BM19: 10 | BN19: 10 | BO19: 10 | BP19: 10 | BQ19: 10 | BR19: 10 | BS19: 10 | BT19: 10 | BU19: 10 | BV19: 10 | BW19: 10 | BX19: 10 | BY19: 10 | BZ19: 10 | CA19: 10 | CB19: 10 | CC19: 10
B20: 13 | C20: Telecontrollo | E20: 8 | F20: 8 | G20: 8 | H20: 8 | I20: 8 | J20: 8 | K20: 8 | L20: 8 | M20: 8 | N20: 8 | O20: 8 | P20: 8 | Q20: 8 | R20: 8 | S20: 8 | T20: 8 | U20: 8 | V20: 8 | W20: 8 | X20: 8 | Y20: 8 | Z20: 8 | AA20: 8 | AB20: 8 | AC20: 8 | AD20: 8 | AE20: 8 | AF20: 8 | AG20: 8 | AH20: 8 | AI20: 8 | AJ20: 8 | AK20: 8 | AL20: 8 | AM20: 8 | AN20: 8 | AR20: 13 | AS20: Telecontrollo | AT20: 8 | AU20: 8 | AV20: 8 | AW20: 8 | AX20: 8 | AY20: 8 | AZ20: 8 | BA20: 8 | BB20: 8 | BC20: 8 | BD20: 8 | BE20: 8 | BF20: 8 | BG20: 8 | BH20: 8 | BI20: 8 | BJ20: 8 | BK20: 8 | BL20: 8 | BM20: 8 | BN20: 8 | BO20: 8 | BP20: 8 | BQ20: 8 | BR20: 8 | BS20: 8 | BT20: 8 | BU20: 8 | BV20: 8 | BW20: 8 | BX20: 8 | BY20: 8 | BZ20: 8 | CA20: 8 | CB20: 8 | CC20: 8
B21: 14 | C21: Autoveicoli | E21: 5 | F21: 5 | G21: 5 | H21: 5 | I21: 5 | J21: 5 | K21: 5 | L21: 5 | M21: 5 | N21: 5 | O21: 5 | P21: 5 | Q21: 5 | R21: 5 | S21: 5 | T21: 5 | U21: 5 | V21: 5 | W21: 5 | X21: 5 | Y21: 5 | Z21: 5 | AA21: 5 | AB21: 5 | AC21: 5 | AD21: 5 | AE21: 5 | AF21: 5 | AG21: 5 | AH21: 5 | AI21: 5 | AJ21: 5 | AK21: 5 | AL21: 5 | AM21: 5 | AN21: 5 | AR21: 14 | AS21: Autoveicoli | AT21: 5 | AU21: 5 | AV21: 5 | AW21: 5 | AX21: 5 | AY21: 5 | AZ21: 5 | BA21: 5 | BB21: 5 | BC21: 5 | BD21: 5 | BE21: 5 | BF21: 5 | BG21: 5 | BH21: 5 | BI21: 5 | BJ21: 5 | BK21: 5 | BL21: 5 | BM21: 5 | BN21: 5 | BO21: 5 | BP21: 5 | BQ21: 5 | BR21: 5 | BS21: 5 | BT21: 5 | BU21: 5 | BV21: 5 | BW21: 5 | BX21: 5 | BY21: 5 | BZ21: 5 | CA21: 5 | CB21: 5 | CC21: 5
B22: 15 | C22: Studi, ricerche, brevetti, diritti di utilizzazione | E22: 5 | F22: 5 | G22: 5 | H22: 5 | I22: 5 | J22: 5 | K22: 5 | L22: 5 | M22: 5 | N22: 5 | O22: 5 | P22: 5 | Q22: 5 | R22: 5 | S22: 5 | T22: 5 | U22: 5 | V22: 5 | W22: 5 | X22: 5 | Y22: 5 | Z22: 5 | AA22: 5 | AB22: 5 | AC22: 5 | AD22: 5 | AE22: 5 | AF22: 5 | AG22: 5 | AH22: 5 | AI22: 5 | AJ22: 5 | AK22: 5 | AL22: 5 | AM22: 5 | AN22: 5 | AR22: 15 | AS22: Studi, ricerche, brevetti, diritti di utilizzazione | AT22: 5 | AU22: 5 | AV22: 5 | AW22: 5 | AX22: 5 | AY22: 5 | AZ22: 5 | BA22: 5 | BB22: 5 | BC22: 5 | BD22: 5 | BE22: 5 | BF22: 5 | BG22: 5 | BH22: 5 | BI22: 5 | BJ22: 5 | BK22: 5 | BL22: 5 | BM22: 5 | BN22: 5 | BO22: 5 | BP22: 5 | BQ22: 5 | BR22: 5 | BS22: 5 | BT22: 5 | BU22: 5 | BV22: 5 | BW22: 5 | BX22: 5 | BY22: 5 | BZ22: 5 | CA22: 5 | CB22: 5 | CC22: 5
B23: 16 | C23: Altre immobilizzazioni materiali e immateriali | E23: 7 | F23: 7 | G23: 7 | H23: 7 | I23: 7 | J23: 7 | K23: 7 | L23: 7 | M23: 7 | N23: 7 | O23: 7 | P23: 7 | Q23: 7 | R23: 7 | S23: 7 | T23: 7 | U23: 7 | V23: 7 | W23: 7 | X23: 7 | Y23: 7 | Z23: 7 | AA23: 7 | AB23: 7 | AC23: 7 | AD23: 7 | AE23: 7 | AF23: 7 | AG23: 7 | AH23: 7 | AI23: 7 | AJ23: 7 | AK23: 7 | AL23: 7 | AM23: 7 | AN23: 7 | AR23: 16 | AS23: Altre immobilizzazioni materiali e immateriali | AT23: 7 | AU23: 7 | AV23: 7 | AW23: 7 | AX23: 7 | AY23: 7 | AZ23: 7 | BA23: 7 | BB23: 7 | BC23: 7 | BD23: 7 | BE23: 7 | BF23: 7 | BG23: 7 | BH23: 7 | BI23: 7 | BJ23: 7 | BK23: 7 | BL23: 7 | BM23: 7 | BN23: 7 | BO23: 7 | BP23: 7 | BQ23: 7 | BR23: 7 | BS23: 7 | BT23: 7 | BU23: 7 | BV23: 7 | BW23: 7 | BX23: 7 | BY23: 7 | BZ23: 7 | CA23: 7 | CB23: 7 | CC23: 7
B24: 17 | C24: Immobilizzazioni immateriali: avviamenti, capitalizzazione concessione, etc. | AR24: 17 | AS24: Immobilizzazioni immateriali: avviamenti, capitalizzazione concessione, etc.
M26: § | T26: § | Z26: §
C27: L'ammortamento finanziario può essere richiesto se si ricade negli shemi IV, V, VI o valgono le ulteriori casistiche di cui al comma 16.5 in tal caso vanno compilate necessariamente tutte le colonne. L'inosservanza di una sola delle due indicazioni determinerà automaticamente lo sviluppo dei costi delle immobilizzazioni secondo le vite utili regolatorie

Sheet Info_eventuali_aggregazioni
B1: AGGREGAZIONI
V2: non sono presenti errori
B3: Informazioni anagrafiche delle gestioni legate a processi di aggregazione | V3: =+AND(OFFSET(R10,0,0,COUNTA(R:R),1))=TRUE -> TRUE
B4: In caso di compilazione, fornire tutte le informazioni richieste
B5: 1. INFORMAZIONI SUI SOGGETTI AGGREGATI
B9: Nome del soggetto | C9: IdAEEG della gestione aggregata | D9: gestore/proprietario di infrastruttura | E9: P. IVA | F9: Codice Istat Comune | G9: gestore esercente il servizio di Acquedotto | H9: gestore esercente il servizio di Fognatura | I9: gestore esercente il servizio di Depurazione | J9: popolazione (la maggiore tra i servizi forniti in origine) | K9: grado di completezza dei dati | L9: grado di acquisizione della gestione | N9: per formule/nome zona | O9: idaeeg | P9: popolazione | R9: controllo compilazione
A10: =+ROW(A10)-9 -> 1 | N10: =+B10 -> 0 | O10: =+C10 -> 0 | P10: =+MAX(G10:I10) -> 0 | R10: =+OR(COUNTA(B10:L10)=11,COUNTA(B10:L10)=0) -> TRUE

Sheet Dati_exGestioni_integrate
B1: AGGREGAZIONI | R1: non sono presenti errori
R2: =+AND(OFFSET(Q11,0,0,COUNTA(Q:Q),1))=TRUE -> TRUE
B3: All. A MTI-2 del. 664/2015/R/idr come integrata e modificata dalla del 918/2017/R/idr
B5: 2. RICAVI TARIFFARI DELLE GESTIONI INTEGRATE
B9: IdAEEG della gestione integrata | C9: Nome del gestore | D9: Popolazione | H9: tali ricavi tariffari sono già inseriti nell'articolazione tariffaria dei fogli precedenti (SI/NO) | I9: si conferma che i costi (opex e capex) indicati non siano inclusi né nella determinazione delle componenti tariffarie MTI né nei dati di bilancio oggetto di predisposizione? (SI/NO) | N9: ricavi aggiuntivi denominatore J2018 | O9: ricavi aggiuntivi denominatore J2019 | Q9: controllo compilazione
B10: idaeeg_altro | Q10: controllo compilazione
A11: =+ROW(A11)-10 -> 1 | B11: =+IF(ISNA(VLOOKUP(C11,soggetti_aggr,2,FALSE)),0,+VLOOKUP(C11,soggetti_aggr,2,FALSE)) -> 0 | D11: =+IF(ISNA(VLOOKUP(C11,soggetti_aggr,3,FALSE)),0,+VLOOKUP(C11,soggetti_aggr,3,FALSE)) -> 0 | N11: =+IF(OR(H11="SI",C11=0),0,F11) -> 0 | O11: =+IF(OR(H11="SI",C11=0),0,G11) -> 0 | Q11: =+OR(COUNTA(C11,F11:I11)=5,COUNTA(C11,F11:I11)=0) -> TRUE

Sheet Dati_Anni_precedenti
K2: controllo compilazione | L2: controllo valori non negativi | M2: non sono presenti errori
A3: Sezione | B3: Voce | C3: 2016 | D3: 2017 | E3: 2016-2019 | K3: =+AND(P:R) -> FALSE | L3: =+AND(S:U) -> TRUE | M3: =+AND(K3=TRUE,L3=TRUE) -> FALSE | P3: controlli di compilazione
A4: Delibera AEEGSI | B4: Delibera
A5: Delibera AEEGSI | B5: J deliberato | P5: =+C5<>"" -> FALSE | Q5: =+D5<>"" -> FALSE | S5: =+C5>=0 -> TRUE | T5: =+D5>=0 -> TRUE
A6: Delibera AEEGSI | B6: J medio | S6: =+C6>=0 -> TRUE | T6: =+D6>=0 -> TRUE
A7: Delibera AEEGSI | B7: RC appr | R7: =+E7<>"" -> FALSE
A8: Schema regolatorio | B8: ∑Ipexp | R8: =+E8<>"" -> FALSE
A9: Schema regolatorio | B9: Ipexp | P9: =+C9<>"" -> FALSE | Q9: =+D9<>"" -> FALSE
A10: Schema regolatorio | B10: ψ
A11: Schema regolatorio | B11: RAB MTI | R11: =+E11<>"" -> FALSE | U11: =+E11>=0 -> TRUE
A12: Schema regolatorio | B12: Schema regolatorio | R12: =+E12<>"" -> FALSE
A13: Schema regolatorio | B13: Opnew,a | S13: =+C13>=0 -> TRUE | T13: =+D13>=0 -> TRUE
A14: Schema regolatorio | B14: Opexqc | S14: TRUE | T14: TRUE
A15: Schema regolatorio | B15: Opexvirt | S15: TRUE | T15: TRUE
A16: Moltiplicatore | B16: VRG approvato | P16: =+C16<>"" -> FALSE | Q16: =+D16<>"" -> FALSE | S16: TRUE | T16: TRUE
A17: Moltiplicatore | B17: ∑tarif2015 * vscala-2 | P17: FALSE | Q17: FALSE | S17: TRUE | T17: TRUE
A18: Moltiplicatore | B18: di cui: Ricavi ws | S18: TRUE | T18: TRUE
A19: Moltiplicatore | B19: di cui: Ra | S19: TRUE | T19: TRUE
A20: Moltiplicatore | B20: di cui: gestioni incom. | S20: TRUE | T20: TRUE
A21: Moltiplicatore | B21: Rba-2 | P21: FALSE | Q21: FALSE | S21: TRUE | T21: TRUE
A22: Moltiplicatore | B22: Cba-2 | P22: FALSE | Q22: FALSE | S22: TRUE | T22: TRUE
A23: Costi delle immobilizzazioni | B23: AMM | P23: FALSE | Q23: FALSE
A24: Costi delle immobilizzazioni | B24: OF | P24: FALSE | Q24: FALSE
A25: Costi delle immobilizzazioni | B25: OFisc | P25: FALSE | Q25: FALSE
A26: Costi delle immobilizzazioni | B26: ΔCUITcapex | P26: FALSE | Q26: FALSE | S26: =+C26>=0 -> TRUE | T26: =+D26>=0 -> TRUE
A27: Immobilizzazioni | B27: IML | P27: FALSE | Q27: FALSE | S27: TRUE | T27: TRUE
A28: Immobilizzazioni | B28: IMN | P28: FALSE | Q28: FALSE | S28: TRUE | T28: TRUE
A29: Immobilizzazioni | B29: FA | P29: FALSE | Q29: FALSE | S29: TRUE | T29: TRUE
A30: Fondo Nuovi Investimenti | B30: AMMfoni | P30: FALSE | Q30: FALSE | S30: TRUE | T30: TRUE
A31: Fondo Nuovi Investimenti | B31: ΔCUITfoni | P31: FALSE | Q31: FALSE | S31: TRUE | T31: TRUE
A32: Fondo Nuovi Investimenti | B32: FNIfoni | P32: FALSE | Q32: FALSE | S32: TRUE | T32: TRUE
A33: Costi Operativi | B33: ERC | P33: FALSE | Q33: FALSE
A34: Costi Operativi | B34: ERCend | P34: FALSE | Q34: FALSE
A35: Costi Operativi | B35: ERCal | P35: FALSE | Q35: FALSE
A36: Costi Operativi | B36: COato | P36: FALSE | Q36: FALSE | S36: =+C36>=0 -> TRUE | T36: =+D36>=0 -> TRUE
A37: Costi Operativi | B37: COaeegsi | P37: FALSE | Q37: FALSE | S37: TRUE | T37: TRUE
A38: Costi Operativi | B38: COmor | P38: FALSE | Q38: FALSE | S38: TRUE | T38: TRUE
A39: Costi Operativi | B39: COres | P39: FALSE | Q39: FALSE
A40: Costi Operativi | B40: COee | P40: FALSE | Q40: FALSE | S40: =+C40>=0 -> TRUE | T40: =+D40>=0 -> TRUE
A41: Costi Operativi | B41: Cows - water | P41: FALSE | Q41: FALSE | S41: TRUE | T41: TRUE
A42: Costi Operativi | B42: Cows - other | P42: FALSE | Q42: FALSE | S42: TRUE | T42: TRUE
A43: Costi Operativi | B43: MT | P43: FALSE | Q43: FALSE | S43: TRUE | T43: TRUE
A44: Costi Operativi | B44: AC | P44: FALSE | Q44: FALSE | S44: TRUE | T44: TRUE
A45: Costi Operativi | B45: Opexend | P45: FALSE | Q45: FALSE | S45: TRUE | T45: TRUE
A46: Costi Operativi | B46: Contributi c/e | P46: FALSE | Q46: FALSE | S46: TRUE | T46: TRUE
A47: Sezione Conguagli | B47: RcVOL
A48: Sezione Conguagli | B48: RcEE
A49: Sezione Conguagli | B49: RcWS
A50: Sezione Conguagli | B50: RcERCa
A51: Sezione Conguagli | B51: RcaAttiv b
A52: Sezione Conguagli | B52: Rcares
A53: Sezione Conguagli | B53: RcaAEEGSI
A54: Sezione Conguagli | B54: Costi per variazioni sistemiche/ eventi eccezionali
A55: Sezione Conguagli | B55: Costo forniture all’ingrosso transfrontaliere
A56: Sezione Conguagli | B56: RcIP (valori a moneta a-2)
A57: Sezione Conguagli | B57: Rimb335
A58: Sezione Conguagli | B58: Rcaappr (riportato a moneta a-2)
A59: Sezione Conguagli | B59: recupero volumi
A60: Sezione Conguagli | B60: recupero energia elettrica
A61: Sezione Conguagli | B61: Rctot | P61: =+C61<>"" -> FALSE | Q61: =+D61<>"" -> FALSE
A62: Ammortamento finanziario MTI | B62: AF MTI-2 | R62: =+E62<>"" -> FALSE
C70: 2014 | D70: 2015
A71: Sezione altri dati | B71: COrealiEE (altre gruppo - SII) | Q71: =+SUM(D71:D74)>0 -> FALSE | T71: =+D71>=0 -> TRUE
A72: Sezione altri dati | B72: COrealiEE (altre imprese - SII) | T72: TRUE
A73: Sezione altri dati | B73: COrealiEE (altre gruppo - AAI) | T73: TRUE
A74: Sezione altri dati | B74: COrealiEE (altre imprese - AAI) | T74: TRUE
A75: Sezione altri dati | B75: Kwh | Q75: =+D75<>"" -> FALSE | T75: TRUE
A76: Sezione altri dati | B76: FoNI (ex MTI) | P76: =+C76<>"" -> FALSE | Q76: FALSE | S76: =+C76>=0 -> TRUE | T76: TRUE
A77: Sezione altri dati | B77: Recupero FoNI anni precedenti | S77: TRUE | T77: TRUE
A78: Sezione altri dati | B78: FoNI speso in agevolazioni tariffarie | S78: TRUE | T78: TRUE
A79: Sezione altri dati | B79: FoNI speso in agevolazioni tariffarie "previsto" (a+2) | S79: TRUE | T79: TRUE
A80: Sezione altri dati | B80: Opexend (ex MTI) | P80: FALSE | S80: TRUE
A81: Sezione altri dati | B81: ∑Ipexp | P81: FALSE
A82: Sezione altri dati | B82: Ipexp | P82: FALSE | Q82: =+D82<>"" -> FALSE
A83: Sezione altri dati | B83: RC appr | P83: FALSE
A84: Ammortamento finanziario MTI | B84: AF MTI | P84: =+C84<>"" -> FALSE
C91: 2013
A92: Sezione altri dati | B92: PopATO | P92: =+C92<>"" -> FALSE | S92: =+C92>=0 -> TRUE

Sheet RAB_cespiti_ante2015
H2: Immobilizzazioni del gestore (solo immobilizzazioni al 2014) | Y2: id categoria cespite | Z2: id immobilizzazione | AA2: id anno cespite | AB2: valori non negativi | AC2: non sono presenti errori
Y3: =+AND(INDEX(RAB_cespiti_ante2015,0,17)) -> FALSE | Z3: =+AND(INDEX(RAB_cespiti_ante2015,0,18)) -> FALSE | AA3: =+AND(INDEX(RAB_cespiti_ante2015,0,19)) -> FALSE | AB3: =+AND(INDEX(RAB_cespiti_ante2015,0,20)) -> TRUE | AC3: =+AND(Y3:AB3) -> FALSE
A4: IMN gestore ante 2015
A5: IDATO | B5: IDGestore | C5: Gestore_Proprietario | D5: N_prop | E5: Fonte | F5: ID_Categoria_Cespite | G5: CategoriaCespite | H5: ID_Immobilizzazione | I5: IMMOBILIZZAZIONE | J5: AnnoCespite | K5: IP | L5: FAIP | M5: CFP | N5: FACP | O5: foglio di origine | P5: n_riga | Q5: id categoria cespite | R5: id immobilizzazione | S5: id anno cespite | T5: valori non negativi
A6: =+idato -> 0 | B6: =+idgestore -> 0 | C6: Gestore | D6: 0 | E6: IP | F6: =+IFERROR(VLOOKUP(G6,id_cat_ces,2,FALSE),"") ->  | H6: =+IFERROR(VLOOKUP(I6,id_cat_imm,2,FALSE),"") ->  | O6: RAB_cespiti_ante2015 | P6: =+ROW(A6)-5 -> 1 | Q6: =++IF(P6=1,TRUE,IFERROR(VLOOKUP(G6,id_cat_ces,2,FALSE),FALSE)=F6) -> TRUE | R6: =++IF(P6=1,TRUE,IFERROR(VLOOKUP(I6,id_cat_imm,2,FALSE),FALSE)=H6) -> TRUE | S6: =+IF(P6=1,TRUE,J6>=1963) -> TRUE | T6: =+IF(P6=1,TRUE,AND(K6>=0,L6>=0,M6>=0,N6>=0)) -> TRUE
A7: =+idato -> 0 | B7: =+idgestore -> 0 | C7: Gestore | D7: 0 | E7: IP | F7: =+IFERROR(VLOOKUP(G7,id_cat_ces,2,FALSE),"") ->  | H7: =+IFERROR(VLOOKUP(I7,id_cat_imm,2,FALSE),"") ->  | O7: RAB_cespiti_ante2015 | P7: =+ROW(A7)-5 -> 2 | Q7: =++IF(P7=1,TRUE,IFERROR(VLOOKUP(G7,id_cat_ces,2,FALSE),FALSE)=F7) -> FALSE | R7: =++IF(P7=1,TRUE,IFERROR(VLOOKUP(I7,id_cat_imm,2,FALSE),FALSE)=H7) -> FALSE | S7: =+IF(P7=1,TRUE,J7>=1963) -> FALSE | T7: =+IF(P7=1,TRUE,AND(K7>=0,L7>=0,M7>=0,N7>=0)) -> TRUE

Sheet Conferma_investimenti_2015
AW1: non sono presenti errori
AW2: =+IF(AND(COUNTA(AS:AS)=3,COUNTA(E8,G8,I8,J8,K8,L8)=0),TRUE,PRODUCT(OFFSET(R8,0,0,COUNTA(Q:Q)-2,1))*PRODUCT(OFFSET(T8,0,0,COUNTA(Q:Q)-2,1))>0) -> TRUE
D3: Investimenti 2015 Le colonne da D a J mostrano gli investimenti relativi al 2015 come da predisposizione tariffaria MTI-2. Indicare nelle colonne K e L eventuali variazioni motivandole in relazione di accompagnamento, altrimenti ricopiare i valori dalle adiacenti colonne. È possibile eventualmente aggiungere ulteriori righe e si sconsiglia la rimozione di quelle già presenti. La mancata compilazione delle colonne K e L escluderà tali cespiti dal calcolo. | K3: spazio per la compilazione manuale nessuna rivalutazione monetaria va effettuata Per i contributi a fondo perduto considerare anche l'allocazione del FoNIa-2
K4: Investimenti EFFETTIVI del 2015 (non lasciare campi vuoti) | AB4: zona per il calcolo RcIP2017
A6: n_riga | B6: IDATO | C6: IDGESTORE | D6: ID_Categoria_Cespite | E6: CategoriaCespite | F6: ID_Immobilizzazione | G6: IMMOBILIZZAZIONE | H6: AnnoCespite | I6: IP (come da approvazione tariffaria) | J6: CFP (come da approvazione tariffaria) | K6: IP | L6: CFP | M6: IDATO | N6: IDAEEG | O6: Gestore_Proprietario | P6: N_prop | Q6: Fonte | R6: ID_Categoria_Cespite | S6: CategoriaCespite | T6: ID_Immobilizzazione | U6: IMMOBILIZZAZIONE | V6: AnnoCespite | W6: IP | Y6: CFP | AA6: foglio di origine | AB6: ΔIP | AC6: ΔFA | AD6: ΔAMM | AE6: ΔCFP | AF6: ΔFACFP | AG6: ΔAMM CFP | AI6: ΔIMN2015 | AJ6: ΔCINcfp2015 | AK6: 1 - CINfp / CIN | AL6: Km + α (ex del. 664/2015) | AM6: Rai rate (ex del. 664/2015) | AO6: ΔAMM - ΔAMM CFP | AP6: ΔOF | AQ6: ΔOFisc | AS6: DRCIP
A7: 1 | B7: =+idato -> 0 | C7: =+idgestore -> 0 | D7: =+IFERROR(VLOOKUP(E7,id_cat_ces,2,FALSE),0) -> 0 | F7: =+IFERROR(VLOOKUP(G7,id_cat_imm,2,FALSE),0) -> 0 | H7: 2015 | M7: =idato -> 0 | N7: =idgestore -> 0 | O7: Gestore | P7: 0 | Q7: IP | R7: =IFERROR(VLOOKUP(S7,TT_Tabelle_Riferimento!$G$32:$H$48,2,0),0) -> 0 | S7: =IFERROR(VLOOKUP(E7,TT_Tabelle_Riferimento!$G$32:$H$48,1,0),0) -> 0 | T7: =+IFERROR(VLOOKUP(U7,TT_Tabelle_Riferimento!$G$2:$H$6,2,0),0) -> 0 | U7: =+IFERROR(VLOOKUP(G7,TT_Tabelle_Riferimento!$G$2:$H$6,1,0),0) -> 0 | V7: =H7 -> 2015 | W7: =K7 -> 0 | Y7: =L7 -> 0 | AA7: Conferma_investimenti_2015 | AB7: =+IFERROR(IP(K7,D7,T7,H7,2017)-IP(I7,D7,T7,H7,2017),0) -> 0 | AC7: =+IFERROR(FondoAmm(K7,0,2015,D7,T7,2017,vite_regolatorie)-FondoAmm(I7,0,2015,D7,T7,2017,vite_regolatorie),0) -> 0 | AD7: =+IFERROR(QA(K7,0,2015,D7,T7,2017,vite_regolatorie)-QA(I7,0,2015,D7,T7,2017,vite_regolatorie),0) -> 0 | AE7: =+IFERROR(CFP_A(L7,D7,T7,H7,2017)-CFP_A(J7,D7,T7,H7,2017),0) -> 0 | AF7: =+IFERROR(FACFP(L7,0,2015,D7,T7,2017,vite_regolatorie)-FACFP(J7,0,2015,D7,T7,2017,vite_regolatorie),0) -> 0 | AG7: =+IFERROR(QA_CFP(L7,0,2015,T7,D7,2017,vite_regolatorie)-QA_CFP(J7,0,2015,T7,D7,2017,vite_regolatorie),0) -> 0 | AI7: =+IFERROR(IP(K7,D7,T7,H7,2017)-FondoAmm(K7,0,2015,D7,T7,2017,vite_regolatorie)-(IP(I7,D7,T7,H7,2017)-FondoAmm(I7,0,2015,D7,T7,2017,vite_regolatorie)),0) -> 0 | AJ7: =+IFERROR(CFP_A(L7,D7,T7,H7,2017)-FACFP(L7,0,2015,D7,T7,2017,vite_regolatorie)-(CFP_A(J7,D7,T7,H7,2017)-FACFP(J7,0,2015,D7,T7,2017,vite_regolatorie)),0) -> 0 | AK7: =IFERROR(1-AJ7/AI7,0) -> 0 | AL7: =+(Capex!$C$22+Capex!$C$23) -> 0.03653295 | AM7: =+(Capex!$C$28) -> 0.06320233616 | AO7: =+AD7-AG7 -> 0 | AP7: =+AL7*AK7*AI7 -> 0 | AQ7: =+AM7*0.275*AK7*AI7 -> 0 | AS7: =+AO7+AP7+AQ7 -> 0
A8: 1 | B8: =+idato -> 0 | C8: =+idgestore -> 0 | D8: =+IFERROR(VLOOKUP(E8,id_cat_ces,2,FALSE),0) -> 0 | F8: =+IFERROR(VLOOKUP(G8,id_cat_imm,2,FALSE),0) -> 0 | H8: 2015 | M8: =idato -> 0 | N8: =idgestore -> 0 | O8: Gestore | P8: 0 | Q8: IP | R8: =IFERROR(VLOOKUP(S8,TT_Tabelle_Riferimento!$G$32:$H$48,2,0),0) -> 0 | S8: =IFERROR(VLOOKUP(E8,TT_Tabelle_Riferimento!$G$32:$H$48,1,0),0) -> 0 | T8: =+IFERROR(VLOOKUP(U8,TT_Tabelle_Riferimento!$G$2:$H$6,2,0),0) -> 0 | U8: =+IFERROR(VLOOKUP(G8,TT_Tabelle_Riferimento!$G$2:$H$6,1,0),0) -> 0 | V8: =H8 -> 2015 | W8: =K8 -> 0 | Y8: =L8 -> 0 | AA8: Conferma_investimenti_2015 | AB8: =+IFERROR(IP(K8,D8,T8,H8,2017)-IP(I8,D8,T8,H8,2017),0) -> 0 | AC8: =+IFERROR(FondoAmm(K8,0,2015,D8,T8,2017,vite_regolatorie)-FondoAmm(I8,0,2015,D8,T8,2017,vite_regolatorie),0) -> 0 | AD8: =+IFERROR(QA(K8,0,2015,D8,T8,2017,vite_regolatorie)-QA(I8,0,2015,D8,T8,2017,vite_regolatorie),0) -> 0 | AE8: =+IFERROR(CFP_A(L8,D8,T8,H8,2017)-CFP_A(J8,D8,T8,H8,2017),0) -> 0 | AF8: =+IFERROR(FACFP(L8,0,2015,D8,T8,2017,vite_regolatorie)-FACFP(J8,0,2015,D8,T8,2017,vite_regolatorie),0) -> 0 | AG8: =+IFERROR(QA_CFP(L8,0,2015,T8,D8,2017,vite_regolatorie)-QA_CFP(J8,0,2015,T8,D8,2017,vite_regolatorie),0) -> 0 | AI8: =+IFERROR(IP(K8,D8,T8,H8,2017)-FondoAmm(K8,0,2015,D8,T8,2017,vite_regolatorie)-(IP(I8,D8,T8,H8,2017)-FondoAmm(I8,0,2015,D8,T8,2017,vite_regolatorie)),0) -> 0 | AJ8: =+IFERROR(CFP_A(L8,D8,T8,H8,2017)-FACFP(L8,0,2015,D8,T8,2017,vite_regolatorie)-(CFP_A(J8,D8,T8,H8,2017)-FACFP(J8,0,2015,D8,T8,2017,vite_regolatorie)),0) -> 0 | AK8: =IFERROR(1-AJ8/AI8,0) -> 0 | AL8: =+(Capex!$C$22+Capex!$C$23) -> 0.03653295 | AM8: =+(Capex!$C$28) -> 0.06320233616 | AO8: =+AD8-AG8 -> 0 | AP8: =+AL8*AK8*AI8 -> 0 | AQ8: =+AM8*0.275*AK8*AI8 -> 0 | AS8: =+AO8+AP8+AQ8 -> 0

Sheet RAB_Proprietari
C1: IMNProprietari - Sviluppo dei costi di capitale associati alle infrastrutture di terzi
A2: scarico dati
A3: IMN P.
A5: idato associato al gestore | B5: idaeeg associato al gestore | C5: Tipologia di Proprietario | D5: Key_Prop | E5: ID_Categoria_Cespite | F5: CategoriaCespite | G5: ID_Immobilizzazione | H5: IMMOBILIZZAZIONE | I5: AnnoCespite | J5: IP | K5: FAIP | L5: CFP | M5: FACP | N5: New_Key_prop | O5: dati da non valorizzare | P5: VU 2016 | Q5: IP 2016 | R5: FAIP 2016 | S5: IP netto 2016 | T5: AMM 2016 | U5: CFP 2016 | V5: FA CFP 2016 | W5: CFP netto 2016 | X5: AMM CFP 2016 | Y5: Nriga | Z5: VU 2017 | AA5: IP 2017 | AB5: FAIP 2017 | AC5: IP netto 2017 | AD5: AMM 2017 | AE5: CFP 2017 | AF5: FA CFP 2017 | AG5: CFP netto 2017 | AH5: AMM CFP 2017 | AI5: aaa | AJ5: VU 2018 | AK5: IP 2018 | AL5: FAIP 2018 | AM5: IP netto 2018 | AN5: AMM 2018 | AO5: CFP 2018 | AP5: FA CFP 2018 | AQ5: CFP netto 2018 | AR5: AMM CFP 2018 | AS5: aaaa | AT5: VU 2019 | AU5: IP 2019 | AV5: FAIP 2019 | AW5: IP netto 2019 | AX5: AMM 2019 | AY5: CFP 2019 | AZ5: FA CFP 2019 | BA5: CFP netto 2019 | BB5: AMM CFP 2019
A6: =+idato -> 0 | B6: =+idgestore -> 0 | E6: =+IFERROR(VLOOKUP(F6,id_cat_ces,2,FALSE),"") ->  | G6: =+IFERROR(VLOOKUP(H6,id_cat_imm,2,FALSE),"") ->  | N6: =VLOOKUP(D6,Soggetti_proprietari_infrastrut!K:L,2,0) ->  | O6: =IF(ISNA(VLOOKUP(N6,Soggetti_proprietari_infrastrut!N:N,1,FALSE)),IF(OR(I6=1961,I6=1962),TRUE,FALSE),TRUE) -> FALSE | P6: =+IF(OR($O6,$E6=""),0,VLOOKUP($E6,ViteRegolatorieProp,VALUE(RIGHT(P$5,4))-2011)) -> 0 | Q6: =IF(OR($O6,$E6=""),0,IFERROR(IP_PROP($J6,R6,T6,$E6,$G6,$I6,$P6,VALUE(RIGHT(Q$5,4))),0)) -> 0 | R6: =IF(OR($O6,$E6=""),0,IFERROR(FondoAmm_prop($J6,$K6,$I6,$E6,$G6,VALUE(RIGHT(R$5,4)),ViteRegolatorieProp),0)) -> 0 | S6: =+Q6-R6 -> 0 | T6: =IF(OR($O6,$E6=""),0,IFERROR(QA_PROP($J6,$K6,$I6,$E6,$G6,VALUE(RIGHT(T$5,4)),ViteRegolatorieProp),0)) -> 0 | U6: =IF(OR($O6,$E6=""),0,IFERROR(IP_PROP($L6,V6,X6,$E6,$G6,$I6,$P6,VALUE(RIGHT(U$5,4))),0)) -> 0 | V6: =IF(OR($O6,$E6=""),0,IFERROR(FondoAmm_prop($L6,$M6,$I6,$E6,$G6,VALUE(RIGHT(V$5,4)),ViteRegolatorieProp),0)) -> 0 | W6: =+U6-V6 -> 0 | X6: =IF(OR($O6,$E6=""),0,IFERROR(QA_PROP($L6,$M6,$I6,$E6,$G6,VALUE(RIGHT(X$5,4)),ViteRegolatorieProp),0)) -> 0 | Y6: =+ROW(A6)-5 -> 1 | Z6: =+IF(OR($O6,$E6=""),0,VLOOKUP($E6,ViteRegolatorieProp,VALUE(RIGHT(Z$5,4))-2011)) -> 0 | AA6: =IF(OR($O6,$E6=""),0,IFERROR(IP_PROP($J6,AB6,AD6,$E6,$G6,$I6,$P6,VALUE(RIGHT(AA$5,4))),0)) -> 0 | AB6: =IF(OR($O6,$E6=""),0,IFERROR(FondoAmm_prop($J6,$K6,$I6,$E6,$G6,VALUE(RIGHT(AB$5,4)),ViteRegolatorieProp),0)) -> 0 | AC6: =+AA6-AB6 -> 0 | AD6: =IF(OR($O6,$E6=""),0,IFERROR(QA_PROP($J6,$K6,$I6,$E6,$G6,VALUE(RIGHT(AD$5,4)),ViteRegolatorieProp),0)) -> 0 | AE6: =IF(OR($O6,$E6=""),0,IFERROR(IP_PROP($L6,AF6,AH6,$E6,$G6,$I6,$P6,VALUE(RIGHT(AE$5,4))),0)) -> 0 | AF6: =IF(OR($O6,$E6=""),0,IFERROR(FondoAmm_prop($L6,$M6,$I6,$E6,$G6,VALUE(RIGHT(AF$5,4)),ViteRegolatorieProp),0)) -> 0 | AG6: =+AE6-AF6 -> 0 | AH6: =IF(OR($O6,$E6=""),0,IFERROR(QA_PROP($L6,$M6,$I6,$E6,$G6,VALUE(RIGHT(AH$5,4)),ViteRegolatorieProp),0)) -> 0 | AJ6: =+IF(OR($O6,$E6=""),0,VLOOKUP($E6,ViteRegolatorieProp,VALUE(RIGHT(AJ$5,4))-2011)) -> 0 | AK6: =IF(OR($O6,$E6=""),0,IFERROR(IP_PROP($J6,AL6,AN6,$E6,$G6,$I6,$P6,VALUE(RIGHT(AK$5,4))),0)) -> 0 | AL6: =IF(OR($O6,$E6=""),0,IFERROR(FondoAmm_prop($J6,$K6,$I6,$E6,$G6,VALUE(RIGHT(AL$5,4)),ViteRegolatorieProp),0)) -> 0 | AM6: =+AK6-AL6 -> 0 | AN6: =IF(OR($O6,$E6=""),0,IFERROR(QA_PROP($J6,$K6,$I6,$E6,$G6,VALUE(RIGHT(AN$5,4)),ViteRegolatorieProp),0)) -> 0 | AO6: =IF(OR($O6,$E6=""),0,IFERROR(IP_PROP($L6,AP6,AR6,$E6,$G6,$I6,$P6,VALUE(RIGHT(AO$5,4))),0)) -> 0 | AP6: =IF(OR($O6,$E6=""),0,IFERROR(FondoAmm_prop($L6,$M6,$I6,$E6,$G6,VALUE(RIGHT(AP$5,4)),ViteRegolatorieProp),0)) -> 0 | AQ6: =+AO6-AP6 -> 0 | AR6: =IF(OR($O6,$E6=""),0,IFERROR(QA_PROP($L6,$M6,$I6,$E6,$G6,VALUE(RIGHT(AR$5,4)),ViteRegolatorieProp),0)) -> 0 | AT6: =+IF(OR($O6,$E6=""),0,VLOOKUP($E6,ViteRegolatorieProp,VALUE(RIGHT(AT$5,4))-2011)) -> 0 | AU6: =IF(OR($O6,$E6=""),0,IFERROR(IP_PROP($J6,AV6,AX6,$E6,$G6,$I6,$P6,VALUE(RIGHT(AU$5,4))),0)) -> 0 | AV6: =IF(OR($O6,$E6=""),0,IFERROR(FondoAmm_prop($J6,$K6,$I6,$E6,$G6,VALUE(RIGHT(AV$5,4)),ViteRegolatorieProp),0)) -> 0 | AW6: =+AU6-AV6 -> 0 | AX6: =IF(OR($O6,$E6=""),0,IFERROR(QA_PROP($J6,$K6,$I6,$E6,$G6,VALUE(RIGHT(AX$5,4)),ViteRegolatorieProp),0)) -> 0 | AY6: =IF(OR($O6,$E6=""),0,IFERROR(IP_PROP($L6,AZ6,BB6,$E6,$G6,$I6,$P6,VALUE(RIGHT(AY$5,4))),0)) -> 0 | AZ6: =IF(OR($O6,$E6=""),0,IFERROR(FondoAmm_prop($L6,$M6,$I6,$E6,$G6,VALUE(RIGHT(AZ$5,4)),ViteRegolatorieProp),0)) -> 0 | BA6: =+AY6-AZ6 -> 0 | BB6: =IF(OR($O6,$E6=""),0,IFERROR(QA_PROP($L6,$M6,$I6,$E6,$G6,VALUE(RIGHT(BB$5,4)),ViteRegolatorieProp),0)) -> 0
A7: =+idato -> 0 | B7: =+idgestore -> 0 | E7: =+IFERROR(VLOOKUP(F7,id_cat_ces,2,FALSE),"") ->  | G7: =+IFERROR(VLOOKUP(H7,id_cat_imm,2,FALSE),"") ->  | N7: =VLOOKUP(D7,Soggetti_proprietari_infrastrut!K:L,2,0) ->  | O7: =IF(ISNA(VLOOKUP(N7,Soggetti_proprietari_infrastrut!N:N,1,FALSE)),IF(OR(I7=1961,I7=1962),TRUE,FALSE),TRUE) -> FALSE | P7: 0 | Q7: =IF(OR($O7,$E7=""),0,IFERROR(IP_PROP($J7,R7,T7,$E7,$G7,$I7,$P7,VALUE(RIGHT(Q$5,4))),0)) -> 0 | R7: =IF(OR($O7,$E7=""),0,IFERROR(FondoAmm_prop($J7,$K7,$I7,$E7,$G7,VALUE(RIGHT(R$5,4)),ViteRegolatorieProp),0)) -> 0 | S7: 0 | T7: =IF(OR($O7,$E7=""),0,IFERROR(QA_PROP($J7,$K7,$I7,$E7,$G7,VALUE(RIGHT(T$5,4)),ViteRegolatorieProp),0)) -> 0 | U7: =IF(OR($O7,$E7=""),0,IFERROR(IP_PROP($L7,V7,X7,$E7,$G7,$I7,$P7,VALUE(RIGHT(U$5,4))),0)) -> 0 | V7: =IF(OR($O7,$E7=""),0,IFERROR(FondoAmm_prop($L7,$M7,$I7,$E7,$G7,VALUE(RIGHT(V$5,4)),ViteRegolatorieProp),0)) -> 0 | W7: 0 | X7: =IF(OR($O7,$E7=""),0,IFERROR(QA_PROP($L7,$M7,$I7,$E7,$G7,VALUE(RIGHT(X$5,4)),ViteRegolatorieProp),0)) -> 0 | Y7: 2 | Z7: 0 | AA7: =IF(OR($O7,$E7=""),0,IFERROR(IP_PROP($J7,AB7,AD7,$E7,$G7,$I7,$P7,VALUE(RIGHT(AA$5,4))),0)) -> 0 | AB7: =IF(OR($O7,$E7=""),0,IFERROR(FondoAmm_prop($J7,$K7,$I7,$E7,$G7,VALUE(RIGHT(AB$5,4)),ViteRegolatorieProp),0)) -> 0 | AC7: 0 | AD7: =IF(OR($O7,$E7=""),0,IFERROR(QA_PROP($J7,$K7,$I7,$E7,$G7,VALUE(RIGHT(AD$5,4)),ViteRegolatorieProp),0)) -> 0 | AE7: =IF(OR($O7,$E7=""),0,IFERROR(IP_PROP($L7,AF7,AH7,$E7,$G7,$I7,$P7,VALUE(RIGHT(AE$5,4))),0)) -> 0 | AF7: =IF(OR($O7,$E7=""),0,IFERROR(FondoAmm_prop($L7,$M7,$I7,$E7,$G7,VALUE(RIGHT(AF$5,4)),ViteRegolatorieProp),0)) -> 0 | AG7: 0 | AH7: =IF(OR($O7,$E7=""),0,IFERROR(QA_PROP($L7,$M7,$I7,$E7,$G7,VALUE(RIGHT(AH$5,4)),ViteRegolatorieProp),0)) -> 0 | AJ7: 0 | AK7: =IF(OR($O7,$E7=""),0,IFERROR(IP_PROP($J7,AL7,AN7,$E7,$G7,$I7,$P7,VALUE(RIGHT(AK$5,4))),0)) -> 0 | AL7: =IF(OR($O7,$E7=""),0,IFERROR(FondoAmm_prop($J7,$K7,$I7,$E7,$G7,VALUE(RIGHT(AL$5,4)),ViteRegolatorieProp),0)) -> 0 | AM7: 0 | AN7: =IF(OR($O7,$E7=""),0,IFERROR(QA_PROP($J7,$K7,$I7,$E7,$G7,VALUE(RIGHT(AN$5,4)),ViteRegolatorieProp),0)) -> 0 | AO7: =IF(OR($O7,$E7=""),0,IFERROR(IP_PROP($L7,AP7,AR7,$E7,$G7,$I7,$P7,VALUE(RIGHT(AO$5,4))),0)) -> 0 | AP7: =IF(OR($O7,$E7=""),0,IFERROR(FondoAmm_prop($L7,$M7,$I7,$E7,$G7,VALUE(RIGHT(AP$5,4)),ViteRegolatorieProp),0)) -> 0 | AQ7: 0 | AR7: =IF(OR($O7,$E7=""),0,IFERROR(QA_PROP($L7,$M7,$I7,$E7,$G7,VALUE(RIGHT(AR$5,4)),ViteRegolatorieProp),0)) -> 0 | AT7: 0 | AU7: =IF(OR($O7,$E7=""),0,IFERROR(IP_PROP($J7,AV7,AX7,$E7,$G7,$I7,$P7,VALUE(RIGHT(AU$5,4))),0)) -> 0 | AV7: =IF(OR($O7,$E7=""),0,IFERROR(FondoAmm_prop($J7,$K7,$I7,$E7,$G7,VALUE(RIGHT(AV$5,4)),ViteRegolatorieProp),0)) -> 0 | AW7: 0 | AX7: =IF(OR($O7,$E7=""),0,IFERROR(QA_PROP($J7,$K7,$I7,$E7,$G7,VALUE(RIGHT(AX$5,4)),ViteRegolatorieProp),0)) -> 0 | AY7: =IF(OR($O7,$E7=""),0,IFERROR(IP_PROP($L7,AZ7,BB7,$E7,$G7,$I7,$P7,VALUE(RIGHT(AY$5,4))),0)) -> 0 | AZ7: =IF(OR($O7,$E7=""),0,IFERROR(FondoAmm_prop($L7,$M7,$I7,$E7,$G7,VALUE(RIGHT(AZ$5,4)),ViteRegolatorieProp),0)) -> 0 | BA7: 0 | BB7: =IF(OR($O7,$E7=""),0,IFERROR(QA_PROP($L7,$M7,$I7,$E7,$G7,VALUE(RIGHT(BB$5,4)),ViteRegolatorieProp),0)) -> 0

Sheet Storico_Elenco_Ambiti_Tariffari
B1: RICAVI TARIFFARI
B5: 1 - Ambiti Tariffari
B7: N_Riga | C7: Ambito Tariffario | D7: N_Riga bis
B8: =+ROW(A8)-7 -> 1 | D8: =+B8 -> 1

Sheet Storico_Ambiti_Tariffari_Comuni
B1: RICAVI TARIFFARI
B5: 2 - Comuni per ciascun Ambito Tariffario
A7: N_Riga | B7: Ambito tariffario | C7: Comune | D7: Codice ISTAT
A8: =+ROW(A8)-7 -> 1 | D8: =IF(ISNA(VLOOKUP(C8,TT_Comuni_ATO!X:Y,2,0)),"",VLOOKUP(C8,TT_Comuni_ATO!X:Y,2,0)) -> 

Sheet Storico_Articolaz tariff QV
B1: RICAVI TARIFFARI
B5: 3 - Storico Articolazione Tariffaria - quota variabile
B9: Ambito tariffario | C9: Servizio idrico | D9: Tipologia d'uso | E9: Sottotipologia | F9: 1° scaglione a tariffa agevolata | G9: Minimo impegnato | H9: Min di scaglione (m3/anno) | I9: Max di scaglione (m3/anno) | J9: QV (Euro/m3) 2015 | K9: QV (Euro/m3) 2016 | L9: QV (Euro/m3) 2017 | M9: Volumi fatturati (m3/anno) anno 2015 | N9: Volumi fatturati (m3/anno) anno 2016 | O9: Volumi fatturati (m3/anno) anno 2017 | P9: Ambito_Tariffario | Q9: tar2015*vscal2015 | R9: tar2015*vscal2016 | S9: tar2016*vscal2016 | T9: tar2015*vscal2017 | U9: tar2017*vscal2017
B10: ambito_pre | C10: servizio_idrico_pre | D10: tipologia_pre | E10: sottotipol_pre | F10: agevol_pre | G10: imp_pre | H10: Min_Scaglione | I10: Max_Scaglione | J10: QV | M10: Volumi_Anno_succ | P10: Ambito_Tariffario
H11: 0 | P11: =B11 -> 0 | Q11: =+$J11*M11 -> 0 | R11: =+$J11*N11 -> 0 | S11: =+K11*N11 -> 0 | T11: =+$J11*O11 -> 0 | U11: =+L11*O11 -> 0
H12: =+IF(I11=0,"",I11+1) ->  | P12: =P11 -> 0 | Q12: =+$J12*M12 -> 0 | R12: 0 | S12: 0 | T12: 0 | U12: 0
P13: 0 | Q13: 0 | R13: 0 | S13: 0 | T13: 0 | U13: 0
P14: 0 | Q14: 0 | R14: 0 | S14: 0 | T14: 0 | U14: 0
P15: 0 | Q15: 0 | R15: 0 | S15: 0 | T15: 0 | U15: 0
P16: 0 | Q16: 0 | R16: 0 | S16: 0 | T16: 0 | U16: 0
P17: 0 | Q17: 0 | R17: 0 | S17: 0 | T17: 0 | U17: 0
P18: 0 | Q18: 0 | R18: 0 | S18: 0 | T18: 0 | U18: 0
P19: 0 | Q19: 0 | R19: 0 | S19: 0 | T19: 0 | U19: 0
P20: 0 | Q20: 0 | R20: 0 | S20: 0 | T20: 0 | U20: 0

Sheet Storico_Articolaz tariff QF
B1: RICAVI TARIFFARI
B3: riportare l'articolazione (tipologia d'uso e scaglioni) applicata agli utenti finali negli anni indicati
B5: 4- Storico Articolazione Tariffaria - quota fissa
B9: Ambito tariffario | C9: servizio idrico | D9: Tipologia d'uso | E9: Sottotipologia | F9: campo vuoto1 | G9: campo vuoto2 | H9: Min di scaglione (m3/anno) | I9: Max di scaglione (m3/anno) | J9: QF (Euro/utente/ anno) 2015 | K9: QF (Euro/utente/ anno) 2016 | L9: QF (Euro/utente/ anno) 2017 | M9: Utenze (numero) anno 2015 | N9: Utenze (numero) anno 2016 | O9: Utenze (numero) anno 2017 | P9: Ambito_Tariffario | Q9: tar2015*vscal2015 | R9: tar2015*vscal2016 | S9: tar2016*vscal2016 | T9: tar2015*vscal2017 | U9: tar2017*vscal2017
B10: ambito_pre | C10: servizio_idrico_pre | D10: tipologia_pre | E10: sottotipol_pre | F10: c1 | G10: c2 | H10: Min_Scaglione | I10: Max_Scaglione | J10: QF | M10: Utenze_Anno_succ | P10: Ambito_Tariffario
H11: 0 | P11: =B11 -> 0 | Q11: =+$J11*M11 -> 0 | R11: =+$J11*N11 -> 0 | S11: =+K11*N11 -> 0 | T11: =+$J11*O11 -> 0 | U11: =+L11*O11 -> 0
H12: =+IF(I11=0,"",I11+1) ->  | P12: =B11 -> 0 | Q12: =+$J12*M12 -> 0 | R12: 0 | S12: 0 | T12: =+$J12*O12 -> 0 | U12: 0
H13: =+IF(I12=0,"",I12+1) ->  | P13: =B11 -> 0 | Q13: 0 | R13: 0 | S13: 0 | T13: 0 | U13: 0
H14: =+IF(I13=0,"",I13+1) ->  | P14: =B11 -> 0 | Q14: 0 | R14: 0 | S14: 0 | T14: 0 | U14: 0
H15: =+IF(I14=0,"",I14+1) ->  | P15: =B11 -> 0 | Q15: 0 | R15: 0 | S15: 0 | T15: 0 | U15: 0
H16: =+IF(I15=0,"",I15+1) ->  | P16: =B11 -> 0 | Q16: 0 | R16: 0 | S16: 0 | T16: 0 | U16: 0

Sheet Storico_Ricavi_ambiti_tariffari
B1: RICAVI TARIFFARI
B3: eventualmente imputare direttamente i ricavi totali nelle colonne G, H e I. I totali si intendono comprensivi dei ricavi da quota fissa e variabile, mentre è da escludere la vendita all'ingrosso
B5: 5 - Totale ricavi tariffari da vendita agli utenti finali per ciascun ambito
B9: N_riga | C9: Ambito Tariffario | L9: SPIEGAZIONE EVENTUALE DIFFERENZA CON LA STRUTTURA TARIFFARIA (QUOTA VAR+QUOTA FISSA) DEI FOGLI SPECIFICI | O9: tar2015*vscal2015 | P9: tar2015*vscal2016 | Q9: tar2016*vscal2016 | R9: tar2015*vscal2017 | S9: tar2017*vscal2017
D10: per calcolo J 2018 | E10: per calcolo RCvol 2018 | F10: per calcolo J 2019 | G10: per calcolo RCvol 2019 | H10: per calcolo J 2018 | I10: per calcolo RCvol 2018 | J10: per calcolo J 2019 | K10: per calcolo RCvol 2019
B11: =+ROW(A11)-10 -> 1 | D11: =+SUMIF('Storico_Articolaz tariff QV'!$P:$P,Storico_Ricavi_ambiti_tariffari!$C11,'Storico_Articolaz tariff QV'!R:R)+SUMIF('Storico_Articolaz tariff QF'!$P:$P,Storico_Ricavi_ambiti_tariffari!$C11,'Storico_Articolaz tariff QF'!R:R) -> 0 | E11: =+SUMIF('Storico_Articolaz tariff QV'!$P:$P,Storico_Ricavi_ambiti_tariffari!$C11,'Storico_Articolaz tariff QV'!S:S)+SUMIF('Storico_Articolaz tariff QF'!$P:$P,Storico_Ricavi_ambiti_tariffari!$C11,'Storico_Articolaz tariff QF'!S:S) -> 0 | F11: =+SUMIF('Storico_Articolaz tariff QV'!$P:$P,Storico_Ricavi_ambiti_tariffari!$C11,'Storico_Articolaz tariff QV'!T:T)+SUMIF('Storico_Articolaz tariff QF'!$P:$P,Storico_Ricavi_ambiti_tariffari!$C11,'Storico_Articolaz tariff QF'!T:T) -> 0 | G11: =+SUMIF('Storico_Articolaz tariff QV'!$P:$P,Storico_Ricavi_ambiti_tariffari!$C11,'Storico_Articolaz tariff QV'!U:U)+SUMIF('Storico_Articolaz tariff QF'!$P:$P,Storico_Ricavi_ambiti_tariffari!$C11,'Storico_Articolaz tariff QF'!U:U) -> 0 | O11: =+SUMIF('Storico_Articolaz tariff QV'!$P:$P,Storico_Ricavi_ambiti_tariffari!$C11,'Storico_Articolaz tariff QV'!Q:Q)+SUMIF('Storico_Articolaz tariff QF'!$P:$P,Storico_Ricavi_ambiti_tariffari!$C11,'Storico_Articolaz tariff QF'!Q:Q) -> 0 | P11: =+IF(H11=0,D11,H11) -> 0 | Q11: =+IF(I11=0,E11,I11) -> 0 | R11: =+IF(J11=0,F11,J11) -> 0 | S11: =+IF(K11=0,G11,K11) -> 0

Sheet Storico_Piano_Tariffario
C2: Dati anni precedenti: PIANO TARIFFARIO
C3: SCHEMI REGOLATORI
I4: Note | J4: UdM | K4: valore
D5: Sezione_Piano_Tariffario | E5: Voce_Piano_Tariffario | F5: n_riga | G5: ID ATO | H5: Codice Aeeg | J5: UdM | K5: 2016 | L5: 2017 | M5: 2017 | N5: 2017
C6: Opex2014 | D6: SCHEMI REGOLATORI | E6: Op | F6: 1 | G6: 103 | H6: 2937 | J6: euro
C7: Popolazione 2012 | J7: n. abitante
D8: SCHEMI REGOLATORI | E8: Sommatoria IP/RAB <= omega | F8: 7 | G8: 103 | H8: 2937 | J8: SI/NO
C9: nessuna variazione di obiettivi o attività del gestore: (NO) oppure presenza di variazioni negli obiettivi o nelle attività del gestore: (SI) | D9: SCHEMI REGOLATORI | E9: PresenzaVariazioni | F9: 4 | G9: 103 | H9: 2937 | J9: SI/NO
C10: ∑Iptexp 2016-2019 | D10: SCHEMI REGOLATORI | E10: Sommatoria_IP_exp | F10: 5 | G10: 103 | H10: 2937 | J10: euro
C11: RABMTI | D11: SCHEMI REGOLATORI | E11: RAB_MTT | F11: 6 | G11: 103 | H11: 2937 | J11: euro
J12: SI/NO
C13: SCHEMA REGOLATORIO (A) SCHEMA VIRTUALE (B) | D13: SCHEMI REGOLATORI | E13: SCHEMA REGOLATORIO | F13: 8 | J13: A/B
C14: y | J14: (0,4-0,8)
C15: SCHEMA REGOLATORIO | D15: SCHEMI REGOLATORI | E15: SCHEMA REGOLATORIO | F15: 8 | G15: 103 | H15: 2937 | J15: (I, II, III, IV, V, VI)
C20: COMPONENTI DI COSTO Opex, Capex , FNInew, ERC | F20: 10
F21: 11 | I21: Note | J21: UdM | K21: 2016 | L21: 2017 | M21: 2018 | N21: 2019
C22: Opexaend (al netto degli ERC) | D22: COMPONENTI DI COSTO Opexa, Capexa e FNInew,a | E22: Opex_A_end | F22: 12 | G22: 103 | H22: 2937 | J22: euro
C23: Opexaal (al netto degli ERC) | D23: COMPONENTI DI COSTO Opexa, Capexa e FNInew,a | E23: Opex_A_al | F23: 13 | G23: 103 | H23: 2937 | J23: euro
C24: OpexaQC | J24: euro
C25: Opnew,a | J25: euro
C26: Opexavirt | J26: euro
C27: Opexa | D27: COMPONENTI DI COSTO Opexa, Capexa e FNInew,a | E27: Opex_A | F27: 14 | G27: 103 | H27: 2937 | J27: euro
C28: AMMa | D28: COMPONENTI DI COSTO Opexa, Capexa e FNInew,a | E28: OFa | F28: 15 | G28: 103 | H28: 2937 | J28: euro
C29: OFa | D29: COMPONENTI DI COSTO Opexa, Capexa e FNInew,a | E29: OFisca | F29: 16 | G29: 103 | H29: 2937 | J29: euro
C30: OFisca | D30: COMPONENTI DI COSTO Opexa, Capexa e FNInew,a | E30: AMMa | F30: 17 | G30: 103 | H30: 2937 | J30: euro
C31: DCUITaCapex | D31: COMPONENTI DI COSTO Opexa, Capexa e FNInew,a | E31: DCUITa | F31: 18 | G31: 103 | H31: 2937 | J31: euro
C32: Capexavirt | J32: euro
C33: Capexa | D33: COMPONENTI DI COSTO Opexa, Capexa e FNInew,a | E33: Capexa | F33: 19 | G33: 103 | H33: 2937 | J33: euro
C34: IPtexp | D34: COMPONENTI DI COSTO Opexa, Capexa e FNInew,a | E34: IP exp | F34: 20 | G34: 103 | H34: 2937 | J34: euro
C35: Capexa | D35: COMPONENTI DI COSTO Opexa, Capexa e FNInew,a | E35: Capex_a | F35: 21 | G35: 103 | H35: 2937 | J35: euro
C36: FNInew,a | D36: COMPONENTI DI COSTO Opexa, Capexa e FNInew,a | E36: FNI_new,a | F36: 22 | G36: 103 | H36: 2937 | J36: euro
C37: ERCaend | D37: COMPONENTI DI COSTO Opexa, Capexa e FNInew,a | E37: IP exp | F37: 20 | G37: 103 | H37: 2937 | J37: euro
C38: ERCaal | D38: COMPONENTI DI COSTO Opexa, Capexa e FNInew,a | E38: Capex_a | F38: 21 | G38: 103 | H38: 2937 | J38: euro
C39: ERCa | D39: COMPONENTI DI COSTO Opexa, Capexa e FNInew,a | E39: FNI_new,a | F39: 22 | G39: 103 | H39: 2937 | J39: euro
F40: 23
C41: FONDO NUOVI INVESTIMENTI | F41: 43
F42: 44 | I42: Note | J42: UdM | K42: 2016 | L42: 2017 | M42: 2018 | N42: 2019
C43: FNIaFoNI | D43: FONDO NUOVI INVESTIMENTI | E43: AMM_a_FoNI | F43: 45 | G43: 103 | H43: 2937 | J43: euro
C44: AMMaFoNI | D44: FONDO NUOVI INVESTIMENTI | E44: FNI_a_FoNI | F44: 46 | G44: 103 | H44: 2937 | J44: euro
C45: DCUITaFoNI | D45: FONDO NUOVI INVESTIMENTI | E45: DCUIT_a_FoNI | F45: 47 | G45: 103 | H45: 2937 | J45: euro
C46: FoNIa | D46: FONDO NUOVI INVESTIMENTI | E46: FoNI | F46: 48 | G46: 103 | H46: 2937 | J46: euro
F47: 49
C48: SVILUPPO DEL VRG predisposto dal soggetto competente | F48: 24
F49: 25 | I49: Note | J49: UdM | K49: 2016 | L49: 2017 | M49: 2018 | N49: 2019
C50: Opexa | D50: SVILUPPO DEL VRGcalc | E50: Opex_a | F50: 26 | G50: 103 | H50: 2937 | J50: euro
C51: Capexa | D51: SVILUPPO DEL VRGcalc | E51: Capex_a | F51: 27 | G51: 103 | H51: 2937 | J51: euro
C52: FoNIa | D52: SVILUPPO DEL VRGcalc | E52: FoNI_a | F52: 28 | G52: 103 | H52: 2937 | J52: euro
C53: RCaTOT | D53: SVILUPPO DEL VRGcalc | E53: RC_a_TOT | F53: 29 | G53: 103 | H53: 2937 | J53: euro
C54: ERCa | D54: SVILUPPO DEL VRGcalc | E54: ERC_a | F54: 30 | G54: 103 | H54: 2937 | J54: euro
C55: VRGa predisposto dal soggetto competente | D55: SVILUPPO DEL VRGcalc | E55: VRG_a | F55: 31 | G55: 103 | H55: 2937 | J55: euro
F56: 32
C57: SVILUPPO DEL MOLTIPLICATORE TARIFFARIO predisposto dal soggetto competente | F57: 33
F58: 34 | I58: Note | J58: UdM | K58: 2016 | L58: 2017 | M58: 2018 | N58: 2019
C59: VRGa predisposto dal soggetto competente | D59: SVILUPPO DEL MOLTIPLICATORE TARIFFARIO | E59: VRG_a | F59: 35 | G59: 103 | H59: 2937 | J59: euro
C60: Ra-2b | D60: SVILUPPO DEL MOLTIPLICATORE TARIFFARIO | E60: Rb_a-2 | F60: 37 | G60: 103 | H60: 2937 | J60: euro
C61: S tarif2015*vscala-2 | D61: SVILUPPO DEL MOLTIPLICATORE TARIFFARIO | E61: Sommatoria di ( tarif_2012*vscal_a-2) | F61: 38 | G61: 103 | H61: 2937 | J61: euro
C62: Ja predisposto dal soggetto competente | D62: SVILUPPO DEL MOLTIPLICATORE TARIFFARIO | E62: teta_a | F62: 39 | G62: 103 | H62: 2937 | J62: n. (3 cifre decimali)
C64: SVILUPPO DEL MOLTIPLICATORE TARIFFARIO applicabile (nelle more dell'approvazione AEEGSI)
J65: UdM | K65: 2016 | L65: 2017 | M65: 2018 | N65: 2019
C66: Limite al moltiplicatore tariffario | D66: SVILUPPO DEL MOLTIPLICATORE TARIFFARIO | E66: Limite al moltiplicatore tariffario (co. 9.3 All. A - MTI) | F66: 40 | G66: 103 | H66: 2937 | J66: n. (3 cifre decimali)
C67: VRGa (coerente con J applicabile) | D67: SVILUPPO DEL MOLTIPLICATORE TARIFFARIO | E67: teta_applicabile | F67: 41 | G67: 103 | H67: 2937 | J67: euro
C68: Ja applicabile | J68: n. (3 cifre decimali)
C70: INVESTIMENTI | F70: 50
F71: 51 | I71: Note | J71: UdM | K71: 2016 | L71: 2017 | M71: 2018 | N71: 2019
C72: Investimenti al lordo dei contributi | D72: INVESTIMENTI | E72: Investimenti_Lordo | F72: 52 | G72: 103 | H72: 2937 | J72: euro
C73: Contributi | D73: INVESTIMENTI | E73: Contributi | F73: 53 | G73: 103 | H73: 2937 | J73: euro
C74: Investimenti al netto dei contributi | D74: INVESTIMENTI | E74: Investimenti_Netto | F74: 54 | G74: 103 | H74: 2937 | J74: euro
C75: CIN | D75: INVESTIMENTI | E75: CIN | F75: 55 | G75: 103 | H75: 2937 | J75: euro
C76: CINfp | D76: INVESTIMENTI | E76: CIN_fp | F76: 56 | G76: 103 | H76: 2937 | J76: euro
C77: OF/CIN | D77: INVESTIMENTI | E77: OF_CIN | F77: 57 | G77: 103 | H77: 2937 | J77: %
F78: 58
C79: VALORE RESIDUO A FINE CONCESSIONE | F79: 59
F80: 60 | I80: Note | J80: UdM | K80: valore
C81: Ipc,t | D81: VALORE RESIDUO A FINE CONCESSIONE | E81: Ip_c_t | F81: 61 | G81: 103 | H81: 2937 | J81: euro
C82: FAIP,c,t | D82: VALORE RESIDUO A FINE CONCESSIONE | E82: FA_IP_c_t | F82: 62 | G82: 103 | H82: 2937 | J82: euro
C83: CFPc,t | D83: VALORE RESIDUO A FINE CONCESSIONE | E83: CFP_c_t | F83: 63 | G83: 103 | H83: 2937 | J83: euro
C84: FACFP,c,t | D84: VALORE RESIDUO A FINE CONCESSIONE | E84: FACFP_c_t | F84: 64 | G84: 103 | H84: 2937 | J84: euro
C85: LIC | D85: VALORE RESIDUO A FINE CONCESSIONE | E85: LIC | F85: 65 | G85: 103 | H85: 2937 | J85: euro
C86: VR a fine concessione | D86: VALORE RESIDUO A FINE CONCESSIONE | E86: VR a fine concessione | F86: 66 | G86: 103 | H86: 2937 | J86: euro

Sheet consolidamento_RAB_mti2
A3: consolidamento immobilizzazioni MTI-2 Include le immobilizzazioni relative al MTI a valori 2015 e i nuovi investimenti 2016-2017 a moneta dell'anno del cespite Il foglio è solo di supporto al calcolo | P3: Sezione di elaborazione dei dati forniti
E4: Immobilizzazioni MTI-2
A5: IDATO | B5: IDGestore | C5: Gestore_Proprietario | D5: N_prop | E5: Fonte | F5: ID_Categoria_Cespite | G5: CategoriaCespite | H5: ID_Immobilizzazione | I5: IMMOBILIZZAZIONE | J5: AnnoCespite | K5: IP | L5: FAIP | M5: CFP | N5: FACP | O5: foglio di origine
A6: =+idato -> 0 | B6: =+idgestore -> 0 | J6: 2016 | K6: 0 | L6: 0 | M6: 0 | N6: 0 | O6: nessun dato

Sheet RAB_gestore_MTI-2
A1: q_RAB
D2: IMNGestore
A5: ID categoria cespite | B5: Categoria cespite | C5: ID Immobilizzazione | D5: IMMOBILIZZAZIONE | E5: Anno Cespite | F5: foglio di origine | G5: IP | H5: FAIP | I5: CFP | J5: FACFP | L5: VU 2016 | M5: IP 2016 | N5: FAIP 2016 | O5: IP netto 2016 | P5: AMM 2016 | Q5: componente tariffaria AMM 2016 | R5: CFP 2016 | S5: FA CFP 2016 | T5: CFP netto 2016 | U5: AMM CFP 2016 | V5: aa | W5: VU 2017 | X5: IP 2017 | Y5: FAIP 2017 | Z5: IP netto 2017 | AA5: AMM 2017 | AB5: componente tariffaria AMM 2017 | AC5: CFP 2017 | AD5: FA CFP 2017 | AE5: CFP netto 2017 | AF5: AMM CFP 2017 | AG5: aaa | AH5: VU 2018 | AI5: IP 2018 | AJ5: FAIP 2018 | AK5: IP netto 2018 | AL5: AMM 2018 | AM5: componente tariffaria AMM 2018 | AN5: CFP 2018 | AO5: FA CFP 2018 | AP5: CFP netto 2018 | AQ5: AMM CFP 2018 | AR5: aaaa | AS5: VU 2019 | AT5: IP 2019 | AU5: FAIP 2019 | AV5: IP netto 2019 | AW5: AMM 2019 | AX5: componente tariffaria AMM 2019 | AY5: CFP 2019 | AZ5: FA CFP 2019 | BA5: CFP netto 2019 | BB5: AMM CFP 2019
A6: (vuoto) | B6: (vuoto) | C6: (vuoto) | D6: (vuoto) | E6: 2016 | F6: nessun dato | G6: 0 | H6: 0 | I6: 0 | J6: 0 | L6: =IFERROR(INDEX(vite_regolatorie,$A6+1,MATCH(MAX(VALUE(RIGHT($E6,4)),2011)&"-"&VALUE(RIGHT(L$5,4)),anni_new,0)+1),0) -> 0 | M6: =IF($F6="Dismissioni",IFERROR(DISM(ABS($G6),$A6,$C6,$E6,VALUE(RIGHT(M$5,4))),0)*-1,IFERROR(IP(ABS($G6),$A6,$C6,$E6,VALUE(RIGHT(M$5,4))),0)) -> 0 | N6: =IF($F6="Dismissioni",IFERROR(FondoAmm_dism(ABS($G6),ABS($H6),$E6,$A6,$C6,VALUE(RIGHT(N$5,4)),vite_regolatorie),0)*-1,IFERROR(FondoAmm(ABS($G6),ABS($H6),$E6,$A6,$C6,VALUE(RIGHT(N$5,4)),vite_regolatorie),0)) -> 0 | O6: =+M6-N6 -> 0 | P6: =IF($F6="Dismissioni",IFERROR(QA_DISM(ABS($G6),ABS($H6),$E6,$A6,$C6,VALUE(RIGHT(P$5,4)),vite_regolatorie),0)*-1,IFERROR(QA(ABS($G6),ABS($H6),$E6,$A6,$C6,VALUE(RIGHT(P$5,4)),vite_regolatorie),0)) -> 0 | Q6: =+P6-U6 -> 0 | R6: =IF($F6="Dismissioni",IFERROR(CFP_DISM_A(ABS($I6),$A6,$E6,$C6,VALUE(RIGHT(R$5,4)))*-1,0),IFERROR(CFP_A(ABS($I6),$A6,$C6,$E6,VALUE(RIGHT(R$5,4))),0)) -> 0 | S6: =IF($F6="Dismissioni",IFERROR(FACFP_DISM(ABS($I6),ABS($J6),$E6,$A6,$C6,VALUE(RIGHT(S$5,4)),vite_regolatorie)*-1,0),IFERROR(FACFP(ABS($I6),ABS($J6),$E6,$A6,$C6,VALUE(RIGHT(S$5,4)),vite_regolatorie),0)) -> 0 | T6: =+R6-S6 -> 0 | U6: =IF($F6="Dismissioni",IFERROR(QA_CFP_DISM(ABS($I6),ABS($J6),$E6,$A6,$C6,VALUE(RIGHT(U$5,4)),vite_regolatorie)*-1,0),IFERROR(QA_CFP(ABS($I6),ABS($J6),$E6,$C6,$A6,VALUE(RIGHT(U$5,4)),vite_regolatorie),0)) -> 0 | W6: =IFERROR(INDEX(vite_regolatorie,$A6+1,MATCH(MAX(VALUE(RIGHT($E6,4)),2011)&"-"&VALUE(RIGHT(W$5,4)),anni_new,0)+1),0) -> 0 | X6: =IF($F6="Dismissioni",IFERROR(DISM(ABS($G6),$A6,$C6,$E6,VALUE(RIGHT(X$5,4))),0)*-1,IFERROR(IP(ABS($G6),$A6,$C6,$E6,VALUE(RIGHT(X$5,4))),0)) -> 0 | Y6: =IF($F6="Dismissioni",IFERROR(FondoAmm_dism(ABS($G6),ABS($H6),$E6,$A6,$C6,VALUE(RIGHT(Y$5,4)),vite_regolatorie),0)*-1,IFERROR(FondoAmm(ABS($G6),ABS($H6),$E6,$A6,$C6,VALUE(RIGHT(Y$5,4)),vite_regolatorie),0)) -> 0 | Z6: =+X6-Y6 -> 0 | AA6: =IF($F6="Dismissioni",IFERROR(QA_DISM(ABS($G6),ABS($H6),$E6,$A6,$C6,VALUE(RIGHT(AA$5,4)),vite_regolatorie),0)*-1,IFERROR(QA(ABS($G6),ABS($H6),$E6,$A6,$C6,VALUE(RIGHT(AA$5,4)),vite_regolatorie),0)) -> 0 | AB6: =+AA6-AF6 -> 0 | AC6: =IF($F6="Dismissioni",IFERROR(CFP_DISM_A(ABS($I6),$A6,$E6,$C6,VALUE(RIGHT(AC$5,4)))*-1,0),IFERROR(CFP_A(ABS($I6),$A6,$C6,$E6,VALUE(RIGHT(AC$5,4))),0)) -> 0 | AD6: =IF($F6="Dismissioni",IFERROR(FACFP_DISM(ABS($I6),ABS($J6),$E6,$A6,$C6,VALUE(RIGHT(AD$5,4)),vite_regolatorie)*-1,0),IFERROR(FACFP(ABS($I6),ABS($J6),$E6,$A6,$C6,VALUE(RIGHT(AD$5,4)),vite_regolatorie),0)) -> 0 | AE6: =+AC6-AD6 -> 0 | AF6: =IF($F6="Dismissioni",IFERROR(QA_CFP_DISM(ABS($I6),ABS($J6),$E6,$A6,$C6,VALUE(RIGHT(AF$5,4)),vite_regolatorie)*-1,0),IFERROR(QA_CFP(ABS($I6),ABS($J6),$E6,$C6,$A6,VALUE(RIGHT(AF$5,4)),vite_regolatorie),0)) -> 0 | AH6: =IFERROR(INDEX(vite_regolatorie,$A6+1,MATCH(MAX(VALUE(RIGHT($E6,4)),2011)&"-"&VALUE(RIGHT(AH$5,4)),anni_new,0)+1),0) -> 0 | AI6: =IF($F6="Dismissioni",IFERROR(DISM(ABS($G6),$A6,$C6,$E6,VALUE(RIGHT(AI$5,4))),0)*-1,IFERROR(IP(ABS($G6),$A6,$C6,$E6,VALUE(RIGHT(AI$5,4))),0)) -> 0 | AJ6: =IF($F6="Dismissioni",IFERROR(FondoAmm_dism(ABS($G6),ABS($H6),$E6,$A6,$C6,VALUE(RIGHT(AJ$5,4)),vite_regolatorie),0)*-1,IFERROR(FondoAmm(ABS($G6),ABS($H6),$E6,$A6,$C6,VALUE(RIGHT(AJ$5,4)),vite_regolatorie),0)) -> 0 | AK6: =+AI6-AJ6 -> 0 | AL6: =IF($F6="Dismissioni",IFERROR(QA_DISM(ABS($G6),ABS($H6),$E6,$A6,$C6,VALUE(RIGHT(AL$5,4)),vite_regolatorie),0)*-1,IFERROR(QA(ABS($G6),ABS($H6),$E6,$A6,$C6,VALUE(RIGHT(AL$5,4)),vite_regolatorie),0)) -> 0 | AM6: =+AL6-AQ6 -> 0 | AN6: =IF($F6="Dismissioni",IFERROR(CFP_DISM_A(ABS($I6),$A6,$E6,$C6,VALUE(RIGHT(AN$5,4)))*-1,0),IFERROR(CFP_A(ABS($I6),$A6,$C6,$E6,VALUE(RIGHT(AN$5,4))),0)) -> 0 | AO6: =IF($F6="Dismissioni",IFERROR(FACFP_DISM(ABS($I6),ABS($J6),$E6,$A6,$C6,VALUE(RIGHT(AO$5,4)),vite_regolatorie)*-1,0),IFERROR(FACFP(ABS($I6),ABS($J6),$E6,$A6,$C6,VALUE(RIGHT(AO$5,4)),vite_regolatorie),0)) -> 0 | AP6: =+AN6-AO6 -> 0 | AQ6: =IF($F6="Dismissioni",IFERROR(QA_CFP_DISM(ABS($I6),ABS($J6),$E6,$A6,$C6,VALUE(RIGHT(AQ$5,4)),vite_regolatorie)*-1,0),IFERROR(QA_CFP(ABS($I6),ABS($J6),$E6,$C6,$A6,VALUE(RIGHT(AQ$5,4)),vite_regolatorie),0)) -> 0 | AS6: =IFERROR(INDEX(vite_regolatorie,$A6+1,MATCH(MAX(VALUE(RIGHT($E6,4)),2011)&"-"&VALUE(RIGHT(AS$5,4)),anni_new,0)+1),0) -> 0 | AT6: =IF($F6="Dismissioni",IFERROR(DISM(ABS($G6),$A6,$C6,$E6,VALUE(RIGHT(AT$5,4))),0)*-1,IFERROR(IP(ABS($G6),$A6,$C6,$E6,VALUE(RIGHT(AT$5,4))),0)) -> 0 | AU6: =IF($F6="Dismissioni",IFERROR(FondoAmm_dism(ABS($G6),ABS($H6),$E6,$A6,$C6,VALUE(RIGHT(AU$5,4)),vite_regolatorie),0)*-1,IFERROR(FondoAmm(ABS($G6),ABS($H6),$E6,$A6,$C6,VALUE(RIGHT(AU$5,4)),vite_regolatorie),0)) -> 0 | AV6: =+AT6-AU6 -> 0 | AW6: =IF($F6="Dismissioni",IFERROR(QA_DISM(ABS($G6),ABS($H6),$E6,$A6,$C6,VALUE(RIGHT(AW$5,4)),vite_regolatorie),0)*-1,IFERROR(QA(ABS($G6),ABS($H6),$E6,$A6,$C6,VALUE(RIGHT(AW$5,4)),vite_regolatorie),0)) -> 0 | AX6: =+AW6-BB6 -> 0 | AY6: =IF($F6="Dismissioni",IFERROR(CFP_DISM_A(ABS($I6),$A6,$E6,$C6,VALUE(RIGHT(AY$5,4)))*-1,0),IFERROR(CFP_A(ABS($I6),$A6,$C6,$E6,VALUE(RIGHT(AY$5,4))),0)) -> 0 | AZ6: =IF($F6="Dismissioni",IFERROR(FACFP_DISM(ABS($I6),ABS($J6),$E6,$A6,$C6,VALUE(RIGHT(AZ$5,4)),vite_regolatorie)*-1,0),IFERROR(FACFP(ABS($I6),ABS($J6),$E6,$A6,$C6,VALUE(RIGHT(AZ$5,4)),vite_regolatorie),0)) -> 0 | BA6: =+AY6-AZ6 -> 0 | BB6: =IF($F6="Dismissioni",IFERROR(QA_CFP_DISM(ABS($I6),ABS($J6),$E6,$A6,$C6,VALUE(RIGHT(BB$5,4)),vite_regolatorie)*-1,0),IFERROR(QA_CFP(ABS($I6),ABS($J6),$E6,$C6,$A6,VALUE(RIGHT(BB$5,4)),vite_regolatorie),0)) -> 0

Sheet riepilogo RAB MTI -2
A2: art. 13 e seguenti | B2: IMN - Valore delle immobilizzazioni
B4: Area di riepilogo delle immobilizzazioni del GESTORE | I4: Area di riepilogo delle immobilizzazioni dei PROPRIETARI relativi al gestore
B6: RAB del gestore | I6: RAB dei proprietari
C7: 2016 | D7: 2017 | E7: 2018 | F7: 2019 | J7: 2016 | K7: 2017 | L7: 2018 | M7: 2019
B8: IML | C8: =+TT_riepilogo_RAB!E6 -> 0 | D8: =+TT_riepilogo_RAB!F6 -> 0 | E8: =+TT_riepilogo_RAB!G6 -> 0 | F8: =+TT_riepilogo_RAB!H6 -> 0 | I8: IML | J8: =+TT_riepilogo_RAB!E43 -> 0 | K8: =+TT_riepilogo_RAB!F43 -> 0 | L8: =+TT_riepilogo_RAB!G43 -> 0 | M8: =+TT_riepilogo_RAB!H43 -> 0
B9: FA | C9: =+TT_riepilogo_RAB!E7 -> 0 | D9: =+TT_riepilogo_RAB!F7 -> 0 | E9: =+TT_riepilogo_RAB!G7 -> 0 | F9: =+TT_riepilogo_RAB!H7 -> 0 | I9: FA | J9: =+TT_riepilogo_RAB!E44 -> 0 | K9: =+TT_riepilogo_RAB!F44 -> 0 | L9: =+TT_riepilogo_RAB!G44 -> 0 | M9: =+TT_riepilogo_RAB!H44 -> 0
B10: IMN | C10: =+TT_riepilogo_RAB!E8 -> 0 | D10: =+TT_riepilogo_RAB!F8 -> 0 | E10: =+TT_riepilogo_RAB!G8 -> 0 | F10: =+TT_riepilogo_RAB!H8 -> 0 | I10: IMN | J10: =+TT_riepilogo_RAB!E45 -> 0 | K10: =+TT_riepilogo_RAB!F45 -> 0 | L10: =+TT_riepilogo_RAB!G45 -> 0 | M10: =+TT_riepilogo_RAB!H45 -> 0
B12: Contributi a fondo perduto del gestore | I12: Contributi a fondo perduto dei proprietari
C13: 2016 | D13: 2017 | E13: 2018 | F13: 2019 | J13: 2016 | K13: 2017 | L13: 2018 | M13: 2019
B14: CFP | C14: =+TT_riepilogo_RAB!E10 -> 0 | D14: =+TT_riepilogo_RAB!F10 -> 0 | E14: =+TT_riepilogo_RAB!G10 -> 0 | F14: =+TT_riepilogo_RAB!H10 -> 0 | I14: CFP | J14: =+TT_riepilogo_RAB!E47 -> 0 | K14: =+TT_riepilogo_RAB!F47 -> 0 | L14: =+TT_riepilogo_RAB!G47 -> 0 | M14: =+TT_riepilogo_RAB!H47 -> 0
B15: FAcfp | C15: =+TT_riepilogo_RAB!E11 -> 0 | D15: =+TT_riepilogo_RAB!F11 -> 0 | E15: =+TT_riepilogo_RAB!G11 -> 0 | F15: =+TT_riepilogo_RAB!H11 -> 0 | I15: FAcfp | J15: =+TT_riepilogo_RAB!E48 -> 0 | K15: =+TT_riepilogo_RAB!F48 -> 0 | L15: =+TT_riepilogo_RAB!G48 -> 0 | M15: =+TT_riepilogo_RAB!H48 -> 0
B16: CINfp | C16: =+TT_riepilogo_RAB!E12 -> 0 | D16: =+TT_riepilogo_RAB!F12 -> 0 | E16: =+TT_riepilogo_RAB!G12 -> 0 | F16: =+TT_riepilogo_RAB!H12 -> 0 | I16: CINfp | J16: =+TT_riepilogo_RAB!E49 -> 0 | K16: =+TT_riepilogo_RAB!F49 -> 0 | L16: =+TT_riepilogo_RAB!G49 -> 0 | M16: =+TT_riepilogo_RAB!H49 -> 0
B20: RAB del gestore - nuovi investimenti
C21: 2016 | D21: 2017 | E21: 2018 | F21: 2019
B22: IML | C22: =+TT_riepilogo_RAB!E18 -> 0 | D22: =+TT_riepilogo_RAB!F18 -> 0 | E22: =+TT_riepilogo_RAB!G18 -> 0 | F22: =+TT_riepilogo_RAB!H18 -> 0
B23: FA | C23: =+TT_riepilogo_RAB!E19 -> 0 | D23: =+TT_riepilogo_RAB!F19 -> 0 | E23: =+TT_riepilogo_RAB!G19 -> 0 | F23: =+TT_riepilogo_RAB!H19 -> 0
B24: IMN | C24: =+TT_riepilogo_RAB!E20 -> 0 | D24: =+TT_riepilogo_RAB!F20 -> 0 | E24: =+TT_riepilogo_RAB!G20 -> 0 | F24: =+TT_riepilogo_RAB!H20 -> 0
B26: Contributi a fondo perduto del gestore - nuovi investimenti
C27: 2016 | D27: 2017 | E27: 2018 | F27: 2019
B28: CFP | C28: =+TT_riepilogo_RAB!E22 -> 0 | D28: =+TT_riepilogo_RAB!F22 -> 0 | E28: =+TT_riepilogo_RAB!G22 -> 0 | F28: =+TT_riepilogo_RAB!H22 -> 0
B29: FAcfp | C29: =+TT_riepilogo_RAB!E23 -> 0 | D29: =+TT_riepilogo_RAB!F23 -> 0 | E29: =+TT_riepilogo_RAB!G23 -> 0 | F29: =+TT_riepilogo_RAB!H23 -> 0
B30: CINfp | C30: =+TT_riepilogo_RAB!E24 -> 0 | D30: =+TT_riepilogo_RAB!F24 -> 0 | E30: =+TT_riepilogo_RAB!G24 -> 0 | F30: =+TT_riepilogo_RAB!H24 -> 0
A32: art. 16 All.A MTI-2 | B32: AMM - Ammortamento delle immobilizzazioni | I32: comma 16.3 All.A MTI-2
B34: Area di riepilogo delle immobilizzazioni del GESTORE | I34: Area di riepilogo delle immobilizzazioni dei PROPRIETARI relativi al gestore
B36: AMM del gestore | I36: AMM dei proprietari
C37: 2016 | D37: 2017 | E37: 2018 | F37: 2019 | J37: 2016 | K37: 2017 | L37: 2018 | M37: 2019
B38: AMM | C38: =+TT_riepilogo_RAB!E9 -> 0 | D38: =+TT_riepilogo_RAB!F9 -> 0 | E38: =+TT_riepilogo_RAB!G9 -> 0 | F38: =+TT_riepilogo_RAB!H9 -> 0 | I38: AMM | J38: =+TT_riepilogo_RAB!E46 -> 0 | K38: =+TT_riepilogo_RAB!F46 -> 0 | L38: =+TT_riepilogo_RAB!G46 -> 0 | M38: =+TT_riepilogo_RAB!H46 -> 0
B39: AMMcfp, gestore | C39: =+TT_riepilogo_RAB!E13 -> 0 | D39: =+TT_riepilogo_RAB!F13 -> 0 | E39: =+TT_riepilogo_RAB!G13 -> 0 | F39: =+TT_riepilogo_RAB!H13 -> 0 | I39: AMMcfp,proprietario | J39: =+SUMIF(RAB_Proprietari!$C:$C,"Altra società privata",RAB_Proprietari!$X:$X) -> 0 | K39: =+SUMIF(RAB_Proprietari!$C:$C,"Altra società privata",RAB_Proprietari!$AH:$AH) -> 0 | L39: =+SUMIF(RAB_Proprietari!$C:$C,"Altra società privata",RAB_Proprietari!$AR:$AR) -> 0 | M39: =+SUMIF(RAB_Proprietari!$C:$C,"Altra società privata",RAB_Proprietari!$BB:$BB) -> 0
B41: AMMcfp | C41: =+C39+J39 -> 0 | D41: =+D39+K39 -> 0 | E41: =+E39+L39 -> 0 | F41: =+F39+M39 -> 0

Sheet framework_schemi
B1: framework decisionale (esclusione da aggiornamento e schema regolatorio)
C3: presenza min imp utenze dom | D3: =IF(Input_per_calcoli_finali!I14="","",Input_per_calcoli_finali!I14) ->  | E3: =+IF(D3=TT_Tabelle_Riferimento!$E$4,1,0) -> 0
C4: presenza carta servizi | D4: =IF(Input_per_calcoli_finali!I13="","",Input_per_calcoli_finali!I13) ->  | E4: =+IF(D4=TT_Tabelle_Riferimento!$E$3,1,0) -> 0
C5: check verifiche qualità acqua | D5: =IF(Input_per_calcoli_finali!I15="","",Input_per_calcoli_finali!I15) ->  | E5: =+IF(D5=TT_Tabelle_Riferimento!I14,1,0) -> 0
C6: adempimenti sblocca italia | D6: =IF(Input_per_calcoli_finali!I9="","",Input_per_calcoli_finali!I9) ->  | E6: =+IF(D6=TT_Tabelle_Riferimento!I14,1,0) -> 0
C7: richiesta perequazione | D7: =IF(prq="","",prq) -> NO | E7: =+IF(D7=TT_Tabelle_Riferimento!$E$4,1,0) -> 1
C8: incidenza integrazioni con soggetti tariffa ufficio | D8: =IF(incid="","",incid) ->  | E8: 1
C9: Adempimento sul versamento delle componenti perequative a CSEA | D9: =+IF(Input_per_calcoli_finali!I16="","",+Input_per_calcoli_finali!I16) ->  | E9: =+IF(D9="SI",1,0) -> 0
C11: tipo di schema | D11: =+IF(Storico_Piano_Tariffario!K13="",IF(OR(D3="",D4="",D5="",D6="",D7="",D8=""),"",IF(PRODUCT(E3:E6,E9)=0,"escluso dall'aggiornamento",IF(AND(PRODUCT(E3:E6,E9)=1,E8=1,E7=1),"schema regolatorio",IF(AND(PRODUCT(E3:E6,E9)=1,E7=0,E8=1),"istruttoria sulle condizioni specifiche",IF(AND(PRODUCT(E3:E6,E9)=1,E8=0),"schema virtuale"))))),Storico_Piano_Tariffario!K13) -> 
D14: No aggregazioni e nessuna variazione di obiettivi | F14: Aggregazioni o presenza di variazioni negli obiettivi o attività del gestore:
D15: o attività del gestore
B17: Investimenti
D18: Schema I | E18: Schema II | F18: Schema III
D22: Schema IV | E22: Schema V | F22: Schema VI
D30: γk | E30: γx | F30: limite di prezzo | G30: incremento
C31: Schema I | D31: 0 | E31: 0 | F31: =1+rpi+(1+D31)*kschema-(1+E31)*xschema -> 1.06 | G31: =+F31-1 -> 0.06
C32: Schema II | D32: 0 | E32: 1 | F32: 1.055 | G32: 0.055
C33: Schema III | D33: 0 | E33: -1 | F33: 1.065 | G33: 0.065
C34: Schema IV | D34: 0.5 | E34: 0 | F34: 1.085 | G34: 0.085
C35: Schema V | D35: 0.5 | E35: 1 | F35: 1.08 | G35: 0.08
C36: Schema VI | D36: 0.5 | E36: -1 | F36: 1.09 | G36: 0.09
C39: ω | D39: =+TT_parametri!BD29 -> 0.5
C40: rpi | D40: =+TT_parametri!BD30 -> 0.015
C41: K | D41: =+TT_parametri!BD31 -> 0.05
C42: X | D42: =+TT_parametri!BD32 -> 0.005
C43: RAB MTI2015 | D43: =+Dati_Anni_precedenti!E11 -> 0
C44: ∑Iptexp 2016-2019 | D44: =+Input_per_calcoli_finali!I47 -> 0
C45: IPexp/RABMTI | D45: =+IF(Input_per_calcoli_finali!P27="interamente virtuale",1,IF(ISERR(D44/D43),"",D44/D43)) -> 
C46: Opex2014 | D46: =+Storico_Piano_Tariffario!K6 -> 0
C47: pop 2012 | D47: =+Storico_Piano_Tariffario!K7 -> 0
C48: OPM i | D48: =+IF(Input_per_calcoli_finali!P27<>"",108,IF(OR(Input_per_calcoli_finali!G44=0,Input_per_calcoli_finali!G44=""),"",Input_per_calcoli_finali!G44)) -> Compilare correttamente i campi
C49: OPM | D49: =+TT_parametri!BC33 -> 109
C50: presenza di variazioni | D50: =+var -> 0
C52: selezione dello schema | D52: =IF(OR(D45="",OPMi=""),0,IF(AND(D50=TT_Tabelle_Riferimento!$G$28,D48<=D49,D45<=D39),D18,IF(AND(D50=TT_Tabelle_Riferimento!$G$28,D48>D49,D45<=D39),E18,IF(AND(OR(D50=TT_Tabelle_Riferimento!G26,D50=TT_Tabelle_Riferimento!G27,D50=TT_Tabelle_Riferimento!G29),D45<=D39),F18,IF(AND(D50=TT_Tabelle_Riferimento!$G$28,D48<=D49,D45>D39),D22,IF(AND(D50=TT_Tabelle_Riferimento!$G$28,D48>D49,D45>D39),E22,IF(AND(OR(D50=TT_Tabelle_Riferimento!G26,D50=TT_Tabelle_Riferimento!G27,D50=TT_Tabelle_Riferimento!G29),D45>D39),F22,""))))))) -> 0
C53: Ja / Ja-1 limite di prezzo | D53: =IF(ISNA(VLOOKUP(Quad,$C$31:$F$36,4,FALSE)),IF(mti_2="escluso dall'aggiornamento",1,0),IF(mti_2="escluso dall'aggiornamento",1,VLOOKUP(Quad,$C$31:$F$36,4,FALSE))) -> 0
C58: Area verifica schema regolatorio
C59: Alert | D59: =+IF(AND(D62="Prima riga",D65="Seconda riga"),"Necessaria specifica istruttoria per la verifica dello schema regolatorio","") -> 
C60: IPexp/RABMTI intermedio | D60: =+IF(Input_per_calcoli_finali!P27="interamente virtuale",1,IF(ISERR(D44/D43),"",D44/D43)) -> 
C61: Verifica intermedia | D61: =MID(IF(OR(D60="",OPMi=""),0,IF(AND(D50=TT_Tabelle_Riferimento!$G$28,D48<=D49,D60<=D39),D18,IF(AND(D50=TT_Tabelle_Riferimento!$G$28,D48>D49,D60<=D39),E18,IF(AND(OR(D50=TT_Tabelle_Riferimento!G26,D50=TT_Tabelle_Riferimento!G27,D50=TT_Tabelle_Riferimento!G29),D60<=D39),F18,IF(AND(D50=TT_Tabelle_Riferimento!$G$28,D48<=D49,D60>D39),D22,IF(AND(D50=TT_Tabelle_Riferimento!$G$28,D48>D49,D60>D39),E22,IF(AND(OR(D50=TT_Tabelle_Riferimento!G26,D50=TT_Tabelle_Riferimento!G27,D50=TT_Tabelle_Riferimento!G29),D60>D39),F22,""))))))),8,99) -> 
C62: Riga della matrice di schemi ex del. 918/2017 | D62: =+IF(OR(D61="I",D61="II",D61="III"),"Prima riga",IF(OR(D61="IV",D61="V",D61="VI"),"Seconda riga","Verificare dati anni precedenti")) -> Verificare dati anni precedenti
C64: Controllo schema regolatorio ex del. 664/2015 | D64: =+Dati_Anni_precedenti!E12 -> 0
C65: Riga della matrice di schemi ex del. 664/2015 | D65: =+IF(OR(D64="I",D64="II",D64="III"),"Prima riga",IF(OR(D64="IV",D64="V",D64="VI"),"Seconda riga","Verificare dati anni precedenti")) -> Verificare dati anni precedenti

Sheet VRG_Teta
A2: art. 8 All. A | B2: Vincolo riconosciuto ai ricavi del gestore VRG
B4: Sviluppo del VRG
B6: Componenti calcolate | C6: 2016 | D6: 2017 | E6: 2018 | F6: 2019
B7: VRGa | E7: =+SUM(E8:E12) -> 0 | F7: =+SUM(F8:F12) -> 0
B8: Capexa | E8: =+IFERROR(Capex!E12,0) -> 0 | F8: =+IFERROR(Capex!F12,0) -> 0
B9: FoNIa | E9: =+IFERROR(FoNI!E17,0) -> 0 | F9: =+IFERROR(FoNI!F17,0) -> 0
B10: Opexa (esclude componente ERCQT) | E10: =+IFERROR(Opex!E14,0) -> 0 | F10: =+IFERROR(Opex!F14,0) -> 0
B11: ERCa (include componente ERCQT) | E11: =+IFERROR(ERC!E7,0) -> 0 | F11: =+IFERROR(ERC!F7,0) -> 0
B12: RcTOTa | E12: =+IFERROR('Rc'!E8,0) -> 0 | F12: =+IFERROR('Rc'!F8,0) -> 0
B14: Rimodulazioni | C14: 2016 | D14: 2017 | E14: 2018 | F14: 2019
B15: Capexa | E15: =IFERROR(Input_per_calcoli_finali!K139,0) -> 0 | F15: =IFERROR(Input_per_calcoli_finali!L139,0) -> 0
B16: FoNIa | E16: =+FoNI!E17-FoNI!E10 -> 0 | F16: =+FoNI!F17-FoNI!F10 -> 0
B17: Opexa | E17: =IFERROR(Input_per_calcoli_finali!K146,0) -> 0 | F17: =IFERROR(Input_per_calcoli_finali!L146,0) -> 0
B18: ERCa | E18: =+IFERROR(Input_per_calcoli_finali!K153,0) -> 0 | F18: =+IFERROR(Input_per_calcoli_finali!L153,0) -> 0
B19: RcTOTa | E19: =+'Rc'!E8-'Rc'!E9 -> 0 | F19: =+'Rc'!F8-'Rc'!F9 -> 0
B21: Componenti post rimodulazioni | C21: 2016 | D21: 2017 | E21: 2018 | F21: 2019
B22: VRGa | C22: =+SUM(C23:C27) -> 0 | D22: =+SUM(D23:D27) -> 0 | E22: =+SUM(E23:E27) -> 0 | F22: =+SUM(F23:F27) -> 0
B23: Capexa | C23: =+Storico_Piano_Tariffario!K51 -> 0 | D23: =+Storico_Piano_Tariffario!L51 -> 0 | E23: =+E8-E15 -> 0 | F23: 0
B24: FoNIa | C24: =+Storico_Piano_Tariffario!K52 -> 0 | D24: =+Storico_Piano_Tariffario!L52 -> 0 | E24: 0 | F24: 0
B25: Opexa (esclude componente ERCQT) | C25: =+Storico_Piano_Tariffario!K50 -> 0 | D25: =+Storico_Piano_Tariffario!L50 -> 0 | E25: 0 | F25: 0
B26: ERCa (include componente ERCQT) | C26: =+Storico_Piano_Tariffario!K54 -> 0 | D26: =+Storico_Piano_Tariffario!L54 -> 0 | E26: 0 | F26: 0
B27: RcTOTa | C27: =+Storico_Piano_Tariffario!K53 -> 0 | D27: =+Storico_Piano_Tariffario!L53 -> 0 | E27: 0 | F27: 0
A32: art. 6 All. A | B32: Moltiplicatore Tariffario J
B34: Sviluppo del Moltiplicatore
B37: anno a | C37: 2016 | D37: 2017 | E37: 2018 | F37: 2019
B42: STar2015*Vscala-2 (dettag+ingros) | C42: =+Dati_Anni_precedenti!C17-C45-C43 -> 0 | D42: =+Dati_Anni_precedenti!D17-D45-D43 -> 0 | E42: =+SUM(Storico_Ricavi_ambiti_tariffari!P:P)+SUM(Vendita_Servizi_ingrosso!AJ:AJ) -> 0 | F42: =+SUM(Storico_Ricavi_ambiti_tariffari!R:R)+SUM(Vendita_Servizi_ingrosso!AL:AL) -> 0
B43: STar2015*Vscala-2 (gestioni integrate) | C43: =+Dati_Anni_precedenti!C20 -> 0 | D43: =+Dati_Anni_precedenti!D20 -> 0 | E43: =+Riepilogo_gest_integrate!G9 -> 0 | F43: =+Riepilogo_gest_integrate!H9 -> 0
B44: Rba-2 | C44: =+C95 -> 0 | D44: =+D95 -> 0 | E44: =+E95 -> 0 | F44: =+F95 -> 0
B45: Raa-2 | C45: =+C130 -> 0 | D45: =+D130 -> 0 | E45: =+E130 -> 0 | F45: =+F130 -> 0
B46: VRGa cappato | C46: =+C47*SUM(C42:C45) -> 0 | D46: =+D47*SUM(D42:D45) -> 0 | E46: 0 | F46: 0
B47: Ja cappato | C47: =cap -> 0 | D47: =+MIN(C47,C53)*cap -> 0 | E47: =+MIN(D47,D53)*cap -> 0 | F47: =+MIN(E47,E53)*cap -> 0
B49: VRGa calcolato | C49: =+Dati_Anni_precedenti!C16 -> 0 | D49: =+Dati_Anni_precedenti!D16 -> 0 | E49: =+E7 -> 0 | F49: =+F7 -> 0
B50: Ja calcolato | C50: =+IF(Dati_Anni_precedenti!C6=0,Dati_Anni_precedenti!C5,Dati_Anni_precedenti!C6) -> 0 | D50: =+IF(Dati_Anni_precedenti!D6=0,Dati_Anni_precedenti!D5,Dati_Anni_precedenti!D6) -> 0 | E50: =+IF(SUM(E42:E45)=0,0,E49/(SUM(E42:E45))) -> 0 | F50: 0
B52: VRGa calc post rimodulazioni | C52: =+Dati_Anni_precedenti!C16 -> 0 | D52: =+Dati_Anni_precedenti!D16 -> 0 | E52: =+E22+Input_per_calcoli_finali!K155+Input_per_calcoli_finali!K156+Input_per_calcoli_finali!K157 -> 0 | F52: =+F22+Input_per_calcoli_finali!L155+Input_per_calcoli_finali!L156+Input_per_calcoli_finali!L157 -> 0
B53: Ja calc post rimodulazioni | C53: =+IF(Dati_Anni_precedenti!C6=0,Dati_Anni_precedenti!C5,Dati_Anni_precedenti!C6) -> 0 | D53: =+IF(Dati_Anni_precedenti!D6=0,Dati_Anni_precedenti!D5,Dati_Anni_precedenti!D6) -> 0 | E53: =+IFERROR(E52/SUM(E42:E45),0) -> 0 | F53: 0
B55: Limite al VRGa post rimodulazioni | C55: =++C56*SUM(C42:C45) -> 0 | D55: =++D56*SUM(D42:D45) -> 0 | E55: 0 | F55: 0
B56: Limite al moltiplicatore post rimodulazioni | C56: =+cap -> 0 | D56: =+MIN(C56,C53)*cap -> 0 | E56: =+MIN(D56,D53)*cap -> 0 | F56: =+MIN(E56,E53)*cap -> 0
B57: info predisposizione | C57: =+IF(C53>C56,"sovracap","nei limiti") -> nei limiti | D57: =+IF(D53>D56,"sovracap","nei limiti") -> nei limiti | E57: nei limiti | F57: nei limiti
B59: VRGa (calcolo per applicabile) | C59: =+Dati_Anni_precedenti!C16 -> 0 | D59: =+Dati_Anni_precedenti!D16 -> 0 | E59: =+E52-Input_per_calcoli_finali!K155-Input_per_calcoli_finali!K156-Input_per_calcoli_finali!K157 -> 0 | F59: =+F52-Input_per_calcoli_finali!L155-Input_per_calcoli_finali!L156-Input_per_calcoli_finali!L157 -> 0
B60: Ja (calcolo per applicabile) | C60: =+IF(Dati_Anni_precedenti!C6=0,Dati_Anni_precedenti!C5,Dati_Anni_precedenti!C6) -> 0 | D60: =+IF(Dati_Anni_precedenti!D6=0,Dati_Anni_precedenti!D5,Dati_Anni_precedenti!D6) -> 0 | E60: =+IF(ISERR(E59/SUM(E42:E45)),0,E59/SUM(E42:E45)) -> 0 | F60: 0
B62: Limite al VRGa (calcolo per applicabile) | C62: =++C63*SUM(C42:C45) -> 0 | D62: =++D63*SUM(D42:D45) -> 0 | E62: 0 | F62: 0
B63: Limite al moltiplicatore (calcolo per applicabile) | C63: =+cap -> 0 | D63: =+MIN(C63,C60)*cap -> 0 | E63: =+MIN(D63,D60)*cap -> 0 | F63: =+MIN(E63,E60)*cap -> 0
B64: info predisposizione | C64: =+IF(C60>C63,"sovracap","nei limiti") -> nei limiti | D64: =+IF(D60>D63,"sovracap","nei limiti") -> nei limiti | E64: nei limiti | F64: nei limiti
A67: All A - definizioni | B67: Rb - Ricavi altre attività idriche
C70: 2016 | D70: 2017 | E70: 2018 | F70: 2019
B71: Ricavi da articolazione tariffaria
B72: Vendita di acqua all’ingrosso
B73: Acquedotto (utenti non allacciati alla pubblica fognatura)
B74: Vendita di acqua non potabile o ad uso industriale | E74: =+Dati_conto_econ!F17 -> 0 | F74: =+Dati_conto_econ!L17 -> 0
B75: Vendita di acqua forfetaria
B76: Fornitura bocche antincendio
B77: Fognatura e depurazione civile (approvvigionamento autonomo)
B78: Fognatura e depurazione di acque reflue industriali
B79: Contributi di allacciamento
B80: Prestazioni e servizi accessori | E80: =+Dati_conto_econ!F23 -> 0 | F80: =+Dati_conto_econ!L23 -> 0
B81: Vendita di acqua con autobotte | E81: =+Dati_conto_econ!F24 -> 0 | F81: =+Dati_conto_econ!L24 -> 0
B82: Trattamento percolati | E82: =+Dati_conto_econ!F25 -> 0 | F82: =+Dati_conto_econ!L25 -> 0
B83: Trattamento bottini | E83: =+Dati_conto_econ!F26 -> 0 | F83: =+Dati_conto_econ!L26 -> 0
B84: Gestione fognature bianche (* solo se già incluse nel SII; v. comma 1.1 All.A del 664/2015/R/idr)
B85: Pulizia e manutenzione caditoie stradali (* solo se già incluse nel SII; v. comma 1.1 All.A del 664/2015/R/idr)
B86: Installazione/manutenzione bocche antincendio | E86: =+Dati_conto_econ!F29 -> 0 | F86: =+Dati_conto_econ!L29 -> 0
B87: Vendita di servizi a terzi | E87: =+Dati_conto_econ!F30 -> 0 | F87: =+Dati_conto_econ!L30 -> 0
B88: Lavori conto terzi | E88: =+Dati_conto_econ!F31 -> 0 | F88: =+Dati_conto_econ!L31 -> 0
B89: Spurgo pozzi neri | E89: =+Dati_conto_econ!F32 -> 0 | F89: =+Dati_conto_econ!L32 -> 0
B90: Rilascio autorizzazioni allo scarico | E90: =+Dati_conto_econ!F33 -> 0 | F90: =+Dati_conto_econ!L33 -> 0
B91: Lottizzazioni | E91: =+Dati_conto_econ!F34 -> 0 | F91: =+Dati_conto_econ!L34 -> 0
B92: Riuso delle acque di depurazione | E92: =+Dati_conto_econ!F35 -> 0 | F92: =+Dati_conto_econ!L35 -> 0
B93: Case dell’acqua | E93: =+Dati_conto_econ!F36 -> 0 | F93: =+Dati_conto_econ!L36 -> 0
B94: Ricavi da altre attività (non inclusi nelle suddette voci) | E94: =+MAX(Dati_conto_econ!F40,0) -> 0 | F94: =+MAX(Dati_conto_econ!L40,0) -> 0
B95: Toatale Ra-2b | C95: =+Dati_Anni_precedenti!C21 -> 0 | D95: =+Dati_Anni_precedenti!D21 -> 0 | E95: =+SUM(E80:E83)+SUM(E86:E94)+E74 -> 0 | F95: 0
B96: ∏(1+It) | C96: =TT_parametri!BF8 -> 1.004994 | D96: =TT_parametri!BG8 -> 0.998001 | E96: =TT_parametri!BH8 -> 1.005993 | F96: =TT_parametri!BI8 -> 1.007
B97: Ra-2b inflazionati | C97: =+C95*C96 -> 0 | D97: =+D95*D96 -> 0 | E97: =+E95*E96 -> 0 | F97: =+F95*F96 -> 0
A100: All A - definizioni | B100: Cb - Costi altre attività idriche
C102: 2016 | D102: 2017 | E102: 2018 | F102: 2019
B103: CO altre attività idriche | E103: =+Dati_conto_econ!F42 -> 0 | F103: =+Dati_conto_econ!L42 -> 0
B104: Accantonamenti e rettifiche in eccesso rispetto all'applicazione di norme tributarie | E104: =+Dati_conto_econ!F59 -> 0 | F104: =+Dati_conto_econ!L59 -> 0
B105: Rettifiche di valori di attività finanziarie | E105: =+Dati_conto_econ!F60 -> 0 | F105: =+Dati_conto_econ!L60 -> 0
B106: Costi connessi all'erogazione di liberalità | E106: =+Dati_conto_econ!F61 -> 0 | F106: =+Dati_conto_econ!L61 -> 0
B107: Costi pubblicitari e di marketing (incluse le imposte connesse) | E107: =+Dati_conto_econ!F62 -> 0 | F107: =+Dati_conto_econ!L62 -> 0
B108: Oneri per sanzioni, penalità, risarcimenti automatici e simili | E108: =+Dati_conto_econ!F63 -> 0 | F108: =+Dati_conto_econ!L63 -> 0
B109: Oneri straordinari | E109: =+Dati_conto_econ!F64 -> 0 | F109: =+Dati_conto_econ!L64 -> 0
B110: Spese processuali in cui la parte è risultata soccombente | E110: =+Dati_conto_econ!F65 -> 0 | F110: =+Dati_conto_econ!L65 -> 0
B111: Perdite su crediti per la sola quota parte eccedente l'utilizzo del fondo | E111: =+Dati_conto_econ!F73 -> 0 | F111: =+Dati_conto_econ!L73 -> 0
B112: Costi di strutturazione dei progetti di finanziamento (non capitalizzati) | E112: =+Dati_conto_econ!F74 -> 0 | F112: =+Dati_conto_econ!L74 -> 0
B113: A2) Variazioni rimanenze di prodotti in corso di lavorazione, semilavorati e finiti | E113: =+Dati_conto_econ!F7 -> 0 | F113: =+Dati_conto_econ!L7 -> 0
B114: A3) Variazioni dei lavori in corso su ordinazione | E114: =+Dati_conto_econ!F8 -> 0 | F114: =+Dati_conto_econ!L8 -> 0
B115: A4) Incrementi di immobilizzazioni per lavori interni (inclusi costi del personale) | E115: =+Dati_conto_econ!F9 -> 0 | F115: =+Dati_conto_econ!L9 -> 0
B116: Rimborsi e indennizzi | E116: =+Dati_conto_econ!F39 -> 0 | F116: =+Dati_conto_econ!L39 -> 0
B117: Costi di realizzazione degli allacciamenti idrici e fognari | E117: =+Dati_conto_econ!F70 -> 0 | F117: =+Dati_conto_econ!L70 -> 0
B118: Totale Ca-2b | C118: =+Dati_Anni_precedenti!C22/C119 -> 0 | D118: =+Dati_Anni_precedenti!D22/D119 -> 0 | E118: =(E103-SUM(E104:E116)-E117) -> 0 | F118: =(F103-SUM(F104:F116)-F117) -> 0
B119: ∏(1+It) | C119: =TT_parametri!BF8 -> 1.004994 | D119: =TT_parametri!BG8 -> 0.998001 | E119: =TT_parametri!BH8 -> 1.005993 | F119: =TT_parametri!BI8 -> 1.007
B120: Ca-2b inflazionati | C120: =+C118*C119 -> 0 | D120: =+D118*D119 -> 0 | E120: =+E118*E119 -> 0 | F120: =+F118*F119 -> 0
B123: Ra per le attività legate al cambio perimetro SII
C125: 2016 | D125: 2017 | E125: 2018 | F125: 2019
B126: Prestazioni e servizi accessori | E126: =+Dati_conto_econ!C23 -> 0 | F126: =+Dati_conto_econ!I23 -> 0
B127: Vendita di acqua con autobotte | E127: =+Dati_conto_econ!C24 -> 0 | F127: =+Dati_conto_econ!I24 -> 0
B128: Gestione fognature bianche (v. comma 1.1 All.A del 664/2015/R/idr) | E128: =+Dati_conto_econ!C27 -> 0 | F128: =+Dati_conto_econ!I27 -> 0
B129: Pulizia e manutenzione caditoie stradali (v. comma 1.1 All.A del 664/2015/R/idr) | E129: =+Dati_conto_econ!C28 -> 0 | F129: =+Dati_conto_econ!I28 -> 0
B130: Totale Ra-2a | C130: =+Dati_Anni_precedenti!C19 -> 0 | D130: =+Dati_Anni_precedenti!D19 -> 0 | E130: =+SUM(E126:E129) -> 0 | F130: =+SUM(F126:F129) -> 0

Sheet DCUIT
A2: comma 19.1 All. A MTI-2 (come integrato e modificato dalla delibera 918/2017/R/idr) | C2: ΔCUIT - Immobilizzazioni di terzi
X5: 2018 | AE5: 2019 | AM5: 2018 | AS5: 2019 | BA5: Parametri finanziari e fiscali
A6: New_Key_prop | B6: IMN 2016 | C6: IMN 2017 | D6: IMN CFP 2016 | E6: IMN CFP 2017 | F6: AMM 2016 | G6: AMM 2017 | H6: AMM CFP 2016 | I6: AMM CFP 2017 | J6: IMN 2018 | K6: IMN 2019 | L6: IMN CFP 2018 | M6: IMN CFP 2019 | N6: AMM 2018 | O6: AMM 2019 | P6: AMM CFP 2018 | Q6: AMM CFP 2019 | T6: DCUIT 2018 | U6: DCUIT 2019 | X6: CINp | Y6: CINfp,p / CIN | Z6: Km | AA6: α | AB6: OFp | AC6: Rai | AD6: OFiscp | AE6: CINp | AF6: CINfp,p / CIN | AG6: Km | AH6: α | AI6: OFp | AJ6: Rai | AK6: OFiscp | AM6: AMMp | AN6: OFp | AO6: OFiscp | AP6: MT | AQ6: AC | AR6: ΔCUIT | AS6: AMMp | AT6: OFp | AU6: OFiscp | AV6: MT | AW6: AC | AX6: ΔCUIT | BA6: Voce | BB6: Valore 2016-2017 | BC6: Valore 2018-2019
A7: #N/D | B7: 0 | C7: 0 | D7: 0 | E7: 0 | F7: 0 | G7: 0 | H7: 0 | I7: 0 | J7: 0 | K7: 0 | L7: 0 | M7: 0 | N7: 0 | O7: 0 | P7: 0 | Q7: 0 | T7: =+AR7 -> 0 | U7: =+AX7 -> 0 | X7: =+J7 -> 0 | Y7: =IF(X7=0,0,+L7/X7) -> 0 | Z7: =+((1/(1+$BC$7))*($BC$8+$BC$10))+($BC$9*(1-$BC$14)*($BC$7/(1+$BC$7))) -> 0.02203072 | AA7: =+$BC$11*$BC$12*(1/(1+$BC$7)) -> 0.016 | AB7: =MAX(+(Z7+AA7)*(1-Y7)*X7,0) -> 0 | AC7: =((1+((Z7+AA7+1)*(1+$BB$13)-1)/(1-$BB$15))/(1+$BB$13)-1)*(1-Y7)*X7 -> 0 | AD7: =MAX(0.342*AC7,0) -> 0 | AE7: =+K7 -> 0 | AF7: =IF(AE7=0,0,+M7/AE7) -> 0 | AG7: =+Z7 -> 0.02203072 | AH7: =+AA7 -> 0.016 | AI7: =MAX(+(AG7+AH7)*(1-AF7)*AE7,0) -> 0 | AJ7: =((1+((AG7+AH7+1)*(1+$BB$13)-1)/(1-$BB$15))/(1+$BB$13)-1)*(1-AF7)*AE7 -> 0 | AK7: =MAX(0.342*AJ7,0) -> 0 | AM7: =IF($B7="(vuoto)",0,N7) -> 0 | AN7: =AB7 -> 0 | AO7: =AD7 -> 0 | AP7: =+IFERROR(VLOOKUP($A7,'Corrispettivi Infrast Terzi'!$B:$U,19,FALSE),0) -> 0 | AQ7: =+IFERROR(VLOOKUP($A7,'Corrispettivi Infrast Terzi'!$B:$U,16,FALSE),0) -> 0 | AR7: =MAX(0,((AM7+AN7+AO7)-(AP7+AQ7))) -> 0 | AS7: =IF($B7="(vuoto)",0,O7) -> 0 | AT7: =AI7 -> 0 | AU7: =AK7 -> 0 | AV7: =+IFERROR(VLOOKUP($A7,'Corrispettivi Infrast Terzi'!$B:$U,20,FALSE),0) -> 0 | AW7: =+IFERROR(VLOOKUP($A7,'Corrispettivi Infrast Terzi'!$B:$U,17,FALSE),0) -> 0 | AX7: =MAX(0,((AS7+AT7+AU7)-(AV7+AW7))) -> 0 | BA7: CS/CnS | BB7: =+TT_parametri!BC16 -> 1 | BC7: =+TT_parametri!BD16 -> 1
BA8: CS/CnS | BB8: =+TT_parametri!BC17 -> 0.005 | BC8: =+TT_parametri!BD17 -> 0.005
BA9: Kd | BB9: =+TT_parametri!BC18 -> 0.028444 | BC9: =+TT_parametri!BD18 -> 0.028444
BA10: WRP | BB10: =+TT_parametri!BC19 -> 0.015444 | BC10: =+TT_parametri!BD19 -> 0.017444
BA11: β levered | BB11: =+TT_parametri!BC20 -> 0.8 | BC11: =+TT_parametri!BD20 -> 0.8
BA12: ERP | BB12: =+TT_parametri!BC21 -> 0.04 | BC12: =+TT_parametri!BD21 -> 0.04
BA13: rpi | BB13: =+TT_parametri!BC22 -> 0.015 | BC13: =+TT_parametri!BD22 -> 0.015
BA14: tc | BB14: 0.275 | BC14: =+TT_parametri!BD23 -> 0.24
BA15: T | BB15: =+TT_parametri!BC24 -> 0.342 | BC15: =+TT_parametri!BD24 -> 0.319

Sheet Capex
A2: art. 13 All. A MTI-2 (come modificato e integrato dalla del 918/2017/R/idr) | B2: Capex - Costi delle immobilizzazioni
B4: Sviluppo della componente Capex
C6: 2016 | D6: 2017 | E6: 2018 | F6: 2019
B7: OF | C7: =+C26 -> 0 | D7: =+D26 -> 0 | E7: =+E26 -> 0 | F7: =+F26 -> 0
B8: OFisc | C8: =C30 -> 0 | D8: =D30 -> 0 | E8: =E30 -> 0 | F8: =F30 -> 0
B9: AMM | C9: =+Dati_Anni_precedenti!C23 -> 0 | D9: =+Dati_Anni_precedenti!D23 -> 0 | E9: =+'riepilogo RAB MTI -2'!E38 -> 0 | F9: =+'riepilogo RAB MTI -2'!F38 -> 0
B10: ΔCUITcapex | C10: =+C69 -> 0 | D10: =+D69 -> 0 | E10: =+E69 -> 0 | F10: =+F69 -> 0
B12: Capex | C12: =SUM(C7:C11) -> 0 | D12: =SUM(D7:D11) -> 0 | E12: 0 | F12: 0
A17: art. 17 All. A MTI-2 (come modificato e integrato dalla del 918/2017/R/idr) | B17: OF e OFisc - Oneri finanziari e fiscali
H18: Parametri finanziari e fiscali
C19: 2016 | D19: 2017 | E19: 2018 | F19: 2019 | H19: Parametro | I19: =+TT_parametri!BC15 -> 2016-2017 | J19: =+TT_parametri!BD15 -> 2018-2019
B20: CINfp | E20: =TT_riepilogo_RAB!G12 -> 0 | F20: =TT_riepilogo_RAB!H12 -> 0 | H20: CS/CnS | I20: =+TT_parametri!BC16 -> 1 | J20: =+TT_parametri!BD16 -> 1
B21: CINfp / CIN | E21: =IF(E55=0,0,+E20/E55) -> 0 | F21: =IF(F55=0,0,+F20/F55) -> 0 | H21: risk free rate | I21: =+TT_parametri!BC17 -> 0.005 | J21: =+TT_parametri!BD17 -> 0.005
B22: Km | C22: =+(I21+I23)*(1-(I20/(1+I20)))+I22*(1-I27)*(I20/(1+I20)) -> 0.02053295 | D22: =+(I21+I23)*(1-(I20/(1+I20)))+I22*(1-I27)*(I20/(1+I20)) -> 0.02053295 | E22: =+(J21+J23)*(1-(J20/(1+J20)))+J22*(1-J27)*(J20/(1+J20)) -> 0.02203072 | F22: =+(J21+J23)*(1-(J20/(1+J20)))+J22*(1-J27)*(J20/(1+J20)) -> 0.02203072 | H22: Kd | I22: =+TT_parametri!BC18 -> 0.028444 | J22: =+TT_parametri!BD18 -> 0.028444
B23: α | C23: =+(1-(I20/(1+I20)))*I24*I25 -> 0.016 | D23: =+(1-(I20/(1+I20)))*I24*I25 -> 0.016 | E23: =+(1-(J20/(1+J20)))*J24*J25 -> 0.016 | F23: =+(1-(J20/(1+J20)))*J24*J25 -> 0.016 | H23: WRP | I23: =+TT_parametri!BC19 -> 0.015444 | J23: =+TT_parametri!BD19 -> 0.017444
B24: OF (senza time lag) | E24: =MAX(+(E22+E23)*(1-E21)*E55,0) -> 0 | F24: =MAX(+(F22+F23)*(1-F21)*F55,0) -> 0 | H24: β levered | I24: =+TT_parametri!BC20 -> 0.8 | J24: =+TT_parametri!BD20 -> 0.8
B25: OF (time lag) | E25: =+('riepilogo RAB MTI -2'!E24-'riepilogo RAB MTI -2'!E30)*($J$29) -> 0 | F25: =+('riepilogo RAB MTI -2'!F24-'riepilogo RAB MTI -2'!F30)*($J$29) -> 0 | H25: ERP | I25: =+TT_parametri!BC21 -> 0.04 | J25: =+TT_parametri!BD21 -> 0.04
B26: OF in tariffa | C26: =+Dati_Anni_precedenti!C24 -> 0 | D26: =+Dati_Anni_precedenti!D24 -> 0 | E26: =+E24+E25 -> 0 | F26: =+F24+F25 -> 0 | H26: rpi | I26: =+TT_parametri!BC22 -> 0.015 | J26: =+TT_parametri!BD22 -> 0.015
H27: tc | I27: =+TT_parametri!BC23 -> 0.275 | J27: =+TT_parametri!BD23 -> 0.24
B28: Rai rate | C28: =+(((1+((C22+C23+1)*(1+I26)-1)/(1-I28))/(1+I26))-1) -> 0.06320233616 | D28: =+(((1+((D22+D23+1)*(1+I26)-1)/(1-I28))/(1+I26))-1) -> 0.06320233616 | E28: =+(((1+((E22+E23+1)*(1+J26)-1)/(1-J28))/(1+J26))-1) -> 0.06276799664 | F28: =+(((1+((F22+F23+1)*(1+J26)-1)/(1-J28))/(1+J26))-1) -> 0.06276799664 | H28: T | I28: =+TT_parametri!BC24 -> 0.342 | J28: =+TT_parametri!BD24 -> 0.319
B29: Rai | E29: =+E28*(E55-E20) -> 0 | F29: 0 | H29: time lag | I29: =+TT_parametri!BC25 -> 0.01 | J29: =+TT_parametri!BD25 -> 0.01
B30: OFisc in tariffa | C30: =+Dati_Anni_precedenti!C25 -> 0 | D30: =+Dati_Anni_precedenti!D25 -> 0 | E30: =MAX(0.275*E29,0) -> 0 | F30: =MAX(0.275*F29,0) -> 0 | H30: Km + α + tc*Rai rate | I30: =+D22+D23+I27*D28 -> 0.05391359244 | J30: =+E22+E23+J27*E28 -> 0.05309503919
A34: art. 15 All. A MTI-2 (come modificato e integrato dalla del 918/2017/R/idr) | B34: CIN e CINfp - Capitale Investito Netto
C38: 2016 | D38: 2017 | E38: 2018 | F38: 2019
B39: IMN | E39: =TT_riepilogo_RAB!G8 -> 0 | F39: =TT_riepilogo_RAB!H8 -> 0
B40: Saldo LIC | E40: =IF(Nuovi_Investimenti!F4="",D40*TT_parametri!H63,Nuovi_Investimenti!F4*E59) -> 0 | F40: =IF(Nuovi_Investimenti!G4="",E40*TT_parametri!I64,Nuovi_Investimenti!G4*F59) -> 0
B42: TFR | E42: =+'Altri dati economico_finanziari'!E17 -> 0 | F42: =+'Altri dati economico_finanziari'!F17 -> 0
B43: Fondo di quiescenza | E43: =+'Altri dati economico_finanziari'!E18 -> 0 | F43: =+'Altri dati economico_finanziari'!F18 -> 0
B44: Fondo rischi e oneri | E44: =+'Altri dati economico_finanziari'!E19 -> 0 | F44: =+'Altri dati economico_finanziari'!F19 -> 0
B45: Fondo sentenza Corte Costituzionale 335/2008 | E45: =+'Altri dati economico_finanziari'!E24 -> 0 | F45: =+'Altri dati economico_finanziari'!F24 -> 0
B46: Fondo per il ripristino di beni di terzi | E46: =+'Altri dati economico_finanziari'!E25 -> 0 | F46: =+'Altri dati economico_finanziari'!F25 -> 0
B47: Fondo per il finanziamento di tariffe sociali o di solidarietà | E47: =+'Altri dati economico_finanziari'!E26 -> 0 | F47: =+'Altri dati economico_finanziari'!F26 -> 0
B48: Accantonamenti e rettifiche in eccesso rispetto all'applicazione di norme tributarie | E48: =+-ABS(Dati_conto_econ!C59)-ABS(Dati_conto_econ!F59) -> 0 | F48: =+-ABS(Dati_conto_econ!I59)-ABS(Dati_conto_econ!L59) -> 0
B49: FACC | E49: =+SUM(E42:E48) -> 0 | F49: =+SUM(F42:F48) -> 0
H50: giorni di dilazione:
B51: Ricavia,A1 | E51: =+(SUM(Dati_conto_econ!C14:'Dati_conto_econ'!C21)+VRG_Teta!E130) -> 0 | F51: =+(SUM(Dati_conto_econ!I14:'Dati_conto_econ'!I21)+VRG_Teta!F130) -> 0 | H51: fatture | J51: 90
B52: COa,B6+B7 | E52: =+Dati_conto_econ!C43+SUM(Dati_conto_econ!C45:C48) -> 0 | F52: =+Dati_conto_econ!I43+SUM(Dati_conto_econ!I45:I48) -> 0 | H52: fornitori | J52: 60
B53: CCN | E53: =($J$51/365*E51-$J$52/365*E52)*$E$60 -> 0 | F53: =($J$51/365*F51-$J$52/365*F52)*$F$60 -> 0
B54: FoNIanon_inv | E54: =+FoNI!E36 -> 0 | F54: =+FoNI!F36 -> 0
B55: CIN | C55: =+Storico_Piano_Tariffario!K75 -> 0 | D55: =+Storico_Piano_Tariffario!L75 -> 0 | E55: =+E39+E53+E40-E49-E54 -> 0 | F55: =+F39+F53+F40-F49-F54 -> 0
B56: CINfp | C56: =+Storico_Piano_Tariffario!K76 -> 0 | D56: =+Storico_Piano_Tariffario!L76 -> 0 | E56: =+'riepilogo RAB MTI -2'!E16 -> 0 | F56: =+'riepilogo RAB MTI -2'!F16 -> 0
C58: 2016 | D58: 2017 | E58: 2018 | F58: 2019
B59: dfl | C59: =+VLOOKUP(C38-2,ifl,C38 - 2010,FALSE) -> 1.002996 | D59: =+VLOOKUP(D38-2,ifl,D38 - 2010,FALSE) -> 1.007012 | E59: =+VLOOKUP(E38-2,ifl,E38 - 2010,FALSE) -> 1.000994 | F59: =+VLOOKUP(F38-2,ifl,F38 - 2010,FALSE) -> 0.998
B60: ∏(1+It) | C60: =+TT_parametri!BF8 -> 1.004994 | D60: =+TT_parametri!BG8 -> 0.998001 | E60: =+TT_parametri!BH8 -> 1.005993 | F60: =+TT_parametri!BI8 -> 1.007
A63: comma 13.1 All. A MTI-2 (come modificato e integrato dalla del 918/2017/R/idr) | B63: DCUITcapex
C65: 2016 | D65: 2017 | E65: 2018 | F65: 2019
B66: ΔCUIT | E66: =+SUM(DCUIT!T:T) -> 0 | F66: =+SUM(DCUIT!U:U) -> 0
B67: ΔCUITcapex da input | E67: =+'Altri dati economico_finanziari'!G51 -> 0 | F67: =+'Altri dati economico_finanziari'!H51 -> 0
B68: ΔCUITcapex (controllo ammissibilità) | E68: =+IF(SUM(Dati_Anni_precedenti!$C$26:$D$26)<>0,"SI","NO") -> NO | F68: =+IF(SUM(Dati_Anni_precedenti!$C$26:$D$26)<>0,"SI","NO") -> NO
B69: ΔCUITcapex | C69: =+Dati_Anni_precedenti!C26 -> 0 | D69: =+Dati_Anni_precedenti!D26 -> 0 | E69: =+IF(AND(E67<=E66,E68="SI"),E67,0) -> 0 | F69: 0

Sheet FoNI
A2: art. 22 All. A MTI-2 (come modificato e integrato dalla del 918/2017/R/idr) | B2: FoNI - Fondo nuovi investimenti
B4: Sviluppo della componente FoNI
B6: Componenti post rimodulazioni | C6: 2016 | D6: 2017 | E6: 2018 | F6: 2019
B7: AMMaFoNI | C7: =C77 -> 0 | D7: =D77 -> 0 | E7: =E77 -> 0 | F7: =F77 -> 0
B8: FNIa | C8: =+C65 -> 0 | D8: =+D65 -> 0 | E8: =+E65 -> 0 | F8: =+F65 -> 0
B9: ΔCUITaFoNI | C9: =+C88 -> 0 | D9: =+D88 -> 0 | E9: =+E88 -> 0 | F9: =+F88 -> 0
B10: FoNIa | C10: =SUM(C7:C9) -> 0 | D10: =SUM(D7:D9) -> 0 | E10: =SUM(E7:E9) -> 0 | F10: =SUM(F7:F9) -> 0
B13: Componenti calcolate (pre rimodulazioni) | C13: 2016 | D13: 2017 | E13: 2018 | F13: 2019
B14: AMMaFoNI | C14: =+C75 -> 0 | D14: =+D75 -> 0 | E14: 0 | F14: 0
B15: FNIa | C15: =+IF(OR(schema="IV",schema="V",schema="VI"),C63,0) -> 0 | D15: =+IF(OR(schema="IV",schema="V",schema="VI"),D63,0) -> 0 | E15: =+IF(OR(schema="IV",schema="V",schema="VI"),E63,0) -> 0 | F15: =+IF(OR(schema="IV",schema="V",schema="VI"),F63,0) -> 0
B16: ΔCUITaFoNI | C16: =+C86 -> 0 | D16: =+D86 -> 0 | E16: =+E86 -> 0 | F16: =+F86 -> 0
B17: FoNIa | C17: =SUM(C14:C16) -> 0 | D17: =SUM(D14:D16) -> 0 | E17: =SUM(E14:E16) -> 0 | F17: =SUM(F14:F16) -> 0
A21: comma 20.3 All. A MTI-2 (come modificato e integrato dalla del 918/2017/R/idr) | B21: Controlli sulle componenti del FoNI
C25: Controllo sull'eventuale presenza di FoNI - MTI non speso
C27: 2016 | D27: 2017 | E27: 2018 | F27: 2019
B28: FoNIa-2 | C28: =+Dati_Anni_precedenti!C76 -> 0 | D28: =+Dati_Anni_precedenti!D76 -> 0 | E28: =+SUM(Dati_Anni_precedenti!C30:C32) -> 0 | F28: =+SUM(Dati_Anni_precedenti!D30:D32) -> 0
B30: FoNI speso in IP al netto dell'effetto fiscale | C30: =+MAX(MIN(Nuovi_Investimenti!D9,(FoNI!C28-FoNI!C31)*(1-TT_parametri!BC23)),0) -> 0 | D30: =+MAX(MIN(Nuovi_Investimenti!E9,(FoNI!D28-FoNI!D31)*(1-TT_parametri!BC23)),0) -> 0 | E30: =+MAX(MIN(Nuovi_Investimenti!F9,(FoNI!E28-IF('Altri dati economico_finanziari'!E39="",Dati_Anni_precedenti!C79,'Altri dati economico_finanziari'!E39))*(1-TT_parametri!BC23)),0) -> 0 | F30: =+MAX(MIN(Nuovi_Investimenti!G9,(FoNI!F28-IF('Altri dati economico_finanziari'!F39="",Dati_Anni_precedenti!D79,'Altri dati economico_finanziari'!F39))*(1-TT_parametri!BC23)),0) -> 0
B31: FoNI speso per agevolazioni tariffarie | C31: =+Dati_Anni_precedenti!C78 -> 0 | D31: =+Dati_Anni_precedenti!D78 -> 0
B33: FoNIspeso | C33: =+C31+C30 -> 0 | D33: =+D31+D30 -> 0 | E33: =+Dati_Anni_precedenti!C79+E30 -> 0 | F33: =+Dati_Anni_precedenti!D79+F30 -> 0
B34: FoNIspeso da riportare a CFP | C34: =+C30 -> 0 | D34: =+D30 -> 0 | E34: =+E30 -> 0 | F34: =+F30 -> 0
B36: Fonia-2noninv (a moneta dell'anno) | C36: =+MAX(C28-C31-C30/(1-TT_parametri!BC23),0)*C40 -> 0 | D36: =+MAX(D28-D31-D30/(1-TT_parametri!BC23),0)*D40 -> 0 | E36: =+MAX(E28-Dati_Anni_precedenti!C79-E30/(1-TT_parametri!BD23),0)*E40 -> 0 | F36: =+MAX(F28-Dati_Anni_precedenti!D79-F30/(1-TT_parametri!BD23),0)*F40 -> 0
B37: SFoNInoninv | C37: =+MAX(C28-C31-C30/(1-TT_parametri!BC23),0) -> 0 | D37: =+MAX(D28-D31-D30/(1-TT_parametri!BC23),0) -> 0 | E37: =+MAX(E28-Dati_Anni_precedenti!C79-E30/(1-TT_parametri!BD23),0) -> 0 | F37: =+MAX(F28-Dati_Anni_precedenti!D79-F30/(1-TT_parametri!BD23),0) -> 0
B38: SFoNInoninv (a moneta dell'anno) | C38: =+MAX(C37*C40,0) -> 0 | D38: =+MAX(C37*TT_parametri!G60+D37*D40,0) -> 0 | E38: =+MAX(C37*TT_parametri!H60+D37*TT_parametri!H61+E37*E40,0) -> 0 | F38: =+MAX(C37*TT_parametri!I60+D37*TT_parametri!I61+E37*TT_parametri!I62+F37*F40,0) -> 0
B40: dfl | C40: =+TT_parametri!F60 -> 1.002996 | D40: =+TT_parametri!G61 -> 1.007012 | E40: =+TT_parametri!H62 -> 1.000994 | F40: =+TT_parametri!I63 -> 0.998
C44: Condizioni di azzeramento delle componenti ΔCUITaFoNI e AMMfoni
C46: 2016 | D46: 2017 | E46: 2018 | F46: 2019
B47: Presenza FoNInoninv | C47: =+IF(C38>1,"SI","NO") -> NO | D47: =+IF(D38>1,"SI","NO") -> NO | E47: =+IF(E38>1,"SI","NO") -> NO | F47: =+IF(F38>1,"SI","NO") -> NO
B48: AMMORTAMENTO FINANZIARIO | C48: =+af_2014 -> NO | D48: =+af_2015 -> NO | E48: =+af_2016 -> NO | F48: =+af_2017 -> NO
B50: Azzeramento ΔCUITaFoNI | C50: =+IF(OR(C48="SI",C47="SI"),"SI","NO") -> NO | D50: =+IF(OR(D48="SI",D47="SI"),"SI","NO") -> NO | E50: =+IF(OR(E48="SI",E47="SI"),"SI","NO") -> NO | F50: =+IF(OR(F48="SI",F47="SI"),"SI","NO") -> NO
B51: Azzeramento AMMaFoNI | C51: =+IF(AND(C47="SI",(C28-C31-C30/(1-TT_parametri!BC23))>C88),"SI","NO") -> NO | D51: =+IF(AND(D47="SI",(D28-D31-D30/(1-TT_parametri!BC23))>D88),"SI","NO") -> NO | E51: =+IF(AND(E47="SI",(E28-E31-E30/(1-TT_parametri!BD23))>E88),"SI","NO") -> NO | F51: =+IF(AND(F47="SI",(F28-F31-F30/(1-TT_parametri!BD23))>F88),"SI","NO") -> NO
A55: art. 22 All. A MTI-2 (come modificato e integrato dalla del 918/2017/R/idr) | B55: FNI - Anticipazione per il finanziamento di nuovi investimenti
C59: 2016 | D59: 2017 | E59: 2018 | F59: 2019
B60: IPtexp | E60: =+Input_per_calcoli_finali!K48 -> 0 | F60: =+Input_per_calcoli_finali!L48 -> 0
B61: Capexa | E61: =+Capex!E12 -> 0 | F61: =+Capex!F12 -> 0
B62: ψ [0,4÷0,8] | E62: =+Input_per_calcoli_finali!$I$55 -> 0 | F62: =+Input_per_calcoli_finali!$I$55 -> 0
B63: FNInew,a da formula | E63: =IF(OR(schema="IV",schema="V",schema="VI"),MAX(0,E62*(E60-E61)),0) -> 0 | F63: =IF(OR(schema="IV",schema="V",schema="VI"),MAX(0,F62*(F60-F61)),0) -> 0
B64: FNInew,a rinunciato da soggetto compilante | E64: =IFERROR(Input_per_calcoli_finali!K120,0) -> 0 | F64: =IFERROR(Input_per_calcoli_finali!L120,0) -> 0
B65: FNIa in tariffa | C65: =+Dati_Anni_precedenti!C32 -> 0 | D65: =+Dati_Anni_precedenti!D32 -> 0 | E65: =IF(OR(schema="IV",schema="V",schema="VI"),MAX(0,E63-E64),0) -> 0 | F65: =IF(OR(schema="IV",schema="V",schema="VI"),MAX(0,F63-F64),0) -> 0
A69: art. 22 All. A MTI-2 (come modificato e integrato dalla del 918/2017/R/idr) | B69: AMMFoNI - Ammortamento sui contributi a fondo perduto
C73: 2016 | D73: 2017 | E73: 2018 | F73: 2019
B74: AMMaCFP da formula | E74: =+'riepilogo RAB MTI -2'!E41 -> 0 | F74: =+'riepilogo RAB MTI -2'!F41 -> 0
B75: AMMaCFP (al netto quota FoNI non inv) | E75: =+IF(E47="si",MAX(0,E74-(E85-E36)),E74) -> 0 | F75: =+IF(F47="si",MAX(0,F74-(F85-F36)),F74) -> 0
B76: AMMaFoNI rinunciato da soggetto compilante | E76: =+IFERROR(Input_per_calcoli_finali!K123,0) -> 0 | F76: =+IFERROR(Input_per_calcoli_finali!L123,0) -> 0
B77: AMMaFoNI in tariffa | C77: =+Dati_Anni_precedenti!C30 -> 0 | D77: =+Dati_Anni_precedenti!D30 -> 0 | E77: =IF(E51="SI",0,MAX(0,E75-E76)) -> 0 | F77: =IF(F51="SI",0,MAX(0,F75-F76)) -> 0
A80: art. 22 All. A MTI-2 (come modificato e integrato dalla del 918/2017/R/idr) | B80: DCUITFoNI - Eccedenza del costo per l’uso delle infrastrutture di terzi
C84: 2016 | D84: 2017 | E84: 2018 | F84: 2019
B85: ΔCUITa da formula | E85: =+Capex!E66-Capex!E10 -> 0 | F85: =+Capex!F66-Capex!F10 -> 0
B86: ΔCUITa massimo nel FoNI | E86: =+IF(E50="SI",0,E85) -> 0 | F86: =+IF(F50="SI",0,F85) -> 0
B87: ΔCUITaFoNI rinunciato dal soggetto compilante | E87: =IF(Input_per_calcoli_finali!K126="",0,Input_per_calcoli_finali!K126) -> 0 | F87: =IF(Input_per_calcoli_finali!L126="",0,Input_per_calcoli_finali!L126) -> 0
B88: ΔCUITaFoNI | C88: =+Dati_Anni_precedenti!C31 -> 0 | D88: =+Dati_Anni_precedenti!D31 -> 0 | E88: =MAX(0,E86-E87) -> 0 | F88: =MAX(0,F86-F87) -> 0

Sheet Opex
A2: artt. 9 e 22 All. A MTI-2 (come modificato e integrato dalla del 918/2017/R/idr) | B2: Opex - Costi operativi
B4: Sviluppo della componente Opex (include OPnew e OpexQC, con relativi controlli di coerenza)
C6: 2016 | D6: 2017 | E6: 2018 | F6: 2019
B7: Opexal | C7: =+C29 -> 0 | D7: =+D29 -> 0 | E7: =+E29 -> 0 | F7: =+F29 -> 0
B8: Opexend | C8: =+C22 -> 0 | D8: =+D22 -> 0 | E8: =+E22 -> 0 | F8: =+F22 -> 0
B9: OpexQC (post valutazione istanza) | C9: =+C130 -> 0 | D9: =+D130 -> 0 | E9: =+E130 -> 0 | F9: =+F130 -> 0
B10: Opexnew (post valutazione istanza) | C10: =+C138 -> 0 | D10: =+D138 -> 0 | E10: =+E138 -> 0 | F10: =+F138 -> 0
B11: OpexQT | E11: =+E148 -> 0 | F11: =+F148 -> 0
B12: Opsocial | E12: =+E158 -> 0 | F12: =+F158 -> 0
B14: Opexa | C14: =+SUM(C7:C13) -> 0 | D14: =+SUM(D7:D13) -> 0 | E14: =+SUM(E7:E13) -> 0 | F14: =+SUM(F7:F13) -> 0
A16: art. 23 All. A MTI-2 (come modificato e integrato dalla del 918/2017/R/idr) | B16: Opexend - Costi endogeni
C19: 2016 | D19: 2017 | E19: 2018 | F19: 2019
B20: ∏(1+It) | C20: =+TT_parametri!BF8 -> 1.004994 | D20: =+TT_parametri!BG9 -> 1.003989006 | E20: =+TT_parametri!BH10 -> 1.011016929 | F20: =+TT_parametri!BI11 -> 1.011016929
B21: Opexend al lordo degli ERCend | E21: =+Dati_Anni_precedenti!$C$80*E20 -> 0 | F21: =+Dati_Anni_precedenti!$C$80*F20 -> 0
B22: Opexend al netto degli ERCend | C22: =+Dati_Anni_precedenti!C45 -> 0 | D22: =+Dati_Anni_precedenti!D45 -> 0 | E22: =+E21-ERC!E37 -> 0 | F22: =+F21-ERC!F37 -> 0
A25: art. 24 All. A MTI-2 (come modificato e integrato dalla del 918/2017/R/idr) | B25: Opexal - Costi aggiornabili
C28: 2016 | D28: 2017 | E28: 2018 | F28: 2019
B29: Opexala | C29: =+C42+C53+C73+C61+C62 -> 0 | D29: =+D42+D53+D73+D61+D62 -> 0 | E29: =+E42+E53+E73+E61+E62 -> 0 | F29: =+F42+F53+F73+F61+F62 -> 0
A32: art. 25 All. A MTI-2 (come modificato e integrato dalla del 918/2017/R/idr) | B32: Coee - Costi di energia elettrica
C36: 2016 | D36: 2017 | E36: 2018 | F36: 2019
B37: COeff,a-2EE | E37: =+SUM(Dati_conto_econ!C45:C46,Dati_conto_econ!F45:F46) -> 0 | F37: =+SUM(Dati_conto_econ!I45:I46,Dati_conto_econ!L45:L46) -> 0
B38: COmedio,a-2EE | E38: =+TT_parametri!$AV34 -> 0.1585 | F38: =+TT_parametri!$AV35 -> 0.1585
B39: kWh a-2 | E39: =+Dati_tecnici!E3 -> 0 | F39: =+Dati_tecnici!F3 -> 0
B40: COEEa pre inflazione | E40: =+MIN(E37,E38*E39*1.1) -> 0 | F40: =+MIN(F37,F38*F39*1.1) -> 0
B41: ∏(1+It) | E41: =+TT_parametri!BH8 -> 1.005993 | F41: =+TT_parametri!BI8 -> 1.007
B42: COEEa | C42: =+Dati_Anni_precedenti!C40 -> 0 | D42: =+Dati_Anni_precedenti!D40 -> 0 | E42: =+E40*E41 -> 0 | F42: =+F40*F41 -> 0
A45: art. 26 All. A MTI-2 (come modificato e integrato dalla del 918/2017/R/idr) | B45: Cows - Costi all'ingrosso
C49: 2016 | D49: 2017 | E49: 2018 | F49: 2019
B50: COwater effettivo | C50: =+Dati_Anni_precedenti!C41 -> 0 | D50: =+Dati_Anni_precedenti!D41 -> 0 | E50: =+SUMIF(Acquisto_Servizi_ingrosso!AO:AO,1,Acquisto_Servizi_ingrosso!K:K) -> 0 | F50: =+SUMIF(Acquisto_Servizi_ingrosso!AO:AO,1,Acquisto_Servizi_ingrosso!AB:AB) -> 0
B51: COother effettivo | C51: =+Dati_Anni_precedenti!C42 -> 0 | D51: =+Dati_Anni_precedenti!D42 -> 0 | E51: =+SUMIF(Acquisto_Servizi_ingrosso!AO:AO,0,Acquisto_Servizi_ingrosso!K:K) -> 0 | F51: =+SUMIF(Acquisto_Servizi_ingrosso!AO:AO,0,Acquisto_Servizi_ingrosso!AB:AB) -> 0
B52: COws,water2015 con fattore moltiplicativo
B53: COws,a | C53: =+Dati_Anni_precedenti!C41+Dati_Anni_precedenti!C42 -> 0 | D53: =+Dati_Anni_precedenti!D41+Dati_Anni_precedenti!D42 -> 0 | E53: =+E50+E51 -> 0 | F53: =+F50+F51 -> 0
A56: comma 24.1 All. A MTI-2 (come modificato e integrato dalla del 918/2017/R/idr) | B56: MT, AC - Mutui e Altri corrispettivi
C60: 2016 | D60: 2017 | E60: 2018 | F60: 2019
B61: MTa | C61: =+Dati_Anni_precedenti!C43 -> 0 | D61: =+Dati_Anni_precedenti!D43 -> 0 | E61: =+SUM('Corrispettivi Infrast Terzi'!T:T) -> 0 | F61: =+SUM('Corrispettivi Infrast Terzi'!U:U) -> 0
B62: ACa | C62: =+Dati_Anni_precedenti!C44 -> 0 | D62: =+Dati_Anni_precedenti!D44 -> 0 | E62: =+SUM('Corrispettivi Infrast Terzi'!Q:Q) -> 0 | F62: =+SUM('Corrispettivi Infrast Terzi'!R:R) -> 0
A65: art. 27 All. A MTI-2 (come modificato e integrato dalla del 918/2017/R/idr) | B65: Coaltri - Altri costi
C68: 2016 | D68: 2017 | E68: 2018 | F68: 2019
B69: COATOa | C69: =+C90 -> 0 | D69: =+D90 -> 0 | E69: =+E90 -> 0 | F69: =+F90 -> 0
B70: COAEEGa | C70: =+C101 -> 0 | D70: =+D101 -> 0 | E70: =+E101 -> 0 | F70: =+F101 -> 0
B71: COmora | C71: =+C113 -> 0 | D71: =+D113 -> 0 | E71: =+E113 -> 0 | F71: =+F113 -> 0
B72: COresa | C72: =+C120 -> 0 | D72: =+D120 -> 0 | E72: =+E120 -> 0 | F72: =+F120 -> 0
B73: COaltria | C73: =SUM(C69:C72) -> 0 | D73: =SUM(D69:D72) -> 0 | E73: =SUM(E69:E72) -> 0 | F73: =SUM(F69:F72) -> 0
A76: comma 27.2 All. A MTI-2 (come modificato e integrato dalla del 918/2017/R/idr) | B76: CoATO - Costi dell'ATO
B80: COmedio,2013ATO | C80: =+TT_parametri!$AV$41 -> 1.01
B81: popATO di competenza del gestore | C81: =IF(popolazione_ato<>0,popolazione_ato,MAX(Dati_tecnici!E9,Dati_tecnici!E17,Dati_tecnici!E23)) -> 0
B82: COmedio,2013ATO * pop2013*z | C82: =+C80*C81*2 -> 0
C85: 2016 | D85: 2017 | E85: 2018 | F85: 2019
B86: COa-2ATO | E86: =+Dati_conto_econ!C68+Dati_conto_econ!F68 -> 0 | F86: =+Dati_conto_econ!I68+Dati_conto_econ!L68 -> 0
L87: SI | M87: Accoglimento Istanza per soggetto competente
B88: Produttoria(1+It) bloccata dal 2014 | E88: =(TT_parametri!BH11) -> 1.032248285 | F88: =(TT_parametri!BI12) -> 1.032248285
B89: Produttoria(1+It) mobile di 2 anni | E89: =+TT_parametri!BH8 -> 1.005993 | F89: =+TT_parametri!BI8 -> 1.007
B90: COATOa | C90: =+Dati_Anni_precedenti!C36 -> 0 | D90: =+Dati_Anni_precedenti!D36 -> 0 | E90: =MIN(E86*E89,$C$82*E88) -> 0 | F90: =MIN(F86*F89,$C$82*F88) -> 0
C92: =+MIN(C86*C89,$C$82*C88) -> 0 | D92: =+MIN(D86*D89,$C$82*D88) -> 0 | E92: =+MIN(E86*E89,$C$82*E88) -> 0 | F92: =+MIN(F86*F89,$C$82*F88) -> 0
A94: comma 27.4 All. A MTI-2 (come modificato e integrato dalla del 918/2017/R/idr) | B94: CoAEEG - Costi dell'Autorità per l'energia elettrica, il gas e il sistema idrico
C98: 2016 | D98: 2017 | E98: 2018 | F98: 2019
B99: Ricavia-2A1+A5 | E99: =+Dati_conto_econ!C5+Dati_conto_econ!C11 -> 0 | F99: =+Dati_conto_econ!I5+Dati_conto_econ!I11 -> 0
B100: quota‰ | E100: =+TT_parametri!$BC$41 -> 0.00025 | F100: =+TT_parametri!$BC$41 -> 0.00025
B101: COaAEEG | C101: =+Dati_Anni_precedenti!C37 -> 0 | D101: =+Dati_Anni_precedenti!D37 -> 0 | E101: =+E99*E100 -> 0 | F101: =+F99*F100 -> 0
A103: art. 30 All. A MTI-2 (come modificato e integrato dalla del 918/2017/R/idr) | B103: Comor - Costi della morosità
C107: 2016 | D107: 2017 | E107: 2018 | F107: 2019 | I107: +IVA 10% | J107: =1+0.1 -> 1.1
B108: fatturatoa-2 | E108: =+(SUM(Dati_conto_econ!C14:'Dati_conto_econ'!C21)+VRG_Teta!E130)*$J$107 -> 0 | F108: =+(SUM(Dati_conto_econ!I14:'Dati_conto_econ'!I21)+VRG_Teta!F130)*$J$107 -> 0 | I108: Area Geogr | J108: =+IF(ISNA(VLOOKUP(VALUE(idato),TT_Comuni_ATO!M2:O98,3,FALSE)),IF(ISNA(VLOOKUP(VALUE(idato),TT_Comuni_ATO!N2:O98,2,FALSE)),0,VLOOKUP(VALUE(idato),TT_Comuni_ATO!N2:O98,2,FALSE)),VLOOKUP(VALUE(idato),TT_Comuni_ATO!M2:O98,3,FALSE)) -> 0
B109: Unpaid Ratio [UR] reale | E109: ='Altri dati economico_finanziari'!E30 -> 0 | F109: ='Altri dati economico_finanziari'!F30 -> 0
B110: Unpaid Ratio [UR] art. 30 all. A | E110: =IFERROR(VLOOKUP(J108,TT_parametri!$AU$46:$AV$48,2,FALSE),0) -> 0 | F110: =IFERROR(VLOOKUP(J108,TT_parametri!$AU$46:$AV$48,2,FALSE),0) -> 0
B111: Unpaid Ratio [UR] indicato | E111: =+IF(Input_per_calcoli_finali!K72="","",Input_per_calcoli_finali!K72) ->  | F111: =+IF(Input_per_calcoli_finali!K72="","",Input_per_calcoli_finali!K72) -> 
B113: COamor | C113: =+Dati_Anni_precedenti!C38 -> 0 | D113: =+Dati_Anni_precedenti!D38 -> 0 | E113: =MAX(E108*IF(E111="",E110,MIN(E111,E110))-'Altri dati economico_finanziari'!E31,0) -> 0 | F113: =MAX(F108*IF(F111="",F110,MIN(F111,F110))-'Altri dati economico_finanziari'!F31,0) -> 0
C115: =MAX(C108*IF(C111="",C110,MIN(C111,C110))-'Altri dati economico_finanziari'!E31,0) -> 0 | D115: =MAX(D108*IF(D111="",D110,MIN(D111,D110))-'Altri dati economico_finanziari'!F31,0) -> 0 | E115: =MAX(E108*IF(E111="",E110,MIN(E111,E110))-'Altri dati economico_finanziari'!I31,0) -> 0 | F115: =MAX(F108*IF(F111="",F110,MIN(F111,F110))-'Altri dati economico_finanziari'!J31,0) -> 0
C117: 2016 | D117: 2017 | E117: 2018 | F117: 2019
B118: Oneri locali (esclusi ERC) | E118: =+SUM(Dati_conto_econ!E80:F85) -> 0 | F118: =SUM(Dati_conto_econ!K80:L85) -> 0
B119: contrib in c/e | E119: =+Dati_conto_econ!C38+Dati_conto_econ!F38 -> 0 | F119: =+Dati_conto_econ!I38+Dati_conto_econ!L38 -> 0
A120: ** | B120: COares | C120: =+Dati_Anni_precedenti!C39 -> 0 | D120: =+Dati_Anni_precedenti!D39 -> 0 | E120: =+E118-E119 -> 0 | F120: =+F118-F119 -> 0
A123: comma 23.4 All. A MTI-2 (come modificato e integrato dalla del 918/2017/R/idr) | B123: OpexaQC - Costi aggiuntivi adeguamenti standard qualità Carta Servizi
C128: 2016 | D128: 2017 | E128: 2018 | F128: 2019
B129: OpexaQC | E129: =+Input_per_calcoli_finali!K36 -> 0 | F129: =+Input_per_calcoli_finali!L36 -> 0 | L129: Accoglimento Istanza | N129: SI
B130: OpexaQC (post valutazione istanza) | C130: =+Dati_Anni_precedenti!C14 -> 0 | D130: =+Dati_Anni_precedenti!D14 -> 0 | E130: =+IF($N$129="no",0,E129) -> 0 | F130: =+IF($N$129="no",0,F129) -> 0
A132: comma 23.5 All. A MTI-2 (come modificato e integrato dalla del 918/2017/R/idr) | B132: Opnew,a - costi per schemi III, VI
C136: 2016 | D136: 2017 | E136: 2018 | F136: 2019
B137: Opexnew,a | E137: =+Input_per_calcoli_finali!K29 -> 0 | F137: =+Input_per_calcoli_finali!L29 -> 0 | L137: Accoglimento Istanza | N137: SI
B138: Opexnew,a (post valutazione istanza) | C138: =+Dati_Anni_precedenti!C13 -> 0 | D138: =+Dati_Anni_precedenti!D13 -> 0 | E138: =+IF($N$137="no",0,IF(OR(Quad="Schema III",Quad="Schema VI"),E137,0)) -> 0 | F138: =+IF($N$137="no",0,IF(OR(Quad="Schema III",Quad="Schema VI"),F137,0)) -> 0
A142: comma 23-bis All. A MTI-2 (come modificato e integrato dalla del 918/2017/R/idr) | B142: OpexQT
C146: 2016 | D146: 2017 | E146: 2018 | F146: 2019
B147: OpexQT (al netto della componente ERCQT) | E147: =+'PdI-riepilogo'!F20-ERC!E46 -> 0 | F147: =+'PdI-riepilogo'!G20-ERC!F46 -> 0 | L147: Accoglimento Istanza | N147: SI
B148: OpexQT (post valutazione istanza) | E148: =+IF($N$147="no",0,E147) -> 0 | F148: =+IF($N$147="no",0,F147) -> 0
A152: comma 23-ter All. A MTI-2 (come modificato e integrato dalla del 918/2017/R/idr) | B152: Opsocial
C156: 2016 | D156: 2017 | E156: 2018 | F156: 2019
B157: Opsocial | E157: ='Altri dati economico_finanziari'!G41 -> 0 | F157: ='Altri dati economico_finanziari'!H41 -> 0 | L157: Accoglimento Istanza | N157: SI
B158: Opsocial (post valutazione istanza) | E158: =+IF($N$157="no",0,E157) -> 0 | F158: =+IF($N$157="no",0,F157) -> 0

Sheet ERC
A2: art. 28 All. A MTI-2 (come modificato e integrato dalla del 918/2017/R/idr) | B2: ERC - Costi ambientali e della risorsa
B4: Sviluppo della componente ERC
C6: 2016 | D6: 2017 | E6: 2018 | F6: 2019
B7: ERCa (include componente ERCQT) | C7: =+C9 -> 0 | D7: =+D9 -> 0 | E7: =+SUM(E8:E9) -> 0 | F7: =+SUM(F8:F9) -> 0
B8: ERCa QT | E8: =+E46 -> 0 | F8: =+F46 -> 0
B9: ERCa (non include componente ERCQT) | C9: =+C21+C37 -> 0 | D9: =+D21+D37 -> 0 | E9: =+E21+E37 -> 0 | F9: =+F21+F37 -> 0
A11: art. 28 All. A MTI-2 (come modificato e integrato dalla del 918/2017/R/idr) | B11: ERCal - ERC aggiornabili
C15: 2016 | D15: 2017 | E15: 2018 | F15: 2019
B16: Canoni di derivaz/sottens idrica (quota ERC) | E16: =+Dati_conto_econ!D80 -> 0 | F16: =+Dati_conto_econ!J80 -> 0
B17: contributi per consorzi di bonifica | E17: =+Dati_conto_econ!D81 -> 0 | F17: =+Dati_conto_econ!J81 -> 0
B18: Comunità Montane (quota ERC) | E18: =+Dati_conto_econ!D82 -> 0 | F18: =+Dati_conto_econ!J82 -> 0
B19: canoni per restituzione acque | E19: =+Dati_conto_econ!D83 -> 0 | F19: =+Dati_conto_econ!J83 -> 0
B20: oneri per la gestione di aree di salvaguardia | E20: =+Dati_conto_econ!D84 -> 0 | F20: =+Dati_conto_econ!J84 -> 0
B21: ERCaal | C21: =+Dati_Anni_precedenti!C35 -> 0 | D21: =+Dati_Anni_precedenti!D35 -> 0 | E21: =+SUM(E16:E20) -> 0 | F21: =+SUM(F16:F20) -> 0
A25: art. 28 All. A MTI-2 (come modificato e integrato dalla del 918/2017/R/idr) | B25: ERCend - ERC endogeni
C29: 2016 | D29: 2017 | E29: 2018 | F29: 2019
B30: B6) Per materie prime, sussidiarie, di consumo e merci | E30: =+Dati_conto_econ!D43 -> 0 | F30: =+Dati_conto_econ!J43 -> 0
B31: B7) Altri servizi da altre imprese del gruppo | E31: =+Dati_conto_econ!D47 -> 0 | F31: =+Dati_conto_econ!J47 -> 0
B32: B7) Altri servizi da altre imprese | E32: =+Dati_conto_econ!D48 -> 0 | F32: =+Dati_conto_econ!J48 -> 0
B33: B8) Per godimento beni di terzi | E33: =+Dati_conto_econ!D49 -> 0 | F33: =+Dati_conto_econ!J49 -> 0
B34: B9) Per il personale | E34: =+Dati_conto_econ!D52 -> 0 | F34: =+Dati_conto_econ!J52 -> 0
B35: B14) Oneri diversi di gestione | E35: =+Dati_conto_econ!D57-SUM(E16:E20) -> 0 | F35: =+Dati_conto_econ!J57-SUM(F16:F20) -> 0
B36: ∏(1+It) | E36: =TT_parametri!BH8 -> 1.005993 | F36: =TT_parametri!BI8 -> 1.007
B37: ERCaend | C37: =+Dati_Anni_precedenti!C34 -> 0 | D37: =+Dati_Anni_precedenti!D34 -> 0 | E37: =+SUM(E30:E35)*E36 -> 0 | F37: =+SUM(F30:F35)*F36 -> 0
A41: art. 23-bis All. A MTI-2 (come modificato e integrato dalla del 918/2017/R/idr) | B41: ERCQT
C45: 2016 | D45: 2017 | E45: 2018 | F45: 2019
B46: ERCa QT | E46: =+'PdI-riepilogo'!F21+'PdI-riepilogo'!F22 -> 0 | F46: =+'PdI-riepilogo'!G21+'PdI-riepilogo'!G22 -> 0

Sheet Rc
A2: art. 29 All. A MTI-2 (come modificato e integrato dalla del 918/2017/R/idr) | B2: Rc tot - componenti a conguaglio
B4: Sviluppo della componente Rc
C6: 2016 | D6: 2017 | E6: 2018 | F6: 2019
B7: RcTOTa calcolato (pre inflazione) | E7: =E30+E50+E70+E82+E91 -> 0 | F7: =F30+F50+F70+F82+F91 -> 0
B8: RcTOTa calcolato (inflazionati) | C8: =C30+C50+C70+C82+C91 -> 0 | D8: =D30+D50+D70+D82+D91 -> 0 | E8: =+E7*(TT_parametri!BH8) -> 0 | F8: =+F7*TT_parametri!BI8 -> 0
B9: RcTOTa da input per calcoli finali | C9: =++IFERROR(Input_per_calcoli_finali!I112,0) -> 0 | D9: =++IFERROR(Input_per_calcoli_finali!J112,0) -> 0 | E9: =++IFERROR(Input_per_calcoli_finali!K112,0) -> 0 | F9: =++IFERROR(Input_per_calcoli_finali!L112,0) -> 0
B10: RcTOTa | C10: =+C9 -> 0 | D10: =+D9 -> 0 | E10: 0 | F10: 0
A15: comma 29.1 All. A MTI-2 (come modificato e integrato dalla del 918/2017/R/idr) | B15: RC vol
C24: 2016 | D24: 2017 | E24: 2018 | F24: 2019 | I24: minuendo | K24: sottraendo
B25: Ja-2 ai fini del calcolo dei conguagli | E25: =IF(Dati_Anni_precedenti!C6>0,Dati_Anni_precedenti!C6,Dati_Anni_precedenti!C5) -> 0 | F25: =IF(Dati_Anni_precedenti!D6>0,Dati_Anni_precedenti!D6,Dati_Anni_precedenti!D5) -> 0 | H25: a = 2016 | I25: J2014*tar2012*vscal2012 | J25: - | K25: tar2014*vscal2014
B26: tar*vscala-4 (include dettaglio+ingrosso) | E26: =Dati_Anni_precedenti!C17-Dati_Anni_precedenti!C19-Dati_Anni_precedenti!C20 -> 0 | F26: =Dati_Anni_precedenti!D17-Dati_Anni_precedenti!D19-Dati_Anni_precedenti!D20 -> 0 | H26: a = 2017 | I26: J2015*tar2012*vscal2013 | J26: - | K26: tar2015*vscal2015
B27: minuendo | E27: =E25*E26 -> 0 | F27: 0 | H27: a = 2018 | I27: J2016*tar2015*vscal2014 | J27: - | K27: tar2016*vscal2016
B28: sottraendo (tara-2*vscala-2) (include dettaglio+ingrosso) | E28: =SUM(Storico_Ricavi_ambiti_tariffari!Q:Q)+SUM(Vendita_Servizi_ingrosso!AK:AK) -> 0 | F28: =SUM(Storico_Ricavi_ambiti_tariffari!S:S)+SUM(Vendita_Servizi_ingrosso!AM:AM) -> 0 | H28: a = 2019 | I28: J2017*tar2015*vscal2015 | J28: - | K28: tar2017*vscal2017
B30: Rcvola | C30: =+Dati_Anni_precedenti!C47 -> 0 | D30: =+Dati_Anni_precedenti!D47 -> 0 | E30: =IF(E33="manca il dato di input",0,E27-E28) -> 0 | F30: =IF(F33="manca il dato di input",0,F27-F28) -> 0
B33: controllo dati anni precedenti | E33: =+IF(VRG_ult_specificazioni_calc!E19=0,"manca il dato di input", "ok") -> manca il dato di input | F33: =+IF(VRG_ult_specificazioni_calc!F19=0,"manca il dato di input", "ok") -> manca il dato di input
A35: comma 29.1 All. A MTI-2 (come modificato e integrato dalla del 918/2017/R/idr) | B35: Calcolo Rc EE
C43: 2016 | D43: 2017 | E43: 2018 | F43: 2019
B44: COeff,a-2EE | E44: =+SUM(Dati_conto_econ!C45:C46,Dati_conto_econ!F45:F46) -> 0 | F44: =+SUM(Dati_conto_econ!I45:I46,Dati_conto_econ!L45:L46) -> 0
B45: COmedio,a-2EE | E45: =TT_parametri!$AV$34 -> 0.1585 | F45: =TT_parametri!$AV$35 -> 0.1585
B46: kWh a-2 | E46: =Dati_tecnici!E3 -> 0 | F46: =Dati_tecnici!F3 -> 0
B47: COmedio,a-2EE * kWha-2*1,1 | E47: =+E45*E46*1.1 -> 0 | F47: =+F45*F46*1.1 -> 0
B48: minimo | E48: =+MIN(E44,E47) -> 0 | F48: =+MIN(F44,F47) -> 0
B49: COEEa-2 | E49: =+Dati_Anni_precedenti!C40 -> 0 | F49: =+Dati_Anni_precedenti!D40 -> 0
B50: RcEEa | C50: =+Dati_Anni_precedenti!C48 -> 0 | D50: =+Dati_Anni_precedenti!D48 -> 0 | E50: =IF(E53="manca il dato di input",0,E48-E49) -> 0 | F50: 0
B53: controllo dati anni precedenti | E53: =+IF(OR(E46=0,Dati_Anni_precedenti!C40=""),"manca il dato di input", "ok") -> manca il dato di input | F53: =+IF(OR(F46=0,Dati_Anni_precedenti!D40=""),"manca il dato di input", "ok") -> manca il dato di input
A55: comma 29.1 All. A MTI-2 (come modificato e integrato dalla del 918/2017/R/idr) | B55: Calcolo Rc ws
C64: 2016 | D64: 2017 | E64: 2018 | F64: 2019
B65: COwatereff,a-2
B66: COwatera-2
B67: COothereff,a-2 | E67: =+SUMIFS(Acquisto_Servizi_ingrosso!V:V,Acquisto_Servizi_ingrosso!AP:AP,1,Acquisto_Servizi_ingrosso!AO:AO,0) -> 0 | F67: =+SUMIFS(Acquisto_Servizi_ingrosso!AM:AM,Acquisto_Servizi_ingrosso!AQ:AQ,1,Acquisto_Servizi_ingrosso!AO:AO,0) -> 0
B68: COothera-2 | E68: =+Opex!C51 -> 0 | F68: =+Opex!D51 -> 0
B69: COwatera-2 + COothera-2
B70: Rcwsa | C70: =+Dati_Anni_precedenti!C49 -> 0 | D70: =+Dati_Anni_precedenti!D49 -> 0 | E70: =+E67-E68 -> 0 | F70: =+F67-F68 -> 0
B73: controllo dati anni precedenti | E73: =+IF(SUM(Dati_Anni_precedenti!C41:C42)=0,"manca il dato di input","ok") -> manca il dato di input | F73: =+IF(SUM(Dati_Anni_precedenti!D41:D42)=0,"manca il dato di input","ok") -> manca il dato di input
A75: comma 29.1 All. A MTI-2 (come modificato e integrato dalla del 918/2017/R/idr) | B75: Calcolo Rc ERC
C79: 2016 | D79: 2017 | E79: 2018 | F79: 2019
B80: ERCala-2 effettivo | E80: =+SUM(Dati_conto_econ!D80:D85) -> 0 | F80: =+SUM(Dati_conto_econ!J80:J85) -> 0
B81: ERCala-2 | E81: =+Dati_Anni_precedenti!C35 -> 0 | F81: =+Dati_Anni_precedenti!D35 -> 0
B82: RcERCa | C82: =+Dati_Anni_precedenti!C50 -> 0 | D82: =+Dati_Anni_precedenti!D50 -> 0 | E82: =+E80-E81 -> 0 | F82: =+F80-F81 -> 0
A86: comma 29.1 All. A MTI-2 (come modificato e integrato dalla del 918/2017/R/idr) | B86: Calcolo Rc ALTRO
C90: 2016 | D90: 2017 | E90: 2018 | F90: 2019
B91: RcaAltro | C91: =+C103+C115+C127+C142 -> 0 | D91: =+D103+D115+D127+D142+D152+D168 -> 0 | E91: =+E103+E115+E127+E142 -> 0 | F91: =+F103+F115+F127+F142+F152+F168 -> 0
B95: Margine Attività b
C99: 2016 | D99: 2017 | E99: 2018 | F99: 2019
B100: %b | E100: 0.5 | F100: 0.5
B101: Rba-2 | E101: =+VRG_Teta!E95 -> 0 | F101: =+VRG_Teta!F95 -> 0
B102: Cba-2 | E102: =+VRG_Teta!E118 -> 0 | F102: =+VRG_Teta!F118 -> 0
B103: RcaAttiv b | C103: =+Dati_Anni_precedenti!C51 -> 0 | D103: =+Dati_Anni_precedenti!D51 -> 0 | E103: =+IF(E101>E102,$E$100*(E101-E102),0) -> 0 | F103: =+IF(F101>F102,$F$100*(F101-F102),0) -> 0
B107: Co residuali
C111: 2016 | D111: 2017 | E111: 2018 | F111: 2019
B112: Oneri locali | E112: =+SUM(Dati_conto_econ!E80:E85)+SUM(Dati_conto_econ!F80:F85) -> 0 | F112: =SUM(Dati_conto_econ!K80:K85)+SUM(Dati_conto_econ!L80:L85) -> 0
B113: contrib in c/e | E113: =+Dati_conto_econ!C38+Dati_conto_econ!F38 -> 0 | F113: =+Dati_conto_econ!I38+Dati_conto_econ!L38 -> 0
B114: COres | E114: =+Dati_Anni_precedenti!C39 -> 0 | F114: =+Dati_Anni_precedenti!D39 -> 0
B115: Rcares | C115: =+Dati_Anni_precedenti!C52 -> 0 | D115: =+Dati_Anni_precedenti!D52 -> 0 | E115: =+E112-E113-E114 -> 0 | F115: =+F112-F113-F114 -> 0
B118: controllo dati anni precedenti | E118: =+IF(Dati_Anni_precedenti!C39="","manca il dato di input", "ok") -> manca il dato di input | F118: =+IF(Dati_Anni_precedenti!D39="","manca il dato di input", "ok") -> manca il dato di input
B120: Contributo AEEGSI
C124: 2016 | D124: 2017 | E124: 2018 | F124: 2019
B125: COa-2AEEG,effettivo | E125: =+'Altri dati economico_finanziari'!E45 -> 0 | F125: =+'Altri dati economico_finanziari'!F45 -> 0
B126: COa-2AEEGSI | E126: =+Opex!C101 -> 0 | F126: =+Opex!D101 -> 0
B127: RcaAEEGSI | C127: =+Dati_Anni_precedenti!C53 -> 0 | D127: =+Dati_Anni_precedenti!D53 -> 0 | E127: =+E125-E126 -> 0 | F127: =+F125-F126 -> 0
B130: controllo dati anni precedenti | E130: =+IF(Dati_Anni_precedenti!C37="","manca il dato di input", "ok") -> manca il dato di input | F130: =+IF(Dati_Anni_precedenti!D37="","manca il dato di input", "ok") -> manca il dato di input
B132: altri conguagli
C135: 2016 | D135: 2017 | E135: 2018 | F135: 2019
B136: Costi per variazioni sistemiche/ eventi eccezionali | C136: =+Dati_Anni_precedenti!C54 -> 0 | D136: =+Dati_Anni_precedenti!D54 -> 0 | E136: =+'Altri dati economico_finanziari'!E46 -> 0 | F136: =+'Altri dati economico_finanziari'!F46 -> 0
B137: Costo forniture all’ingrosso transfrontaliere | C137: =+Dati_Anni_precedenti!C55 -> 0 | D137: =+Dati_Anni_precedenti!D55 -> 0 | E137: =+'Altri dati economico_finanziari'!E48 -> 0 | F137: =+'Altri dati economico_finanziari'!F48 -> 0
B138: RcIP (valori a moneta a-2) | D138: =+Dati_Anni_precedenti!D56 -> 0 | F138: =+SUM(Conferma_investimenti_2015!AS:AS) -> 0
B139: Rimb335a | C139: =+Dati_Anni_precedenti!C57 -> 0 | D139: =+Dati_Anni_precedenti!D57 -> 0 | E139: =+'Altri dati economico_finanziari'!E49 -> 0 | F139: =+'Altri dati economico_finanziari'!F49 -> 0
B140: Rcaappr (riportato a moneta a-2) | C140: =+Dati_Anni_precedenti!C58 -> 0 | D140: =+Dati_Anni_precedenti!D58 -> 0 | E140: =Input_per_calcoli_finali!K86 -> 0 | F140: =Input_per_calcoli_finali!L86 -> 0
B141: DOpexQC | E141: =+E184 -> 0 | F141: =+F184 -> 0
B142: Totale | C142: =+C136+C137+C139+C140 -> 0 | D142: =+D136+D137+D138+D139+D140 -> 0 | E142: =+E136+E137+E139+E140+E141 -> 0 | F142: =+F136+F137+F138+F139+F140+F141 -> 0
B144: Integrazioni componenti a conguaglio: recupero volumi
C149: 2016 | D149: 2017 | E149: 2018 | F149: 2019
B150: minuendoa-2 | F150: =Dati_Anni_precedenti!D17-Dati_Anni_precedenti!D19-Dati_Anni_precedenti!D20 -> 0
B151: sottraendoa-2 | F151: =SUM(Storico_Ricavi_ambiti_tariffari!O:O)+SUM(Vendita_Servizi_ingrosso!AI:AI) -> 0
B152: recupero volumi | D152: =+Dati_Anni_precedenti!D59 -> 0 | F152: =+IF(F155="manca il dato di input",0,'Rc'!F150-'Rc'!F151) -> 0
B155: controllo dati anni precedenti | F155: =+IF(AND(F150=0,F151=0),"OK",IF(OR(F150=0,F151=0),"manca il dato di input", "ok")) -> OK
B157: Integrazioni componenti a conguaglio: recupero energia elettrica
C161: 2016 | D161: 2017 | E161: 2018 | F161: 2019
B162: Coee,consuntivo 2015 | D162: =+Dati_tecnici!G4 -> 0 | H162: anno | I162: costo medio EE per calcolo COEE | J162: u.d.m.
B163: Kwhconsuntivo 2015 | D163: =+Dati_tecnici!G3 -> 0 | H163: 664/2015 | I163: =+TT_parametri!AV33 -> 0.1674 | J163: =+TT_parametri!AW30 -> €/KWh
B164: minuendoa-2 | F164: =+MIN(D162,D163*I164*1.1) -> 0 | H164: 2015 | I164: =+TT_parametri!AV33 -> 0.1674 | J164: =+TT_parametri!AW31 -> €/KWh
B165: Coee,preconsuntivo 2015 | D165: =+SUM(Dati_Anni_precedenti!D71:D74) -> 0
B166: Kwhpreconsuntivo 2015 | D166: =+Dati_Anni_precedenti!D75 -> 0
B167: sottraendoa-2 | F167: =+MIN(D165,D166*I163*1.1) -> 0
B168: recupero energia elettrica | D168: =+Dati_Anni_precedenti!D60 -> 0 | F168: =+IF(F171="manca il dato di input",0,F164-F167) -> 0
B171: controllo dati anni precedenti | F171: =+IF(AND(F164=0,F167=0),"OK",IF(OR(F164=0,F167=0),"manca il dato di input", "ok")) -> OK
A173: art. 37 All. A MTI-2 (come modificato e integrato dalla del 918/2017/R/idr) | B173: premi/penali qualità
C177: 2016 | D177: 2017 | E177: 2018 | F177: 2019
B178: RC premi | C178: =+Input_per_calcoli_finali!I78 -> 0 | D178: =+Input_per_calcoli_finali!J78 -> 0 | E178: =+Input_per_calcoli_finali!K78 -> 0 | F178: =+Input_per_calcoli_finali!L78 -> 0
B179: Rc penali | C179: =+Input_per_calcoli_finali!I79 -> 0 | D179: =+Input_per_calcoli_finali!J79 -> 0 | E179: =+Input_per_calcoli_finali!K79 -> 0 | F179: =+Input_per_calcoli_finali!L79 -> 0
B180: RcaDQ | C180: =+C178-C179 -> 0 | D180: =+D178-D179 -> 0 | E180: 0 | F180: 0
C181: 2016 | D181: 2017 | E181: 2018 | F181: 2019
B182: OpexQC effettivamente sostenuti dal gestore (comma 6.3 del. 918/2017) | C182: ='Altri dati economico_finanziari'!E54 -> 0 | D182: ='Altri dati economico_finanziari'!F54 -> 0
B183: OpexQC in tariffa ex del. 664/2015 | C183: =+Dati_Anni_precedenti!C14 -> 0 | D183: =+Dati_Anni_precedenti!D14 -> 0
B184: DOpexQC | E184: =+MIN(C182-C183,0) -> 0 | F184: =+MIN(D182-D183,0) -> 0

Sheet Riepilogo_gest_integrate
A2: All. A MTI-2 (come modificato e integrato dalla del 918/2017/R/idr) | D2: Riepilogo delle gestioni integrate
E4: 2016 | F4: 2017 | G4: 2018 | H4: 2019
D6: numero delle gestioni integrate | E6: =+COUNTA(Dati_exGestioni_integrate!C:C)-1 -> 0 | F6: =+COUNTA(Dati_exGestioni_integrate!C:C)-1 -> 0 | G6: =+COUNTA(Dati_exGestioni_integrate!C:C)-1 -> 0 | H6: =+COUNTA(Dati_exGestioni_integrate!C:C)-1 -> 0
D7: popolazione residente precedentemente servita dai predetti gestori | E7: =+SUM(Dati_exGestioni_integrate!D:D) -> 0 | F7: =+SUM(Dati_exGestioni_integrate!D:D) -> 0 | G7: =+SUM(Dati_exGestioni_integrate!D:D) -> 0 | H7: =+SUM(Dati_exGestioni_integrate!D:D) -> 0
D9: ricavi tariffari da vendita al dettaglio delle gestioni integrate | E9: =+Dati_Anni_precedenti!C20 -> 0 | F9: =+Dati_Anni_precedenti!D20 -> 0 | G9: =+SUM(Dati_exGestioni_integrate!N:N) -> 0 | H9: =+SUM(Dati_exGestioni_integrate!O:O) -> 0
D10: OPM (€/abitante) | E10: =+OPM -> 109 | F10: =+OPM -> 109 | G10: =+OPM -> 109 | H10: =+OPM -> 109

Sheet Input_per_calcoli_finali
M1: =+M59 -> 
F3: Compilare - secondo l'ordine proposto - tutti i campi. Utilizzare lo zero, quando è richiesto di "compilare tutti i campi", in luogo della cella vuota
G5: Area dati anni precedenti | I5: Area di input per i soggetti competenti | M5: Area controlli / note
G6: 2014 | H6: 2015 | I6: 2016 | J6: 2017 | K6: 2018 | L6: 2019
I8: Sezione "verifica cause di esclusione dall'aggiornamento tariffario"
F9: Adempimenti sblocca italia | G9: Compilare il campo --> | M9: =+IF(I9="","<-- Iniziare da qui la compilazione",IF(OR(I9="conforme",I9="non conforme"),"OK, continuare la compilazione","Compilare correttamente il campo")) -> <-- Iniziare da qui la compilazione
F10: Tipo affidamento | G10: Assicurarsi di aver correttamente fornito tali informazioni nel foglio dati tecnici | I10: =+IF(AND(Dati_tecnici!E29<>"",LEFT(M9,2)="OK"),Dati_tecnici!E29,"") ->  | M10: =++IF(LEFT(M9,2)="OK",+IF(OR(I10="Affidamento del SII",I10="Aziende speciali, gestioni in economia",I10="Gestioni in economia comuni montani autorizzati da AATO",I10="Gestioni salvaguardate",I10="Gestioni tutelate, concessioni esistenti"),"OK, continuare la compilazione","Compilare il campo"),"") -> 
F11: Data inizio affidamento | I11: =+IF(OR(I10="",Dati_tecnici!E30=""),"",Dati_tecnici!E30) ->  | M11: =++IF(AND(LEFT(M10,2)="OK",I10="Affidamento del SII"),+IF(LEN(I11)=5,"OK, continuare la compilazione","Compilare correttamente il campo. Formato data: gg/mm/aaaa"),IF(I10="","","OK, compilare o continuare la compilazione (formato gg/mm/aaaa)")) -> 
F12: Data fine affidamento | I12: =+IF(OR(Dati_tecnici!E31="",I11=""),"",Dati_tecnici!E31) ->  | M12: =++IF(AND(LEFT(M11,2)="OK",I10="Affidamento del SII"),+IF(LEN(I12)=5,"OK, continuare la compilazione","Compilare correttamente il campo. Formato data: gg/mm/aaaa"),IF(AND(LEFT(M11,2)="OK",I10="Affidamento del SII",I12=""),"Compilare il campo",IF(LEFT(M11,2)="OK","OK, compilare o continuare la compilazione (formato gg/mm/aaaa)",""))) -> 
F13: Presenza Carta dei servizi | I13: =+IF(OR(Dati_tecnici!E32="",I12=""),"",Dati_tecnici!E32) ->  | M13: =++IF(LEFT(M10,2)="OK",+IF(OR(I13="SI",I13="NO"),"OK, continuare la compilazione","Compilare correttamente il campo"),"") -> 
F14: Presenza di un consumo minimo impegnato per la fatturazione delle utenze domestiche | I14: =+IF(OR(Dati_tecnici!E33="",I13=""),"",Dati_tecnici!E33) ->  | M14: =++IF(LEFT(M13,2)="OK",+IF(OR(I14="SI",I14="NO"),"OK, continuare la compilazione","Compilare correttamente il campo"),"") -> 
F15: Adempimento obblighi di verifica qualità dell'acqua comma 10.6 delibera 664/2015 | I15: =+IF(OR(Dati_tecnici!E34="",I14=""),"",Dati_tecnici!E34) ->  | M15: =++IF(LEFT(M14,2)="OK",+IF(OR(I15="conforme",I15="non conforme"),"OK, continuare la compilazione","Compilare correttamente il campo"),"") -> 
F16: Versamento delle componenti perequative a CSEA - comma 10.7 delibera 664/2015 | I16: =+IF(OR(Dati_tecnici!E35="",I15=""),"",Dati_tecnici!E35) ->  | M16: =++IF(LEFT(M15,2)="OK",+IF(OR(I16="SI",I16="NO"),"OK, continuare la compilazione","Compilare correttamente il campo"),"") -> 
I19: Sezione "Interventi sullo schema regolatorio" e Oneri aggiuntivi
G21: 2014 | H21: 2015 | I21: 2016 | J21: 2017 | K21: 2018 | L21: 2019
F22: Richiesta di perequazione | G22: non compilabile | I22: NO | M22: =++IF(LEFT(M16,2)="OK",+IF(OR(I22="SI",I22="NO"),"OK, continuare la compilazione","Compilare correttamente il campo"),"") ->  | P22: Tipo di integrazione | Q22: id | T22: Presenza variazioni | U22: id | W22: id | X22: raccordo integrazioni e variazioni
F23: Integrazione | M23: =+IF(LEFT(M22,2)="OK",IF(integr="","Compilare correttamente il campo","OK, continuare la compilazione"),"") ->  | P23: entrambi | Q23: 1 | T23: nessuna variazione | U23: A | W23: 1B | X23: =+T24 -> integrazione servizio o territorio
F24: Tipo di integrazione (servizio / territorio) | M24: =+IF(LEFT(M23,2)="OK",IF(I24="","Compilare correttamente il campo",IF(AND(integr="SI",I24<>"nessuna"),"OK, continuare la compilazione",IF(AND(integr="NO",I24="nessuna"),"OK, continuare la compilazione","Attenzione: ricontrollare i dati"))),"") ->  | P24: integrazione servizio | Q24: 2 | T24: integrazione servizio o territorio | U24: B | W24: 1D | X24: =+T26 -> integrazione servizio o territorio e miglioramenti qualità
F25: % popolazione di cui non si dispone di corredo informativo completo - comma 10.1 all. A | M25: =+IF(LEFT(M24,2)="OK",IF(AND(I25="",I24<>"nessuna",I24<>"integrazione servizio"),"Compilare correttamente il campo",IF(OR(I24="nessuna",I24="integrazione servizio"),"OK, continuare la compilazione (il campo non va compilato)",IF(AND(I25<=1,I25>0),"OK, continuare la compilazione","Attenzione: compilare correttamente il campo (tra 0 e 100)"))),"") ->  | P25: integrazione territorio | Q25: 3 | T25: miglioramenti qualità | U25: C | W25: 2B | X25: =+T24 -> integrazione servizio o territorio
F26: Variazioni ai fini dell'individuazione dello schema virtuale | I26: =+IF(LEFT(M25,2)="OK",IF(AND(I24<>"entrambi",I24<>"integrazione territorio"),TT_Tabelle_Riferimento!G21,IF(Input_per_calcoli_finali!I25<0.5,TT_Tabelle_Riferimento!G23,TT_Tabelle_Riferimento!G22)),"") ->  | P26: nessuna | Q26: 4 | T26: integrazione servizio o territorio e miglioramenti qualità | U26: D | W26: 2D | X26: =+T26 -> integrazione servizio o territorio e miglioramenti qualità
F27: Aggregazioni, variazioni negli obiettivi o nelle attività del gestore (schemi regolatori comma 9.1) | M27: =+IF(LEFT(M25,2)="OK",IF(ISNA(VLOOKUP(CONCATENATE(VLOOKUP(I24,$P$23:$Q$26,2,FALSE),VLOOKUP(var,$T$23:$U$26,2,FALSE)),$W$23:$X$30,2,FALSE)),IF(var="","Compilare correttamente il campo","Attenzione: ricontrollare i dati"),"OK, continuare la compilazione"),"") ->  | P27: =+IF(OR(I25=0,I25=""),"",IF(AND(incid="Pop servita >= 50% del gestore risultante",I25=1),"interamente virtuale",IF(AND(I25>0.5,incid="Pop servita >= 50% del gestore risultante"),"parzialmente virtuale",""))) ->  | W27: 3B | X27: =+T24 -> integrazione servizio o territorio
W28: 3D | X28: =+T26 -> integrazione servizio o territorio e miglioramenti qualità
F29: Opnew,a | G29: non compilabile | I29: =+Storico_Piano_Tariffario!K25 -> 0 | J29: =+Storico_Piano_Tariffario!L25 -> 0 | K29: =+K30*IF(OR(RIGHT($M$30,1)=")",LEFT($M$27,2)<>"OK",$M$30=""),0,1)+K31*IF(OR(RIGHT($M$31,1)=")",LEFT($M$27,2)<>"OK",$M$31=""),0,1)+K32*IF(OR(RIGHT($M$32,1)=")",LEFT($M$27,2)<>"OK",$M$32=""),0,1) -> 0 | L29: 0 | W29: 4A | X29: =+T23 -> nessuna variazione
F30: di cui qualità | I30: - | J30: - | M30: =+IF(AND(LEFT(M27,2)="OK",incid<>"Pop servita >= 50% del gestore risultante",OR(var="integrazione servizio o territorio e miglioramenti qualità",var="miglioramenti qualità")),IF(OR(K30<0,L30<0),"Attenzione: valori fuori dominio",IF(OR(K30="",L30=""),"<--- Continuare da qui la compilazione (compilare tutti i campi)","OK, continuare la compilazione")),IF(LEFT(M27,2)="OK","OK, continuare la compilazione (il campo non va compilato)","")) ->  | W30: 4C | X30: =+T25 -> miglioramenti qualità
F31: di cui integrazione territorio | I31: - | J31: - | M31: =+IF(AND(LEFT(M30,2)="OK",incid<>"Pop servita >= 50% del gestore risultante",OR(I24="integrazione territorio",I24="entrambi")),IF(OR(K31<0,L31<0),"Attenzione: valori fuori dominio",IF(OR(K31="",L31=""),"<--- Continuare da qui la compilazione (compilare tutti i campi)","OK, continuare la compilazione")),IF(LEFT(M30,2)="OK","OK, continuare la compilazione (il campo non va compilato)","")) -> 
F32: di cui integrazione servizio | I32: - | J32: - | M32: =+IF(AND(LEFT(M31,2)="OK",incid<>"Pop servita >= 50% del gestore risultante",OR(I24="integrazione servizio",I24="entrambi")),IF(OR(K32<0,L32<0),"Attenzione: valori fuori dominio",IF(OR(K32="",L32=""),"<--- Continuare da qui la compilazione (compilare tutti i campi)","OK, continuare la compilazione")),IF(LEFT(M31,2)="OK","OK, continuare la compilazione (il campo non va compilato)","")) -> 
F34: Adeguam. Standard qualità (comma 23.3) | G34: non compilabile | M34: =++IF(LEFT(M32,2)="OK",+IF(I34="","<--- Continuare da qui la compilazione (compilare tutti i campi)",IF(I34>=0,"OK, continuare la compilazione","Errore! Valori fuori dominio")),"") -> 
F35: Opexaqc
F36: Opexaqc - in tariffa | I36: =+Storico_Piano_Tariffario!K24 -> 0 | J36: =+Storico_Piano_Tariffario!L24 -> 0 | K36: =+IF(AND($I$34="SI",LEFT($M$27,2)="OK"),K35,0) -> 0 | L36: 0 | M36: =++IF(LEFT(M34,2)="OK",IF(OR(K36<0,L36<0),"Errore! Valore fuori dominio",IF(OR(K36="",L36=""),IF(I34="NO","OK, compilazione non necessaria","Attenzione: compilare tutti i campi"),"OK, continuare la compilazione")),"") -> 
F38: OpexaQT - in tariffa, lordo ERC | G38: non compilabile | I38: - | J38: - | K38: ='PdI-riepilogo'!F20 -> 0 | L38: ='PdI-riepilogo'!G20 -> 0
F40: Opasocial - in tariffa | G40: non compilabile | I40: - | J40: - | K40: =+'Altri dati economico_finanziari'!G41 -> 0 | L40: =+'Altri dati economico_finanziari'!H41 -> 0
F42: Opex 2014 (calcolo OPM) | G42: =+Storico_Piano_Tariffario!K6 -> 0
F43: Popolazione acq. 2012 | G43: =+Storico_Piano_Tariffario!K7 -> 0 | M43: =+IF(AND(LEFT(M36,2)="OK",P27=""),IF(G44="compilare correttamente i campi","Attenzione: compilare i campi necessari", "OK, continuare la compilazione"),IF(P27<>"","OK, continuare la compilazione","")) -> 
F44: OPMi | G44: =+IFERROR(I42/I43,IFERROR(G42/G43,"Compilare correttamente i campi")) -> Compilare correttamente i campi | I44: non compilabile
F47: ∑Iptexp 2016-2019 | G47: non compilabile | I47: =+SUM(I48:L48) -> 0
F48: Sviluppo Iptexp MTI-2 (al netto dei contributi) | G48: importi 2018-2019 come da Pdi-Riepilogo | I48: =+Storico_Piano_Tariffario!K74 -> 0 | J48: =+Storico_Piano_Tariffario!L74 -> 0 | K48: =+'PdI-riepilogo'!F3-'PdI-riepilogo'!F5 -> 0 | L48: =+'PdI-riepilogo'!G3-'PdI-riepilogo'!G5 -> 0 | M48: =+IF(LEFT(M43,2)="OK",IF(OR(K48="",L48=""),"Attenzione: compilare tutti i campi","OK, continuare la compilazione"),"") -> 
F49: Sviluppo contributi relativi agli Iptexp MTI-2 | I49: =+Storico_Piano_Tariffario!K73 -> 0 | J49: =+Storico_Piano_Tariffario!L73 -> 0 | K49: =+'PdI-riepilogo'!F5 -> 0 | L49: =+'PdI-riepilogo'!G5 -> 0 | M49: =+IF(LEFT(M48,2)="OK",IF(OR(K49="",L49=""),"Attenzione: compilare tutti i campi","OK, continuare la compilazione"),"") -> 
F51: ∑Iptexp 2014-2017 | G51: =+Dati_Anni_precedenti!C81 -> 0 | I51: non compilabile | M51: =+IF(LEFT(M48,2)="OK",IF((G51)>(G52+H52+I48+J48)*1.02,"Gli Ipexp MTI per gli anni 2016-2017 non coincidono con quelli proposti per MTI2",IF(LEFT(M48,2)="OK","","")),"") -> 
F52: Sviluppo Iptexp MTI | G52: =+Dati_Anni_precedenti!C82 -> 0 | H52: =+Dati_Anni_precedenti!D82 -> 0 | I52: non compilabile
F53: RAB MTI | G53: =+framework_schemi!D43 -> 0 | M53: =+IF(LEFT(M49,2)="OK",IF(G54<>"","OK, continuare la compilazione",IF(P27="interamente virtuale","OK, continuare la compilazione","Inserire valore RAB o controllare dati anni precedenti")),"") -> 
G54: =+IF(P27="interamente virtuale","",IF(I53<>"",IF(ISERR(I47/I53),"",I47/I53),IF(ISERR(I47/G53),"",I47/G53))) ->  | I54: non compilabile
F55: ψ (0,4-0,8) | G55: non compilabile | M55: =+IF(P27="interamente virtuale","OK, continuare la compilazione",IF(LEFT(M53,2)="OK",+IF(G53=0,"Inserire valore RAB MTI (cella I48)",IF(G54<=omega,"OK, continuare la compilazione (psi non necessario)",IF(AND(G54>omega,I55=""),"<--- Continuare da qui la compilazione",IF(OR(I55<0.4,I55>0.8),"Attenzione: compilare correttamente i dati","OK, continuare la compilazione")))),"")) -> 
F56: Ammortamento finanziario ammissibile ai sensi del comma 16.5 lettera a) | G56: non compilabile | I56: =+iAF -> 0
F59: output | G59: Tipo di elaborazione tariffaria: | M59: =+IF(LEFT(M55,2)="OK",mti_2,"") -> 
F60: output | G60: Eventuale schema regolatorio | M60: =IF(M59="schema regolatorio",IF(framework_schemi!D59="Necessaria specifica istruttoria per la verifica dello schema regolatorio","ALERT",schema),"") -> 
M61: =+IF(M60="","",IF(prq="SI","e richiesta di perequazione","")) -> 
I63: Sezione "Interventi sulle componenti degli Opex"
G65: 2014 | H65: 2015 | I65: 2016 | J65: 2017 | K65: 2018 | L65: 2019
M66: =+IF(LEFT(M55,2)="OK",+IF(OR(I66<0,J66<0,K66<0,L66<0),"Attenzione: valori fuori dominio",IF(OR(I66="",J66="",K66="",L66=""),"OK, compilare o continuare la compilazione","OK, continuare la compilazione")),"") -> 
M68: =+IF(LEFT(M66,2)="OK",+IF(AND(I68=""),"OK, compilare o continuare la compilazione",IF(AND(I68<>""),IF(OR(I68<I70,I68>100),"Attenzione: valori fuori dominio","OK, continuare la compilazione"),"Attenzione: compilare correttamente tutti i campi")),"") -> 
F70: Comor - art. 30 All. A - valore di zona | G70: non compilabile | K70: =+Opex!E110 -> 0 | L70: =+K70 -> 0
F71: Comor - art. 30 All. A - valore effettivo del gestore | K71: =+Opex!E109 -> 0 | L71: =+K71 -> 0
F72: Comor - Unpaid ratio indicato dal soggetto competente (% compatibile con "costo massimo riconosciuto" come da comma 30.2 all. A) | G72: valori in % | M72: =+IF(AND(I68<>"",LEFT(M55,2)="OK"),"OK, compilazione non necessaria",IF(LEFT(M55,2)="OK",+IF(AND(K72=""),"OK, compilare o continuare la compilazione",IF(AND(K72<K70,K72>=MIN(K71:L71),K72<>""),"OK, continuare la compilazione","Attenzione: compilare correttamente tutti i campi (diversi da 0, inferiori a quelli di zona, superiori a quelli del gestore)")),"")) -> 
I75: Sezione "Meccanismo premi/penalità relativamente alla qualità contrattuale"
I77: 2016 | J77: 2017 | K77: 2018 | L77: 2019
F78: Premi | G78: non compilabile | M78: OK, compilare o proseguire la compilazione
F79: Penali | M79: OK, compilare o proseguire la compilazione
F80: RcDQ (valore pre-inflazione) | I80: =+I78-I79 -> 0 | J80: =+J78-J79 -> 0 | K80: 0 | L80: 0
I83: Sezione "Sviluppo temporale dei conguagli MTI rinviati al futuro"
I85: 2016 | J85: 2017 | K85: 2018 | L85: 2019
F86: importo conguagli MTI (deliberati daAEEGSI) rinviati al futuro (valori a moneta 2015) | G86: =+Dati_Anni_precedenti!C83 -> 0 | I86: =+Dati_Anni_precedenti!C58/1.004994 -> 0 | J86: =+Dati_Anni_precedenti!D58/0.999 -> 0 | M86: =+IF(OR(LEFT(M72,2)="OK"),IF(G86=0,"OK, ricontrollare dati storici o proseguire la compilazione (eventuali compilazioni non avranno impatti)",IF(OR(K86="",L86=""),"<--- Continuare da qui la compilazione",IF(AND(K86<>"",L86<>"",K86>=0,L86>=0),"OK, continuare la compilazione","Attenzione: compilare correttamente i campi"))),"") -> 
F87: RC MTI post 2019 | G87: non compilabile | M87: =+IF(LEFT(M86,2)="OK",IF(G95=0,"OK, ricontrollare dati storici o proseguire la compilazione (eventuali compilazioni non avranno impatti)",IF(AND(ISNUMBER(I96)=TRUE,I96>=0,SUM(I95:L96)<=G95),"OK, continuare la compilazione","Attenzione: ricontrollare i dati e compilare correttamente il campo")),"") -> 
F88: eventuale rinuncia a conguagli RC MTI deliberati da AEEGSI | G88: non compilabile | I88: =+IF(LEFT(M87,2)="OK",IF(G86=0,0,G86-SUM(I86:L86)-I87),"") ->  | M88: =+IF(LEFT(M87,2)="OK",IF(I88="","Compilare il campo",IF(AND(ISNUMBER(I88)=TRUE,I88>=0),"OK, continuare la compilazione","Attenzione: compilare correttamente il campo")),"") -> 
I91: Elaborazioni Intermedie
I93: 2016 | J93: 2017 | K93: 2018 | L93: 2019
F94: VRGa al cap | G94: non compilabile | I94: =+IF($M$55<>"",VRG_Teta!C46,"") ->  | J94: =+IF($M$55<>"",VRG_Teta!D46,"") ->  | K94: =+IF($M$55<>"",VRG_Teta!E46,"") ->  | L94: =+IF($M$55<>"",VRG_Teta!F46,"") -> 
F95: ϑa massimo applicabile | G95: non compilabile | I95: =+IF($M$55<>"",VRG_Teta!C47,"") ->  | J95: =+IF($M$55<>"",VRG_Teta!D47,"") ->  | K95: =+IF($M$55<>"",VRG_Teta!E47,"") ->  | L95: =+IF($M$55<>"",VRG_Teta!F47,"") -> 
F96: VRGa calcolato pre rimodulazioni (eventuali) | G96: non compilabile | I96: =+IF($M$55<>"",VRG_Teta!C49,"") ->  | J96: =+IF($M$55<>"",VRG_Teta!D49,"") ->  | K96: =+IF($M$55<>"",VRG_Teta!E49,"") ->  | L96: =+IF($M$55<>"",VRG_Teta!F49,"") -> 
F97: ϑa calcolato (eventuali) | G97: non compilabile | I97: =+IF($M$55<>"",VRG_Teta!C50,"") ->  | J97: =+IF($M$55<>"",VRG_Teta!D50,"") ->  | K97: =+IF($M$55<>"",VRG_Teta!E50,"") ->  | L97: =+IF($M$55<>"",VRG_Teta!F50,"") -> 
I100: Sezione "Sviluppo temporale dei conguagli MTI-2"
F103: Integrazione RC IP | G103: non compilabile | M103: Compilare per correggere eventuali effetti monetari divergenti rispetto alle precedenti predisposizioni tariffarie e/o derivanti dalla eventuale presenza di FoNI 2012, 2013 non riportato a CFP
I104: 2012 | K104: 2013
F105: Eventuale FoNI 2012, 2013 da riportare a CFP | G105: non compilabile | I105: =+Dati_Anni_precedenti!C77 -> 0 | K105: =+Dati_Anni_precedenti!D77 -> 0 | M105: Compilare i valori del 2012 a moneta 2014 e i valori del 2013 a moneta 2015
I107: 2016 | J107: 2017 | K107: 2018 | L107: 2019
F108: RC MTI-2 calcolati | G108: non compilabile | I108: =+'Rc'!C8 -> 0 | J108: =+'Rc'!D8 -> 0 | K108: =+'Rc'!E8 -> 0 | L108: =+'Rc'!F8 -> 0
G109: non compilabile | I109: =+IF(ISERR(MAX(I94-I96,0)),0,MAX(I94-I96,0)) -> 0 | J109: =+IF(ISERR(MAX(J94-J96,0)),0,MAX(J94-J96,0)) -> 0 | K109: =+IF(ISERR(MAX(K94-K96,0)),0,MAX(K94-K96,0)) -> 0 | L109: =+IF(ISERR(MAX(L94-L96,0)),0,MAX(L94-L96,0)) -> 0
F110: Sviluppo richiesto dei conguagli MTI-2 periodo 2016-2019 (il resto inteso post 2019) | G110: non compilabile | I110: =+Storico_Piano_Tariffario!K53 -> 0 | J110: =+Storico_Piano_Tariffario!L53 -> 0 | M110: =+IF(LEFT(M88,2)="OK",+IF(AND(I110>=0,J110>=0,K110>=0,L110>=0),"OK, continuare la compilazione","OK, riallocare conguagli oppure continuare la compilazione"),"") -> 
F111: eventuale rinuncia a conguagli RC MTI-2 deliberati da AEEGSI | M111: =+IF(AND(LEFT(M110,2)="OK",ISNUMBER(I111)=TRUE,I111>0,I111<SUM(I108:L108)),"OK, continuare la compilazione",IF(LEFT(M110,2)="OK",IF(OR(ISNUMBER(I111)=FALSE,I111<0,ABS(I111)>ABS(SUM(I108:L108))),"Attenzione, compilare correttamente il campo","OK, continuare la compilazione"),"")) -> 
F112: RC MTI-2 in tariffa | G112: non compilabile | I112: =+IF(I110="",I108,I110) -> 0 | J112: =+IF(J110="",J108,J110) -> 0 | K112: 0 | L112: 0
F113: RC MTI-2 post 2019 | G113: non compilabile | I113: =+IF(LEFT(M111,2)="OK",IF(SUM(I108:L108)-(SUM(I112:L112)+I111)<0,IF(SUM(I108:L108)<0,SUM(I108:L108)-(SUM(I112:L112)+I111),"Attenzione, ricontrollare gli addendi"),SUM(I108:L108)-(SUM(I112:L112)+I111)),"") ->  | M113: =+IF(OR(I113="Attenzione, ricontrollare gli addendi",I113=""),"","OK, continuare la compilazione") -> 
I116: Sezione "Interventi sulle componenti del FoNI"
G118: 2014 | H118: 2015 | I118: 2016 | J118: 2017 | K118: 2018 | L118: 2019
F119: FNI calcolato | G119: non compilabile | K119: =++IF($M$59="schema regolatorio",FoNI!E63,"") ->  | L119: =++IF($M$59="schema regolatorio",FoNI!F63,"") -> 
F120: Riduzione della componente FNI | M120: =+IF(LEFT(M113,2)="OK",+IF(OR(K120<0,L120<0,K120>K119,L120>L119),"Attenzione: valori fuori dominio",IF(OR(K120="",L120=""),"<--- Continuare da qui la compilazione (compilare tutti i campi)","OK, continuare la compilazione")),"") -> 
F122: AMMcfp calcolato | G122: non compilabile | K122: =++IF($M$59="schema regolatorio",FoNI!E75,"") ->  | L122: =++IF($M$59="schema regolatorio",FoNI!F75,"") -> 
F123: Riduzione della componente AMMcfp | M123: =+IF(LEFT(M120,2)="OK",+IF(OR(K123<0,L123<0,K123>K122,L123>L122),"Attenzione: valori fuori dominio",IF(OR(K123="",L123=""),"<--- Continuare da qui la compilazione (compilare tutti i campi)","OK, continuare la compilazione")),"") -> 
F125: DCUIT massimo nel FoNI | G125: non compilabile | K125: =++IF($M$59="schema regolatorio",FoNI!E86,"") ->  | L125: =++IF($M$59="schema regolatorio",FoNI!F86,"") ->  | M125: =+IF(LEFT($M$94,2)="OK","OK, continuare la compilazione","") -> 
F126: Riduzione della componente DCUIT | M126: =+IF(LEFT(M123,2)="OK",+IF(OR(K126<0,L126<0,K126>K125,L126>L125),"Attenzione: valori fuori dominio",IF(OR(K126="",L126=""),"<--- Continuare da qui la compilazione (compilare tutti i campi)","OK, continuare la compilazione")),"") -> 
I129: Sezione "Ulteriori interventi sul VRG"
G131: 2014 | H131: 2015 | I131: 2016 | J131: 2017 | K131: 2018 | L131: 2019
F132: Detrazioni alla componente Capex - AMM | G132: non compilabile | M132: =+IF(LEFT(M126,2)="OK","OK, compilare tutti i campi o continuare la compilazione. L'importo valorizzato sarà al massimo pari a quello della componente","") -> 
F133: detrazione AMM | K133: =+IF(K132="",0,MIN(K132,Capex!E9)) -> 0 | L133: =+IF(L132="",0,MIN(L132,Capex!F9)) -> 0
F134: Detrazioni alla componente Capex - OF | G134: non compilabile | M134: =+IF(LEFT(M132,2)="OK","OK, compilare tutti i campi o continuare la compilazione. L'importo valorizzato sarà al massimo pari a quello della componente","") -> 
F135: detrazione OF | K135: =+IF(K134="",0,MIN(K134,Capex!E7)) -> 0 | L135: =+IF(L134="",0,MIN(L134,Capex!F7)) -> 0
F136: Detrazioni alla componente Capex - OFisc | G136: non compilabile | M136: =+IF(LEFT(M134,2)="OK","OK, compilare tutti i campi o continuare la compilazione. L'importo valorizzato sarà al massimo pari a quello della componente","") -> 
F137: detrazione OFisc | K137: =+IF(K136="",0,MIN(K136,Capex!E8)) -> 0 | L137: =+IF(L136="",0,MIN(L136,Capex!F8)) -> 0
F139: Detrazioni alla componente Capex | G139: non compilabile | K139: =+K133+K135+K137 -> 0 | L139: 0 | M139: =+IF(LEFT(M126,2)="OK","OK, compilare tutti i campi o continuare la compilazione","") -> 
F141: Detrazioni alla componente Opex - Opexend | G141: non compilabile | M141: =+IF(LEFT(M136,2)="OK","OK, compilare tutti i campi o continuare la compilazione. L'importo valorizzato sarà al massimo pari a quello della componente","") -> 
F142: detrazione Opexend | K142: =+IF(K141="",0,MIN(K141,Opex!E8)) -> 0 | L142: =+IF(L141="",0,MIN(L141,Opex!F8)) -> 0
F143: Detrazioni alla componente Opex - Opexal | G143: non compilabile | M143: =+IF(LEFT(M141,2)="OK","OK, compilare tutti i campi o continuare la compilazione. L'importo valorizzato sarà al massimo pari a quello della componente","") -> 
F144: detrazione Opexal | K144: =+IF(K143="",0,MIN(K143,Opex!E7)) -> 0 | L144: =+IF(L143="",0,MIN(L143,Opex!F7)) -> 0
F146: Detrazioni alla componente Opex | G146: non compilabile | K146: =+K142+K144 -> 0 | L146: 0 | M146: =+IF(LEFT(M139,2)="OK","OK, compilare tutti i campi o continuare la compilazione","") -> 
F148: Detrazioni alla componente ERC - ERCend | G148: non compilabile | M148: =+IF(LEFT(M143,2)="OK","OK, compilare tutti i campi o continuare la compilazione. L'importo valorizzato sarà al massimo pari a quello della componente","") -> 
F149: detrazione ERCend | K149: =+IF(K148="",0,MIN(K148,ERC!E37)) -> 0 | L149: =+IF(L148="",0,MIN(L148,ERC!F37)) -> 0
F150: Detrazioni alla componente ERC - ERCal | G150: non compilabile | M150: =+IF(LEFT(M148,2)="OK","OK, compilare tutti i campi o continuare la compilazione. L'importo valorizzato sarà al massimo pari a quello della componente","") -> 
F151: detrazione ERCal | K151: =+IF(K150="",0,MIN(K150,ERC!E21)) -> 0 | L151: =+IF(L150="",0,MIN(L150,ERC!F21)) -> 0
F153: Detrazioni alla componente ERC | G153: non compilabile | K153: =+K149+K151 -> 0 | L153: 0 | M153: =+IF(AND($M$59="schema regolatorio",$M$60<>"",LEFT(M150,2)="OK"),IF(AND(I164="nei limiti",J164="nei limiti",K164="nei limiti",L164="nei limiti"),"Proposta nei limiti del cap","Proposta sovracap per almeno un'annualità"),"") -> 
F155: Rimodulazioni relative alla componente Capex | G155: non compilabile | M155: =+IF(LEFT(M153,2)="OK","OK, compilare tutti i campi o continuare la compilazione","") -> 
F156: Rimodulazioni relative alla componente Opex | G156: non compilabile | M156: =+IF(LEFT(M155,2)="OK","OK, compilare tutti i campi o continuare la compilazione","") -> 
F157: Rimodulazioni relative alla componente ERC | G157: non compilabile | M157: =+IF(LEFT(M156,2)="OK","OK, compilare tutti i campi o continuare la compilazione","") -> 
F159: VRGa calcolato (anche a valle di ulteriori rimodulazioni) | G159: non compilabile | I159: =+IF(AND($M$59="schema regolatorio",$M$60<>"",LEFT($M$150,2)="OK"),VRG_Teta!C52,"") ->  | J159: =+IF(AND($M$59="schema regolatorio",$M$60<>"",LEFT($M$150,2)="OK"),VRG_Teta!D52,"") ->  | K159: =+IF(AND($M$59="schema regolatorio",$M$60<>"",LEFT($M$150,2)="OK"),VRG_Teta!E52,"") ->  | L159: =+IF(AND($M$59="schema regolatorio",$M$60<>"",LEFT($M$150,2)="OK"),VRG_Teta!F52,"") ->  | M159: =+IF(AND($M$59="schema regolatorio",$M$60<>"",LEFT(M150,2)="OK"),IF(AND(I164="nei limiti",J164="nei limiti",K164="nei limiti",L164="nei limiti"),"Proposta nei limiti del cap","Proposta sovracap per almeno un'annualità"),"") -> 
F160: ϑa calcolato (anche a valle di ulteriori rimodulazioni) | G160: non compilabile | I160: =+IF(AND($M$59="schema regolatorio",$M$60<>"",LEFT($M$150,2)="OK"),VRG_Teta!C53,"") ->  | J160: =+IF(AND($M$59="schema regolatorio",$M$60<>"",LEFT($M$150,2)="OK"),VRG_Teta!D53,"") ->  | K160: =+IF(AND($M$59="schema regolatorio",$M$60<>"",LEFT($M$150,2)="OK"),VRG_Teta!E53,"") ->  | L160: =+IF(AND($M$59="schema regolatorio",$M$60<>"",LEFT($M$150,2)="OK"),VRG_Teta!F53,"") -> 
F162: info predisposizione pre rimodulazioni | G162: non compilabile | I162: =+IF(AND($M$59="schema regolatorio",$M$60<>"",LEFT($M$150,2)="OK"),IF(I96>I94,"sovracap","nei limiti"),"") ->  | J162: =+IF(AND($M$59="schema regolatorio",$M$60<>"",LEFT($M$150,2)="OK"),IF(J96>J94,"sovracap","nei limiti"),"") ->  | K162: =+IF(AND($M$59="schema regolatorio",$M$60<>"",LEFT($M$150,2)="OK"),IF(K96>K94,"sovracap","nei limiti"),"") ->  | L162: =+IF(AND($M$59="schema regolatorio",$M$60<>"",LEFT($M$150,2)="OK"),IF(L96>L94,"sovracap","nei limiti"),"") -> 
F163: limite al Ja post rimodulazioni | G163: non compilabile | I163: =+IF(AND($M$59="schema regolatorio",$M$60<>"",LEFT($M$150,2)="OK"),VRG_Teta!C56,"") ->  | J163: =+IF(AND($M$59="schema regolatorio",$M$60<>"",LEFT($M$150,2)="OK"),VRG_Teta!D56,"") ->  | K163: =+IF(AND($M$59="schema regolatorio",$M$60<>"",LEFT($M$150,2)="OK"),VRG_Teta!E56,"") ->  | L163: =+IF(AND($M$59="schema regolatorio",$M$60<>"",LEFT($M$150,2)="OK"),VRG_Teta!F56,"") -> 
F164: info predisposizione post rimodulazioni | G164: non compilabile | I164: =+IF(AND($M$59="schema regolatorio",$M$60<>"",LEFT($M$150,2)="OK"),VRG_Teta!C57,"") ->  | J164: =+IF(AND($M$59="schema regolatorio",$M$60<>"",LEFT($M$150,2)="OK"),VRG_Teta!D57,"") ->  | K164: =+IF(AND($M$59="schema regolatorio",$M$60<>"",LEFT($M$150,2)="OK"),VRG_Teta!E57,"") ->  | L164: =+IF(AND($M$59="schema regolatorio",$M$60<>"",LEFT($M$150,2)="OK"),VRG_Teta!F57,"") -> 

Sheet VRG_ulteriori_specificazioni
K2: controllo compilazione | L2: controllo valori non negativi | M2: non sono presenti errori
A3: Sezione | B3: Voce | C3: 2016 | D3: 2017 | E3: 2018 | F3: 2019 | G3: 2016-2019 | K3: =+AND(P:T) -> FALSE | L3: =+AND(U:Y) -> TRUE | M3: =+AND(K3:L3) -> FALSE | P3: controlli di compilazione
A4: Delibera AEEGSI | B4: Delibera
A5: Delibera AEEGSI | B5: J deliberato | C5: =Dati_Anni_precedenti!C5 -> 0 | D5: =Dati_Anni_precedenti!D5 -> 0 | E5: =+MIN(VRG_Teta!E53,VRG_Teta!E56) -> 0 | F5: =+MIN(VRG_Teta!F53,VRG_Teta!F56) -> 0 | P5: =+C5<>"" -> TRUE | Q5: =+D5<>"" -> TRUE | R5: =+E5<>"" -> TRUE | S5: =+F5<>"" -> TRUE | U5: =+C5>=0 -> TRUE | V5: TRUE | W5: TRUE | X5: TRUE
A6: Delibera AEEGSI | B6: J medio | C6: =Dati_Anni_precedenti!C6 -> 0 | D6: =Dati_Anni_precedenti!D6 -> 0 | U6: TRUE | V6: TRUE | W6: TRUE | X6: TRUE
A7: Delibera AEEGSI | B7: RC post | G7: =+IFERROR(VALUE(Input_per_calcoli_finali!I113),0) -> 0 | T7: =+G7<>"" -> TRUE
A8: Schema regolatorio | B8: ∑Ipexp | G8: =+Piano_Tariffario!M10 -> 0 | T8: =+G8<>"" -> TRUE
A9: Schema regolatorio | B9: Ipexp | C9: =Dati_Anni_precedenti!C9 -> 0 | D9: =Dati_Anni_precedenti!D9 -> 0 | E9: =+Piano_Tariffario!M77 -> 0 | F9: =+Piano_Tariffario!N77 -> 0 | P9: =+C9<>"" -> TRUE | Q9: =+D9<>"" -> TRUE | R9: =+E9<>"" -> TRUE | S9: =+F9<>"" -> TRUE
A10: Schema regolatorio | B10: ψ | G10: =+Piano_Tariffario!M14 -> 0
A11: Schema regolatorio | B11: RAB MTI | G11: =+Piano_Tariffario!M11 -> 0 | T11: =+G11<>"" -> TRUE | Y11: =+G11>=0 -> TRUE
A12: Schema regolatorio | B12: Schema regolatorio | G12: =+Piano_Tariffario!M15 ->  | T12: =+G12<>"" -> FALSE
A13: Schema regolatorio | B13: Opnew,a | C13: =Dati_Anni_precedenti!C13 -> 0 | D13: =Dati_Anni_precedenti!D13 -> 0 | E13: =+Opex!E10 -> 0 | F13: =+Opex!F10 -> 0 | U13: =+C13>=0 -> TRUE | V13: TRUE | W13: TRUE | X13: TRUE
A14: Schema regolatorio | B14: Opexqc | C14: =Dati_Anni_precedenti!C14 -> 0 | D14: =Dati_Anni_precedenti!D14 -> 0 | E14: =+Opex!E9 -> 0 | F14: =+Opex!F9 -> 0 | U14: TRUE | V14: TRUE | W14: TRUE | X14: TRUE
A15: Schema regolatorio | B15: Opexvirt | C15: =Dati_Anni_precedenti!C15 -> 0 | D15: =Dati_Anni_precedenti!D15 -> 0 | E15: =+Opex!E13 -> 0 | F15: =+Opex!F13 -> 0 | U15: TRUE | V15: TRUE | W15: TRUE | X15: TRUE
A16: Schema regolatorio | B16: OpexQT | E16: =+Opex!E148 -> 0 | F16: =+Opex!F148 -> 0
A17: Schema regolatorio | B17: Opsocial | E17: =+Opex!E158 -> 0 | F17: =+Opex!F158 -> 0
A18: Moltiplicatore | B18: VRG approvato | C18: =Dati_Anni_precedenti!C16 -> 0 | D18: =Dati_Anni_precedenti!D16 -> 0 | E18: =VRG_Teta!E52 -> 0 | F18: =VRG_Teta!F52 -> 0 | P18: =+C18<>"" -> TRUE | Q18: TRUE | R18: TRUE | S18: TRUE | U18: =+C18>=0 -> TRUE | V18: TRUE | W18: TRUE | X18: TRUE
A19: Moltiplicatore | B19: ∑tarif2015 * vscala-2 | C19: =Dati_Anni_precedenti!C17 -> 0 | D19: =Dati_Anni_precedenti!D17 -> 0 | E19: =+Piano_Tariffario!M64 -> 0 | F19: =+Piano_Tariffario!N64 -> 0 | P19: TRUE | Q19: TRUE | R19: TRUE | S19: TRUE | U19: TRUE | V19: TRUE | W19: TRUE | X19: TRUE
A20: Moltiplicatore | B20: di cui: Ricavi ws | C20: =Dati_Anni_precedenti!C18 -> 0 | D20: =Dati_Anni_precedenti!D18 -> 0 | E20: =+SUM(Vendita_Servizi_ingrosso!AJ:AJ) -> 0 | F20: =+SUM(Vendita_Servizi_ingrosso!AL:AL) -> 0 | U20: TRUE | V20: TRUE | W20: TRUE | X20: TRUE
A21: Moltiplicatore | B21: di cui: Ra | C21: =Dati_Anni_precedenti!C19 -> 0 | D21: =Dati_Anni_precedenti!D19 -> 0 | E21: =+VRG_Teta!E45 -> 0 | F21: =+VRG_Teta!F45 -> 0 | U21: TRUE | V21: TRUE | W21: TRUE | X21: TRUE
A22: Moltiplicatore | B22: di cui: gestioni incom. | C22: =Dati_Anni_precedenti!C20 -> 0 | D22: =Dati_Anni_precedenti!D20 -> 0 | E22: =+VRG_Teta!E43 -> 0 | F22: =+VRG_Teta!F43 -> 0 | U22: TRUE | V22: TRUE | W22: TRUE | X22: TRUE
A23: Moltiplicatore | B23: Rba-2 | C23: =Dati_Anni_precedenti!C21 -> 0 | D23: =Dati_Anni_precedenti!D21 -> 0 | E23: =+Piano_Tariffario!M63 -> 0 | F23: =+Piano_Tariffario!N63 -> 0 | P23: =+C23<>"" -> TRUE | Q23: TRUE | R23: TRUE | S23: TRUE | U23: TRUE | V23: TRUE | W23: TRUE | X23: TRUE
A24: Moltiplicatore | B24: Cba-2 | C24: =Dati_Anni_precedenti!C22 -> 0 | D24: =Dati_Anni_precedenti!D22 -> 0 | E24: =+VRG_Teta!E118 -> 0 | F24: =+VRG_Teta!F118 -> 0 | P24: TRUE | Q24: TRUE | R24: TRUE | S24: TRUE | U24: TRUE | V24: TRUE | W24: TRUE | X24: TRUE
A25: Costi delle immobilizzazioni | B25: AMM | C25: =Dati_Anni_precedenti!C23 -> 0 | D25: =Dati_Anni_precedenti!D23 -> 0 | E25: =+Piano_Tariffario!M30 -> 0 | F25: =+Piano_Tariffario!N30 -> 0 | P25: TRUE | Q25: TRUE | R25: TRUE | S25: TRUE
A26: Costi delle immobilizzazioni | B26: OF | C26: =Dati_Anni_precedenti!C24 -> 0 | D26: =Dati_Anni_precedenti!D24 -> 0 | E26: =+Piano_Tariffario!M31 -> 0 | F26: =+Piano_Tariffario!N31 -> 0 | P26: TRUE | Q26: TRUE | R26: TRUE | S26: TRUE
A27: Costi delle immobilizzazioni | B27: OFisc | C27: =Dati_Anni_precedenti!C25 -> 0 | D27: =Dati_Anni_precedenti!D25 -> 0 | E27: =+Piano_Tariffario!M32 -> 0 | F27: =+Piano_Tariffario!N32 -> 0 | P27: TRUE | Q27: TRUE | R27: TRUE | S27: TRUE
A28: Costi delle immobilizzazioni | B28: ΔCUITcapex | C28: =Dati_Anni_precedenti!C26 -> 0 | D28: =Dati_Anni_precedenti!D26 -> 0 | E28: =+Piano_Tariffario!M33 -> 0 | F28: =+Piano_Tariffario!N33 -> 0 | P28: TRUE | Q28: TRUE | R28: TRUE | S28: TRUE | U28: =+C28>=0 -> TRUE | V28: TRUE | W28: TRUE | X28: TRUE
A29: Immobilizzazioni | B29: IML | C29: =Dati_Anni_precedenti!C27 -> 0 | D29: =Dati_Anni_precedenti!D27 -> 0 | E29: =+TT_riepilogo_RAB!G6 -> 0 | F29: =+TT_riepilogo_RAB!H6 -> 0 | P29: TRUE | Q29: TRUE | R29: TRUE | S29: TRUE | U29: TRUE | V29: TRUE | W29: TRUE | X29: TRUE
A30: Immobilizzazioni | B30: IMN | C30: =Dati_Anni_precedenti!C28 -> 0 | D30: =Dati_Anni_precedenti!D28 -> 0 | E30: =+TT_riepilogo_RAB!G8 -> 0 | F30: =+TT_riepilogo_RAB!H8 -> 0 | P30: TRUE | Q30: TRUE | R30: TRUE | S30: TRUE | U30: TRUE | V30: TRUE | W30: TRUE | X30: TRUE
A31: Immobilizzazioni | B31: FA | C31: =Dati_Anni_precedenti!C29 -> 0 | D31: =Dati_Anni_precedenti!D29 -> 0 | E31: =+TT_riepilogo_RAB!G7 -> 0 | F31: =+TT_riepilogo_RAB!H7 -> 0 | P31: TRUE | Q31: TRUE | R31: TRUE | S31: TRUE | U31: TRUE | V31: TRUE | W31: TRUE | X31: TRUE
A32: Fondo Nuovi Investimenti | B32: AMMfoni | C32: =Dati_Anni_precedenti!C32 -> 0 | D32: =Dati_Anni_precedenti!D30 -> 0 | E32: =+FoNI!E7 -> 0 | F32: =+FoNI!F7 -> 0 | P32: TRUE | Q32: TRUE | R32: TRUE | S32: TRUE | U32: TRUE | V32: TRUE | W32: TRUE | X32: TRUE
A33: Fondo Nuovi Investimenti | B33: ΔCUITfoni | C33: =Dati_Anni_precedenti!C30 -> 0 | D33: =Dati_Anni_precedenti!D31 -> 0 | E33: =+FoNI!E9 -> 0 | F33: =+FoNI!F9 -> 0 | P33: TRUE | Q33: TRUE | R33: TRUE | S33: TRUE | U33: TRUE | V33: TRUE | W33: TRUE | X33: TRUE
A34: Fondo Nuovi Investimenti | B34: FNIfoni | C34: =Dati_Anni_precedenti!C32 -> 0 | D34: =Dati_Anni_precedenti!D32 -> 0 | E34: =+FoNI!E8 -> 0 | F34: =+FoNI!F8 -> 0 | P34: TRUE | Q34: TRUE | R34: TRUE | S34: TRUE | U34: TRUE | V34: TRUE | W34: TRUE | X34: TRUE
A35: Costi Operativi | B35: ERCQT | E35: =ERC!E8 -> 0 | F35: =ERC!F8 -> 0 | R35: TRUE | S35: TRUE
A36: Costi Operativi | B36: ERCend | C36: =Dati_Anni_precedenti!C34 -> 0 | D36: =Dati_Anni_precedenti!D34 -> 0 | E36: =ERC!E37 -> 0 | F36: =ERC!F37 -> 0 | P36: TRUE | Q36: TRUE | R36: TRUE | S36: TRUE
A37: Costi Operativi | B37: ERCal | C37: =Dati_Anni_precedenti!C35 -> 0 | D37: =Dati_Anni_precedenti!D35 -> 0 | E37: =ERC!E21 -> 0 | F37: =ERC!F21 -> 0 | P37: TRUE | Q37: TRUE | R37: TRUE | S37: TRUE
A38: Costi Operativi | B38: COato | C38: =Dati_Anni_precedenti!C36 -> 0 | D38: =Dati_Anni_precedenti!D36 -> 0 | E38: =+Opex!E90 -> 0 | F38: =+Opex!F90 -> 0 | P38: TRUE | Q38: TRUE | R38: TRUE | S38: TRUE | U38: =+C38>=0 -> TRUE | V38: TRUE | W38: TRUE | X38: TRUE
A39: Costi Operativi | B39: COaeegsi | C39: =Dati_Anni_precedenti!C37 -> 0 | D39: =Dati_Anni_precedenti!D37 -> 0 | E39: =+Opex!E101 -> 0 | F39: =+Opex!F101 -> 0 | P39: TRUE | Q39: TRUE | R39: TRUE | S39: TRUE | U39: TRUE | V39: TRUE | W39: TRUE | X39: TRUE
A40: Costi Operativi | B40: COmor | C40: =Dati_Anni_precedenti!C38 -> 0 | D40: =Dati_Anni_precedenti!D38 -> 0 | E40: =+Opex!E113 -> 0 | F40: =+Opex!F113 -> 0 | P40: TRUE | Q40: TRUE | R40: TRUE | S40: TRUE | U40: TRUE | V40: TRUE | W40: TRUE | X40: TRUE
A41: Costi Operativi | B41: COres | C41: =Dati_Anni_precedenti!C39 -> 0 | D41: =Dati_Anni_precedenti!D39 -> 0 | E41: =+Opex!E120 -> 0 | F41: =+Opex!F120 -> 0 | P41: TRUE | Q41: TRUE | R41: TRUE | S41: TRUE
A42: Costi Operativi | B42: COee | C42: =Dati_Anni_precedenti!C40 -> 0 | D42: =Dati_Anni_precedenti!D40 -> 0 | E42: =+Opex!E42 -> 0 | F42: =+Opex!F42 -> 0 | P42: TRUE | Q42: TRUE | R42: TRUE | S42: TRUE | U42: =+C42>=0 -> TRUE | V42: TRUE | W42: TRUE | X42: TRUE
A43: Costi Operativi | B43: Cows - water | C43: =Dati_Anni_precedenti!C41 -> 0 | D43: =Dati_Anni_precedenti!D41 -> 0 | E43: =Opex!E50 -> 0 | F43: =Opex!F50 -> 0 | P43: TRUE | Q43: TRUE | R43: TRUE | S43: TRUE | U43: TRUE | V43: TRUE | W43: TRUE | X43: TRUE
A44: Costi Operativi | B44: Cows - other | C44: =Dati_Anni_precedenti!C42 -> 0 | D44: =Dati_Anni_precedenti!D42 -> 0 | E44: =Opex!E51 -> 0 | F44: =Opex!F51 -> 0 | P44: TRUE | Q44: TRUE | R44: TRUE | S44: TRUE | U44: TRUE | V44: TRUE | W44: TRUE | X44: TRUE
A45: Costi Operativi | B45: MT | C45: =Dati_Anni_precedenti!C43 -> 0 | D45: =Dati_Anni_precedenti!D43 -> 0 | E45: =+Opex!E61 -> 0 | F45: =+Opex!F61 -> 0 | P45: TRUE | Q45: TRUE | R45: TRUE | S45: TRUE | U45: TRUE | V45: TRUE | W45: TRUE | X45: TRUE
A46: Costi Operativi | B46: AC | C46: =Dati_Anni_precedenti!C44 -> 0 | D46: =Dati_Anni_precedenti!D44 -> 0 | E46: =+Opex!E62 -> 0 | F46: =+Opex!F62 -> 0 | P46: TRUE | Q46: TRUE | R46: TRUE | S46: TRUE | U46: TRUE | V46: TRUE | W46: TRUE | X46: TRUE
A47: Costi Operativi | B47: Opexend | C47: =Dati_Anni_precedenti!C45 -> 0 | D47: =Dati_Anni_precedenti!D45 -> 0 | E47: =+Opex!E8-Input_per_calcoli_finali!K142 -> 0 | F47: =+Opex!F8-Input_per_calcoli_finali!L142 -> 0 | P47: TRUE | Q47: TRUE | R47: TRUE | S47: TRUE | U47: TRUE | V47: TRUE | W47: TRUE | X47: TRUE
A48: Costi Operativi | B48: Contributi c/e | C48: =Dati_Anni_precedenti!C46 -> 0 | D48: =Dati_Anni_precedenti!D46 -> 0 | E48: =Opex!E119 -> 0 | F48: =Opex!F119 -> 0 | P48: TRUE | Q48: TRUE | R48: TRUE | S48: TRUE | U48: TRUE | V48: TRUE | W48: TRUE | X48: TRUE
A49: Sezione Conguagli | B49: RcVOL | C49: =Dati_Anni_precedenti!C47 -> 0 | D49: =Dati_Anni_precedenti!D47 -> 0 | E49: ='Rc'!E30*(TT_parametri!BH8) -> 0 | F49: ='Rc'!F30*(TT_parametri!BI8) -> 0
A50: Sezione Conguagli | B50: RcEE | C50: =Dati_Anni_precedenti!C48 -> 0 | D50: =Dati_Anni_precedenti!D48 -> 0 | E50: ='Rc'!E50*(TT_parametri!BH8) -> 0 | F50: ='Rc'!F50*(TT_parametri!BI8) -> 0
A51: Sezione Conguagli | B51: RcWS | C51: =Dati_Anni_precedenti!C49 -> 0 | D51: =Dati_Anni_precedenti!D49 -> 0 | E51: ='Rc'!E70*(TT_parametri!BH8) -> 0 | F51: ='Rc'!F70*(TT_parametri!BI8) -> 0
A52: Sezione Conguagli | B52: RcERCa | C52: =Dati_Anni_precedenti!C50 -> 0 | D52: =Dati_Anni_precedenti!D50 -> 0 | E52: ='Rc'!E82*(TT_parametri!BH8) -> 0 | F52: ='Rc'!F82*(TT_parametri!BI8) -> 0
A53: Sezione Conguagli | B53: RcaAttiv b | C53: =Dati_Anni_precedenti!C51 -> 0 | D53: =Dati_Anni_precedenti!D51 -> 0 | E53: ='Rc'!E103*(TT_parametri!BH8) -> 0 | F53: ='Rc'!F103*(TT_parametri!BI8) -> 0
A54: Sezione Conguagli | B54: Rcares | C54: =Dati_Anni_precedenti!C52 -> 0 | D54: =Dati_Anni_precedenti!D52 -> 0 | E54: ='Rc'!E115*(TT_parametri!BH8) -> 0 | F54: ='Rc'!F115*(TT_parametri!BI8) -> 0
A55: Sezione Conguagli | B55: RcaAEEGSI | C55: =Dati_Anni_precedenti!C53 -> 0 | D55: =Dati_Anni_precedenti!D53 -> 0 | E55: ='Rc'!E127*(TT_parametri!BH8) -> 0 | F55: ='Rc'!F127*(TT_parametri!BI8) -> 0
A56: Sezione Conguagli | B56: Costi per variazioni sistemiche/ eventi eccezionali | C56: =Dati_Anni_precedenti!C54 -> 0 | D56: =Dati_Anni_precedenti!D54 -> 0 | E56: ='Rc'!E136*(TT_parametri!BH8) -> 0 | F56: ='Rc'!F136*(TT_parametri!BI8) -> 0
A57: Sezione Conguagli | B57: Costo forniture all’ingrosso transfrontaliere | C57: =Dati_Anni_precedenti!C55 -> 0 | D57: =Dati_Anni_precedenti!D55 -> 0 | E57: ='Rc'!E137*(TT_parametri!BH8) -> 0 | F57: ='Rc'!F137*(TT_parametri!BI8) -> 0
A58: Sezione Conguagli | B58: RcIP (valori a moneta a-2) | D58: =Dati_Anni_precedenti!D56 -> 0 | F58: ='Rc'!F138*(TT_parametri!BI8) -> 0
A59: Sezione Conguagli | B59: Rimb335 | C59: =Dati_Anni_precedenti!C57 -> 0 | D59: =Dati_Anni_precedenti!D57 -> 0 | E59: ='Rc'!E139*(TT_parametri!BH8) -> 0 | F59: ='Rc'!F139*(TT_parametri!BI8) -> 0
A60: Sezione Conguagli | B60: Rcaappr (riportato a moneta a-2) | C60: =Dati_Anni_precedenti!C58 -> 0 | D60: =Dati_Anni_precedenti!D58 -> 0 | E60: ='Rc'!E140*(TT_parametri!BH8) -> 0 | F60: ='Rc'!F140*(TT_parametri!BI8) -> 0
A61: Sezione Conguagli | B61: recupero volumi | D61: =Dati_Anni_precedenti!D59 -> 0 | F61: ='Rc'!F152*(TT_parametri!BI8) -> 0
A62: Sezione Conguagli | B62: recupero energia elettrica | D62: =Dati_Anni_precedenti!D60 -> 0 | F62: ='Rc'!F168*(TT_parametri!BI8) -> 0
A63: Sezione Conguagli | B63: DOpexQC | E63: ='Rc'!E184*(TT_parametri!BH8) -> 0 | F63: ='Rc'!F184*(TT_parametri!BI8) -> 0
A64: Sezione Conguagli | B64: Rctot | C64: =Dati_Anni_precedenti!C61 -> 0 | D64: =Dati_Anni_precedenti!D61 -> 0 | E64: =+VRG_Teta!E27 -> 0 | F64: =+VRG_Teta!F27 -> 0 | P64: =+C64<>"" -> TRUE | Q64: =+D64<>"" -> TRUE | R64: TRUE | S64: TRUE
A65: Ammortamento finanziario MTI | B65: AF MTI | G65: =+IF(OR(iAF="SI",schema="IV",schema="V",schema="VI"),"SI","NO") -> NO | T65: =+G65<>"" -> TRUE

Sheet VRG_ult_specificazioni_calc (hidden)
A3: Sezione | B3: Voce | C3: 2016 | D3: 2017 | E3: 2018 | F3: 2019 | G3: 2016-2019
A4: Delibera AEEGSI | B4: Delibera
A5: Delibera AEEGSI | B5: J deliberato | C5: =Dati_Anni_precedenti!C5 -> 0 | D5: =Dati_Anni_precedenti!D5 -> 0 | E5: =+MIN(VRG_Teta!E53,VRG_Teta!E56) -> 0 | F5: =+MIN(VRG_Teta!F53,VRG_Teta!F56) -> 0
A6: Delibera AEEGSI | B6: J medio | C6: =Dati_Anni_precedenti!C6 -> 0 | D6: =Dati_Anni_precedenti!D6 -> 0
A7: Delibera AEEGSI | B7: RC post | G7: =+IFERROR(VALUE(Input_per_calcoli_finali!I113),0) -> 0
A8: Schema regolatorio | B8: ∑Ipexp | G8: =+Piano_Tariffario!M10 -> 0
A9: Schema regolatorio | B9: Ipexp | C9: =Dati_Anni_precedenti!C9 -> 0 | D9: =Dati_Anni_precedenti!D9 -> 0 | E9: =+Piano_Tariffario!M77 -> 0 | F9: =+Piano_Tariffario!N77 -> 0
A10: Schema regolatorio | B10: ψ | G10: =+Piano_Tariffario!M14 -> 0
A11: Schema regolatorio | B11: RAB MTI | G11: =+Piano_Tariffario!M11 -> 0
A12: Schema regolatorio | B12: Schema regolatorio | G12: =+Piano_Tariffario!M15 -> 
A13: Schema regolatorio | B13: Opnew,a | C13: =Dati_Anni_precedenti!C13 -> 0 | D13: =Dati_Anni_precedenti!D13 -> 0 | E13: =+Opex!E10 -> 0 | F13: =+Opex!F10 -> 0
A14: Schema regolatorio | B14: Opexqc | C14: =Dati_Anni_precedenti!C14 -> 0 | D14: =Dati_Anni_precedenti!D14 -> 0 | E14: =+Opex!E9 -> 0 | F14: =+Opex!F9 -> 0
A15: Schema regolatorio | B15: Opexvirt | C15: =Dati_Anni_precedenti!C15 -> 0 | D15: =Dati_Anni_precedenti!D15 -> 0 | E15: =+Opex!E13 -> 0 | F15: =+Opex!F13 -> 0
A16: Schema regolatorio | B16: OpexQT | E16: =+Opex!E148 -> 0 | F16: =+Opex!F148 -> 0
A17: Schema regolatorio | B17: Opsocial | E17: =+Opex!E158 -> 0 | F17: =+Opex!F158 -> 0
A18: Moltiplicatore | B18: VRG approvato | C18: =Dati_Anni_precedenti!C16 -> 0 | D18: =Dati_Anni_precedenti!D16 -> 0 | E18: =VRG_Teta!E52 -> 0 | F18: =VRG_Teta!F52 -> 0
A19: Moltiplicatore | B19: ∑tarif2015 * vscala-2 | C19: =Dati_Anni_precedenti!C17 -> 0 | D19: =Dati_Anni_precedenti!D17 -> 0 | E19: =+Piano_Tariffario!M64 -> 0 | F19: =+Piano_Tariffario!N64 -> 0
A20: Moltiplicatore | B20: di cui: Ricavi ws | C20: =Dati_Anni_precedenti!C18 -> 0 | D20: =Dati_Anni_precedenti!D18 -> 0 | E20: =+SUM(Vendita_Servizi_ingrosso!AJ:AJ) -> 0 | F20: =+SUM(Vendita_Servizi_ingrosso!AL:AL) -> 0
A21: Moltiplicatore | B21: di cui: Ra | C21: =Dati_Anni_precedenti!C19 -> 0 | D21: =Dati_Anni_precedenti!D19 -> 0 | E21: =+VRG_Teta!E45 -> 0 | F21: =+VRG_Teta!F45 -> 0
A22: Moltiplicatore | B22: di cui: gestioni incom. | C22: =Dati_Anni_precedenti!C20 -> 0 | D22: =Dati_Anni_precedenti!D20 -> 0 | E22: =+VRG_Teta!E43 -> 0 | F22: =+VRG_Teta!F43 -> 0
A23: Moltiplicatore | B23: Rba-2 | C23: =Dati_Anni_precedenti!C21 -> 0 | D23: =Dati_Anni_precedenti!D21 -> 0 | E23: =+Piano_Tariffario!M63 -> 0 | F23: =+Piano_Tariffario!N63 -> 0
A24: Moltiplicatore | B24: Cba-2 | C24: =Dati_Anni_precedenti!C22 -> 0 | D24: =Dati_Anni_precedenti!D22 -> 0 | E24: =+VRG_Teta!E118 -> 0 | F24: =+VRG_Teta!F118 -> 0
A25: Costi delle immobilizzazioni | B25: AMMcapex | C25: =Dati_Anni_precedenti!C23 -> 0 | D25: =Dati_Anni_precedenti!D23 -> 0 | E25: =+Piano_Tariffario!M30 -> 0 | F25: =+Piano_Tariffario!N30 -> 0
A26: Costi delle immobilizzazioni | B26: OF | C26: =Dati_Anni_precedenti!C24 -> 0 | D26: =Dati_Anni_precedenti!D24 -> 0 | E26: =+Piano_Tariffario!M31 -> 0 | F26: =+Piano_Tariffario!N31 -> 0
A27: Costi delle immobilizzazioni | B27: OFisc | C27: =Dati_Anni_precedenti!C25 -> 0 | D27: =Dati_Anni_precedenti!D25 -> 0 | E27: =+Piano_Tariffario!M32 -> 0 | F27: =+Piano_Tariffario!N32 -> 0
A28: Costi delle immobilizzazioni | B28: ΔCUITcapex | C28: =Dati_Anni_precedenti!C26 -> 0 | D28: =Dati_Anni_precedenti!D26 -> 0 | E28: =+Piano_Tariffario!M33 -> 0 | F28: =+Piano_Tariffario!N33 -> 0
A29: Immobilizzazioni | B29: IML | C29: =Dati_Anni_precedenti!C27 -> 0 | D29: =Dati_Anni_precedenti!D27 -> 0 | E29: =+TT_riepilogo_RAB!G6 -> 0 | F29: =+TT_riepilogo_RAB!H6 -> 0
A30: Immobilizzazioni | B30: IMN | C30: =Dati_Anni_precedenti!C28 -> 0 | D30: =Dati_Anni_precedenti!D28 -> 0 | E30: =+TT_riepilogo_RAB!G8 -> 0 | F30: =+TT_riepilogo_RAB!H8 -> 0
A31: Immobilizzazioni | B31: FA | C31: =Dati_Anni_precedenti!C29 -> 0 | D31: =Dati_Anni_precedenti!D29 -> 0 | E31: =+TT_riepilogo_RAB!G7 -> 0 | F31: =+TT_riepilogo_RAB!H7 -> 0
A32: Fondo Nuovi Investimenti | B32: AMMfoni | C32: =Dati_Anni_precedenti!C32 -> 0 | D32: =Dati_Anni_precedenti!D30 -> 0 | E32: =+FoNI!E7 -> 0 | F32: =+FoNI!F7 -> 0
A33: Fondo Nuovi Investimenti | B33: ΔCUITfoni | C33: =Dati_Anni_precedenti!C30 -> 0 | D33: =Dati_Anni_precedenti!D31 -> 0 | E33: =+FoNI!E9 -> 0 | F33: =+FoNI!F9 -> 0
A34: Fondo Nuovi Investimenti | B34: FNIfoni | C34: =Dati_Anni_precedenti!C32 -> 0 | D34: =Dati_Anni_precedenti!D32 -> 0 | E34: =+FoNI!E8 -> 0 | F34: =+FoNI!F8 -> 0
A35: Costi Operativi | B35: ERCQT | E35: =ERC!E8 -> 0 | F35: =ERC!F8 -> 0
A36: Costi Operativi | B36: ERCend | C36: =Dati_Anni_precedenti!C34 -> 0 | D36: =Dati_Anni_precedenti!D34 -> 0 | E36: =ERC!E37 -> 0 | F36: =ERC!F37 -> 0
A37: Costi Operativi | B37: ERCal | C37: =Dati_Anni_precedenti!C35 -> 0 | D37: =Dati_Anni_precedenti!D35 -> 0 | E37: =ERC!E21 -> 0 | F37: =ERC!F21 -> 0
A38: Costi Operativi | B38: COato | C38: =Dati_Anni_precedenti!C36 -> 0 | D38: =Dati_Anni_precedenti!D36 -> 0 | E38: =+Opex!E90 -> 0 | F38: =+Opex!F90 -> 0
A39: Costi Operativi | B39: COaeegsi | C39: =Dati_Anni_precedenti!C37 -> 0 | D39: =Dati_Anni_precedenti!D37 -> 0 | E39: =+Opex!E101 -> 0 | F39: =+Opex!F101 -> 0
A40: Costi Operativi | B40: COmor | C40: =Dati_Anni_precedenti!C38 -> 0 | D40: =Dati_Anni_precedenti!D38 -> 0 | E40: =+Opex!E113 -> 0 | F40: =+Opex!F113 -> 0
A41: Costi Operativi | B41: COres | C41: =Dati_Anni_precedenti!C39 -> 0 | D41: =Dati_Anni_precedenti!D39 -> 0 | E41: =+Opex!E120 -> 0 | F41: =+Opex!F120 -> 0
A42: Costi Operativi | B42: COee | C42: =Dati_Anni_precedenti!C40 -> 0 | D42: =Dati_Anni_precedenti!D40 -> 0 | E42: =+Opex!E42 -> 0 | F42: =+Opex!F42 -> 0
A43: Costi Operativi | B43: Cows - water | C43: =Dati_Anni_precedenti!C41 -> 0 | D43: =Dati_Anni_precedenti!D41 -> 0 | E43: =Opex!E50 -> 0 | F43: =Opex!F50 -> 0
A44: Costi Operativi | B44: Cows - other | C44: =Dati_Anni_precedenti!C42 -> 0 | D44: =Dati_Anni_precedenti!D42 -> 0 | E44: =Opex!E51 -> 0 | F44: =Opex!F51 -> 0
A45: Costi Operativi | B45: MT | C45: =Dati_Anni_precedenti!C43 -> 0 | D45: =Dati_Anni_precedenti!D43 -> 0 | E45: =+Opex!E61 -> 0 | F45: =+Opex!F61 -> 0
A46: Costi Operativi | B46: AC | C46: =Dati_Anni_precedenti!C44 -> 0 | D46: =Dati_Anni_precedenti!D44 -> 0 | E46: =+Opex!E62 -> 0 | F46: =+Opex!F62 -> 0
A47: Costi Operativi | B47: Opexend | C47: =Dati_Anni_precedenti!C45 -> 0 | D47: =Dati_Anni_precedenti!D45 -> 0 | E47: =+Opex!E8-Input_per_calcoli_finali!K142 -> 0 | F47: =+Opex!F8-Input_per_calcoli_finali!L142 -> 0
A48: Costi Operativi | B48: Contributi c/e | C48: =Dati_Anni_precedenti!C46 -> 0 | D48: =Dati_Anni_precedenti!D46 -> 0 | E48: =Opex!E119 -> 0 | F48: =Opex!F119 -> 0
A49: Sezione Conguagli | B49: RcVOL | C49: =Dati_Anni_precedenti!C47 -> 0 | D49: =Dati_Anni_precedenti!D47 -> 0 | E49: ='Rc'!E30*(TT_parametri!BH8) -> 0 | F49: ='Rc'!F30*(TT_parametri!BI8) -> 0
A50: Sezione Conguagli | B50: RcEE | C50: =Dati_Anni_precedenti!C48 -> 0 | D50: =Dati_Anni_precedenti!D48 -> 0 | E50: ='Rc'!E50*(TT_parametri!BH8) -> 0 | F50: ='Rc'!F50*(TT_parametri!BI8) -> 0
A51: Sezione Conguagli | B51: RcWS | C51: =Dati_Anni_precedenti!C49 -> 0 | D51: =Dati_Anni_precedenti!D49 -> 0 | E51: ='Rc'!E70*(TT_parametri!BH8) -> 0 | F51: ='Rc'!F70*(TT_parametri!BI8) -> 0
A52: Sezione Conguagli | B52: RcERCa | C52: =Dati_Anni_precedenti!C50 -> 0 | D52: =Dati_Anni_precedenti!D50 -> 0 | E52: ='Rc'!E82*(TT_parametri!BH8) -> 0 | F52: ='Rc'!F82*(TT_parametri!BI8) -> 0
A53: Sezione Conguagli | B53: RcaAttiv b | C53: =Dati_Anni_precedenti!C51 -> 0 | D53: =Dati_Anni_precedenti!D51 -> 0 | E53: ='Rc'!E103*(TT_parametri!BH8) -> 0 | F53: ='Rc'!F103*(TT_parametri!BI8) -> 0
A54: Sezione Conguagli | B54: Rcares | C54: =Dati_Anni_precedenti!C52 -> 0 | D54: =Dati_Anni_precedenti!D52 -> 0 | E54: ='Rc'!E115*(TT_parametri!BH8) -> 0 | F54: ='Rc'!F115*(TT_parametri!BI8) -> 0
A55: Sezione Conguagli | B55: RcaAEEGSI | C55: =Dati_Anni_precedenti!C53 -> 0 | D55: =Dati_Anni_precedenti!D53 -> 0 | E55: ='Rc'!E127*(TT_parametri!BH8) -> 0 | F55: ='Rc'!F127*(TT_parametri!BI8) -> 0
A56: Sezione Conguagli | B56: Costi per variazioni sistemiche/ eventi eccezionali | C56: =Dati_Anni_precedenti!C54 -> 0 | D56: =Dati_Anni_precedenti!D54 -> 0 | E56: ='Rc'!E136*(TT_parametri!BH8) -> 0 | F56: ='Rc'!F136*(TT_parametri!BI8) -> 0
A57: Sezione Conguagli | B57: Costo forniture all’ingrosso transfrontaliere | C57: =Dati_Anni_precedenti!C55 -> 0 | D57: =Dati_Anni_precedenti!D55 -> 0 | E57: ='Rc'!E137*(TT_parametri!BH8) -> 0 | F57: ='Rc'!F137*(TT_parametri!BI8) -> 0
A58: Sezione Conguagli | B58: RcIP (valori a moneta a-2) | D58: =Dati_Anni_precedenti!D56 -> 0 | F58: ='Rc'!F138*(TT_parametri!BI8) -> 0
A59: Sezione Conguagli | B59: Rimb335 | C59: =Dati_Anni_precedenti!C57 -> 0 | D59: =Dati_Anni_precedenti!D57 -> 0 | E59: ='Rc'!E139*(TT_parametri!BH8) -> 0 | F59: ='Rc'!F139*(TT_parametri!BI8) -> 0
A60: Sezione Conguagli | B60: Rcaappr (riportato a moneta a-2) | C60: =Dati_Anni_precedenti!C58 -> 0 | D60: =Dati_Anni_precedenti!D58 -> 0 | E60: ='Rc'!E140*(TT_parametri!BH8) -> 0 | F60: ='Rc'!F140*(TT_parametri!BI8) -> 0
A61: Sezione Conguagli | B61: DRCvol2015 | D61: =Dati_Anni_precedenti!D59 -> 0 | F61: ='Rc'!F152*(TT_parametri!BI8) -> 0
A62: Sezione Conguagli | B62: DRCee2015 | D62: =Dati_Anni_precedenti!D60 -> 0 | F62: ='Rc'!F168*(TT_parametri!BI8) -> 0
A63: Sezione Conguagli | B63: DOpexQC | E63: ='Rc'!E184*(TT_parametri!BH8) -> 0 | F63: ='Rc'!F184*(TT_parametri!BI8) -> 0
A64: Sezione Conguagli | B64: Rctot | C64: =Dati_Anni_precedenti!C61 -> 0 | D64: =Dati_Anni_precedenti!D61 -> 0 | E64: =+VRG_Teta!E27 -> 0 | F64: =+VRG_Teta!F27 -> 0
A65: Ammortamento finanziario MTI | B65: AF MTI | G65: =+IF(OR(iAF="SI",schema="IV",schema="V",schema="VI"),"SI","NO") -> NO

Sheet Piano_Tariffario
C2: PIANO TARIFFARIO
C3: SCHEMI REGOLATORI
I4: Note | J4: UdM | K4: Del 664/2015/R/idr | M4: Del 918/2017/R/idr
D5: Sezione_Piano_Tariffario | E5: Voce_Piano_Tariffario | F5: n_riga | G5: ID ATO | H5: Codice Aeeg | J5: UdM | K5: 2016 | M5: 2016 | N5: 2019 | O5: 2020 | P5: 2021 | Q5: 2022 | R5: 2023 | S5: 2024 | T5: 2025 | U5: 2026 | V5: 2027 | W5: 2028 | X5: 2029 | Y5: 2030 | Z5: 2031 | AA5: 2032 | AB5: 2033 | AC5: 2034 | AD5: 2035 | AE5: 2036 | AF5: 2037 | AG5: 2038 | AH5: 2039 | AI5: 2040 | AJ5: 2041 | AK5: 2042 | AL5: 2043 | AM5: 2044 | AN5: 2045
C6: Opex2014 | D6: SCHEMI REGOLATORI | E6: Op | F6: 1 | G6: 103 | H6: 2937 | J6: euro | K6: =Storico_Piano_Tariffario!K6 -> 0 | M6: =Storico_Piano_Tariffario!K6 -> 0
C7: Popolazione 2012 | J7: n. abitante | K7: =Storico_Piano_Tariffario!K7 -> 0 | M7: =Storico_Piano_Tariffario!K7 -> 0
D8: SCHEMI REGOLATORI | E8: Sommatoria IP/RAB <= omega | F8: 7 | G8: 103 | H8: 2937 | J8: SI/NO | K8: =Storico_Piano_Tariffario!K8 -> 0 | M8: =Storico_Piano_Tariffario!K8 -> 0
C9: nessuna variazione di obiettivi o attività del gestore: (NO) oppure presenza di variazioni negli obiettivi o nelle attività del gestore: (SI) | D9: SCHEMI REGOLATORI | E9: PresenzaVariazioni | F9: 4 | G9: 103 | H9: 2937 | J9: SI/NO | K9: =Storico_Piano_Tariffario!K9 -> 0 | M9: =+IF(OR(var="nessuna variazione", var=""),"NO","SI") -> NO
C10: ∑Iptexp 2016-2019 | D10: SCHEMI REGOLATORI | E10: Sommatoria_IP_exp | F10: 5 | G10: 103 | H10: 2937 | J10: euro | K10: =Storico_Piano_Tariffario!K10 -> 0 | M10: =+Input_per_calcoli_finali!I47 -> 0
C11: RABMTI | D11: SCHEMI REGOLATORI | E11: RAB_MTT | F11: 6 | G11: 103 | H11: 2937 | J11: euro | K11: =Storico_Piano_Tariffario!K11 -> 0 | M11: =+Dati_Anni_precedenti!E11 -> 0
J12: SI/NO | K12: =Storico_Piano_Tariffario!K12 -> 0 | M12: =IFERROR(IF(Input_per_calcoli_finali!I47/Input_per_calcoli_finali!G53<=framework_schemi!D39,"SI","NO"),0) -> 0
C13: SCHEMA REGOLATORIO (A) SCHEMA VIRTUALE (B) | D13: SCHEMI REGOLATORI | E13: SCHEMA REGOLATORIO | F13: 8 | J13: A/B | K13: =Storico_Piano_Tariffario!K13 -> 0 | M13: =+IF(mti_2="","",IF(mti_2="schema virtuale","schema virtuale","schema regolatorio")) -> 
C14: y | J14: (0,4-0,8) | K14: =Storico_Piano_Tariffario!K14 -> 0 | M14: =+Input_per_calcoli_finali!$I$55 -> 0
C15: SCHEMA REGOLATORIO | D15: SCHEMI REGOLATORI | E15: SCHEMA REGOLATORIO | F15: 8 | G15: 103 | H15: 2937 | J15: (I, II, III, IV, V, VI) | K15: =Storico_Piano_Tariffario!K15 -> 0 | M15: =+IF(OR(schema="I",schema="II",schema="III",schema="IV",schema="V",schema="VI"),+IF(framework_schemi!D59="",schema,"Specifica istruttoria"),"") ->  | N15: =+framework_schemi!D59 -> 
C20: COMPONENTI DI COSTO Opex, Capex , FNInew, ERC | F20: 10
F21: 11 | I21: Note | J21: UdM | K21: 2016 | L21: 2017 | M21: 2018 | N21: 2019 | O21: 2020 | P21: 2021 | Q21: 2022 | R21: 2023 | S21: 2024 | T21: 2025 | U21: 2026 | V21: 2027 | W21: 2028 | X21: 2029 | Y21: 2030 | Z21: 2031 | AA21: 2032 | AB21: 2033 | AC21: 2034 | AD21: 2035 | AE21: 2036 | AF21: 2037 | AG21: 2038 | AH21: 2039 | AI21: 2040 | AJ21: 2041 | AK21: 2042 | AL21: 2043 | AM21: 2044 | AN21: 2045 | AO21: 2046 | AP21: 2047
C22: Opexaend (al netto degli ERC) | D22: COMPONENTI DI COSTO Opexa, Capexa e FNInew,a | E22: Opex_A_end | F22: 12 | G22: 103 | H22: 2937 | J22: euro | K22: =Storico_Piano_Tariffario!K22 -> 0 | L22: =Storico_Piano_Tariffario!L22 -> 0 | M22: =+Opex!E8-Input_per_calcoli_finali!K142 -> 0 | N22: =+Opex!F8-Input_per_calcoli_finali!L142 -> 0
C23: Opexaal (al netto degli ERC) | D23: COMPONENTI DI COSTO Opexa, Capexa e FNInew,a | E23: Opex_A_al | F23: 13 | G23: 103 | H23: 2937 | J23: euro | K23: =Storico_Piano_Tariffario!K23 -> 0 | L23: =Storico_Piano_Tariffario!L23 -> 0 | M23: =+Opex!E7-Input_per_calcoli_finali!K144 -> 0 | N23: =+Opex!F7-Input_per_calcoli_finali!L144 -> 0
C24: OpexaQC | J24: euro | K24: =Storico_Piano_Tariffario!K24 -> 0 | L24: =Storico_Piano_Tariffario!L24 -> 0 | M24: =+Opex!E9 -> 0 | N24: =+Opex!F9 -> 0
C25: Opnew,a | J25: euro | K25: =Storico_Piano_Tariffario!K25 -> 0 | L25: =Storico_Piano_Tariffario!L25 -> 0 | M25: =+Opex!E10 -> 0 | N25: =+Opex!F10 -> 0
C26: Opexavirt | J26: euro | K26: =Storico_Piano_Tariffario!K26 -> 0 | L26: =Storico_Piano_Tariffario!L26 -> 0 | M26: =+Opex!E13 -> 0 | N26: =+Opex!F13 -> 0
C27: OpexQT (al netto degli ERC) | J27: euro | M27: =+Opex!E11 -> 0 | N27: =+Opex!F11 -> 0
C28: Opsocial | J28: euro | M28: =+Opex!E12 -> 0 | N28: =+Opex!F12 -> 0
C29: Opexa | D29: COMPONENTI DI COSTO Opexa, Capexa e FNInew,a | E29: Opex_A | F29: 14 | G29: 103 | H29: 2937 | J29: euro | K29: =SUM(K22:K26) -> 0 | L29: 0 | M29: =SUM(M22:M28) -> 0 | N29: =SUM(N22:N28) -> 0
C30: AMMa | D30: COMPONENTI DI COSTO Opexa, Capexa e FNInew,a | E30: OFa | F30: 15 | G30: 103 | H30: 2937 | J30: euro | K30: =Storico_Piano_Tariffario!K28 -> 0 | L30: =Storico_Piano_Tariffario!L28 -> 0 | M30: =+Capex!E9-Input_per_calcoli_finali!K133 -> 0 | N30: =+Capex!F9-Input_per_calcoli_finali!L133 -> 0
C31: OFa | D31: COMPONENTI DI COSTO Opexa, Capexa e FNInew,a | E31: OFisca | F31: 16 | G31: 103 | H31: 2937 | J31: euro | K31: =Storico_Piano_Tariffario!K29 -> 0 | L31: =Storico_Piano_Tariffario!L29 -> 0 | M31: =+Capex!E7-Input_per_calcoli_finali!K135 -> 0 | N31: =+Capex!F7-Input_per_calcoli_finali!L135 -> 0
C32: OFisca | D32: COMPONENTI DI COSTO Opexa, Capexa e FNInew,a | E32: AMMa | F32: 17 | G32: 103 | H32: 2937 | J32: euro | K32: =Storico_Piano_Tariffario!K30 -> 0 | L32: =Storico_Piano_Tariffario!L30 -> 0 | M32: =+Capex!E8-Input_per_calcoli_finali!K137 -> 0 | N32: =+Capex!F8-Input_per_calcoli_finali!L137 -> 0
C33: DCUITaCapex | D33: COMPONENTI DI COSTO Opexa, Capexa e FNInew,a | E33: DCUITa | F33: 18 | G33: 103 | H33: 2937 | J33: euro | K33: =Storico_Piano_Tariffario!K31 -> 0 | L33: =Storico_Piano_Tariffario!L31 -> 0 | M33: =+Capex!E10 -> 0 | N33: =+Capex!F10 -> 0
C34: Capexavirt | J34: euro | K34: =Storico_Piano_Tariffario!K32 -> 0 | L34: =Storico_Piano_Tariffario!L32 -> 0 | M34: =+Capex!E11 -> 0 | N34: =+Capex!F11 -> 0
C35: Capexa | D35: COMPONENTI DI COSTO Opexa, Capexa e FNInew,a | E35: Capexa | F35: 19 | G35: 103 | H35: 2937 | J35: euro | K35: =SUM(K30:K34) -> 0 | L35: 0 | M35: =SUM(M30:M34) -> 0 | N35: =SUM(N30:N34) -> 0
C36: IPtexp | D36: COMPONENTI DI COSTO Opexa, Capexa e FNInew,a | E36: IP exp | F36: 20 | G36: 103 | H36: 2937 | J36: euro | K36: =Storico_Piano_Tariffario!K34 -> 0 | L36: =Storico_Piano_Tariffario!L34 -> 0 | M36: =+FoNI!E60 -> 0 | N36: =+FoNI!F60 -> 0
C37: Capexa | D37: COMPONENTI DI COSTO Opexa, Capexa e FNInew,a | E37: Capex_a | F37: 21 | G37: 103 | H37: 2937 | J37: euro | K37: =Storico_Piano_Tariffario!K35 -> 0 | L37: =Storico_Piano_Tariffario!L35 -> 0 | M37: =+FoNI!E61 -> 0 | N37: =+FoNI!F61 -> 0
C38: FNInew,a | D38: COMPONENTI DI COSTO Opexa, Capexa e FNInew,a | E38: FNI_new,a | F38: 22 | G38: 103 | H38: 2937 | J38: euro | K38: =+Dati_Anni_precedenti!C32 -> 0 | L38: =+Dati_Anni_precedenti!D32 -> 0 | M38: =IF(OR(schema="IV",schema="V",schema="VI"),FoNI!E65,0) -> 0 | N38: =IF(OR(schema="IV",schema="V",schema="VI"),FoNI!F65,0) -> 0
C39: ERCaend | D39: COMPONENTI DI COSTO Opexa, Capexa e FNInew,a | E39: IP exp | F39: 20 | G39: 103 | H39: 2937 | J39: euro | K39: =Storico_Piano_Tariffario!K37 -> 0 | L39: =Storico_Piano_Tariffario!L37 -> 0 | M39: =+ERC!E37 -> 0 | N39: =+ERC!F37 -> 0
C40: ERCaal | D40: COMPONENTI DI COSTO Opexa, Capexa e FNInew,a | E40: Capex_a | F40: 21 | G40: 103 | H40: 2937 | J40: euro | K40: =Storico_Piano_Tariffario!K38 -> 0 | L40: =Storico_Piano_Tariffario!L38 -> 0 | M40: =+ERC!E21 -> 0 | N40: =+ERC!F21 -> 0
C41: ERCa QT | J41: euro | M41: =+ERC!E8 -> 0 | N41: =+ERC!F8 -> 0
C42: ERCa | D42: COMPONENTI DI COSTO Opexa, Capexa e FNInew,a | E42: FNI_new,a | F42: 22 | G42: 103 | H42: 2937 | J42: euro | K42: =+SUM(K39:K40) -> 0 | L42: =+SUM(L39:L40) -> 0 | M42: =+SUM(M39:M41) -> 0 | N42: =+SUM(N39:N41) -> 0
F43: 23
C44: FONDO NUOVI INVESTIMENTI | F44: 43
F45: 44 | I45: Note | J45: UdM | K45: 2016 | L45: 2017 | M45: 2018 | N45: 2019 | O45: 2020 | P45: 2021 | Q45: 2022 | R45: 2023 | S45: 2024 | T45: 2025 | U45: 2026 | V45: 2027 | W45: 2028 | X45: 2029 | Y45: 2030 | Z45: 2031 | AA45: 2032 | AB45: 2033 | AC45: 2034 | AD45: 2035 | AE45: 2036 | AF45: 2037 | AG45: 2038 | AH45: 2039 | AI45: 2040 | AJ45: 2041 | AK45: 2042 | AL45: 2043 | AM45: 2044 | AN45: 2045 | AO45: 2046 | AP45: 2047
C46: FNIaFoNI | D46: FONDO NUOVI INVESTIMENTI | E46: AMM_a_FoNI | F46: 45 | G46: 103 | H46: 2937 | J46: euro | K46: =Storico_Piano_Tariffario!K43 -> 0 | L46: =Storico_Piano_Tariffario!L43 -> 0 | M46: =+FoNI!E8 -> 0 | N46: =+FoNI!F8 -> 0
C47: AMMaFoNI | D47: FONDO NUOVI INVESTIMENTI | E47: FNI_a_FoNI | F47: 46 | G47: 103 | H47: 2937 | J47: euro | K47: =Storico_Piano_Tariffario!K44 -> 0 | L47: =Storico_Piano_Tariffario!L44 -> 0 | M47: =+FoNI!E7 -> 0 | N47: =+FoNI!F7 -> 0
C48: DCUITaFoNI | D48: FONDO NUOVI INVESTIMENTI | E48: DCUIT_a_FoNI | F48: 47 | G48: 103 | H48: 2937 | J48: euro | K48: =Storico_Piano_Tariffario!K45 -> 0 | L48: =Storico_Piano_Tariffario!L45 -> 0 | M48: =+FoNI!E9 -> 0 | N48: =+FoNI!F9 -> 0
C49: FoNIa | D49: FONDO NUOVI INVESTIMENTI | E49: FoNI | F49: 48 | G49: 103 | H49: 2937 | J49: euro | K49: =+SUM(K46:K48) -> 0 | L49: =+SUM(L46:L48) -> 0 | M49: 0 | N49: 0
F50: 49
C51: SVILUPPO DEL VRG predisposto dal soggetto competente | F51: 24
F52: 25 | I52: Note | J52: UdM | K52: 2016 | L52: 2017 | M52: 2018 | N52: 2019 | O52: 2020 | P52: 2021 | Q52: 2022 | R52: 2023 | S52: 2024 | T52: 2025 | U52: 2026 | V52: 2027 | W52: 2028 | X52: 2029 | Y52: 2030 | Z52: 2031 | AA52: 2032 | AB52: 2033 | AC52: 2034 | AD52: 2035 | AE52: 2036 | AF52: 2037 | AG52: 2038 | AH52: 2039 | AI52: 2040 | AJ52: 2041 | AK52: 2042 | AL52: 2043 | AM52: 2044 | AN52: 2045 | AO52: 2046 | AP52: 2047
C53: Opexa | D53: SVILUPPO DEL VRGcalc | E53: Opex_a | F53: 26 | G53: 103 | H53: 2937 | J53: euro | K53: =Storico_Piano_Tariffario!K50 -> 0 | L53: =Storico_Piano_Tariffario!L50 -> 0 | M53: =+VRG_Teta!E25+Input_per_calcoli_finali!K156 -> 0 | N53: =+VRG_Teta!F25+Input_per_calcoli_finali!L156 -> 0
C54: Capexa | D54: SVILUPPO DEL VRGcalc | E54: Capex_a | F54: 27 | G54: 103 | H54: 2937 | J54: euro | K54: =Storico_Piano_Tariffario!K51 -> 0 | L54: =Storico_Piano_Tariffario!L51 -> 0 | M54: =+VRG_Teta!E23+Input_per_calcoli_finali!K155 -> 0 | N54: =+VRG_Teta!F23+Input_per_calcoli_finali!L155 -> 0
C55: FoNIa | D55: SVILUPPO DEL VRGcalc | E55: FoNI_a | F55: 28 | G55: 103 | H55: 2937 | J55: euro | K55: =Storico_Piano_Tariffario!K52 -> 0 | L55: =Storico_Piano_Tariffario!L52 -> 0 | M55: =+VRG_Teta!E24 -> 0 | N55: =+VRG_Teta!F24 -> 0
C56: RCaTOT | D56: SVILUPPO DEL VRGcalc | E56: RC_a_TOT | F56: 29 | G56: 103 | H56: 2937 | J56: euro | K56: =Storico_Piano_Tariffario!K53 -> 0 | L56: =Storico_Piano_Tariffario!L53 -> 0 | M56: =+VRG_Teta!E27 -> 0 | N56: =+VRG_Teta!F27 -> 0
C57: ERCa | D57: SVILUPPO DEL VRGcalc | E57: ERC_a | F57: 30 | G57: 103 | H57: 2937 | J57: euro | K57: =Storico_Piano_Tariffario!K54 -> 0 | L57: =Storico_Piano_Tariffario!L54 -> 0 | M57: =+VRG_Teta!E26+Input_per_calcoli_finali!K157 -> 0 | N57: =+VRG_Teta!F26+Input_per_calcoli_finali!L157 -> 0
C58: VRGa predisposto dal soggetto competente | D58: SVILUPPO DEL VRGcalc | E58: VRG_a | F58: 31 | G58: 103 | H58: 2937 | J58: euro | K58: =+SUM(K53:K57) -> 0 | L58: =+SUM(L53:L57) -> 0 | M58: 0 | N58: 0
F59: 32
C60: SVILUPPO DEL MOLTIPLICATORE TARIFFARIO predisposto dal soggetto competente | F60: 33
F61: 34 | I61: Note | J61: UdM | K61: 2016 | L61: 2017 | M61: 2018 | N61: 2019 | O61: 2020 | P61: 2021 | Q61: 2022 | R61: 2023 | S61: 2024 | T61: 2025 | U61: 2026 | V61: 2027 | W61: 2028 | X61: 2029 | Y61: 2030 | Z61: 2031 | AA61: 2032 | AB61: 2033 | AC61: 2034 | AD61: 2035 | AE61: 2036 | AF61: 2037 | AG61: 2038 | AH61: 2039 | AI61: 2040 | AJ61: 2041 | AK61: 2042 | AL61: 2043 | AM61: 2044 | AN61: 2045 | AO61: 2046 | AP61: 2047
C62: VRGa predisposto dal soggetto competente | D62: SVILUPPO DEL MOLTIPLICATORE TARIFFARIO | E62: VRG_a | F62: 35 | G62: 103 | H62: 2937 | J62: euro | K62: =+K58 -> 0 | L62: =+L58 -> 0 | M62: =+M58 -> 0 | N62: =+N58 -> 0
C63: Ra-2b | D63: SVILUPPO DEL MOLTIPLICATORE TARIFFARIO | E63: Rb_a-2 | F63: 37 | G63: 103 | H63: 2937 | J63: euro | K63: =Storico_Piano_Tariffario!K60 -> 0 | L63: =Storico_Piano_Tariffario!L60 -> 0 | M63: =+VRG_Teta!E44 -> 0 | N63: =+VRG_Teta!F44 -> 0
C64: S tarif2015*vscala-2 | D64: SVILUPPO DEL MOLTIPLICATORE TARIFFARIO | E64: Sommatoria di ( tarif_2012*vscal_a-2) | F64: 38 | G64: 103 | H64: 2937 | J64: euro | K64: =Storico_Piano_Tariffario!K61 -> 0 | L64: =Storico_Piano_Tariffario!L61 -> 0 | M64: =+VRG_Teta!E42+VRG_Teta!E43+VRG_Teta!E45 -> 0 | N64: =+VRG_Teta!F42+VRG_Teta!F43+VRG_Teta!F45 -> 0
C65: Ja predisposto dal soggetto competente | D65: SVILUPPO DEL MOLTIPLICATORE TARIFFARIO | E65: teta_a | F65: 39 | G65: 103 | H65: 2937 | J65: n. (3 cifre decimali) | K65: =Storico_Piano_Tariffario!K62 -> 0 | L65: =Storico_Piano_Tariffario!L62 -> 0 | M65: =+VRG_Teta!E53 -> 0 | N65: =+VRG_Teta!F53 -> 0
C67: SVILUPPO DEL MOLTIPLICATORE TARIFFARIO applicabile (nelle more dell'approvazione ARERA)
J68: UdM | K68: 2016 | L68: 2017 | M68: 2018 | N68: 2019 | O68: 2020 | P68: 2021 | Q68: 2022 | R68: 2023 | S68: 2024 | T68: 2025 | U68: 2026 | V68: 2027 | W68: 2028 | X68: 2029 | Y68: 2030 | Z68: 2031 | AA68: 2032 | AB68: 2033 | AC68: 2034 | AD68: 2035 | AE68: 2036 | AF68: 2037 | AG68: 2038 | AH68: 2039 | AI68: 2040 | AJ68: 2041 | AK68: 2042 | AL68: 2043 | AM68: 2044 | AN68: 2045 | AO68: 2046 | AP68: 2047
C69: Limite al moltiplicatore tariffario | D69: SVILUPPO DEL MOLTIPLICATORE TARIFFARIO | E69: Limite al moltiplicatore tariffario (co. 9.3 All. A - MTI) | F69: 40 | G69: 103 | H69: 2937 | J69: n. (3 cifre decimali) | K69: =Storico_Piano_Tariffario!K66 -> 0 | L69: =Storico_Piano_Tariffario!L66 -> 0 | M69: =+VRG_Teta!E63 -> 0 | N69: =+VRG_Teta!F63 -> 0
C70: VRGa (coerente con J applicabile) | D70: SVILUPPO DEL MOLTIPLICATORE TARIFFARIO | E70: teta_applicabile | F70: 41 | G70: 103 | H70: 2937 | J70: euro | K70: =Storico_Piano_Tariffario!K67 -> 0 | L70: =Storico_Piano_Tariffario!L67 -> 0 | M70: =++MIN(VRG_Teta!E59,VRG_Teta!E62) -> 0 | N70: =++MIN(VRG_Teta!F59,VRG_Teta!F62) -> 0
C71: Ja applicabile | J71: n. (3 cifre decimali) | K71: =Storico_Piano_Tariffario!K68 -> 0 | L71: =Storico_Piano_Tariffario!L68 -> 0 | M71: =+IF(mti_2="escluso dall'aggiornamento",1,MIN(VRG_Teta!E60,+VRG_Teta!E63)) -> 0 | N71: =+IF(mti_2="escluso dall'aggiornamento",1,MIN(VRG_Teta!F60,+VRG_Teta!F63)) -> 0
C73: INVESTIMENTI | F73: 50
F74: 51 | I74: Note | J74: UdM | K74: 2016 | L74: 2017 | M74: 2018 | N74: 2019 | O74: 2020 | P74: 2021 | Q74: 2022 | R74: 2023 | S74: 2024 | T74: 2025 | U74: 2026 | V74: 2027 | W74: 2028 | X74: 2029 | Y74: 2030 | Z74: 2031 | AA74: 2032 | AB74: 2033 | AC74: 2034 | AD74: 2035 | AE74: 2036 | AF74: 2037 | AG74: 2038 | AH74: 2039 | AI74: 2040 | AJ74: 2041 | AK74: 2042 | AL74: 2043 | AM74: 2044 | AN74: 2045 | AO74: 2046 | AP74: 2047
C75: Investimenti al lordo dei contributi | D75: INVESTIMENTI | E75: Investimenti_Lordo | F75: 52 | G75: 103 | H75: 2937 | J75: euro | K75: =+IFERROR(K76+K77,0) -> 0 | L75: =+IFERROR(L76+L77,0) -> 0 | M75: 0 | N75: 0
C76: Contributi | D76: INVESTIMENTI | E76: Contributi | F76: 53 | G76: 103 | H76: 2937 | J76: euro | K76: =Storico_Piano_Tariffario!K73 -> 0 | L76: =Storico_Piano_Tariffario!L73 -> 0 | M76: =+Input_per_calcoli_finali!K49 -> 0 | N76: =+Input_per_calcoli_finali!L49 -> 0
C77: Investimenti al netto dei contributi | D77: INVESTIMENTI | E77: Investimenti_Netto | F77: 54 | G77: 103 | H77: 2937 | J77: euro | K77: =Storico_Piano_Tariffario!K74 -> 0 | L77: =Storico_Piano_Tariffario!L74 -> 0 | M77: =++Input_per_calcoli_finali!K48 -> 0 | N77: =++Input_per_calcoli_finali!L48 -> 0
C78: CIN | D78: INVESTIMENTI | E78: CIN | F78: 55 | G78: 103 | H78: 2937 | J78: euro | K78: =Storico_Piano_Tariffario!K75 -> 0 | L78: =Storico_Piano_Tariffario!L75 -> 0 | M78: =+Capex!E55 -> 0 | N78: =+Capex!F55 -> 0
C79: CINfp | D79: INVESTIMENTI | E79: CIN_fp | F79: 56 | G79: 103 | H79: 2937 | J79: euro | K79: =Storico_Piano_Tariffario!K76 -> 0 | L79: =Storico_Piano_Tariffario!L76 -> 0 | M79: =+Capex!E56 -> 0 | N79: =+Capex!F56 -> 0
C80: OF/CIN | D80: INVESTIMENTI | E80: OF_CIN | F80: 57 | G80: 103 | H80: 2937 | J80: % | K80: =+IFERROR(K31/K78,0) -> 0 | L80: 0 | M80: =+IFERROR(M31/M78,0) -> 0 | N80: =+IFERROR(N31/N78,0) -> 0
F81: 58
C82: Trasferimento importi dovuti alla contabilità speciale del Commissario Unico (Del. 440/2017/R/idr) | F82: 50
F83: 51 | I83: Note | J83: UdM | K83: 2016 | L83: 2017 | M83: 2018 | N83: 2019 | O83: 2020 | P83: 2021 | Q83: 2022 | R83: 2023 | S83: 2024 | T83: 2025 | U83: 2026 | V83: 2027 | W83: 2028 | X83: 2029 | Y83: 2030 | Z83: 2031 | AA83: 2032 | AB83: 2033 | AC83: 2034 | AD83: 2035 | AE83: 2036 | AF83: 2037 | AG83: 2038 | AH83: 2039 | AI83: 2040 | AJ83: 2041 | AK83: 2042 | AL83: 2043 | AM83: 2044 | AN83: 2045 | AO83: 2046 | AP83: 2047
C84: Fabbisogno degli investimenti per adeguamento agglomerati oggetto di condanne UE del 19/07/2012 e 10/04/2014 | J84: euro | L84: =+'PdI-riepilogo'!E9 -> 0 | M84: =+'PdI-riepilogo'!F9 -> 0 | N84: =+'PdI-riepilogo'!G9 -> 0
C85: Fabbisogno di investimenti coperto da tariffa | J85: euro | L85: =+'PdI-riepilogo'!E10 -> 0 | M85: =+'PdI-riepilogo'!F10 -> 0 | N85: =+'PdI-riepilogo'!G10 -> 0
C86: Fabbisogno di investimenti coperto con risorse regionali o altre fonti pubbliche | D86: INVESTIMENTI | E86: Contributi | F86: 53 | G86: 103 | H86: 2937 | J86: euro | L86: =+'PdI-riepilogo'!E11 -> 0 | M86: =+'PdI-riepilogo'!F11 -> 0 | N86: =+'PdI-riepilogo'!G11 -> 0
C87: Risorse da destinare alla contabilità speciale del Commissario Unico | D87: INVESTIMENTI | E87: Investimenti_Lordo | F87: 52 | G87: 103 | H87: 2937 | J87: euro | L87: =+L88+L89 -> 0 | M87: =+M88+M89 -> 0 | N87: 0
C88: Parte del VRG destinata alla contabilità speciale del Commissario Unico | J88: euro | L88: =+IF('PdI-riepilogo'!E12<=L$62,'PdI-riepilogo'!E12,NA()) -> 0 | M88: =+IF('PdI-riepilogo'!F12<=M$62,'PdI-riepilogo'!F12,NA()) -> 0 | N88: =+IF('PdI-riepilogo'!G12<=N$62,'PdI-riepilogo'!G12,NA()) -> 0
C89: Risorse regionali o altre fonti pubbliche destinate alla contabilità speciale del Commissario Unico | D89: INVESTIMENTI | E89: Investimenti_Lordo | F89: 52 | G89: 103 | H89: 2937 | J89: euro | L89: =+'PdI-riepilogo'!E13 -> 0 | M89: =+'PdI-riepilogo'!F13 -> 0 | N89: =+'PdI-riepilogo'!G13 -> 0
C91: VALORE RESIDUO A FINE CONCESSIONE | F91: 59
F92: 60 | I92: Note | J92: UdM | K92: Del 918/2017/R/idr
C93: Ipc,t | D93: VALORE RESIDUO A FINE CONCESSIONE | E93: Ip_c_t | F93: 61 | G93: 103 | H93: 2937 | J93: euro
C94: FAIP,c,t | D94: VALORE RESIDUO A FINE CONCESSIONE | E94: FA_IP_c_t | F94: 62 | G94: 103 | H94: 2937 | J94: euro
C95: CFPc,t | D95: VALORE RESIDUO A FINE CONCESSIONE | E95: CFP_c_t | F95: 63 | G95: 103 | H95: 2937 | J95: euro
C96: FACFP,c,t | D96: VALORE RESIDUO A FINE CONCESSIONE | E96: FACFP_c_t | F96: 64 | G96: 103 | H96: 2937 | J96: euro
C97: LIC | D97: VALORE RESIDUO A FINE CONCESSIONE | E97: LIC | F97: 65 | G97: 103 | H97: 2937 | J97: euro
C98: VR a fine concessione | D98: VALORE RESIDUO A FINE CONCESSIONE | E98: VR a fine concessione | F98: 66 | G98: 103 | H98: 2937 | J98: euro

Sheet Piano_Tariffario_calc (hidden)
C2: PIANO TARIFFARIO
C3: SCHEMI REGOLATORI
I4: Note | J4: UdM | K4: Del 664/2015/R/idr | M4: Del 918/2017/R/idr
D5: Sezione_Piano_Tariffario | E5: Voce_Piano_Tariffario | F5: n_riga | G5: ID ATO | H5: Codice Aeeg | J5: UdM | K5: 2016 | M5: 2016 | N5: 2019 | O5: 2020 | P5: 2021 | Q5: 2022 | R5: 2023 | S5: 2024 | T5: 2025 | U5: 2026 | V5: 2027 | W5: 2028 | X5: 2029 | Y5: 2030 | Z5: 2031 | AA5: 2032 | AB5: 2033 | AC5: 2034 | AD5: 2035 | AE5: 2036 | AF5: 2037 | AG5: 2038 | AH5: 2039 | AI5: 2040 | AJ5: 2041 | AK5: 2042 | AL5: 2043 | AM5: 2044 | AN5: 2045
C6: Opex2014 | D6: SCHEMI REGOLATORI | E6: Op | F6: 1 | G6: 103 | H6: 2937 | J6: euro | K6: =Storico_Piano_Tariffario!K6 -> 0 | M6: =Storico_Piano_Tariffario!K6 -> 0
C7: Popolazione 2012 | J7: n. abitante | K7: =Storico_Piano_Tariffario!K7 -> 0 | M7: =Storico_Piano_Tariffario!K7 -> 0
D8: SCHEMI REGOLATORI | E8: Sommatoria IP/RAB <= omega | F8: 7 | G8: 103 | H8: 2937 | J8: SI/NO | K8: =Storico_Piano_Tariffario!K8 -> 0 | M8: =Storico_Piano_Tariffario!K8 -> 0
C9: nessuna variazione di obiettivi o attività del gestore: (NO) oppure presenza di variazioni negli obiettivi o nelle attività del gestore: (SI) | D9: SCHEMI REGOLATORI | E9: PresenzaVariazioni | F9: 4 | G9: 103 | H9: 2937 | J9: SI/NO | K9: =Storico_Piano_Tariffario!K9 -> 0 | M9: =+IF(OR(var="nessuna variazione", var=""),"NO","SI") -> NO
C10: ∑Iptexp 2016-2019 | D10: SCHEMI REGOLATORI | E10: Sommatoria_IP_exp | F10: 5 | G10: 103 | H10: 2937 | J10: euro | K10: =Storico_Piano_Tariffario!K10 -> 0 | M10: =+Input_per_calcoli_finali!I47 -> 0
C11: RABMTI | D11: SCHEMI REGOLATORI | E11: RAB_MTT | F11: 6 | G11: 103 | H11: 2937 | J11: euro | K11: =Storico_Piano_Tariffario!K11 -> 0 | M11: =+Dati_Anni_precedenti!E11 -> 0
J12: SI/NO | K12: =Storico_Piano_Tariffario!K12 -> 0 | M12: =IFERROR(IF(Input_per_calcoli_finali!I47/Input_per_calcoli_finali!G53<=framework_schemi!D39,"SI","NO"),0) -> 0
C13: SCHEMA REGOLATORIO (A) SCHEMA VIRTUALE (B) | D13: SCHEMI REGOLATORI | E13: SCHEMA REGOLATORIO | F13: 8 | J13: A/B | K13: =Storico_Piano_Tariffario!K13 -> 0 | M13: =+IF(mti_2="","",IF(mti_2="schema virtuale","schema virtuale","schema regolatorio")) -> 
C14: y | J14: (0,4-0,8) | K14: =Storico_Piano_Tariffario!K14 -> 0 | M14: =+Input_per_calcoli_finali!$I$55 -> 0
C15: SCHEMA REGOLATORIO | D15: SCHEMI REGOLATORI | E15: SCHEMA REGOLATORIO | F15: 8 | G15: 103 | H15: 2937 | J15: (I, II, III, IV, V, VI) | K15: =Storico_Piano_Tariffario!K15 -> 0 | M15: =+IF(OR(schema="I",schema="II",schema="III",schema="IV",schema="V",schema="VI"),+IF(framework_schemi!D59="",schema,"Specifica istruttoria"),"") ->  | N15: =+framework_schemi!D59 -> 
C20: COMPONENTI DI COSTO Opex, Capex , FNInew, ERC | F20: 10
F21: 11 | I21: Note | J21: UdM | K21: 2016 | L21: 2017 | M21: 2018 | N21: 2019 | O21: 2020 | P21: 2021 | Q21: 2022 | R21: 2023 | S21: 2024 | T21: 2025 | U21: 2026 | V21: 2027 | W21: 2028 | X21: 2029 | Y21: 2030 | Z21: 2031 | AA21: 2032 | AB21: 2033 | AC21: 2034 | AD21: 2035 | AE21: 2036 | AF21: 2037 | AG21: 2038 | AH21: 2039 | AI21: 2040 | AJ21: 2041 | AK21: 2042 | AL21: 2043 | AM21: 2044 | AN21: 2045 | AO21: 2046 | AP21: 2047
C22: Opexaend (al netto degli ERC) | D22: COMPONENTI DI COSTO Opexa, Capexa e FNInew,a | E22: Opex_A_end | F22: 12 | G22: 103 | H22: 2937 | J22: euro | K22: =Storico_Piano_Tariffario!K22 -> 0 | L22: =Storico_Piano_Tariffario!L22 -> 0 | M22: =+Opex!E8-Input_per_calcoli_finali!K142 -> 0 | N22: =+Opex!F8-Input_per_calcoli_finali!L142 -> 0
C23: Opexaal (al netto degli ERC) | D23: COMPONENTI DI COSTO Opexa, Capexa e FNInew,a | E23: Opex_A_al | F23: 13 | G23: 103 | H23: 2937 | J23: euro | K23: =Storico_Piano_Tariffario!K23 -> 0 | L23: =Storico_Piano_Tariffario!L23 -> 0 | M23: =+Opex!E7-Input_per_calcoli_finali!K144 -> 0 | N23: =+Opex!F7-Input_per_calcoli_finali!L144 -> 0
C24: OpexaQC | J24: euro | K24: =Storico_Piano_Tariffario!K24 -> 0 | L24: =Storico_Piano_Tariffario!L24 -> 0 | M24: =+Opex!E9 -> 0 | N24: =+Opex!F9 -> 0
C25: Opnew,a | J25: euro | K25: =Storico_Piano_Tariffario!K25 -> 0 | L25: =Storico_Piano_Tariffario!L25 -> 0 | M25: =+Opex!E10 -> 0 | N25: =+Opex!F10 -> 0
C26: Opexavirt | J26: euro | K26: =Storico_Piano_Tariffario!K26 -> 0 | L26: =Storico_Piano_Tariffario!L26 -> 0 | M26: =+Opex!E13 -> 0 | N26: =+Opex!F13 -> 0
C27: OpexQT (al netto degli ERC) | J27: euro | M27: =+Opex!E11 -> 0 | N27: =+Opex!F11 -> 0
C28: Opsocial | J28: euro | M28: =+Opex!E12 -> 0 | N28: =+Opex!F12 -> 0
C29: Opexa | D29: COMPONENTI DI COSTO Opexa, Capexa e FNInew,a | E29: Opex_A | F29: 14 | G29: 103 | H29: 2937 | J29: euro | K29: =SUM(K22:K26) -> 0 | L29: 0 | M29: =SUM(M22:M28) -> 0 | N29: =SUM(N22:N28) -> 0
C30: AMMa | D30: COMPONENTI DI COSTO Opexa, Capexa e FNInew,a | E30: OFa | F30: 15 | G30: 103 | H30: 2937 | J30: euro | K30: =Storico_Piano_Tariffario!K28 -> 0 | L30: =Storico_Piano_Tariffario!L28 -> 0 | M30: =+Capex!E9-Input_per_calcoli_finali!K133 -> 0 | N30: =+Capex!F9-Input_per_calcoli_finali!L133 -> 0
C31: OFa | D31: COMPONENTI DI COSTO Opexa, Capexa e FNInew,a | E31: OFisca | F31: 16 | G31: 103 | H31: 2937 | J31: euro | K31: =Storico_Piano_Tariffario!K29 -> 0 | L31: =Storico_Piano_Tariffario!L29 -> 0 | M31: =+Capex!E7-Input_per_calcoli_finali!K135 -> 0 | N31: =+Capex!F7-Input_per_calcoli_finali!L135 -> 0
C32: OFisca | D32: COMPONENTI DI COSTO Opexa, Capexa e FNInew,a | E32: AMMa | F32: 17 | G32: 103 | H32: 2937 | J32: euro | K32: =Storico_Piano_Tariffario!K30 -> 0 | L32: =Storico_Piano_Tariffario!L30 -> 0 | M32: =+Capex!E8-Input_per_calcoli_finali!K137 -> 0 | N32: =+Capex!F8-Input_per_calcoli_finali!L137 -> 0
C33: DCUITaCapex | D33: COMPONENTI DI COSTO Opexa, Capexa e FNInew,a | E33: DCUITa | F33: 18 | G33: 103 | H33: 2937 | J33: euro | K33: =Storico_Piano_Tariffario!K31 -> 0 | L33: =Storico_Piano_Tariffario!L31 -> 0 | M33: =+Capex!E10 -> 0 | N33: =+Capex!F10 -> 0
C34: Capexavirt | J34: euro | K34: =Storico_Piano_Tariffario!K32 -> 0 | L34: =Storico_Piano_Tariffario!L32 -> 0 | M34: =+Capex!E11 -> 0 | N34: =+Capex!F11 -> 0
C35: Capexa | D35: COMPONENTI DI COSTO Opexa, Capexa e FNInew,a | E35: Capexa | F35: 19 | G35: 103 | H35: 2937 | J35: euro | K35: =SUM(K30:K34) -> 0 | L35: 0 | M35: =SUM(M30:M34) -> 0 | N35: =SUM(N30:N34) -> 0
C36: IPtexp | D36: COMPONENTI DI COSTO Opexa, Capexa e FNInew,a | E36: IP exp | F36: 20 | G36: 103 | H36: 2937 | J36: euro | K36: =Storico_Piano_Tariffario!K34 -> 0 | L36: =Storico_Piano_Tariffario!L34 -> 0 | M36: =+FoNI!E60 -> 0 | N36: =+FoNI!F60 -> 0
C37: Capexa | D37: COMPONENTI DI COSTO Opexa, Capexa e FNInew,a | E37: Capex_a | F37: 21 | G37: 103 | H37: 2937 | J37: euro | K37: =Storico_Piano_Tariffario!K35 -> 0 | L37: =Storico_Piano_Tariffario!L35 -> 0 | M37: =+FoNI!E61 -> 0 | N37: =+FoNI!F61 -> 0
C38: FNInew,a | D38: COMPONENTI DI COSTO Opexa, Capexa e FNInew,a | E38: FNI_new,a | F38: 22 | G38: 103 | H38: 2937 | J38: euro | K38: =+Dati_Anni_precedenti!C32 -> 0 | L38: =+Dati_Anni_precedenti!D32 -> 0 | M38: =IF(OR(schema="IV",schema="V",schema="VI"),FoNI!E65,0) -> 0 | N38: =IF(OR(schema="IV",schema="V",schema="VI"),FoNI!F65,0) -> 0
C39: ERCaend | D39: COMPONENTI DI COSTO Opexa, Capexa e FNInew,a | E39: IP exp | F39: 20 | G39: 103 | H39: 2937 | J39: euro | K39: =Storico_Piano_Tariffario!K37 -> 0 | L39: =Storico_Piano_Tariffario!L37 -> 0 | M39: =+ERC!E37 -> 0 | N39: =+ERC!F37 -> 0
C40: ERCaal | D40: COMPONENTI DI COSTO Opexa, Capexa e FNInew,a | E40: Capex_a | F40: 21 | G40: 103 | H40: 2937 | J40: euro | K40: =Storico_Piano_Tariffario!K38 -> 0 | L40: =Storico_Piano_Tariffario!L38 -> 0 | M40: =+ERC!E21 -> 0 | N40: =+ERC!F21 -> 0
C41: ERCa QT | J41: euro | M41: =+ERC!E8 -> 0 | N41: =+ERC!F8 -> 0
C42: ERCa | D42: COMPONENTI DI COSTO Opexa, Capexa e FNInew,a | E42: FNI_new,a | F42: 22 | G42: 103 | H42: 2937 | J42: euro | K42: =+SUM(K39:K40) -> 0 | L42: =+SUM(L39:L40) -> 0 | M42: =+SUM(M39:M41) -> 0 | N42: =+SUM(N39:N41) -> 0
F43: 23
C44: FONDO NUOVI INVESTIMENTI | F44: 43
F45: 44 | I45: Note | J45: UdM | K45: 2016 | L45: 2017 | M45: 2018 | N45: 2019 | O45: 2020 | P45: 2021 | Q45: 2022 | R45: 2023 | S45: 2024 | T45: 2025 | U45: 2026 | V45: 2027 | W45: 2028 | X45: 2029 | Y45: 2030 | Z45: 2031 | AA45: 2032 | AB45: 2033 | AC45: 2034 | AD45: 2035 | AE45: 2036 | AF45: 2037 | AG45: 2038 | AH45: 2039 | AI45: 2040 | AJ45: 2041 | AK45: 2042 | AL45: 2043 | AM45: 2044 | AN45: 2045 | AO45: 2046 | AP45: 2047
C46: FNIaFoNI | D46: FONDO NUOVI INVESTIMENTI | E46: AMM_a_FoNI | F46: 45 | G46: 103 | H46: 2937 | J46: euro | K46: =Storico_Piano_Tariffario!K43 -> 0 | L46: =Storico_Piano_Tariffario!L43 -> 0 | M46: =+FoNI!E8 -> 0 | N46: =+FoNI!F8 -> 0
C47: AMMaFoNI | D47: FONDO NUOVI INVESTIMENTI | E47: FNI_a_FoNI | F47: 46 | G47: 103 | H47: 2937 | J47: euro | K47: =Storico_Piano_Tariffario!K44 -> 0 | L47: =Storico_Piano_Tariffario!L44 -> 0 | M47: =+FoNI!E7 -> 0 | N47: =+FoNI!F7 -> 0
C48: DCUITaFoNI | D48: FONDO NUOVI INVESTIMENTI | E48: DCUIT_a_FoNI | F48: 47 | G48: 103 | H48: 2937 | J48: euro | K48: =Storico_Piano_Tariffario!K45 -> 0 | L48: =Storico_Piano_Tariffario!L45 -> 0 | M48: =+FoNI!E9 -> 0 | N48: =+FoNI!F9 -> 0
C49: FoNIa | D49: FONDO NUOVI INVESTIMENTI | E49: FoNI | F49: 48 | G49: 103 | H49: 2937 | J49: euro | K49: =+SUM(K46:K48) -> 0 | L49: =+SUM(L46:L48) -> 0 | M49: 0 | N49: 0
F50: 49
C51: SVILUPPO DEL VRG predisposto dal soggetto competente | F51: 24
F52: 25 | I52: Note | J52: UdM | K52: 2016 | L52: 2017 | M52: 2018 | N52: 2019 | O52: 2020 | P52: 2021 | Q52: 2022 | R52: 2023 | S52: 2024 | T52: 2025 | U52: 2026 | V52: 2027 | W52: 2028 | X52: 2029 | Y52: 2030 | Z52: 2031 | AA52: 2032 | AB52: 2033 | AC52: 2034 | AD52: 2035 | AE52: 2036 | AF52: 2037 | AG52: 2038 | AH52: 2039 | AI52: 2040 | AJ52: 2041 | AK52: 2042 | AL52: 2043 | AM52: 2044 | AN52: 2045 | AO52: 2046 | AP52: 2047
C53: Opexa | D53: SVILUPPO DEL VRGcalc | E53: Opex_a | F53: 26 | G53: 103 | H53: 2937 | J53: euro | K53: =Storico_Piano_Tariffario!K50 -> 0 | L53: =Storico_Piano_Tariffario!L50 -> 0 | M53: =+VRG_Teta!E25+Input_per_calcoli_finali!K156 -> 0 | N53: =+VRG_Teta!F25+Input_per_calcoli_finali!L156 -> 0
C54: Capexa | D54: SVILUPPO DEL VRGcalc | E54: Capex_a | F54: 27 | G54: 103 | H54: 2937 | J54: euro | K54: =Storico_Piano_Tariffario!K51 -> 0 | L54: =Storico_Piano_Tariffario!L51 -> 0 | M54: =+VRG_Teta!E23+Input_per_calcoli_finali!K155 -> 0 | N54: =+VRG_Teta!F23+Input_per_calcoli_finali!L155 -> 0
C55: FoNIa | D55: SVILUPPO DEL VRGcalc | E55: FoNI_a | F55: 28 | G55: 103 | H55: 2937 | J55: euro | K55: =Storico_Piano_Tariffario!K52 -> 0 | L55: =Storico_Piano_Tariffario!L52 -> 0 | M55: =+VRG_Teta!E24 -> 0 | N55: =+VRG_Teta!F24 -> 0
C56: RCaTOT | D56: SVILUPPO DEL VRGcalc | E56: RC_a_TOT | F56: 29 | G56: 103 | H56: 2937 | J56: euro | K56: =Storico_Piano_Tariffario!K53 -> 0 | L56: =Storico_Piano_Tariffario!L53 -> 0 | M56: =+VRG_Teta!E27 -> 0 | N56: =+VRG_Teta!F27 -> 0
C57: ERCa | D57: SVILUPPO DEL VRGcalc | E57: ERC_a | F57: 30 | G57: 103 | H57: 2937 | J57: euro | K57: =Storico_Piano_Tariffario!K54 -> 0 | L57: =Storico_Piano_Tariffario!L54 -> 0 | M57: =+VRG_Teta!E26+Input_per_calcoli_finali!K157 -> 0 | N57: =+VRG_Teta!F26+Input_per_calcoli_finali!L157 -> 0
C58: VRGa predisposto dal soggetto competente | D58: SVILUPPO DEL VRGcalc | E58: VRG_a | F58: 31 | G58: 103 | H58: 2937 | J58: euro | K58: =+SUM(K53:K57) -> 0 | L58: =+SUM(L53:L57) -> 0 | M58: 0 | N58: 0
F59: 32
C60: SVILUPPO DEL MOLTIPLICATORE TARIFFARIO predisposto dal soggetto competente | F60: 33
F61: 34 | I61: Note | J61: UdM | K61: 2016 | L61: 2017 | M61: 2018 | N61: 2019 | O61: 2020 | P61: 2021 | Q61: 2022 | R61: 2023 | S61: 2024 | T61: 2025 | U61: 2026 | V61: 2027 | W61: 2028 | X61: 2029 | Y61: 2030 | Z61: 2031 | AA61: 2032 | AB61: 2033 | AC61: 2034 | AD61: 2035 | AE61: 2036 | AF61: 2037 | AG61: 2038 | AH61: 2039 | AI61: 2040 | AJ61: 2041 | AK61: 2042 | AL61: 2043 | AM61: 2044 | AN61: 2045 | AO61: 2046 | AP61: 2047
C62: VRGa predisposto dal soggetto competente | D62: SVILUPPO DEL MOLTIPLICATORE TARIFFARIO | E62: VRG_a | F62: 35 | G62: 103 | H62: 2937 | J62: euro | K62: =+K58 -> 0 | L62: =+L58 -> 0 | M62: =+M58 -> 0 | N62: =+N58 -> 0
C63: Ra-2b | D63: SVILUPPO DEL MOLTIPLICATORE TARIFFARIO | E63: Rb_a-2 | F63: 37 | G63: 103 | H63: 2937 | J63: euro | K63: =Storico_Piano_Tariffario!K60 -> 0 | L63: =Storico_Piano_Tariffario!L60 -> 0 | M63: =+VRG_Teta!E44 -> 0 | N63: =+VRG_Teta!F44 -> 0
C64: S tarif2015*vscala-2 | D64: SVILUPPO DEL MOLTIPLICATORE TARIFFARIO | E64: Sommatoria di ( tarif_2012*vscal_a-2) | F64: 38 | G64: 103 | H64: 2937 | J64: euro | K64: =Storico_Piano_Tariffario!K61 -> 0 | L64: =Storico_Piano_Tariffario!L61 -> 0 | M64: =+VRG_Teta!E42+VRG_Teta!E43+VRG_Teta!E45 -> 0 | N64: =+VRG_Teta!F42+VRG_Teta!F43+VRG_Teta!F45 -> 0
C65: Ja predisposto dal soggetto competente | D65: SVILUPPO DEL MOLTIPLICATORE TARIFFARIO | E65: teta_a | F65: 39 | G65: 103 | H65: 2937 | J65: n. (3 cifre decimali) | K65: =Storico_Piano_Tariffario!K62 -> 0 | L65: =Storico_Piano_Tariffario!L62 -> 0 | M65: =+VRG_Teta!E53 -> 0 | N65: =+VRG_Teta!F53 -> 0
C67: SVILUPPO DEL MOLTIPLICATORE TARIFFARIO applicabile (nelle more dell'approvazione ARERA)
J68: UdM | K68: 2016 | L68: 2017 | M68: 2018 | N68: 2019 | O68: 2020 | P68: 2021 | Q68: 2022 | R68: 2023 | S68: 2024 | T68: 2025 | U68: 2026 | V68: 2027 | W68: 2028 | X68: 2029 | Y68: 2030 | Z68: 2031 | AA68: 2032 | AB68: 2033 | AC68: 2034 | AD68: 2035 | AE68: 2036 | AF68: 2037 | AG68: 2038 | AH68: 2039 | AI68: 2040 | AJ68: 2041 | AK68: 2042 | AL68: 2043 | AM68: 2044 | AN68: 2045 | AO68: 2046 | AP68: 2047
C69: Limite al moltiplicatore tariffario | D69: SVILUPPO DEL MOLTIPLICATORE TARIFFARIO | E69: Limite al moltiplicatore tariffario (co. 9.3 All. A - MTI) | F69: 40 | G69: 103 | H69: 2937 | J69: n. (3 cifre decimali) | K69: =Storico_Piano_Tariffario!K66 -> 0 | L69: =Storico_Piano_Tariffario!L66 -> 0 | M69: =+VRG_Teta!E63 -> 0 | N69: =+VRG_Teta!F63 -> 0
C70: VRGa (coerente con J applicabile) | D70: SVILUPPO DEL MOLTIPLICATORE TARIFFARIO | E70: teta_applicabile | F70: 41 | G70: 103 | H70: 2937 | J70: euro | K70: =Storico_Piano_Tariffario!K67 -> 0 | L70: =Storico_Piano_Tariffario!L67 -> 0 | M70: =++MIN(VRG_Teta!E59,VRG_Teta!E62) -> 0 | N70: =++MIN(VRG_Teta!F59,VRG_Teta!F62) -> 0
C71: Ja applicabile | J71: n. (3 cifre decimali) | K71: =Storico_Piano_Tariffario!K68 -> 0 | L71: =Storico_Piano_Tariffario!L68 -> 0 | M71: =+IF(mti_2="escluso dall'aggiornamento",1,MIN(VRG_Teta!E60,+VRG_Teta!E63)) -> 0 | N71: =+IF(mti_2="escluso dall'aggiornamento",1,MIN(VRG_Teta!F60,+VRG_Teta!F63)) -> 0
C73: INVESTIMENTI | F73: 50
F74: 51 | I74: Note | J74: UdM | K74: 2016 | L74: 2017 | M74: 2018 | N74: 2019 | O74: 2020 | P74: 2021 | Q74: 2022 | R74: 2023 | S74: 2024 | T74: 2025 | U74: 2026 | V74: 2027 | W74: 2028 | X74: 2029 | Y74: 2030 | Z74: 2031 | AA74: 2032 | AB74: 2033 | AC74: 2034 | AD74: 2035 | AE74: 2036 | AF74: 2037 | AG74: 2038 | AH74: 2039 | AI74: 2040 | AJ74: 2041 | AK74: 2042 | AL74: 2043 | AM74: 2044 | AN74: 2045 | AO74: 2046 | AP74: 2047
C75: Investimenti al lordo dei contributi | D75: INVESTIMENTI | E75: Investimenti_Lordo | F75: 52 | G75: 103 | H75: 2937 | J75: euro | K75: =+IFERROR(K76+K77,0) -> 0 | L75: =+IFERROR(L76+L77,0) -> 0 | M75: 0 | N75: 0
C76: Contributi | D76: INVESTIMENTI | E76: Contributi | F76: 53 | G76: 103 | H76: 2937 | J76: euro | K76: =Storico_Piano_Tariffario!K73 -> 0 | L76: =Storico_Piano_Tariffario!L73 -> 0 | M76: =+Input_per_calcoli_finali!K49 -> 0 | N76: =+Input_per_calcoli_finali!L49 -> 0
C77: Investimenti al netto dei contributi | D77: INVESTIMENTI | E77: Investimenti_Netto | F77: 54 | G77: 103 | H77: 2937 | J77: euro | K77: =Storico_Piano_Tariffario!K74 -> 0 | L77: =Storico_Piano_Tariffario!L74 -> 0 | M77: =++Input_per_calcoli_finali!K48 -> 0 | N77: =++Input_per_calcoli_finali!L48 -> 0
C78: CIN | D78: INVESTIMENTI | E78: CIN | F78: 55 | G78: 103 | H78: 2937 | J78: euro | K78: =Storico_Piano_Tariffario!K75 -> 0 | L78: =Storico_Piano_Tariffario!L75 -> 0 | M78: =+Capex!E55 -> 0 | N78: =+Capex!F55 -> 0
C79: CINfp | D79: INVESTIMENTI | E79: CIN_fp | F79: 56 | G79: 103 | H79: 2937 | J79: euro | K79: =Storico_Piano_Tariffario!K76 -> 0 | L79: =Storico_Piano_Tariffario!L76 -> 0 | M79: =+Capex!E56 -> 0 | N79: =+Capex!F56 -> 0
C80: OF/CIN | D80: INVESTIMENTI | E80: OF_CIN | F80: 57 | G80: 103 | H80: 2937 | J80: % | K80: =+IFERROR(K31/K78,0) -> 0 | L80: 0 | M80: =+IFERROR(M31/M78,0) -> 0 | N80: =+IFERROR(N31/N78,0) -> 0
F81: 58
C82: Trasferimento importi dovuti alla contabilità speciale del Commissario Unico (Del. 440/2017/R/idr) | F82: 50
F83: 51 | I83: Note | J83: UdM | K83: 2016 | L83: 2017 | M83: 2018 | N83: 2019 | O83: 2020 | P83: 2021 | Q83: 2022 | R83: 2023 | S83: 2024 | T83: 2025 | U83: 2026 | V83: 2027 | W83: 2028 | X83: 2029 | Y83: 2030 | Z83: 2031 | AA83: 2032 | AB83: 2033 | AC83: 2034 | AD83: 2035 | AE83: 2036 | AF83: 2037 | AG83: 2038 | AH83: 2039 | AI83: 2040 | AJ83: 2041 | AK83: 2042 | AL83: 2043 | AM83: 2044 | AN83: 2045 | AO83: 2046 | AP83: 2047
C84: Fabbisogno degli investimenti per adeguamento agglomerati oggetto di condanne UE del 19/07/2012 e 10/04/2014 | J84: euro | L84: =+'PdI-riepilogo'!E9 -> 0 | M84: =+'PdI-riepilogo'!F9 -> 0 | N84: =+'PdI-riepilogo'!G9 -> 0
C85: Fabbisogno di investimenti coperto da tariffa | J85: euro | L85: =+'PdI-riepilogo'!E10 -> 0 | M85: =+'PdI-riepilogo'!F10 -> 0 | N85: =+'PdI-riepilogo'!G10 -> 0
C86: Fabbisogno di investimenti coperto con risorse regionali o altre fonti pubbliche | D86: INVESTIMENTI | E86: Contributi | F86: 53 | G86: 103 | H86: 2937 | J86: euro | L86: =+'PdI-riepilogo'!E11 -> 0 | M86: =+'PdI-riepilogo'!F11 -> 0 | N86: =+'PdI-riepilogo'!G11 -> 0
C87: Risorse da destinare alla contabilità speciale del Commissario Unico | D87: INVESTIMENTI | E87: Investimenti_Lordo | F87: 52 | G87: 103 | H87: 2937 | J87: euro | L87: =+L88+L89 -> 0 | M87: =+M88+M89 -> 0 | N87: 0
C88: Parte del VRG destinata alla contabilità speciale del Commissario Unico | J88: euro | L88: =+IF('PdI-riepilogo'!E12<=L$62,'PdI-riepilogo'!E12,NA()) -> 0 | M88: =+IF('PdI-riepilogo'!F12<=M$62,'PdI-riepilogo'!F12,NA()) -> 0 | N88: =+IF('PdI-riepilogo'!G12<=N$62,'PdI-riepilogo'!G12,NA()) -> 0
C89: Risorse regionali o altre fonti pubbliche destinate alla contabilità speciale del Commissario Unico | D89: INVESTIMENTI | E89: Investimenti_Lordo | F89: 52 | G89: 103 | H89: 2937 | J89: euro | L89: =+'PdI-riepilogo'!E13 -> 0 | M89: =+'PdI-riepilogo'!F13 -> 0 | N89: =+'PdI-riepilogo'!G13 -> 0
C91: VALORE RESIDUO A FINE CONCESSIONE | F91: 59
F92: 60 | I92: Note | J92: UdM | K92: Del 918/2017/R/idr
C93: Ipc,t | D93: VALORE RESIDUO A FINE CONCESSIONE | E93: Ip_c_t | F93: 61 | G93: 103 | H93: 2937 | J93: euro
C94: FAIP,c,t | D94: VALORE RESIDUO A FINE CONCESSIONE | E94: FA_IP_c_t | F94: 62 | G94: 103 | H94: 2937 | J94: euro
C95: CFPc,t | D95: VALORE RESIDUO A FINE CONCESSIONE | E95: CFP_c_t | F95: 63 | G95: 103 | H95: 2937 | J95: euro
C96: FACFP,c,t | D96: VALORE RESIDUO A FINE CONCESSIONE | E96: FACFP_c_t | F96: 64 | G96: 103 | H96: 2937 | J96: euro
C97: LIC | D97: VALORE RESIDUO A FINE CONCESSIONE | E97: LIC | F97: 65 | G97: 103 | H97: 2937 | J97: euro
C98: VR a fine concessione | D98: VALORE RESIDUO A FINE CONCESSIONE | E98: VR a fine concessione | F98: 66 | G98: 103 | H98: 2937 | J98: euro

Sheet conto_economico
B1: CONTO ECONOMICO
B2: Voce_Conto_Economico | C2: UdM | D2: 2016 | E2: 2017 | F2: 2018 | G2: 2019 | H2: 2020 | I2: 2021 | J2: 2022 | K2: 2023 | L2: 2024 | M2: 2025 | N2: 2026 | O2: 2027 | P2: 2028 | Q2: 2029 | R2: 2030 | S2: 2031 | T2: 2032 | U2: 2033 | V2: 2034 | W2: 2035 | X2: 2036 | Y2: 2037 | Z2: 2038 | AA2: 2039 | AB2: 2040 | AC2: 2041 | AD2: 2042 | AE2: 2043 | AF2: 2044 | AG2: 2045 | AH2: 2046 | AI2: 2047
B3: Ricavi da tariffe (al lordo del FoNI) | C3: euro
B4: Contributi di allacciamento | C4: euro
B5: Altri ricavi SII | C5: euro
B6: Ricavi da Altre Attività Idriche | C6: euro
B7: Totale Ricavi | C7: euro
B8: Costi Operativi (al netto del costo del personale) | C8: euro
B9: Costo del personale | C9: euro
B10: Totale Costi | C10: euro
B11: MOL | C11: euro
B12: Ammortamenti | C12: euro
B13: Reddito Operativo | C13: euro
B14: Interessi passivi | C14: euro
B15: Risultato ante imposte | C15: euro
B16: IRES | C16: euro
B17: IRAP | C17: euro
B18: Totale imposte | C18: euro
B19: Risultato di esercizio | C19: euro

Sheet rendiconto_finanziario
H1: RENDICONTO FINANZIARIO
B2: ID ATO | C2: Nome ATO | D2: Codice Aeeg | E2: Ragione Sociale | F2: AnnoRaccoltaDati | G2: AnnoDati | H2: Voce_Rendiconto_Finanziario | I2: n_riga | J2: ID ATO | K2: Codice Aeeg | L2: UdM | M2: 2016 | N2: 2017 | O2: 2018 | P2: 2019 | Q2: 2020 | R2: 2021 | S2: 2022 | T2: 2023 | U2: 2024 | V2: 2025 | W2: 2026 | X2: 2027 | Y2: 2028 | Z2: 2029 | AA2: 2030 | AB2: 2031 | AC2: 2032 | AD2: 2033 | AE2: 2034 | AF2: 2035 | AG2: 2036 | AH2: 2037 | AI2: 2038 | AJ2: 2039 | AK2: 2040 | AL2: 2041 | AM2: 2042 | AN2: 2043 | AO2: 2044 | AP2: 2045 | AQ2: 2046 | AR2: 2047
B3: 103 | C3: ATO 3 - TORINO | D3: 2937 | E3: SMAT S.P.A. | F3: 2013 | G3: 2012 | H3: Ricavi da Tariffa SII (al netto del FONI) | I3: 1 | J3: 103 | K3: 2937 | L3: euro
B4: 103 | C4: ATO 3 - TORINO | D4: 2937 | E4: SMAT S.P.A. | F4: 2013 | G4: 2012 | H4: Contributi di allacciamento | I4: 2 | J4: 103 | K4: 2937 | L4: euro
B5: 103 | C5: ATO 3 - TORINO | D5: 2937 | E5: SMAT S.P.A. | F5: 2013 | G5: 2012 | H5: Altri ricavi SII | I5: 3 | J5: 103 | K5: 2937 | L5: euro
B6: 103 | C6: ATO 3 - TORINO | D6: 2937 | E6: SMAT S.P.A. | F6: 2013 | G6: 2012 | H6: Ricavi da Altre Attività Idriche | I6: 4 | J6: 103 | K6: 2937 | L6: euro
B7: 103 | C7: ATO 3 - TORINO | D7: 2937 | E7: SMAT S.P.A. | F7: 2013 | G7: 2012 | H7: RICAVI OPERATIVI | I7: 5 | J7: 103 | K7: 2937 | L7: euro
B8: 103 | C8: ATO 3 - TORINO | D8: 2937 | E8: SMAT S.P.A. | F8: 2013 | G8: 2012 | H8: Costi operativi | I8: 6 | J8: 103 | K8: 2937 | L8: euro
B9: 103 | C9: ATO 3 - TORINO | D9: 2937 | E9: SMAT S.P.A. | F9: 2013 | G9: 2012 | H9: COSTI OPERATIVI MONETARI | I9: 7 | J9: 103 | K9: 2937 | L9: euro
B10: 103 | C10: ATO 3 - TORINO | D10: 2937 | E10: SMAT S.P.A. | F10: 2013 | G10: 2012 | H10: Imposte | I10: 8 | J10: 103 | K10: 2937 | L10: euro
B11: 103 | C11: ATO 3 - TORINO | D11: 2937 | E11: SMAT S.P.A. | F11: 2013 | G11: 2012 | H11: IMPOSTE | I11: 9 | J11: 103 | K11: 2937 | L11: euro
B12: 103 | C12: ATO 3 - TORINO | D12: 2937 | E12: SMAT S.P.A. | F12: 2013 | G12: 2012 | H12: FLUSSI DI CASSA ECONOMICO | I12: 10 | J12: 103 | K12: 2937 | L12: euro
B13: 103 | C13: ATO 3 - TORINO | D13: 2937 | E13: SMAT S.P.A. | F13: 2013 | G13: 2012 | H13: Variazioni circolante commerciale | I13: 11 | J13: 103 | K13: 2937 | L13: euro
B14: 103 | C14: ATO 3 - TORINO | D14: 2937 | E14: SMAT S.P.A. | F14: 2013 | G14: 2012 | H14: Variazione credito IVA | I14: 12 | J14: 103 | K14: 2937 | L14: euro
B15: 103 | C15: ATO 3 - TORINO | D15: 2937 | E15: SMAT S.P.A. | F15: 2013 | G15: 2012 | H15: Variazione debito IVA | I15: 13 | J15: 103 | K15: 2937 | L15: euro
B16: 103 | C16: ATO 3 - TORINO | D16: 2937 | E16: SMAT S.P.A. | F16: 2013 | G16: 2012 | H16: FLUSSI DI CASSA OPERATIVO | I16: 14 | J16: 103 | K16: 2937 | L16: euro
B17: 103 | C17: ATO 3 - TORINO | D17: 2937 | E17: SMAT S.P.A. | F17: 2013 | G17: 2012 | H17: Investimenti con utilizzo del FoNI | I17: 15 | J17: 103 | K17: 2937 | L17: euro
B18: 103 | C18: ATO 3 - TORINO | D18: 2937 | E18: SMAT S.P.A. | F18: 2013 | G18: 2012 | H18: Altri investimenti | I18: 16 | J18: 103 | K18: 2937 | L18: euro
B19: 103 | C19: ATO 3 - TORINO | D19: 2937 | E19: SMAT S.P.A. | F19: 2013 | G19: 2012 | H19: FLUSSO DI CASSA ANTE FONTI FINANZIAMENTO | I19: 17 | J19: 103 | K19: 2937 | L19: euro
B20: 103 | C20: ATO 3 - TORINO | D20: 2937 | E20: SMAT S.P.A. | F20: 2013 | G20: 2012 | H20: FoNI | I20: 18 | J20: 103 | K20: 2937 | L20: euro
B21: 103 | C21: ATO 3 - TORINO | D21: 2937 | E21: SMAT S.P.A. | F21: 2013 | G21: 2012 | H21: Erogazione debito finanziario a breve | I21: 19 | J21: 103 | K21: 2937 | L21: euro
B22: 103 | C22: ATO 3 - TORINO | D22: 2937 | E22: SMAT S.P.A. | F22: 2013 | G22: 2012 | H22: Erogazione debito finanziario medio - lungo termine | I22: 20 | J22: 103 | K22: 2937 | L22: euro
B23: 103 | C23: ATO 3 - TORINO | D23: 2937 | E23: SMAT S.P.A. | F23: 2013 | G23: 2012 | H23: Erogazione contributi pubblici | I23: 21 | J23: 103 | K23: 2937 | L23: euro
B24: 103 | C24: ATO 3 - TORINO | D24: 2937 | E24: SMAT S.P.A. | F24: 2013 | G24: 2012 | H24: Apporto capitale sociale | I24: 22 | J24: 103 | K24: 2937 | L24: euro
B25: 103 | C25: ATO 3 - TORINO | D25: 2937 | E25: SMAT S.P.A. | F25: 2013 | G25: 2012 | H25: FLUSSO DI CASSA DISPONIBILE PER RIMBORSI | I25: 23 | J25: 103 | K25: 2937 | L25: euro
B26: 103 | C26: ATO 3 - TORINO | D26: 2937 | E26: SMAT S.P.A. | F26: 2013 | G26: 2012 | H26: Rimborso quota capitale per finanziamenti pregressi | I26: 24 | J26: 103 | K26: 2937 | L26: euro
B27: 103 | C27: ATO 3 - TORINO | D27: 2937 | E27: SMAT S.P.A. | F27: 2013 | G27: 2012 | H27: Rimborso quota interessi per finanziamenti pregressi | I27: 25 | J27: 103 | K27: 2937 | L27: euro
B28: 103 | C28: ATO 3 - TORINO | D28: 2937 | E28: SMAT S.P.A. | F28: 2013 | G28: 2012 | H28: Rimborso quota capitale per nuovi finanziamenti | I28: 26 | J28: 103 | K28: 2937 | L28: euro
B29: 103 | C29: ATO 3 - TORINO | D29: 2937 | E29: SMAT S.P.A. | F29: 2013 | G29: 2012 | H29: Rimborso quota interessi per nuovi finanziamenti | I29: 27 | J29: 103 | K29: 2937 | L29: euro
B30: 103 | C30: ATO 3 - TORINO | D30: 2937 | E30: SMAT S.P.A. | F30: 2013 | G30: 2012 | H30: TOTALE SERVIZIO DEL DEBITO | I30: 28 | J30: 103 | K30: 2937 | L30: euro
B31: 103 | C31: ATO 3 - TORINO | D31: 2937 | E31: SMAT S.P.A. | F31: 2013 | G31: 2012 | H31: FLUSSO DI CASSA DISPONIBILE POST SERVIZIO DEL DEBITO | I31: 29 | J31: 103 | K31: 2937 | L31: euro
B32: 103 | C32: ATO 3 - TORINO | D32: 2937 | E32: SMAT S.P.A. | F32: 2013 | G32: 2012 | H32: Valore residuo a fine concessione | I32: 30 | J32: 103 | K32: 2937 | L32: euro
B33: 103 | C33: ATO 3 - TORINO | D33: 2937 | E33: SMAT S.P.A. | F33: 2013 | G33: 2012 | H33: Stock di debito non rimborsato a fine affidamento (capitale + interessi) | I33: 31 | J33: 103 | K33: 2937 | L33: euro
H36: INDICATORI DI REDDITIVITA' E LIQUIDITA'
B37: ID ATO | C37: Nome ATO | D37: Codice Aeeg | E37: Ragione Sociale | F37: AnnoRaccoltaDati | G37: AnnoDati | H37: Indicatore | I37: n_riga | J37: ID ATO | K37: Codice Aeeg | L37: Udm
B38: 103 | C38: ATO 3 - TORINO | D38: 2937 | E38: SMAT S.P.A. | F38: 2013 | G38: 2012 | H38: TIR unlevered | I38: 1 | J38: 103 | K38: 2937 | L38: %
B39: 103 | C39: ATO 3 - TORINO | D39: 2937 | E39: SMAT S.P.A. | F39: 2013 | G39: 2012 | H39: TIR levered | I39: 2 | J39: 103 | K39: 2937 | L39: %
B40: 103 | C40: ATO 3 - TORINO | D40: 2937 | E40: SMAT S.P.A. | F40: 2013 | G40: 2012 | H40: ADSCR | I40: 3 | J40: 103 | K40: 2937 | L40: n.
B41: 103 | C41: ATO 3 - TORINO | D41: 2937 | E41: SMAT S.P.A. | F41: 2013 | G41: 2012 | H41: DSCR minimo | I41: 4 | J41: 103 | K41: 2937 | L41: n.
B42: 103 | C42: ATO 3 - TORINO | D42: 2937 | E42: SMAT S.P.A. | F42: 2013 | G42: 2012 | H42: LLCR | I42: 5 | J42: 103 | K42: 2937 | L42: n.

Sheet TT_Gestori
A6: Area elenco gestori in anagrafica | C6: aggiornata in data 19/2/2018
A7: IDAEEG | B7: P. IVA | C7: Denominazione / Ragione Sociale | D7: =+A7 -> IDAEEG
A8: 5 | B8: 00734480213 | C8: AZIENDA PUBBLISERVIZI BRUNICO | D8: =+A8 -> 5
A9: 52 | B9: 04015810874 | C9: SOGIP S.R.L. | D9: =+A9 -> 52
A10: 55 | B10: 00343510228 | C10: COMUNE DI VERMIGLIO | D10: 55
A11: 78 | B11: 00128850229 | C11: AZIENDA ELETTRICA COMUNALE CASTELLO | D11: 78
A12: 79 | B12: 00124130220 | C12: COMUNE DI CAVALESE - AEC | D12: 79
A13: 85 | B13: 00359000122 | C13: M.D.G. METANIFERA DI GAVIRATE S.R.L. | D13: 85
A14: 183 | B14: 00100510213 | C14: COMUNE DI PARCINES - SERVIZIO DISTRIBUZIONE E.E. | D14: 183
A15: 188 | B15: 00148360662 | C15: COMUNE DI BARETE | D15: 188
A16: 195 | B16: 00110800901 | C16: COMUNE DI OSCHIRI | D16: 195
A17: 199 | B17: 00272300229 | C17: COMUNE DI PALU' DEL FERSINA | D17: 199
A18: 206 | B18: 00431040229 | C18: COMUNE DI FAI DELLA PAGANELLA | D18: 206
A19: 230 | B19: 01210650436 | C19: A.S.SE.M. SPA | D19: 230
A20: 245 | B20: 00110390226 | C20: COMUNE DI AVIO | D20: 245
A21: 258 | B21: 00161690664 | C21: COMUNE DI ANVERSA DEGLI ABRUZZI | D21: 258
A22: 259 | B22: 00291090876 | C22: COMUNE DI CASTIGLIONE DI SICILIA | D22: 259
A23: 308 | B23: 02191980420 | C23: MULTISERVIZI SPA | D23: 308
A24: 314 | B24: 00159650837 | C24: COMUNE DI FRANCAVILLA DI SICILIA | D24: 314
A25: 335 | B25: 02066710605 | C25: AMEA S.P.A. | D25: 335
A26: 349 | B26: 00114540669 | C26: COMUNE DI CASTEL DEL MONTE | D26: 349
A27: 371 | B27: 02216150017 | C27: COMUNE DI VALPRATO SOANA | D27: 371
A28: 380 | B28: 13171830154 | C28: EROGASMET S.P.A. | D28: 380
A29: 384 | B29: 00685130163 | C29: COMUNE DI MAPELLO | D29: 384
A30: 424 | B30: 01812230223 | C30: STET SPA - SERVIZI TERRITORIALI EST TRENTINO | D30: 424
A31: 433 | B31: 02127560163 | C31: AMIAS SERVIZI SRL | D31: 433
A32: 436 | B32: 02231010212 | C32: SEAB - SERVIZI ENERGIA AMBIENTE BOLZANO S.P.A. / SEAB - ENERGIE- UMWELTBETRIEBE BOZEN A.G. | D32: 436
A33: 439 | B33: 00399050087 | C33: AMAIE SPA | D33: 439
A34: 464 | B34: 01474680418 | C34: ASET S.P.A. | D34: 464
A35: 499 | B35: 00798680724 | C35: 2i Rete Gas Impianti S.p.A. | D35: 499
A36: 505 | B36: 01733220022 | C36: EDIGAS ESERCIZIO DISTRIBUZIONE GAS S.P.A | D36: 505
A37: 542 | B37: 00319630224 | C37: COMUNE DI ANDALO | D37: 542
A38: 544 | B38: 00482100211 | C38: Comune di Corvara in Badia | D38: 544
A39: 583 | B39: 00186560215 | C39: COMUNE DI TIRES - AZIENDA ELETTRICA | D39: 583
A40: 630 | B40: 02728750247 | C40: ACQUE DEL CHIAMPO S.P.A. SERVIZIO IDRICO INTEGRATO | D40: 630
A41: 650 | B41: 00149120222 | C41: COMUNE DI MOLVENO - AZIENDA ELETTRICA COMUNALE | D41: 650
A42: 666 | B42: 00100580216 | C42: ASM - AZIENDA SERVIZI MUNICIPALIZZATI LACES | D42: 666
A43: 692 | B43: 00971870258 | C43: BIM GESTIONE SERVIZI PUBBLICI SPA | D43: 692
A44: 723 | B44: 00414320218 | C44: COMUNE DI TUBRE | D44: 723
A45: 739 | B45: 02315390985 | C45: SERVER SRL | D45: 739
A46: 759 | B46: 01177760491 | C46: A.S.A. - AZIENDA SERVIZI AMBIENTALI SPA | D46: 759
A47: 779 | B47: 00807660212 | C47: COMUNE DI SLUDERNO | D47: 779
A48: 780 | B48: 01531350229 | C48: ASM TIONE - AZIENDA SERVIZI MUNICIPALIZZATI | D48: 780
A49: 805 | B49: 00126510213 | C49: AZIENDA ELETTRICA COMUNALE - VIPITENO | D49: 805
A50: 815 | B50: 00172780702 | C50: COMUNE DI JELSI | D50: 815
A51: 841 | B51: 04245520376 | C51: HERA S.P.A. | D51: 841
A52: 926 | B52: 00930530324 | C52: AcegasApsAmga S.p.A. | D52: 926
A53: 927 | B53: 01581060223 | C53: ALTO GARDA SERVIZI SPA | D53: 927
A54: 940 | B54: 01639620069 | C54: AZIENDA MULTISERVIZI CASALESE SPA | D54: 940
A55: 942 | B55: 00577230980 | C55: COMUNE DI EDOLO | D55: 942
A56: 960 | B56: 02480540125 | C56: ASPEM S.P.A. | D56: 960
A57: 990 | B57: 01938630025 | C57: ASM VERCELLI SPA | D57: 990
A58: 992 | B58: 01405600220 | C58: NOVARETI SPA | D58: 992
A59: 1042 | B59: 00453310211 | C59: Comune di Nalles | D59: 1042
A60: 1045 | B60: 01501460438 | C60: ASTEA SPA | D60: 1045
A61: 1090 | B61: 00664670361 | C61: AIMAG S.P.A. | D61: 1090
A62: 1161 | B62: 02569060540 | C62: VALLE UMBRA SERVIZI S.P.A. | D62: 1161
A63: 1188 | B63: 01349510436 | C63: ATAC CIVITANOVA SPA UNIPERSONALE | D63: 1188
A64: 1193 | B64: 02259590129 | C64: Lura Ambiente SpA | D64: 1193
A65: 1211 | B65: 00584970982 | C65: COMUNE DI VEZZA D'OGLIO | D65: 1211
A66: 1218 | B66: 03119540130 | C66: LARIO RETI HOLDING | D66: 1218
A67: 1226 | B67: 00148590227 | C67: COMUNE DI PREDAZZO - AEC | D67: 1226
A68: 1234 | B68: 00203870225 | C68: COMUNE DI ISERA | D68: 1234
A69: 1261 | B69: 02013000985 | C69: AZIENDA SERVIZI VALTROMPIA SPA | D69: 1261
A70: 1280 | B70: 02059030417 | C70: Marche Multiservizi S.p.A. | D70: 1280
A71: 1300 | B71: 02119730428 | C71: ACQUAMBIENTE MARCHE SRL | D71: 1300
A72: 1310 | B72: 00070680947 | C72: COMUNE DI FROSOLONE | D72: 1310
A73: 1330 | B73: 01106460213 | C73: COMUNE DI VANDOIES | D73: =+A73 -> 1330
A74: 1343 | B74: 01717730210 | C74: AZIENDA SERVIZI DI BRESSANONE SPA | D74: 1343
A75: 1348 | B75: 00670090141 | C75: S.EC.AM. S.P.A. | D75: 1348
A76: 1352 | B76: 00149220220 | C76: COMUNE DI SANT'ORSOLA TERME | D76: 1352
A77: 1362 | B77: 00437620222 | C77: COMUNE DI CALDES | D77: 1362
A78: 1373 | B78: 00571350214 | C78: COMUNE DI CURON VENOSTA (BZ) | D78: 1373
A79: 1391 | B79: 00196170666 | C79: COMUNE DI PACENTRO | D79: 1391
A80: 1392 | B80: 01210690432 | C80: A.S.S.M. S.P.A. - TOLENTINO | D80: 1392
A81: 1417 | B81: 01579450220 | C81: A.I.R. - AZ. INTERCOMUNALE ROTALIANA S.P.A. | D81: 1417
A82: 1439 | B82: 00111860193 | C82: PADANIA ACQUE S.P.A. | D82: 1439
A83: 1440 | B83: 01522960671 | C83: RUZZO RETI SPA | D83: 1440
A84: 1473 | B84: 00149160228 | C84: COMUNE DI VARENA | D84: 1473
A85: 1531 | B85: 00129330213 | C85: COMUNE DI CAMPO TURES | D85: 1531
A86: 1552 | B86: 02181280138 | C86: AZIENDA SERVIZI INTEGRATI LAMBRO | D86: 1552
A87: 1643 | B87: 01531480216 | C87: ECO-CENTER SPA | D87: 1643
A88: 1657 | B88: 01142420056 | C88: A.S.P. S.P.A. | D88: 1657
A89: 1699 | B89: 00244230082 | C89: Comune di Molini di Triora | D89: 1699
A90: 1704 | B90: 02177670649 | C90: Solofra Servizi SpA | D90: 1704
A91: 1761 | B91: 00132380874 | C91: ACOSET | D91: 1761
A92: 1791 | B92: 01133700219 | C92: Comune di Rio di Pusteria | D92: 1791
A93: 1879 | B93: 00144520665 | C93: COMUNE DI ROCCA PIA | D93: 1879
A94: 1905 | B94: 00104260229 | C94: COMUNE DI CLES | D94: 1905
A95: 1927 | B95: 00827900218 | C95: COMUNE DI MALLES VENOSTA | D95: 1927
A96: 1953 | B96: 00672670163 | C96: COMUNE DI RONCOBELLO | D96: 1953
A97: 1961 | B97: 00337870406 | C97: Romagna Acque Società delle Fonti S.p.A. | D97: 1961
A98: 1976 | B98: 00070680707 | C98: COMUNE DI SAN GIULIANO DI PUGLIA | D98: 1976
A99: 1988 | B99: 00075910703 | C99: COMUNE DI RICCIA | D99: 1988
A100: 2071 | B100: 01685020065 | C100: Azienda Multiservizi Valenzana Spa | D100: 2071
A101: 2136 | B101: 00125770073 | C101: COMUNE DI CHAMPDEPRAZ | D101: 2136
A102: 2149 | B102: 00617120217 | C102: Comune di Cornedo all'Isarco | D102: 2149
A103: 2189 | B103: 03341820276 | C103: VERITAS SPA | D103: 2189
A104: 2323 | B104: 00177740214 | C104: Comune Moso in Passiria | D104: 2323
A105: 2325 | B105: 00409340213 | C105: COMUNE DI PERCA | D105: 2325
A106: 2326 | B106: 00447010216 | C106: Gemeinde St. Leonhard in Passeier | D106: 2326
A107: 2332 | B107: 01081070219 | C107: Gemeinde Lüsen | D107: 2332
A108: 2468 | B108: 02216751202 | C108: UNIFLOTTE S.r.L. | D108: 2468
A109: 2510 | B109: 02119870208 | C109: TEA ACQUE | D109: 2510
A110: 2572 | B110: 00409320215 | C110: comune di Rasun-Anterselva | D110: 2572
A111: 2872 | B111: 00146270228 | C111: COMUNE DI BASELGA DI PINE' | D111: 2872
A112: 2886 | B112: 00288090228 | C112: COMUNE DI CARISOLO | D112: 2886
A113: 2937 | B113: 07937540016 | C113: SOCIETA' METROPOLITANA ACQUE TORINO | D113: 2937
A114: 2946 | B114: 00246330088 | C114: COMUNE DI MENDATICA | D114: 2946
A115: 2958 | B115: 00432110211 | C115: Comune Città di Glorenza | D115: 2958
A116: 2967 | B116: 03278040245 | C116: ETRA SPA | D116: 2967
A117: 2982 | B117: 07063880962 | C117: Acsm-Agam reti gas-acqua S.p.A. | D117: 2982
A118: 3005 | B118: 02199110020 | C118: CONSORZIO DI BONIFICA DELLA BARAGGIA BIELLESE E VERCELLESE | D118: 3005
A119: 3045 | B119: 01791490343 | C119: IRETI S.p.A. | D119: 3045
A120: 3061 | B120: 01340850211 | C120: Comunità Comprensoriale Val Venosta | D120: 3061
A121: 3125 | B121: 00347000721 | C121: ACQUEDOTTO PUGLIESE SPA | D121: 3125
A122: 3299 | B122: 03258180987 | C122: A2A CICLO IDRICO | D122: 3299
A123: 3548 | B123: 01066120211 | C123: Gemeinde Terlan | D123: 3548
A124: 3577 | B124: 01093630216 | C124: Comune di Chiusa | D124: 3577
A125: 3659 | B125: 00508670213 | C125: Comune di Chienes | D125: 3659
A126: 3720 | B126: 00575930219 | C126: COMUNE DI SARENTINO | D126: 3720
A127: 3733 | B127: 01965360991 | C127: Iren Acqua S.p.A. | D127: 3733
A128: 3800 | B128: 00266900224 | C128: COMUNE DI FONDO | D128: 3800
A129: 3913 | B129: 00169490257 | C129: CONSORZIO PER L'ACQUEDOTTO DI AZZON | D129: 3913
A130: 4080 | B130: 00232370213 | C130: Comune di Marlengo | D130: 4080
A131: 4082 | B131: 00253800213 | C131: Comune di Verano | D131: 4082
A132: 4917 | B132: 00446860215 | C132: Comune di Scena | D132: 4917
A133: 5096 | B133: 00848050217 | C133: Comune di Lasa | D133: 5096
A134: 5098 | B134: 00194370219 | C134: Comune di Lana | D134: 5098
A135: 5156 | B135: 01084890217 | C135: Gemeinde Jenesien | D135: 5156
A136: 5461 | B136: 00264460213 | C136: Comune di Appiano sulla Strada del Vino | D136: 5461
A137: 5462 | B137: 00668860216 | C137: Comune di Terento | D137: =+A137 -> 5462
A138: 5516 | B138: 00247030224 | C138: COMUNE DI CASTELLO TESINO | D138: 5516
A139: 5673 | B139: 00243880127 | C139: comune di jerago con orago | D139: 5673
A140: 5720 | B140: 02093350516 | C140: ENTE ACQUE UMBRE-TOSCANE | D140: 5720
A141: 6188 | B141: 00095730560 | C141: COMUNE DI GROTTE DI CASTRO | D141: 6188
A142: 6958 | B142: 00689390573 | C142: SO.GE.A. S.P.A. | D142: 6958
A143: 7146 | B143: 02050020136 | C143: VALBE SERVIZI S.P.A. | D143: 7146
A144: 7331 | B144: 01271960021 | C144: CO.R.D.A.R. VALSESIA spa | D144: 7331
A145: 7345 | B145: 00073940058 | C145: ACQUEDOTTO VALTIGLIONE S.P.A. | D145: 7345
A146: 7373 | B146: 03798601211 | C146: ENERGIA VERDE ED IDRICA SPA IN LIQUIDAZIONE | D146: 7373
A147: 7381 | B147: 01880180060 | C147: GESTIONE ACQUA SPA | D147: 7381
A148: 7391 | B148: 00559790126 | C148: COMUNE DI BRUSIMPIANO | D148: 7391
A149: 7396 | B149: 01070220312 | C149: IRISACQUA SRL | D149: 7396
A150: 7442 | B150: 00411590136 | C150: COMODEPUR | D150: 7442
A151: 7462 | B151: 03299640163 | C151: UNIACQUE SPA | D151: 7462
A152: 7473 | B152: 00593600984 | C152: Comune di Cerveno | D152: 7473
A153: 7521 | B153: 04564950485 | C153: Acque Toscane | D153: 7521
A154: 7534 | B154: 01250250550 | C154: SERVIZIO IDRICO INTEGRATO S.C.p.A. | D154: 7534
A155: 7608 | B155: 04201250877 | C155: SERVIZI IDRICI ETNEI S.P.A | D155: 7608
A156: 7700 | B156: 01280290386 | C156: C.A.D.F. S.p.A. | D156: 7700
A157: 7702 | B157: 00182790659 | C157: Consac Gestioni Idriche S.p.a. | D157: 7702
A158: 7725 | B158: 00934000621 | C158: Gestione Servizi Sannio - GE.SE.SA. | D158: 7725
A159: 7778 | B159: 01321570663 | C159: SACA SERVIZI AMBIENTALI CENTRO ABRUZZO | D159: 7778
A160: 7806 | B160: 00451260046 | C160: ACQUEDOTTO LANGHE E ALPI CUNEESI SPA | D160: 7806
A161: 7942 | B161: 00131630873 | C161: Acque di Casalotto S.p.A. | D161: 7942
A162: 8051 | B162: 01270510660 | C162: Consorzio Aquedottistico Marsicano S.p.a. | D162: 8051
A163: 8054 | B163: 02634920546 | C163: Umbra Acque S.p.A. | D163: 8054
A164: 8092 | B164: 03079180364 | C164: SORGEAQUA S.R.L. | D164: 8092
A165: 8186 | B165: 00451940043 | C165: CALSO SPA - COMUNI DELL'ACQUEDOTTO LANGHE SUD OCCIDENTALI SPA | D165: 8186
A166: 8241 | B166: 00133090878 | C166: ACQUE CARCACI DEL FASANO SPA | D166: 8241
A167: 8246 | B167: 01855890230 | C167: AZIENDA GARDESANA SERVIZI SPA | D167: 8246
A168: 8294 | B168: 01390570065 | C168: VALLE ORBA DEPURAZIONE S.R.L. | D168: 8294
A169: 8302 | B169: 02102300064 | C169: COMUNI RIUNITI BELFORTE MONFERRATO SRL | D169: 8302
A170: 9039 | B170: 04017080872 | C170: A.M.A. S.p.A. | D170: 9039
A171: 9229 | B171: 02504010345 | C171: EMILIAMBIENTE | D171: 9229
A172: 9240 | B172: 02371210135 | C172: PRAGMA SPA | D172: 9240
A173: 9253 | B173: 01866890021 | C173: CORDAR SPA BIELLA SERVIZI | D173: 9253
A174: 9281 | B174: 02180710879 | C174: ACQUE SUD S.R.L. | D174: 9281
A175: 9369 | B175: 00083520668 | C175: GRAN SASSO ACQUA S.P.A. | D175: 9369
A176: 9735 | B176: 02156920304 | C176: CARNIACQUE | D176: 9735
A177: 9768 | B177: 00593060650 | C177: AUSINO S.P.A | D177: 9768
A178: 9842 | B178: 02775910132 | C178: CANTURINA SERVIZI TERRITORIALI S.P.A. | D178: 9842
A179: 9844 | B179: 00268520657 | C179: ASIS SALERNITANA RETI ED IMPIANTI SPA | D179: 9844
A180: 9907 | B180: 00057170946 | C180: Comune di Capracotta | D180: 9907
A181: 9909 | B181: 05175700482 | C181: Acque S.p.A. | D181: 9909
A182: 9918 | B182: 02111820029 | C182: COMUNI RIUNITI SOCIETA' DI GESTIONE DI SERVIZI COMUNALI | D182: 9918
A183: 10042 | B183: 01494020462 | C183: G.E.A.L. S.P.A. Gestione esercizio acquedotti Lucchesi | D183: 10042
A184: 10202 | B184: 07599620635 | C184: G.O.R.I. S.p.A. - GESTIONE OTTIMALE RISORSE IDRICHE | D184: 10202
A185: 10468 | B185: 02200370167 | C185: realizzazione e gestione servizi pubblici locali spa | D185: 10468
A186: 10612 | B186: 00064780281 | C186: acquevenete spa | D186: 10612
A187: 10626 | B187: 02645680162 | C187: ABM NEXT SRL | D187: 10626
A188: 10783 | B188: 02468770041 | C188: Azienda Cuneese Dell' Acqua-Società per Azioni | D188: 10783
A189: 10839 | B189: 02482390842 | C189: GIRGENTI ACQUE S.P.A. | D189: 10839
A190: 10912 | B190: 00475450185 | C190: COMUNE DI ROMAGNESE | D190: 10912
A191: 10959 | B191: 00563050459 | C191: AZGA NORD S.P.A. in liquidazioe | D191: 10959
A192: 10967 | B192: 02145701005 | C192: COMUNE DI MORICONE | D192: 10967
A193: 11605 | B193: 01887790341 | C193: MONTAGNA2000 | D193: 11605
A194: 12300 | B194: 02464200134 | C194: Service 24 Idrico S.r.l. | D194: 12300
A195: 12341 | B195: 03988240960 | C195: BRIANZACQUE SRL | D195: 12341
A196: 12351 | B196: 00076070705 | C196: Comune di Bojano | D196: 12351
A197: 12577 | B197: 00701890659 | C197: COMUNE DI SANT'ARSENIO | D197: 12577
A198: 12616 | B198: 00165890997 | C198: Società dell'Acqua Potabile S.r.l. | D198: 12616
A199: 12617 | B199: 02749880130 | C199: AQUA SEPRIO SERVIZI SRL | D199: 12617
A200: 12619 | B200: 01526780216 | C200: Azienda Servizi Municipalizzati di Merano Spa | D200: 12619
A201: 12622 | B201: 00069690709 | C201: COMUNE DI FOSSALTO | D201: =+A201 -> 12622
A202: 12683 | B202: 06564080155 | C202: ORINVEST SRL | D202: 12683
A203: 12701 | B203: 10200211000 | C203: CREA GESTIONI Srl | D203: 12701
A204: 12732 | B204: 03567090232 | C204: Acque Veronesi s.c. a r.l. | D204: 12732
A205: 12785 | B205: 00459960126 | C205: COMUNE DI BARASSO | D205: 12785
... 1518 more rows

Sheet TT_Comuni_ATO
A1: REGIONE | B1: Comune | C1: Comune_Prov | D1: Ente_Ambito | E1: ID_ATO | F1: ID_ATO | G1: PROVINCIA | H1: PROV | I1: Istat_Comune | J1: Comune | L1: ATO | M1: ID_ATO | N1: ID_ATO | O1: N/C/S | Q1: ID_Ente_Ambito | R1: Ente_Ambito | V1: ID_ATO | X1: Comune_Prov | Y1: Istat_Comune | Z1: REGIONE | AA1: PROVINCIA | AB1: PROV | AC1: Comune | AD1: Ente_Ambito | AE1: ID_ATO | AF1: ID_ATO
A2: ABRUZZO | B2: Acciano | C2: Acciano (AQ) | D2: Ente d'Ambito Aquilano | E2: 1301 | F2: 1301 | G2: L'Aquila | H2: AQ | I2: 066001 | J2: Acciano | L2: ATO LEMENE | M2: 1 | N2: 1 | O2: N | Q2: 14353 | R2: Regione Campania
A3: ABRUZZO | B3: Aielli | C3: Aielli (AQ) | D3: Ente d'ambito Marsicano n° 2 | E3: 1302 | F3: 1302 | G3: L'Aquila | H3: AQ | I3: 066002 | J3: Aielli | L3: ATO 1 - VERBANO-CUSIO-OSSOLA E PIANURA NOVARESE | M3: 101 | N3: 101 | O3: N | Q3: 19855 | R3: Consiglio di Bacino Brenta
A4: ABRUZZO | B4: Alfedena | C4: Alfedena (AQ) | D4: Ente d'Ambito Peligno Alto Sangro | E4: 1303 | F4: 1303 | G4: L'Aquila | H4: AQ | I4: 066003 | J4: Alfedena | L4: ATO 2 - BIELLESE, VERCELLESE, CASALESE | M4: 102 | N4: 102 | O4: N | Q4: 19856 | R4: Consulta d'Ambito Territoriale Ottimale Orientale Goriziano
A5: ABRUZZO | B5: Anversa degli Abruzzi | C5: Anversa degli Abruzzi (AQ) | D5: Ente d'Ambito Peligno Alto Sangro | E5: 1303 | F5: 1303 | G5: L'Aquila | H5: AQ | I5: 066004 | J5: Anversa degli Abruzzi | L5: ATO 3 - TORINO | M5: 103 | N5: 103 | O5: N | Q5: 19857 | R5: ATO 1 Verbano Cusio Ossola e Pianura Novarese
A6: ABRUZZO | B6: Ateleta | C6: Ateleta (AQ) | D6: Ente d'Ambito Peligno Alto Sangro | E6: 1303 | F6: 1303 | G6: L'Aquila | H6: AQ | I6: 066005 | J6: Ateleta | L6: ATO 4 - CUNEO | M6: 104 | N6: 104 | O6: N | Q6: 19858 | R6: Consiglio di Bacino Valle del Chiampo
A7: ABRUZZO | B7: Avezzano | C7: Avezzano (AQ) | D7: Ente d'ambito Marsicano n° 2 | E7: 1302 | F7: 1302 | G7: L'Aquila | H7: AQ | I7: 066006 | J7: Avezzano | L7: ATO 5 - ASTIGIANO, MONFERRATO | M7: 105 | N7: 105 | O7: N | Q7: 19859 | R7: Consiglio di Bacino Veronese
A8: ABRUZZO | B8: Balsorano | C8: Balsorano (AQ) | D8: Ente d'ambito Marsicano n° 2 | E8: 1302 | F8: 1302 | G8: L'Aquila | H8: AQ | I8: 066007 | J8: Balsorano | L8: ATO 6 - ALESSANDRIA | M8: 106 | N8: 106 | O8: N | Q8: 19860 | R8: UFFICIO D'AMBITO DELLA PROVINCIA DI SONDRIO
A9: ABRUZZO | B9: Barete | C9: Barete (AQ) | D9: Ente d'Ambito Aquilano | E9: 1301 | F9: 1301 | G9: L'Aquila | H9: AQ | I9: 066008 | J9: Barete | L9: ATO VALLE D'AOSTA | M9: 201 | N9: 201 | O9: N | Q9: 19861 | R9: Ente d'Ambito Chietino
A10: ABRUZZO | B10: Barisciano | C10: Barisciano (AQ) | D10: Ente d'Ambito Aquilano | E10: 1301 | F10: 1301 | G10: L'Aquila | H10: AQ | I10: 066009 | J10: Barisciano | L10: ATO BG - BERGAMO | M10: 301 | N10: 301 | O10: N | Q10: 19862 | R10: UFFICIO DI AMBITO DELLA PROVINCIA DI MANTOVA
A11: ABRUZZO | B11: Barrea | C11: Barrea (AQ) | D11: Ente d'Ambito Peligno Alto Sangro | E11: 1303 | F11: 1303 | G11: L'Aquila | H11: AQ | I11: 066010 | J11: Barrea | L11: ATO BS - BRESCIA | M11: 302 | N11: 302 | O11: N | Q11: 19863 | R11: Autorità di Ambito Calore Irpino
A12: ABRUZZO | B12: Bisegna | C12: Bisegna (AQ) | D12: Ente d'ambito Marsicano n° 2 | E12: 1302 | F12: 1302 | G12: L'Aquila | H12: AQ | I12: 066011 | J12: Bisegna | L12: ATO CO - COMO | M12: 304 | N12: 304 | O12: N | Q12: 19864 | R12: Consiglio di Bacino "Dolomiti Bellunesi"
A13: ABRUZZO | B13: Bugnara | C13: Bugnara (AQ) | D13: Ente d'Ambito Peligno Alto Sangro | E13: 1303 | F13: 1303 | G13: L'Aquila | H13: AQ | I13: 066012 | J13: Bugnara | L13: ATO CR - CREMONA | M13: 305 | N13: 305 | O13: N | Q13: 19865 | R13: Consiglio di Bacino Polesine
A14: ABRUZZO | B14: Cagnano Amiterno | C14: Cagnano Amiterno (AQ) | D14: Ente d'Ambito Aquilano | E14: 1301 | F14: 1301 | G14: L'Aquila | H14: AQ | I14: 066013 | J14: Cagnano Amiterno | L14: ATO LC - LECCO | M14: 306 | N14: 306 | O14: N | Q14: 19867 | R14: ATO VARESE
A15: ABRUZZO | B15: Calascio | C15: Calascio (AQ) | D15: Ente d'Ambito Aquilano | E15: 1301 | F15: 1301 | G15: L'Aquila | H15: AQ | I15: 066014 | J15: Calascio | L15: ATO LO - LODI | M15: 307 | N15: 307 | O15: N | Q15: 19869 | R15: Consiglio di Bacino Bacchiglione
A16: ABRUZZO | B16: Campo di Giove | C16: Campo di Giove (AQ) | D16: Ente d'Ambito Peligno Alto Sangro | E16: 1303 | F16: 1303 | G16: L'Aquila | H16: AQ | I16: 066015 | J16: Campo di Giove | L16: ATO MI ‒ Città Metropolitana di Milano | M16: 308 | N16: 308 | O16: N | Q16: 19872 | R16: Autorità d'Ambito Territoriale Ottimale Veneto Orientale
A17: ABRUZZO | B17: Campotosto | C17: Campotosto (AQ) | D17: Ente d'Ambito Aquilano | E17: 1301 | F17: 1301 | G17: L'Aquila | H17: AQ | I17: 066016 | J17: Campotosto | L17: ATO MN - MANTOVA | M17: 309 | N17: 309 | O17: N | Q17: 19873 | R17: Autorità di Ambito Territoriale Ottimale della Provincia di Imperia
A18: ABRUZZO | B18: Canistro | C18: Canistro (AQ) | D18: Ente d'ambito Marsicano n° 2 | E18: 1302 | F18: 1302 | G18: L'Aquila | H18: AQ | I18: 066017 | J18: Canistro | L18: ATO PV - PAVIA | M18: 310 | N18: 310 | O18: N | Q18: 19876 | R18: Ente d'Ambito Napoli Volturno
A19: ABRUZZO | B19: Cansano | C19: Cansano (AQ) | D19: Ente d'Ambito Peligno Alto Sangro | E19: 1303 | F19: 1303 | G19: L'Aquila | H19: AQ | I19: 066018 | J19: Cansano | L19: ATO SO - SONDRIO | M19: 311 | N19: 311 | O19: N | Q19: 19879 | R19: Ente d'Ambito Sarnese Vesuviano
A20: ABRUZZO | B20: Capestrano | C20: Capestrano (AQ) | D20: Ente d'Ambito Aquilano | E20: 1301 | F20: 1301 | G20: L'Aquila | H20: AQ | I20: 066019 | J20: Capestrano | L20: ATO VA - VARESE | M20: 312 | N20: 312 | O20: N | Q20: 19880 | R20: UFFICIO D'AMBITO DI LODI
A21: ABRUZZO | B21: Capistrello | C21: Capistrello (AQ) | D21: Ente d'ambito Marsicano n° 2 | E21: 1302 | F21: 1302 | G21: L'Aquila | H21: AQ | I21: 066020 | J21: Capistrello | L21: ATO MB - MONZA E DELLA BRIANZA | M21: 313 | N21: 313 | O21: N | Q21: 19881 | R21: UFFICIO D'AMBITO DELLA PROVINCIA DI CREMONA
A22: ABRUZZO | B22: Capitignano | C22: Capitignano (AQ) | D22: Ente d'Ambito Aquilano | E22: 1301 | F22: 1301 | G22: L'Aquila | H22: AQ | I22: 066021 | J22: Capitignano | L22: ATO NL - TRENTINO | M22: 401 | N22: 401 | O22: N | Q22: 19882 | R22: Autorità Idrica Pugliese
A23: ABRUZZO | B23: Caporciano | C23: Caporciano (AQ) | D23: Ente d'Ambito Aquilano | E23: 1301 | F23: 1301 | G23: L'Aquila | H23: AQ | I23: 066022 | J23: Caporciano | L23: ATO AV - ALTO VENETO | M23: 501 | N23: 501 | O23: N | Q23: 19883 | R23: Autorità d'Ambito Territoriale Ottimale 4 Lazio Meridionale - Latina
A24: ABRUZZO | B24: Cappadocia | C24: Cappadocia (AQ) | D24: Ente d'ambito Marsicano n° 2 | E24: 1302 | F24: 1302 | G24: L'Aquila | H24: AQ | I24: 066023 | J24: Cappadocia | L24: ATO B - BACCHIGLIONE | M24: 502 | N24: 502 | O24: N | Q24: 19884 | R24: ATO 2 Biellese, Vercellese e Casalese
A25: ABRUZZO | B25: Carapelle Calvisio | C25: Carapelle Calvisio (AQ) | D25: Ente d'Ambito Aquilano | E25: 1301 | F25: 1301 | G25: L'Aquila | H25: AQ | I25: 066024 | J25: Carapelle Calvisio | L25: ATO BR - BRENTA | M25: 503 | N25: 503 | O25: N | Q25: 19885 | R25: Ufficio d'ambito di Lecco
A26: ABRUZZO | B26: Carsoli | C26: Carsoli (AQ) | D26: Ente d'ambito Marsicano n° 2 | E26: 1302 | F26: 1302 | G26: L'Aquila | H26: AQ | I26: 066025 | J26: Carsoli | L26: ATO LV - LAGUNA DI VENEZIA | M26: 504 | N26: 504 | O26: N | Q26: 19886 | R26: Autorità di Ambito Territoriale Ottimale n. 2 Marche Centro - Ancona
A27: ABRUZZO | B27: Castel del Monte | C27: Castel del Monte (AQ) | D27: Ente d'Ambito Aquilano | E27: 1301 | F27: 1301 | G27: L'Aquila | H27: AQ | I27: 066026 | J27: Castel del Monte | L27: ATO P - POLESINE | M27: 505 | N27: 505 | O27: N | Q27: 19887 | R27: Ente d'Ambito Teramano
A28: ABRUZZO | B28: Castel di Ieri | C28: Castel di Ieri (AQ) | D28: Ente d'Ambito Peligno Alto Sangro | E28: 1303 | F28: 1303 | G28: L'Aquila | H28: AQ | I28: 066027 | J28: Castel di Ieri | L28: ATO V - VERONA | M28: 506 | N28: 506 | O28: N | Q28: 19888 | R28: Consiglio di Bacino Laguna di Venezia
A29: ABRUZZO | B29: Castel di Sangro | C29: Castel di Sangro (AQ) | D29: Ente d'Ambito Peligno Alto Sangro | E29: 1303 | F29: 1303 | G29: L'Aquila | H29: AQ | I29: 066028 | J29: Castel di Sangro | L29: ATO VC - VALLE DEL CHIAMPO | M29: 507 | N29: 507 | O29: N | Q29: 19890 | R29: A.T.O. Pescara
A30: ABRUZZO | B30: Castellafiume | C30: Castellafiume (AQ) | D30: Ente d'ambito Marsicano n° 2 | E30: 1302 | F30: 1302 | G30: L'Aquila | H30: AQ | I30: 066029 | J30: Castellafiume | L30: ATO VO - VENETO ORIENTALE | M30: 508 | N30: 508 | O30: N | Q30: 19893 | R30: CONSORZIO AMBITO TERRITORIALE OTTIMALE 2 CATANIA
A31: ABRUZZO | B31: Castelvecchio Calvisio | C31: Castelvecchio Calvisio (AQ) | D31: Ente d'Ambito Aquilano | E31: 1301 | F31: 1301 | G31: L'Aquila | H31: AQ | I31: 066030 | J31: Castelvecchio Calvisio | L31: ATO CEN - CENTRALE UDINE | M31: 601 | N31: 601 | O31: N | Q31: 19898 | R31: Ambito Territoriale Ottimale 2 Lazio Centrale - Roma
A32: ABRUZZO | B32: Castelvecchio Subequo | C32: Castelvecchio Subequo (AQ) | D32: Ente d'Ambito Peligno Alto Sangro | E32: 1303 | F32: 1303 | G32: L'Aquila | H32: AQ | I32: 066031 | J32: Castelvecchio Subequo | L32: ATO OCC - OCCIDENTALE PORDENONE | M32: 602 | N32: 602 | O32: N | Q32: 19900 | R32: UFFICIO D'AMBITO DELLA PROVINCIA DI BERGAMO
A33: ABRUZZO | B33: Celano | C33: Celano (AQ) | D33: Ente d'ambito Marsicano n° 2 | E33: 1302 | F33: 1302 | G33: L'Aquila | H33: AQ | I33: 066032 | J33: Celano | L33: ATO ORG - ORIENTALE-GORIZIANO | M33: 603 | N33: 603 | O33: N | Q33: 19901 | R33: Autorità di Ambito Territoriale Ottimale n.4 Cuneese
A34: ABRUZZO | B34: Cerchio | C34: Cerchio (AQ) | D34: Ente d'ambito Marsicano n° 2 | E34: 1302 | F34: 1302 | G34: L'Aquila | H34: AQ | I34: 066033 | J34: Cerchio | L34: ATO ORT - ORIENTALE-TRIESTINO | M34: 604 | N34: 604 | O34: N | Q34: 19905 | R34: ATO 6 ALESSANDRINO
A35: ABRUZZO | B35: Civita d'Antino | C35: Civita d'Antino (AQ) | D35: Ente d'ambito Marsicano n° 2 | E35: 1302 | F35: 1302 | G35: L'Aquila | H35: AQ | I35: 066034 | J35: Civita d'Antino | L35: ATO GE - GENOVA | M35: 701 | N35: 701 | O35: N | Q35: 19906 | R35: Ente d'Ambito Peligno Alto Sangro
A36: ABRUZZO | B36: Civitella Alfedena | C36: Civitella Alfedena (AQ) | D36: Ente d'Ambito Peligno Alto Sangro | E36: 1303 | F36: 1303 | G36: L'Aquila | H36: AQ | I36: 066035 | J36: Civitella Alfedena | L36: ATO IM - IMPERIA | M36: 702 | N36: 702 | O36: N | Q36: 19907 | R36: Ente d'ambito Marsicano n° 2
A37: ABRUZZO | B37: Civitella Roveto | C37: Civitella Roveto (AQ) | D37: Ente d'ambito Marsicano n° 2 | E37: 1302 | F37: 1302 | G37: L'Aquila | H37: AQ | I37: 066036 | J37: Civitella Roveto | L37: ATO SP - LA SPEZIA | M37: 703 | N37: 703 | O37: N | Q37: 19912 | R37: Autorità di Ambito Territoriale Ottimale n. 4 Marche Centro Sud - Fermano e Maceratese
A38: ABRUZZO | B38: Cocullo | C38: Cocullo (AQ) | D38: Ente d'Ambito Peligno Alto Sangro | E38: 1303 | F38: 1303 | G38: L'Aquila | H38: AQ | I38: 066037 | J38: Cocullo | L38: ATO Centro-Ovest 1 | M38: 705 | N38: 705 | O38: N | Q38: 19913 | R38: ATO PAVIA
A39: ABRUZZO | B39: Collarmele | C39: Collarmele (AQ) | D39: Ente d'ambito Marsicano n° 2 | E39: 1302 | F39: 1302 | G39: L'Aquila | H39: AQ | I39: 066038 | J39: Collarmele | L39: ATO Centro-Ovest 2 | M39: 706 | N39: 706 | O39: N | Q39: 19914 | R39: Autorità di Ambito Territoriale Ottimale n. 3 MARCHE CENTRO - MACERATA
A40: ABRUZZO | B40: Collelongo | C40: Collelongo (AQ) | D40: Ente d'ambito Marsicano n° 2 | E40: 1302 | F40: 1302 | G40: L'Aquila | H40: AQ | I40: 066039 | J40: Collelongo | L40: ATO 1 - PIACENZA | M40: 801 | N40: 801 | O40: N | Q40: 19916 | R40: Autorità di Ambito Territoriale Ottimale n. 5 MARCHE SUD - ASCOLI PICENO
A41: ABRUZZO | B41: Collepietro | C41: Collepietro (AQ) | D41: Ente d'Ambito Aquilano | E41: 1301 | F41: 1301 | G41: L'Aquila | H41: AQ | I41: 066040 | J41: Collepietro | L41: ATO 2 - PARMA | M41: 802 | N41: 802 | O41: N | Q41: 19917 | R41: Autorità di Ambito Sele
A42: ABRUZZO | B42: Corfinio | C42: Corfinio (AQ) | D42: Ente d'Ambito Peligno Alto Sangro | E42: 1303 | F42: 1303 | G42: L'Aquila | H42: AQ | I42: 066041 | J42: Corfinio | L42: ATO 3 - REGGIO NELL'EMILIA | M42: 803 | N42: 803 | O42: N | Q42: 19918 | R42: ATO BRESCIA
A43: ABRUZZO | B43: Fagnano Alto | C43: Fagnano Alto (AQ) | D43: Ente d'Ambito Aquilano | E43: 1301 | F43: 1301 | G43: L'Aquila | H43: AQ | I43: 066042 | J43: Fagnano Alto | L43: ATO 4 - MODENA | M43: 804 | N43: 804 | O43: N | Q43: 19920 | R43: ATO 3 Torinese
A44: ABRUZZO | B44: Fontecchio | C44: Fontecchio (AQ) | D44: Ente d'Ambito Aquilano | E44: 1301 | F44: 1301 | G44: L'Aquila | H44: AQ | I44: 066043 | J44: Fontecchio | L44: ATO 5 - BOLOGNA | M44: 805 | N44: 805 | O44: N | Q44: 27256 | R44: Autorità Umbra Rifiuti Idrico
A45: ABRUZZO | B45: Fossa | C45: Fossa (AQ) | D45: Ente d'Ambito Aquilano | E45: 1301 | F45: 1301 | G45: L'Aquila | H45: AQ | I45: 066044 | J45: Fossa | L45: ATO 6 - FERRARA | M45: 806 | N45: 806 | O45: N | Q45: 19926 | R45: Autorità di Ambito Territoriale Ottimale della Provincia di Genova
A46: ABRUZZO | B46: Gagliano Aterno | C46: Gagliano Aterno (AQ) | D46: Ente d'Ambito Peligno Alto Sangro | E46: 1303 | F46: 1303 | G46: L'Aquila | H46: AQ | I46: 066045 | J46: Gagliano Aterno | L46: ATO 7 - RAVENNA | M46: 807 | N46: 807 | O46: N | Q46: 19928 | R46: Ufficio d'Ambito della Città metropolitana di Milano
A47: ABRUZZO | B47: Gioia dei Marsi | C47: Gioia dei Marsi (AQ) | D47: Ente d'ambito Marsicano n° 2 | E47: 1302 | F47: 1302 | G47: L'Aquila | H47: AQ | I47: 066046 | J47: Gioia dei Marsi | L47: ATO 8 - FORLì-CESENA | M47: 808 | N47: 808 | O47: N | Q47: 19929 | R47: Ufficio d'Ambito di Como
A48: ABRUZZO | B48: Goriano Sicoli | C48: Goriano Sicoli (AQ) | D48: Ente d'Ambito Peligno Alto Sangro | E48: 1303 | F48: 1303 | G48: L'Aquila | H48: AQ | I48: 066047 | J48: Goriano Sicoli | L48: ATO 9 - RIMINI | M48: 809 | N48: 809 | O48: N | Q48: 19931 | R48: Ente di Governo dell'Ambito della Sardegna
A49: ABRUZZO | B49: Introdacqua | C49: Introdacqua (AQ) | D49: Ente d'Ambito Peligno Alto Sangro | E49: 1303 | F49: 1303 | G49: L'Aquila | H49: AQ | I49: 066048 | J49: Introdacqua | L49: ATO 1 - TOSCANA NORD | M49: 901 | N49: 901 | O49: C | Q49: 19934 | R49: Autorità di Ambito Territoriale Ottimale n. 1 MARCHE NORD - PESARO URBINO
A50: ABRUZZO | B50: L'Aquila | C50: L'Aquila (AQ) | D50: Ente d'Ambito Aquilano | E50: 1301 | F50: 1301 | G50: L'Aquila | H50: AQ | I50: 066049 | J50: L'Aquila | L50: ATO 2 - BASSO VALDARNO (PISA) | M50: 902 | N50: 902 | O50: C | Q50: 19938 | R50: ATO MONZA E BRIANZA
A51: ABRUZZO | B51: Lecce nei Marsi | C51: Lecce nei Marsi (AQ) | D51: Ente d'ambito Marsicano n° 2 | E51: 1302 | F51: 1302 | G51: L'Aquila | H51: AQ | I51: 066050 | J51: Lecce nei Marsi | L51: ATO 3 - MEDIO VALDARNO (FIRENZE) | M51: 903 | N51: 903 | O51: C | Q51: 19939 | R51: Consorzio ATO 5 Enna
A52: ABRUZZO | B52: Luco dei Marsi | C52: Luco dei Marsi (AQ) | D52: Ente d'ambito Marsicano n° 2 | E52: 1302 | F52: 1302 | G52: L'Aquila | H52: AQ | I52: 066051 | J52: Luco dei Marsi | L52: ATO 4 - ALTO VALDARNO (AREZZO) | M52: 904 | N52: 904 | O52: C | Q52: 19941 | R52: CONSORZIO AMBITO TERRITORIALE OTTIMALE 6 CALTANISSETTA
A53: ABRUZZO | B53: Lucoli | C53: Lucoli (AQ) | D53: Ente d'Ambito Aquilano | E53: 1301 | F53: 1301 | G53: L'Aquila | H53: AQ | I53: 066052 | J53: Lucoli | L53: ATO 5 - TOSCANA COSTA | M53: 905 | N53: 905 | O53: C | Q53: 19942 | R53: Consulta d'Ambito per il servizio idrico integrato dell'ATO Occidentale
A54: ABRUZZO | B54: Magliano de' Marsi | C54: Magliano de' Marsi (AQ) | D54: Ente d'ambito Marsicano n° 2 | E54: 1302 | F54: 1302 | G54: L'Aquila | H54: AQ | I54: 066053 | J54: Magliano de' Marsi | L54: ATO 6 - OMBRONE (GROSSETO) | M54: 906 | N54: 906 | O54: C | Q54: 19944 | R54: Consulta d'Ambito Territoriale Ottimale "Orientale Triestino"
A55: ABRUZZO | B55: Massa d'Albe | C55: Massa d'Albe (AQ) | D55: Ente d'ambito Marsicano n° 2 | E55: 1302 | F55: 1302 | G55: L'Aquila | H55: AQ | I55: 066054 | J55: Massa d'Albe | L55: ATO 1 - AMBITO 1-2 | M55: 1001 | N55: 1001 | O55: C | Q55: 19946 | R55: Consulta d'Ambito per il Servizio Idrico Integrato Centrale Friuli
A56: ABRUZZO | B56: Molina Aterno | C56: Molina Aterno (AQ) | D56: Ente d'Ambito Peligno Alto Sangro | E56: 1303 | F56: 1303 | G56: L'Aquila | H56: AQ | I56: 066055 | J56: Molina Aterno | L56: ATO 2 - AMBITO 3 | M56: 1002 | N56: 1002 | O56: C | Q56: 19947 | R56: AUTORITA' D'AMBITO ASTIGIANO MONFERRATO
A57: ABRUZZO | B57: Montereale | C57: Montereale (AQ) | D57: Ente d'Ambito Aquilano | E57: 1301 | F57: 1301 | G57: L'Aquila | H57: AQ | I57: 066056 | J57: Montereale | L57: ATO 3 - AMBITO 4 | M57: 1003 | N57: 1003 | O57: C | Q57: 19949 | R57: Autorità d'Ambito A.T.O. Interregionale Lemene
A58: ABRUZZO | B58: Morino | C58: Morino (AQ) | D58: Ente d'ambito Marsicano n° 2 | E58: 1302 | F58: 1302 | G58: L'Aquila | H58: AQ | I58: 066057 | J58: Morino | L58: ATO 1 - MARCHE NORD PESARO E URBINO | M58: 1101 | N58: 1101 | O58: C | Q58: 19964 | R58: Autorità Idrica Toscana
A59: ABRUZZO | B59: Navelli | C59: Navelli (AQ) | D59: Ente d'Ambito Aquilano | E59: 1301 | F59: 1301 | G59: L'Aquila | H59: AQ | I59: 066058 | J59: Navelli | L59: ATO 2 - MARCHE CENTRO ANCONA | M59: 1102 | N59: 1102 | O59: C | Q59: 19984 | R59: Autorità d'Ambito Territoriale Ottimale 5 Lazio Meridionale - Frosinone
A60: ABRUZZO | B60: Ocre | C60: Ocre (AQ) | D60: Ente d'Ambito Aquilano | E60: 1301 | F60: 1301 | G60: L'Aquila | H60: AQ | I60: 066059 | J60: Ocre | L60: ATO 3 - MARCHE CENTRO MACERATA | M60: 1103 | N60: 1103 | O60: C | Q60: 19992 | R60: Autorità d'Ambito dell'A.T.O. n° 1 Lazio Nord - Viterbo
A61: ABRUZZO | B61: Ofena | C61: Ofena (AQ) | D61: Ente d'Ambito Aquilano | E61: 1301 | F61: 1301 | G61: L'Aquila | H61: AQ | I61: 066060 | J61: Ofena | L61: ATO 4 - MARCHE SUD ALTO PICENO MACERATESE | M61: 1104 | N61: 1104 | O61: C | Q61: 19997 | R61: ATERSIR
A62: ABRUZZO | B62: Opi | C62: Opi (AQ) | D62: Ente d'Ambito Peligno Alto Sangro | E62: 1303 | F62: 1303 | G62: L'Aquila | H62: AQ | I62: 066061 | J62: Opi | L62: ATO 5 - MARCHE SUD ASCOLI PICENO | M62: 1105 | N62: 1105 | O62: C | Q62: 20007 | R62: Regione Molise
A63: ABRUZZO | B63: Oricola | C63: Oricola (AQ) | D63: Ente d'ambito Marsicano n° 2 | E63: 1302 | F63: 1302 | G63: L'Aquila | H63: AQ | I63: 066062 | J63: Oricola | L63: ATO 1 - LAZIO NORD VITERBO | M63: 1201 | N63: 1201 | O63: C | Q63: 20011 | R63: Consorzio dei Comuni della Valle d'Aosta Bacino Imbrifero Montano
A64: ABRUZZO | B64: Ortona dei Marsi | C64: Ortona dei Marsi (AQ) | D64: Ente d'ambito Marsicano n° 2 | E64: 1302 | F64: 1302 | G64: L'Aquila | H64: AQ | I64: 066063 | J64: Ortona dei Marsi | L64: ATO 2 - LAZIO CENTRALE ROMA | M64: 1202 | N64: 1202 | O64: C | Q64: 20129 | R64: ATO 4 SPEZZINO
A65: ABRUZZO | B65: Ortucchio | C65: Ortucchio (AQ) | D65: Ente d'ambito Marsicano n° 2 | E65: 1302 | F65: 1302 | G65: L'Aquila | H65: AQ | I65: 066064 | J65: Ortucchio | L65: ATO 3 - LAZIO CENTRALE RIETI | M65: 1203 | N65: 1203 | O65: C | Q65: 20233 | R65: Autorità Ambito Territoriale Ottimale Ragusa "idrico"
A66: ABRUZZO | B66: Ovindoli | C66: Ovindoli (AQ) | D66: Ente d'ambito Marsicano n° 2 | E66: 1302 | F66: 1302 | G66: L'Aquila | H66: AQ | I66: 066065 | J66: Ovindoli | L66: ATO 4 - LAZIO MERIDIONALE LATINA | M66: 1204 | N66: 1204 | O66: C | Q66: 20304 | R66: Ente d'Ambito Aquilano
A67: ABRUZZO | B67: Pacentro | C67: Pacentro (AQ) | D67: Ente d'Ambito Peligno Alto Sangro | E67: 1303 | F67: 1303 | G67: L'Aquila | H67: AQ | I67: 066066 | J67: Pacentro | L67: ATO 5 - LAZIO MERIDIONALE FROSINONE | M67: 1205 | N67: 1205 | O67: C | Q67: 20344 | R67: Consorzio ATO idrico 8 Siracusa
A68: ABRUZZO | B68: Pereto | C68: Pereto (AQ) | D68: Ente d'ambito Marsicano n° 2 | E68: 1302 | F68: 1302 | G68: L'Aquila | H68: AQ | I68: 066067 | J68: Pereto | L68: ATO 1 - AQUILANO | M68: 1301 | N68: 1301 | O68: S | Q68: 20361 | R68: Autorità Ambito Territoriale Ottimale 1 Palermo
A69: ABRUZZO | B69: Pescasseroli | C69: Pescasseroli (AQ) | D69: Ente d'Ambito Peligno Alto Sangro | E69: 1303 | F69: 1303 | G69: L'Aquila | H69: AQ | I69: 066068 | J69: Pescasseroli | L69: ATO 2 - MARSICANO | M69: 1302 | N69: 1302 | O69: S | Q69: 20492 | R69: ATO3 RIETI
A70: ABRUZZO | B70: Pescina | C70: Pescina (AQ) | D70: Ente d'ambito Marsicano n° 2 | E70: 1302 | F70: 1302 | G70: L'Aquila | H70: AQ | I70: 066069 | J70: Pescina | L70: ATO 3 - PELIGNO ALTO SANGRO | M70: 1303 | N70: 1303 | O70: S | Q70: 20519 | R70: Regione Calabria
A71: ABRUZZO | B71: Pescocostanzo | C71: Pescocostanzo (AQ) | D71: Ente d'Ambito Peligno Alto Sangro | E71: 1303 | F71: 1303 | G71: L'Aquila | H71: AQ | I71: 066070 | J71: Pescocostanzo | L71: ATO 4 - PESCARA | M71: 1304 | N71: 1304 | O71: S | Q71: 25403 | R71: Ente di Governo per i Rifiuti e le Risorse Idriche di Basilicata
A72: ABRUZZO | B72: Pettorano sul Gizio | C72: Pettorano sul Gizio (AQ) | D72: Ente d'Ambito Peligno Alto Sangro | E72: 1303 | F72: 1303 | G72: L'Aquila | H72: AQ | I72: 066071 | J72: Pettorano sul Gizio | L72: ATO 5 - TERAMO | M72: 1305 | N72: 1305 | O72: S | Q72: 26079 | R72: ATI Assemblea Territoriale Idrica - Agrigento
A73: ABRUZZO | B73: Pizzoli | C73: Pizzoli (AQ) | D73: Ente d'Ambito Aquilano | E73: 1301 | F73: 1301 | G73: L'Aquila | H73: AQ | I73: 066072 | J73: Pizzoli | L73: ATO 6 - CHIETI | M73: 1306 | N73: 1306 | O73: S | Q73: 20426 | R73: Provincia di Savona
A74: ABRUZZO | B74: Poggio Picenze | C74: Poggio Picenze (AQ) | D74: Ente d'Ambito Aquilano | E74: 1301 | F74: 1301 | G74: L'Aquila | H74: AQ | I74: 066073 | J74: Poggio Picenze | L74: ATO MOLISE | M74: 1401 | N74: 1401 | O74: S | R74: ATO 3 - MESSINA
A75: ABRUZZO | B75: Prata d'Ansidonia | C75: Prata d'Ansidonia (AQ) | D75: Ente d'Ambito Aquilano | E75: 1301 | F75: 1301 | G75: L'Aquila | H75: AQ | I75: 066074 | J75: Prata d'Ansidonia | L75: Ambito distrettuale Calore Irpino | M75: 1501 | N75: 1501 | O75: S | R75: ATO NL - TRENTINO
A76: ABRUZZO | B76: Pratola Peligna | C76: Pratola Peligna (AQ) | D76: Ente d'Ambito Peligno Alto Sangro | E76: 1303 | F76: 1303 | G76: L'Aquila | H76: AQ | I76: 066075 | J76: Pratola Peligna | L76: Ambito distrettuale Napoli | M76: 1502 | N76: 1502 | O76: S | R76: ATO 7 - TRAPANI
